{"text_format":"1","workbook":"xlsx","n_sheets":9,"sheets":["Instructivo","DEMANDA ANUAL","VOLUMEN DE QUEJAS","COSTO ADMINISTRACIÓN PÚBLICA","RESUMEN DE COSTOS AP","AUXILIAR COSTO ADMINISTRACIÓN","TIEMPO DE RESPUESTA","CANAL ATENCIÓN","RESUMEN"],"not_rendered":{"charts":0,"images":7,"macros":1,"external_links":0,"defined_names":3,"comments":5,"pivot_tables":0},"unopened":[],"bounds":{"document_bytes":16777216,"sheet_cells":100000,"rows_first":2000,"rows_last":500,"rows_between":2000,"halvings":0,"cell_chars":16384,"cell_head_chars":4096},"cells_cut":0,"cells_raw":0,"read":"whole","date_system":"1900"}

{"sheet":"Instructivo","index":0,"n_rows":70,"n_cols":1,"rows_kept":70,"cut":false,"hidden":false,"merged":[]}
["CRITERIO DE PRIORIZACIÓN DE TRÁMITES ADMINISTRATIVOS"]
["Instructivo"]
["Consideraciones generales"]
[]
["En las hojas “COSTO DE ADMINISTRACIÓN PÚBLICA”y “RESUMEN”  para añadir más trámites y que apliquen las fórmulas, se deberá seleccionar la primera fila y copiarla una por cada trámite de la entidad"]
[]
["Todas las hojas tienen columnas de color celeste, en las cuales NO deben ingresar valores ya que contienen fórmulas."]
["Para la carga en GOB.EC. La institución debe recordar que el peso máximo del archivo es de 2 MB."]
["Esquema de puntuación"]
["Para priorizar un trámite, se realizará un análisis de criterios básicos y adicionales basado en información que disponen las instituciones sujetas a esta norma técnica. Cada criterio será puntuado según los lineamientos presentes en esta norma."]
["a) Demanda Anual"]
["Considerará el volumen o frecuencia de las solicitudes que ingresan al año a cada institución para la gestión de un trámite en particular."]
["La identificación del volumen anual de los trámites se realizará a través de sus registros de transacciones y/o el número de visitas de consulta de información realizadas a través de páginas web institucionales."]
["Para realizar el registro realice lo siguiente:"]
["1.- Seleccione la hoja DEMANDA ANUAL"]
["2.- Ingrese los trámites de la institución registrando el identificador y nombre en las columnas respectivas.  "]
["3.- Para cada trámite debe especificar en la columna DEMANDA ANUAL el volumen o frecuencia anual, de acuerdo a lo mencionado anteriormente."]
["4.- Una vez terminado el llenado solicitado presione el botón PUNTUACIÓN, se ordenara de menor a mayor. "]
["5.- Usted visualizará el ordenamiento de los trámites ingresados de acuerdo al número de  volumen o frecuencia anual."]
["6.- Así mismo, usted visualizará el puntaje obtenido en la columna PUNTUACIÓN de acuerdo al grupo obtenido por cada trámite de acuerdo al número de volumen o frecuencia anual cosiderando lo siguiente: ** Primer grupo (trámites con menor demanda no incluye los trámites con demanda 0 ) = 3\n** Segundo grupo (trámites con demanda intermedia) = 6\n** Tercer grupo (trámites con mayor demanda) = 10"]
["Cada vez que requiera actualizar el puntaje presionando el botón puntuación, debe verificar que la celda de la columna puntaje se encuentren vacías, es decir, se debe borrar cualquier valor de puntaje obtenido previamente."]
["b) Volumen de quejas asociadas a un trámite: "]
["Considerará la cantidad de quejas recibidas en relación a un trámite durante un año. Estas quejas deberán estar documentadas en medios físicos y/o digitales."]
["Para determinar la puntuación, se colocará en una tabla todos los trámites con sus correspondientes quejas ordenándose de menor a mayor. Se dividirá en 2 partes en los que cada grupo contenga la misma cantidad de trámites."]
["Para realizar el registro realice lo siguiente:"]
["1.- Seleccione la hoja VOLUMEN DE QUEJAS"]
["2.- Ingrese los trámites de la institución registrando el identificador y nombre en las columnas respectivas.  Si usted requiere de acuerdo al número de trámites copie filas adicionales que estén dentro del cuadro"]
["3.- Para cada trámite debe especificar en la columna VOLUMEN QUEJAS el número de quejas anual, de acuerdo a lo mencionado anteriormente."]
["4.- Una vez terminado el llenado solicitado presione el botón PUNTUACIÓN."]
["5.- Usted visualizará el ordenamiento de los trámites ingresados de acuerdo al número de  volumen o frecuencia anual."]
["6.- Así mismo, usted visualizará el puntaje obtenido en la columna PUNTUACIÓN de acuerdo al grupo obtenido por cada trámite de acuerdo al número de volumen o frecuencia anual cosiderando lo siguiente: La puntuación se basará en los siguientes grupos:\n** Primer grupo (trámites con menor cantidad de quejas, no incluye los trámites con queja 0 ) = 4\n** Segundo grupo (trámites con mayor porcentaje de quejas) = 10"]
["El valor del volumen de quejas no debe ser superior al valor del volumen de la demana, no le permitirá registrar un valor."]
["c) Costo para la administración pública: "]
["En cada trámite, basado en un caso estándar, se deberá estimar el costo incurrido en el costo de personal y recursos necesarios para su atención desde que el administrado entregó todos los requisitos hasta que la institución entregue el producto, respuesta o servicio requerido en el trámite. Se considerará:"]
["• Costo de personal:"]
["Costo del personal para atender el trámite, se excluyen actividades realizadas automáticamente o que dependen del administrado. El tiempo deberá considerar únicamente el tiempo efectivo de trabajo del personal, no debe considerar el tiempo de espera o de movimiento."]
["• Costo de recursos:"]
["Se deberá considerar el costo directo en el que la institución debe incurrir para atender un trámite. Se debe considerar los insumos o materia prima necesaria u cualquier otro que la institución considere pertinente."]
["Para realizar el registro realice lo siguiente:"]
["1.- Seleccione la hoja COSTO ADMINISTRACIÓN PÚBLICA"]
["2.- Ingrese los trámites de la institución registrando el identificador y nombre en las columnas respectivas.  Si usted requiere de acuerdo al número de trámites copie filas adicionales que estén dentro del cuadro"]
["3.- Para calcular el tiempo de las actividades, utilizar la hoja AUXILIAR COSTO ADMINISTRACIÓN donde deberá listar todas las actividades que realiza la institución en un caso estándar y asignar el tiempo mínimo que toma cada actvidad (en horas). El tiempo total de las actividades, deberá ingresar en la correspondiente celda de la hoja COSTO ADMINISTRACIÓN PÚBLICA"]
["4.- En función de la información registrada en el paso 3, la matriz entregará el costo del personal"]
["5.- Completar la columna \"Costo recursos\", en la cual ingresará el costo directo en el que incurre la institución para entregar el trámite. En este valor se considerarán los valores correspondientes a insumos y/o materia prima mínimos que se invierten por cada trámite (no se considera mano de obra)"]
["6.- La columna \"Costo para la adm. pública\" mostrará el costto de este criterio para cada trámite"]
["7,- Para que la fórmula funcione debe arrastrar hacia abajo al último de los támites ingresados, no copiar"]
["7.- Una vez que disponga del Costo para la administración pública, presionar el botón \"GENERAR\"."]
["8. Visualizar la hoja “RESUMEN DE COSTO AP” en la que va a encontrar copiada las celdas necesarias para el ordenamiento y puntuación de las mismas al presionar el botón “PUNTUACIÓN”"]
[]
["d) Tiempo de respuesta: "]
["Considerará los tiempos que a las instituciones les toma dar respuesta a un trámite desde que reciben la solicitud del administrado hasta la finalización del mismo. Para la definición del tiempo se considerará un caso estándar."]
["Para determinar la puntuación, se colocará en una tabla todos los trámites con el tiempo de respuesta, ordenándose de menor a mayor. Se dividirá en 4 grupos, en los que cada uno contenga la misma cantidad de trámites."]
["Para realizar el registro realice lo siguiente:"]
["1.- Seleccione la hoja TIEMPO DE RESPUESTA"]
["2.- Ingrese los trámites de la institución registrando el identificador y nombre en las columnas respectivas.  Si usted requiere de acuerdo al número de trámites copie filas adicionales que estén dentro del cuadro"]
["3.- Para cada trámite debe especificar en la columna TIEMPO RESPUESTA el tiempo, de acuerdo a lo mencionado anteriormente."]
["4.- Una vez terminado el llenado solicitado presione el botón PUNTUACIÓN."]
["5.- Usted visualizará el ordenamiento de los trámites ingresados de acuerdo al número de  volumen o frecuencia anual."]
["6.- Así mismo, usted visualizará el puntaje obtenido en la columna PUNTUACIÓN de acuerdo al grupo obtenido por cada trámite de acuerdo al número de volumen o frecuencia anual cosiderando lo siguiente:  La puntuación considera lo siguiente:\n** Primer grupo (menor o igual a 40 horas laboralres) = 0\n** Segundo grupo mayor  40 horas laboralres) = 30"]
["e) Canal de atención: "]
["Considerará los canales de atención a través de los cuales el administrado puede iniciar el trámite."]
["Para realizar el registro realice lo siguiente:"]
["1.- Seleccione la hoja CANAL ATENCIÓN"]
["2.- Ingrese los trámites de la institución registrando el identificador y nombre en las columnas respectivas.  Si usted requiere de acuerdo al número de trámites copie filas adicionales que estén dentro del cuadro"]
["3.- Para cada trámite debe seleccionar el canal de atención del trámite en la columna CANAL ATENCIÓN, que pueden ser: \nEl trámite se puede completar totalmente en línea: Se considera trámite totalmente en línea cuando el administrado no requiere realizar ninguna interacción presencial con la institución = 0\nEl trámite no se puede completar totalmente en línea: Se considera este caso, cuando el trámite incluye al menos una actividad, incluido mecanismos de pago, en la que el administrado deba acudir presencialmente a la institución, para la realización de dicho trámite. Los trámites presenciales se consideran dentro de esta categoría = 10"]
["4.- De acuerdo a la selección usted obtendrá la puntuación del trámite que se visualizará en la columna PUNTUACIÓN."]
[]
["f) Resumen"]
["En esta hoja deberá consolidar todas las puntuaciones obtenidas para cada trámite en los criterios a) hasta e). Adicionalmente deberá analizar los criterios adicionales que dispone la norma técnica, para estos últimos solamente deberá seleccionar en la celda correspondiente y la matriz asignará la puntuación adicional. Los criterios que deberá considerar son:\n- NECESIDADES CIUDADANAS: Si la institución ha implementado mecanismos para identificar necesidades ciudadanas respecto al trámite, seleccionar \"SI\", caso contrario, seleccionar \"NO\"\n- SUSCEPTIBILIDAD A CORRUPCIÓN: Si la institución dispone de información documentada sobre presuntos actos de corrupción, seleccionar \"SI\", caso contrario, seleccionar \"NO\"\n- VOLUMEN DE DEVOLUCIONES: Si la institución posee documentación sobre devoluciones del trámite en una cantidad significativa, seleccionar \"SI\", caso contrario, seleccionar \"NO\"\nPara que funcione la lista depelgable debe arrastrar la lista y la puntuación hacia abajo al último de los támites ingresados, no copiar"]
["En la columna puntaje total se realizará la sumatoria de los valores de los criterios básicos y adicionales. Este valor deberá registrarse en la plataforma GOB.EC"]

{"sheet":"DEMANDA ANUAL","index":1,"n_rows":297,"n_cols":4,"rows_kept":297,"cut":false,"hidden":false,"merged":[[0,0,0,3],[1,0,1,3]]}
["PRIORIZACIÓN DE TRÁMITES ADMINISTRATIVOS"]
["DEMANDA ANUAL"]
[]
["IDENTIFICADOR","TRÁMITE","DEMANDA ANUAL","PUNTAJE"]
["ARCOTEL-035-02-01","Asesoría para la formación de Equipos de Respuesta a Incidentes de Seguridad Informática (CSIRT)",0,0]
["ARCOTEL-014-03-05","Autorización de adquisición de acciones o participaciones de empresas para el Servicio de Acceso a Internet",0,0]
["ARCOTEL-015-03-04","Autorización de adquisición de acciones o participaciones de empresas para el Servicio de Telecomunicaciones Móviles por Satélite",0,0]
["ARCOTEL-018-03-05","Autorización de adquisición de acciones o participaciones de empresas para el Servicio Móvil Avanzado",0,0]
["ARCOTEL-025-03-05","Autorización de adquisición de acciones o participaciones de empresas para el Servicio Móvil Avanzado bajo la modalidad de Operador Móvil Virtual",0,0]
["ARCOTEL-017-03-08","Autorización de adquisición de acciones o participaciones de empresas para el Servicio Portador",0,0]
["ARCOTEL-031-03-02","Autorización de ampliación de cobertura para el Servicio de Telefonía Fija",0,0]
["ARCOTEL-030-03-03","Autorización de ampliación de frecuencias para incremento o decremento de canales para un Sistema de Audio y Video por Suscripción",0,0]
["ARCOTEL-014-03-02","Autorización de cambio de control para el Servicio de Acceso a Internet",0,0]
["ARCOTEL-027-03-03","Autorización de cambio de control para el Servicio de Valor Agregado",0,0]
["ARCOTEL-017-03-05","Autorización de cambio de control para el Servicio Portador",0,0]
["ARCOTEL-020-03-03","Autorización de cambios de Control para el Servicio Comunal, Servicio Troncalizado, Transporte Internacional Modalidad Provisión de Segmento Espacial",0,0]
["ARCOTEL-032-03-05","Autorización de cambios en el área de registro/permiso, servicios, etc. que implica cambio de control para el Servicio de Transporte Internacional modalidad Cable Submarino",0,0]
["ARCOTEL-016-03-03","Autorización de cancelación de enlaces terrestres y satelitales asociado a una Red Privada de Telecomunicaciones",0,0]
["ARCOTEL-014-03-04","Autorización de fusión de compañías o personas jurídicas de derecho privado poseedoras de Títulos Habilitantes para el Servicio de Acceso a Internet",0,0]
["ARCOTEL-015-03-03","Autorización de fusión de compañías o personas jurídicas de derecho privado poseedoras de Títulos Habilitantes para el Servicio de Telecomunicaciones Móviles por Satélite",0,0]
["ARCOTEL-027-03-05","Autorización de fusión de compañías o personas jurídicas de derecho privado poseedoras de Títulos Habilitantes para el Servicio de Valor Agregado",0,0]
["ARCOTEL-018-03-04","Autorización de fusión de compañías o personas jurídicas de derecho privado poseedoras de Títulos Habilitantes para el Servicio Móvil Avanzado",0,0]
["ARCOTEL-025-03-04","Autorización de fusión de compañías o personas jurídicas de derecho privado poseedoras de Títulos Habilitantes para el Servicio Móvil Avanzado a través de Operador Móvil Virtual",0,0]
["ARCOTEL-017-03-07","Autorización de fusión de compañías o personas jurídicas de derecho privado poseedoras de Títulos Habilitantes para el Servicio Portador",0,0]
["ARCOTEL-031-03-03","Autorización de fusión de dos compañías o personas jurídicas de derecho privado poseedoras de Títulos Habilitantes para el Servicio de Telefonía Fija",0,0]
["ARCOTEL-032-03-03","Autorización de fusión de dos compañías o personas jurídicas de derecho privado poseedoras de Títulos Habilitantes para el Servicio de Transporte Internacional modalidad Cable Submarino",0,0]
["ARCOTEL-032-03-04","Autorización de incremento y reubicación de estación terrena para el Servicio de Transporte Internacional modalidad Cable Submarino",0,0]
["ARCOTEL-037-02-04","Autorización de incremento, modificación y cancelación de Radiobases para el Servicio de Telefonía Fija",0,0]
["ARCOTEL-027-03-01","Autorización de modificaciones técnicas para el Servicio de Valor Agregado",0,0]
["ARCOTEL-025-03-01","Autorización de modificaciones técnicas y administrativas para el Servicio Móvil Avanzado a través de Operador Móvil Virtual",0,0]
["ARCOTEL-024-03-11","Autorización de prórroga para inicio de operaciones para el Servicio de Radiodifusión Sonora y Televisión por Señal Abierta",0,0]
["ARCOTEL-017-03-09","Autorización de prórroga para inicio de operaciones para el Servicio Portador",0,0]
["ARCOTEL-020-03-05","Autorización de prórroga para instalación e inicio de operaciones para el Servicio Comunal, Servicio Troncalizado y Transporte Internacional Modalidad Provisión Segmento Espacial",0,0]
["ARCOTEL-015-03-05","Autorización de prórrogas para el Servicio de Telecomunicaciones Móviles por Satélite",0,0]
["ARCOTEL-025-03-06","Autorización de prórrogas para el Servicio Móvil Avanzado a través de Operador Móvil Virtual",0,0]
["ARCOTEL-031-03-01","Autorización de prórrogas varias para el Servicio de Telefonía Fija",0,0]
["ARCOTEL-032-03-01","Autorización de prórrogas varias para el Servicio de Transporte Internacional modalidad Cable Submarino",0,0]
["ARCOTEL-015-03-01","Autorización de transferencia o cesión de acciones que implican cambio de control para el Servicio de Telecomunicaciones Móviles por Satélite",0,0]
["ARCOTEL-018-03-02","Autorización de transferencia o cesión de acciones que implican cambio de control para el Servicio Móvil Avanzado",0,0]
["ARCOTEL-025-03-02","Autorización de transferencia o cesión de acciones que implican cambio de control para el Servicio Móvil Avanzado a través de Operador Móvil Virtual",0,0]
["ARCOTEL-020-03-08","Autorización de Transferencia o Cesión del Título Habilitante para el Servicio Comunal, Servicio Troncalizado, Transporte Internacional Modalidad Provisión de Segmento Espacial",0,0]
["ARCOTEL-014-03-03","Autorización de transferencia o cesión del Título Habilitante para el Servicio de Acceso a Internet para personas naturales o jurídicas de derecho privado",0,0]
["ARCOTEL-015-03-02","Autorización de transferencia o cesión del Título Habilitante para el Servicio de Telecomunicaciones Móviles por Satélite",0,0]
["ARCOTEL-027-03-04","Autorización de transferencia o cesión del Título Habilitante para el Servicio de Valor Agregado para personas naturales o jurídicas",0,0]
["ARCOTEL-018-03-03","Autorización de transferencia o cesión del Título Habilitante para el Servicio Móvil Avanzado",0,0]
["ARCOTEL-025-03-03","Autorización de transferencia o cesión del Título Habilitante para el Servicio Móvil Avanzado a través de Operador Móvil Virtual",0,0]
["ARCOTEL-017-03-06","Autorización de transferencia o cesión del Título Habilitante para el Servicio Portador para personas naturales o jurídicas",0,0]
["ARCOTEL-031-03-07","Autorización de vinculación que implica cambio de control para el Servicio de Telefonía Fija",0,0]
["ARCOTEL-032-03-02","Autorización de vinculación que implica cambio de control para el Servicio de Transporte Internacional modalidad Cable Submarino",0,0]
["ARCOTEL-026-02-01","Cancelación de Inscripción de Proveedores de Infraestructura física",0,0]
["ARCOTEL-033-03-01","Cancelación del Certificado de Inscripción en el Registro Público de Telecomunicaciones de Centros de Acceso a la Información a través de Internet (Cibercafés)",0,0]
["ARCOTEL-018-05-02","Declaración de disolución, quiebra o liquidación para personas jurídicas de derecho privado, por hechos o actos que impidan la continuidad del título habilitante",0,0]
["ARCOTEL-028-05-01","Devolución voluntaria o por acuerdo mutuo del Título Habilitante de una Entidad de Certificación de Información y Servicios Relacionados Acreditados",0,0]
["ARCOTEL-020-07-01","Devolución voluntaria o por acuerdo mutuo del Título Habilitante para el Servicio Comunal, Servicio Troncalizado y Transporte Internacional Modalidad Provisión Segmento Especial",0,0]
["ARCOTEL-023-04-01","Devolución voluntaria o por acuerdo mutuo del Título Habilitante para el Servicio de Radioaficionados y Banda Ciudadana",0,0]
["ARCOTEL-015-05-01","Devolución voluntaria o por acuerdo mutuo del Título Habilitante para el Servicio de Telecomunicaciones Móviles por Satélite",0,0]
["ARCOTEL-031-05-01","Devolución voluntaria o por acuerdo mutuo del Título Habilitante para el Servicio de Telefonía Fija",0,0]
["ARCOTEL-032-05-01","Devolución voluntaria o por acuerdo mutuo del Título Habilitante para el Servicio de Transporte Internacional modalidad Cable Submarino para personas jurídicas de derecho privado",0,0]
["ARCOTEL-027-05-01","Devolución voluntaria o por acuerdo mutuo del Título Habilitante para el Servicio de Valor Agregado",0,0]
["ARCOTEL-025-05-01","Devolución voluntaria o por acuerdo mutuo del Título Habilitante para el Servicio Móvil Avanzado a través de Operador Móvil Virtual para personas jurídicas de derecho privado",0,0]
["ARCOTEL-018-05-01","Devolución voluntaria o por acuerdo mutuo del Título Habilitante para el Servicio Móvil Avanzado para personas jurídicas de derecho privado",0,0]
["ARCOTEL-017-05-01","Devolución voluntaria o por acuerdo mutuo del Título Habilitante para el Servicio Portador",0,0]
["ARCOTEL-015-05-03","Extinción del TH para el Servicio de Telecomunicaciones Móviles por Satélite por concepto de declaración de disolución, quiebra o liquidación para personas jurídicas de derecho privado, por pérdida de la capacidad civil de su titular...",0,0]
["ARCOTEL-014-05-03","Extinción del Título Habilitante para el Servicio de Acceso a Internet por concepto de declaración de disolución, quiebra o liquidación para personas jurídicas de derecho privado",0,0]
["ARCOTEL-030-05-03","Extinción del Título Habilitante para el Servicio de Audio y Video por Susucripción por concepto de declaración de disolución, quiebra o liquidación para personas jurídicas de derecho privado",0,0]
["ARCOTEL-031-05-02","Extinción del Título Habilitante para el Servicio de Telefonía Fija por concepto de declaración de disolución, quiebra o liquidación para personas jurídicas de derecho privado",0,0]
["ARCOTEL-032-05-03","Extinción del Título Habilitante para el Servicio de Transporte Internacional modalidad Cable Submarino por concepto de declaración de disolución, quiebra o liquidación para personas jurídicas de derecho privado",0,0]
["ARCOTEL-017-05-03","Extinción del Título Habilitante para el Servicio Portador por concepto de declaración de disolución, quiebra o liquidación para personas jurídicas de derecho privado",0,0]
["ARCOTEL-025-05-02","Extinción Título Habilitante Servicio Móvil Avanzado a través de OMV por concepto declaración de disolución, quiebra o liquidación personas jurídicas de derecho privado o por hechos o actos que impidan la continuidad",0,0]
["ARCOTEL-030-04-14","Incorporación de estaciones de TV abierta para un Sistema de Audio y Video por Suscripción",0,0]
["ARCOTEL-033-02-01","Modificación al Certificado de Inscripción en el Registro Público de Telecomunicaciones de Centros de Acceso a la Información a través de Internet (Cibercafés)",0,0]
["ARCOTEL-015-04-03","Notificación adquisición de acciones o participaciones de empresas que no implica cambio de Control para el Servicio de Telecomunicaciones Móviles por Satélite",0,0]
["ARCOTEL-018-04-04","Notificación adquisición de acciones o participaciones de empresas que no implica cambio de Control para el Servicio Móvil Avanzado",0,0]
["ARCOTEL-032-04-02","Notificación de actualización de coordenadas geográficas de sitios previamente autorizados para el Servicio de Transporte Internacional modalidad Cable Submarino",0,0]
["ARCOTEL-025-04-04","Notificación de adquisición de acciones o participaciones de empresas para el Servicio Móvil Avanzado bajo la modalidad de Operador Móvil Virtual",0,0]
["ARCOTEL-018-04-14","Notificación de asignación y liberación de recurso de sincronismo del Servicio Móvil Avanzado",0,0]
["ARCOTEL-018-04-13","Notificación de asignación y liberación de recurso de transmisión del Servicio Móvil Avanzado",0,0]
["ARCOTEL-031-04-08","Notificación de asignación y liberación de recurso numérico de señalización para el Servicio de Telefonía Fija",0,0]
["ARCOTEL-032-04-03","Notificación de cambio de marca y modelo de Equipo para el Servicio de Transporte Internacional modalidad Cable Submarino",0,0]
["ARCOTEL-030-04-09","Notificación de cambio de nombre de estación (denominación comercial) para un Sistema de Audio y Video por Suscripción",0,0]
["ARCOTEL-020-06-04","Notificación de cambio de Razón Social para el Servicio Comunal, Servicio Trancalizado, Transporte Internacional Modalidad Provisión Segmento Especial",0,0]
["ARCOTEL-014-04-05","Notificación de cambio de Razón Social para el Servicio de Acceso a Internet para personas jurídicas de derecho privado",0,0]
["ARCOTEL-015-04-06","Notificación de cambio de Razón Social para el Servicio de Telecomunicaciones Móviles por Satélite",0,0]
["ARCOTEL-031-04-03","Notificación de cambio de Razón Social para el Servicio de Telefonía Fija",0,0]
["ARCOTEL-027-04-05","Notificación de cambio de Razón Social para el Servicio de Valor Agregado para personas jurídicas de derecho privado y empresas públicas o instituciones del sector público",0,0]
["ARCOTEL-018-04-06","Notificación de cambio de Razón Social para el Servicio Móvil Avanzado",0,0]
["ARCOTEL-025-04-06","Notificación de cambio de Razón Social para el Servicio Móvil Avanzado a través de Operador Móvil Virtual",0,0]
["ARCOTEL-017-04-05","Notificación de cambio de Razón Social para el Servicio Portador para personas jurídicas de derecho privado y empresas públicas",0,0]
["ARCOTEL-031-04-02","Notificación de cambio de Representante Legal para el Servicio de Telefonía Fija",0,0]
["ARCOTEL-020-06-03","Notificación de cambio de Representante Legal, actualización de información de contacto y cambio de domicilio para el Servicio Comunal, Servicio Troncalizado y Transporte Internacional Modalidad Provisión Segmento Especial",0,0]
["ARCOTEL-015-04-05","Notificación de cambio de Representante Legal, actualización de información de contacto y cambio de domicilio para el Servicio de Telecomunicaciones Móviles por Satélite",0,0]
["ARCOTEL-025-04-05","Notificación de cambio de Representante Legal, actualización de información de contacto y cambio de domicilio para el Servicio Móvil Avanzado a través de Operador Móvil Virtual",0,0]
["ARCOTEL-018-04-05","Notificación de cambio de Representante Legal, actualización de información de contacto y cambio de domicilio para el Servicio Móvil Avanzado para personas jurídicas de derecho privado y empresas públicas",0,0]
["ARCOTEL-017-04-04","Notificación de cambio de Representante Legal, actualización de información de contacto y cambio de domicilio para el Servicio Portador para personas jurídicas de derecho privado y empresas públicas",0,0]
["ARCOTEL-030-04-10","Notificación de cambio y/o actualización de equipos que no impliquen modificación de características autorizadas para un Sistema de Audio y Video por Suscripción",0,0]
["ARCOTEL-027-04-07","Notificación de cumplimiento de Georreferenciación para el Servicio de Valor Agregado",0,0]
["ARCOTEL-026-02-02","Notificación de extinción de la persona jurídica o muerte de la persona natural inscrita como proveedores de infraestructura física",0,0]
["ARCOTEL-030-04-07","Notificación de incremento o decremento de canales locales para guía de programación para un Sistema de Audio y Video por Suscripción",0,0]
["ARCOTEL-030-04-06","Notificación de incremento o decremento del número de canales de servicios de valor agregado (PPV, VoD, etc.) para un Sistema de Audio y Video por Suscripción",0,0]
["ARCOTEL-028-04-05","Notificación de la Declaración de Prácticas de Certificación de una Entidad de Certificación de Información y Servicios Relacionados Acreditados",0,0]
["ARCOTEL-014-04-02","Notificación de modificación de capital para el Servicio de Acceso a Internet para personas jurídicas de derecho privado",0,0]
["ARCOTEL-015-04-01","Notificación de modificación de capital para el Servicio de Telecomunicaciones Móviles por Satélite",0,0]
["ARCOTEL-031-04-04","Notificación de modificación de capital para el Servicio de Telefonía Fija",0,0]
["ARCOTEL-032-04-04","Notificación de modificación de Capital para el Servicio de Transporte Internacional modalidad Cable Submarino",0,0]
["ARCOTEL-027-04-02","Notificación de modificación de capital para el Servicio de Valor Agregado para personas jurídicas de derecho privado y empresas públicas o instituciones del sector público",0,0]
["ARCOTEL-025-04-02","Notificación de modificación de capital para el Servicio Móvil Avanzado a través de Operador Móvil Virtual",0,0]
["ARCOTEL-018-04-02","Notificación de modificación de capital para el Servicio Móvil Avanzado para personas jurídicas de derecho privado",0,0]
["ARCOTEL-017-04-02","Notificación de modificación de capital para el Servicio Portador para personas jurídicas de derecho privado",0,0]
["ARCOTEL-014-04-03","Notificación de modificación de Estatutos para el Servicio de Acceso a Internet para personas jurídicas de derecho privado y empresas públicas",0,0]
["ARCOTEL-015-04-02","Notificación de modificación de Estatutos para el Servicio de Telecomunicaciones Móviles por Satélite",0,0]
["ARCOTEL-031-04-05","Notificación de modificación de Estatutos para el Servicio de Telefonía Fija",0,0]
["ARCOTEL-032-04-05","Notificación de modificación de Estatutos para el Servicio de Transporte Internacional modalidad Cable Submarino",0,0]
["ARCOTEL-027-04-03","Notificación de modificación de Estatutos para el Servicio de Valor Agregado para personas jurídicas de derecho privado y empresas públicas o instituciones del sector público",0,0]
["ARCOTEL-025-04-03","Notificación de modificación de Estatutos para el Servicio Móvil Avanzado a través de Operador Móvil Virtual",0,0]
["ARCOTEL-018-04-03","Notificación de modificación de Estatutos para el Servicio Móvil Avanzado para personas jurídicas de derecho privado y empresas públicas",0,0]
["ARCOTEL-017-04-03","Notificación de modificación de Estatutos para el Servicio Portador para personas jurídicas de derecho privado y empresas públicas",0,0]
["ARCOTEL-018-04-01","Notificación de modificaciones técnicas y administrativas para el Servicio Móvil Avanzado",0,0]
["ARCOTEL-025-04-01","Notificación de modificaciones técnicas y administrativas para el Servicio Móvil Avanzado a través de Operador Móvil Virtual",0,0]
["ARCOTEL-016-05-02","Notificación de muerte del titular del Título Habilitante de Red Privada y Uso de Frecuencias de Telecomunicaciones",0,0]
["ARCOTEL-028-05-02","Notificación de muerte del titular del Título Habilitante de una Entidad de Certificación de Información y Servicios Relacionados Acreditados para personas naturales o jurídicas de derecho privado",0,0]
["ARCOTEL-020-07-02","Notificación de muerte del titular del Título Habilitante para el Servicio Comunal y Troncalizado",0,0]
["ARCOTEL-014-05-02","Notificación de muerte del titular del Título Habilitante para el Servicio de Acceso a Internet para personas naturales",0,0]
["ARCOTEL-030-05-02","Notificación de muerte del titular del Título Habilitante para el Servicio de Audio y Video por Susucripción para personas naturales o jurídicas de derecho privado",0,0]
["ARCOTEL-015-05-02","Notificación de muerte del titular del Título Habilitante para el Servicio de Telecomunicaciones Móviles por Satélite para personas naturales",0,0]
["ARCOTEL-032-05-02","Notificación de muerte del titular del Título Habilitante para el Servicio de Transporte Internacional modalidad Cable Submarino para personas naturales",0,0]
["ARCOTEL-027-05-02","Notificación de muerte del titular del Título Habilitante para el Servicio de Valor Agregado para personas naturales o jurídicas de derecho privado",0,0]
["ARCOTEL-017-05-02","Notificación de muerte del titular del Título Habilitante para el Servicio Portador para personas naturales",0,0]
["ARCOTEL-025-04-09","Notificación de reportes contractuales, legales y reglamentarios del Servicio Móvil Avanzado a través de Operador Móvil Virtual",0,0]
["ARCOTEL-020-06-06","Notificación de Transferencia o Cesión de acciones que no impliquen cambio de control para el Servicio Comunal, Servicio Troncalizado y Transporte Internacional Modalidad Provisión Segmento Especial",0,0]
["ARCOTEL-014-04-01","Notificación de transferencia o cesión de acciones que no impliquen cambio de control para el Servicio de Acceso a Internet para personas jurídicas de derecho privado",0,0]
["ARCOTEL-027-04-01","Notificación de transferencia o cesión de acciones que no impliquen cambio de control para el Servicio de Valor Agregado para personas jurídicas de derecho privado y empresas públicas o instituciones del sector público",0,0]
["ARCOTEL-017-04-01","Notificación de transferencia o cesión de acciones que no impliquen cambio de control para el Servicio Portador para personas jurídicas de derecho privado",0,0]
["ARCOTEL-031-04-10","Notificación del Plan Técnico Fundamental de Sincronismo para el Servicio de Telefonía Fija",0,0]
["ARCOTEL-031-04-09","Notificación del Plan Técnico Fundamental de Transmisión para el Servicio de Telefonía Fija",0,0]
["ARCOTEL-037-01-01","Otorgamiento de título habilitante de frecuencias asociadas a la prestación de Servicios de Telecomunicaciones",0,0]
["ARCOTEL-014-01-03","Otorgamiento del Título Habilitante para el Servicio de Acceso a Internet para empresas públicas",0,0]
["ARCOTEL-015-01-03","Otorgamiento del Título Habilitante para el Servicio de Telecomunicaciones Móviles por Satélite y Concesión de Frecuencias para empresas públicas",0,0]
["ARCOTEL-015-01-02","Otorgamiento del Título Habilitante para el Servicio de Telecomunicaciones Móviles por Satélite y Concesión de Frecuencias para personas jurídicas de derecho privado",0,0]
["ARCOTEL-015-01-01","Otorgamiento del Título Habilitante para el Servicio de Telecomunicaciones Móviles por Satélite y Concesión de Frecuencias para personas naturales",0,0]
["ARCOTEL-031-01-01","Otorgamiento del Título Habilitante para el Servicio de Telefonía Fija para empresas públicas o instituciones del sector público",0,0]
["ARCOTEL-032-01-01","Otorgamiento del Título Habilitante para el Servicio de Transporte Internacional modalidad Cable Submarino para empresas públicas o instituciones del sector público",0,0]
["ARCOTEL-032-01-02","Otorgamiento del Título Habilitante para el Servicio de Transporte Internacional modalidad Cable Submarino para personas naturales o jurídicas de derecho privado",0,0]
["ARCOTEL-027-01-03","Otorgamiento del Título Habilitante para el Servicio de Valor Agregado para empresas públicas",0,0]
["ARCOTEL-027-01-01","Otorgamiento del Título Habilitante para el Servicio de Valor Agregado para personas naturales",0,0]
["ARCOTEL-025-01-02","Otorgamiento del Título Habilitante para el Servicio Móvil Avanzado a través de OMV para personas jurídicas de derecho privado, empresas de la economía mixta donde el Estado tenga mayoría accionaria y Empresas Economía Popular y Solidaria",0,0]
["ARCOTEL-025-01-01","Otorgamiento del Título Habilitante para el Servicio Móvil Avanzado a través de Operador Móvil Virtual para empresas públicas",0,0]
["ARCOTEL-018-01-01","Otorgamiento del Título Habilitante para el Servicio Móvil Avanzado para empresas públicas",0,0]
["ARCOTEL-018-01-02","Otorgamiento del Título Habilitante para el Servicio Móvil Avanzado para personas jurídicas de derecho privado",0,0]
["ARCOTEL-017-01-03","Otorgamiento del Título Habilitante para el Servicio Portador para empresas públicas",0,0]
["ARCOTEL-017-01-01","Otorgamiento del Título Habilitante para el Servicio Portador para personas naturales",0,0]
["ARCOTEL-030-01-03","Otorgamiento del Título Habilitante para un Sistema de Audio y Video por Suscripción bajo las modalidades de Cable Físico o Televisión Codificada Satelital para empresas públicas o instituciones del sector público.",0,0]
["ARCOTEL-028-01-02","Otorgamiento del Título Habilitante para una Entidad de Certificación de Información y Servicios Relacionados Acreditados para empresas públicas o instituciones del sector público",0,0]
["ARCOTEL-028-01-01","Otorgamiento del Título Habilitante para una Entidad de Certificación de Información y Servicios Relacionados Acreditados para personas jurídicas de derecho privado",0,0]
["ARCOTEL-031-01-02","Otorgamiento del Título Habilitante Servicio de Telefonía Fija para personas jurídicas de derecho privado, empresas de la economía mixta donde el Estado tenga mayoría accionaria y empresas de la economía popular y solidaria",0,0]
["ARCOTEL-023-01-04","Otorgamiento y Renovación de la Licencia para el Servicio de Radioaficionados Internacional y de transito",0,0]
["ARCOTEL-030-04-12","Registro de Canales Codificados para un Sistema de Audio y Video por Suscripción",0,0]
["ARCOTEL-032-04-01","Registro de Contrato de Adhesión o Reventa para el Servicio de Transporte Internacional modalidad Cable Submarino",0,0]
["ARCOTEL-027-03-07","Registro de Contrato de Adhesión o Reventa para el Servicio de Valor Agregado",0,0]
["ARCOTEL-015-04-07","Registro de Contrato de Adhesión para el Servicio de Telecomunicaciones Móviles por Satélite",0,0]
["ARCOTEL-025-04-07","Registro de Contrato de Adhesión para el Servicio Móvil Avanzado a través de Operador Móvil Virtual",0,0]
["ARCOTEL-015-04-08","Registro de Contrato de Reventa para el Servicio de Telecomunicaciones Móviles por Satélite",0,0]
["ARCOTEL-025-04-08","Registro de Contrato de Reventa para el Servicio Móvil Avanzado a través de Operador Móvil Virtual",0,0]
["ARCOTEL-030-04-13","Registro de Proveedores de Programación Internacional para un Sistema de Audio y Video por Suscripción",0,0]
["ARCOTEL-014-02-03","Renovación del Título Habilitante para el Servicio de Acceso a Internet para empresas públicas",0,0]
["ARCOTEL-014-02-01","Renovación del Título Habilitante para el Servicio de Acceso a Internet para personas naturales",0,0]
["ARCOTEL-015-02-03","Renovación del Título Habilitante para el Servicio de Telecomunicaciones Móviles por Satélite y Concesión de Frecuencias para empresas públicas",0,0]
["ARCOTEL-015-02-02","Renovación del Título Habilitante para el Servicio de Telecomunicaciones Móviles por Satélite y Concesión de Frecuencias para personas jurídicas de derecho privado",0,0]
["ARCOTEL-015-02-01","Renovación del Título Habilitante para el Servicio de Telecomunicaciones Móviles por Satélite y Concesión de Frecuencias para personas naturales",0,0]
["ARCOTEL-031-02-01","Renovación del Título Habilitante para el Servicio de Telefonía Fija para empresas públicas o instituciones del sector público",0,0]
["ARCOTEL-031-02-02","Renovación del Título Habilitante para el Servicio de Telefonía Fija para personas jurídicas de derecho privado, empresas de la economía mixta donde el Estado tenga mayoría accionaria y empresas de la economía popular y solidaria",0,0]
["ARCOTEL-032-02-01","Renovación del Título Habilitante para el Servicio de Transporte Internacional modalidad Cable Submarino para empresas públicas o instituciones del sector público",0,0]
["ARCOTEL-032-02-02","Renovación del Título Habilitante para el Servicio de Transporte Internacional modalidad Cable Submarino para personas naturales o jurídicas de derecho privado",0,0]
["ARCOTEL-027-02-03","Renovación del Título Habilitante para el Servicio de Valor Agregado para empresas públicas",0,0]
["ARCOTEL-027-02-02","Renovación del Título Habilitante para el Servicio de Valor Agregado para personas jurídicas de derecho privado",0,0]
["ARCOTEL-027-02-01","Renovación del Título Habilitante para el Servicio de Valor Agregado para personas naturales",0,0]
["ARCOTEL-025-02-02","Renovación del Título Habilitante para el Servicio Móvil Avanzado a través de OMV para personas jurídicas de derecho privado, empresas de la economía mixta donde el Estado tenga mayoría accionaria y Empresas de la Economía Popular y Solidaria",0,0]
["ARCOTEL-025-02-01","Renovación del Título Habilitante para el Servicio Móvil Avanzado a través de Operador Móvil Virtual para empresas públicas",0,0]
["ARCOTEL-018-02-01","Renovación del Título Habilitante para el Servicio Móvil Avanzado para empresas públicas",0,0]
["ARCOTEL-018-02-02","Renovación del Título Habilitante para el Servicio Móvil Avanzado para personas jurídicas de derecho privado",0,0]
["ARCOTEL-017-02-03","Renovación del Título Habilitante para el Servicio Portador para empresas públicas",0,0]
["ARCOTEL-017-02-01","Renovación del Título Habilitante para el Servicio Portador para personas naturales",0,0]
["ARCOTEL-028-02-02","Renovación del Título Habilitante para una Entidad de Certificación de Información y Servicios Relacionados Acreditados para empresas públicas o instituciones del sector público",0,0]
["ARCOTEL-030-02-01","Renovación Título Habilitante para un Sistema de Audio y Video por Suscripción bajo modalidades de Cable Físico o TV Codificada Satelital, personas naturales, personas jurídicas de derecho priv, inst del sector público o em públicas",0,0]
["ARCOTEL-024-03-13","Solicitud de continuación de uso de los derechos del título habilitante por fallecimiento de la persona natural concesionaria de una frecuencia de Radiodifusión Sonora y de Televisión de Señal Abierta",0,0]
["ARCOTEL-006-01-03","Solicitud de credenciales para ensambladores de terminales de servicio móvil avanzado",0,0]
["ARCOTEL-028-05-03","Solicitud de extinción del Título Habilitante de una Entidad de Certificación de Información y Servicios Relacionados Acreditados por concepto de declaración de disolución, quiebra o liquidación para personas jurídicas de derecho privado",0,0]
["ARCOTEL-027-05-03","Solicitud de extinción del Título Habilitante para el Servicio de Valor Agregado por concepto de declaración de disolución, quiebra o liquidación para personas jurídicas de derecho privado",0,0]
["ARCOTEL-005-01-02","Solicitud de licencias no automáticas de importación de decodificadores para provisión de receptores de abonado y/o receptores de prestador de servicio para sistemas de audio y video por suscripción o tv abierta -para venta a un prestador",0,0]
["ARCOTEL-010-02-01","Solicitud de Renovación Temporal de Frecuencias para Radiodifusión Sonora y TV de Señal Abierta",0,0]
["ARCOTEL-024-05-03","Terminación del Título Habilitante para el Servicio de Radiodifusión Sonora y de Televisión de Señal Abierta por la causal de extinción de la persona jurídica",0,0]
["ARCOTEL-024-05-05","Terminación del Título Habilitante para el Servicio de Radiodifusión Sonora y de Televisión de Señal Abierta por pérdida de la capacidad civil del concesionario o disolución de la sociedad concesionaria",0,0]
["ARCOTEL-036-01-02","Asesoría para el tratamiento de incidentes y vulnerabilidades informáticas a usuarios de redes de telecomunicaciones",1,3]
["ARCOTEL-016-03-04","Autorización de incremento, modificación y cancelación de enlaces físicos para una Red Privada de Telecomunicaciones",1,3]
["ARCOTEL-016-03-02","Autorización de modificación de parámetros técnicos para enlaces terrestres y satelitales asociados a una Red Privada de Telecomunicaciones",1,3]
["ARCOTEL-018-03-01","Autorización de modificaciones técnicas y administrativas para el Servicio Móvil Avanzado",1,3]
["ARCOTEL-018-03-06","Autorización de prórrogas para el Servicio Móvil Avanzado",1,3]
["ARCOTEL-016-05-03","Extinción del Título Habilitante de Red Privada y Uso de Frecuencias de Telecomunicaciones por declaración anticipada y unilateral debidamente motivada",1,3]
["ARCOTEL-018-04-11","Notificación de asignación y liberación de número social público del Servicio Móvil Avanzado",1,3]
["ARCOTEL-018-04-10","Notificación de asignación y liberación de recurso numérico no geográfico del Servicio Móvil Avanzado",1,3]
["ARCOTEL-027-04-04","Notificación de cambio de Representante Legal para el Servicio de Valor Agregado para personas jurídicas de derecho privado y empresas públicas o instituciones del sector público",1,3]
["ARCOTEL-027-01-02","Otorgamiento del Título Habilitante para el Servicio de Valor Agregado para personas jurídicas de derecho privado",1,3]
["ARCOTEL-017-01-02","Otorgamiento del Título Habilitante para el Servicio Portador para personas jurídicas de derecho privado",1,3]
["ARCOTEL-017-02-02","Renovación del Título Habilitante para el Servicio Portador para personas jurídicas de derecho privado",1,3]
["ARCOTEL-028-02-01","Renovación del Título Habilitante para una Entidad de Certificación de Información y Servicios Relacionados Acreditados para personas jurídicas de derecho privado",1,3]
["ARCOTEL-020-03-07","Autorización de incremento, modificación y cancelación de satélites para el Servicio de Transporte Internacional Modalidad Provisión Segmento Especial",2,3]
["ARCOTEL-016-03-09","Autorización de transferencia o cesión del Título Habilitante de Red Privada y Uso de Frecuencias de Telecomunicaciones",2,3]
["ARCOTEL-024-05-01","Devolución voluntaria o por acuerdo mutuo del Título Habilitante para el Servicio de Radiodifusión Sonora y de Televisión de Señal Abierta",2,3]
["ARCOTEL-018-04-12","Notificación de asignación y liberación de recurso de señalización del Servicio Móvil Avanzado",2,3]
["ARCOTEL-014-04-04","Notificación de cambio de Representante Legal, actualización de información de contacto y cambio de domicilio para el Servicio de Acceso a Internet para personas jurídicas de derecho privado y empresas públicas",2,3]
["ARCOTEL-024-01-02","Otorgamiento del Título Habilitante para el Servicio de Radiodifusión Sonora y Televisión por Señal Abierta para Medios Privados y Comunitarios (Concurso Público)",2,3]
["ARCOTEL-016-01-01","Otorgamiento y Renovación del Título Habilitante de Operación de Red Privada y Uso de Frecuencias para enlaces terrestres y satelitales",2,3]
["ARCOTEL-017-04-06","Registro de Contrato de Adhesión o Reventa para el Servicio Portador",2,3]
["ARCOTEL-018-04-07","Registro de Contrato de Adhesión para el Servicio Móvil Avanzado",2,3]
["ARCOTEL-018-04-08","Registro de Contrato de Reventa para el Servicio Móvil Avanzado",2,3]
["ARCOTEL-005-01-04","Solicitud de licencias no automáticas de importación de decodificadores para personas naturales o jurídicas cuya actividad comercial o objeto social sea la prestación de servicios en general de mantenimiento",2,3]
["ARCOTEL-005-01-03","Solicitud de licencias no automáticas de importación de decodificadores para provisión de receptores de abonado y/o receptores de prestador de servicio para sistemas de audio y video por suscripción o tv abierta -para mantenerlos en perchas",2,3]
["ARCOTEL-030-03-02","Autorización de operación de canales locales para programación propia para un Sistema de Audio y Video por Suscripción",3,3]
["ARCOTEL-016-04-05","Notificación de cambio de Razón Social para el Título Habilitante de Red Privada y Uso de Frecuencias de Telecomunicaciones",3,3]
["ARCOTEL-030-04-02","Notificación de modificación de estatutos y cambios de socios o accionistas para un Sistema de Audio y Video por Suscripción",3,3]
["ARCOTEL-030-04-04","Notificación de modificación de redes con o sin cambio de tecnología para un Sistema de Audio y Video por Suscripción",3,3]
["ARCOTEL-030-04-01","Notificación de reubicación de la cabecera (head end) para un Sistema de Audio y Video por Suscripción",3,3]
["ARCOTEL-031-04-01","Registro de Contrato de Adhesión o Reventa para el Servicio de Telefonía Fija",3,3]
["ARCOTEL-014-02-02","Renovación del Título Habilitante para el Servicio de Acceso a Internet para personas jurídicas de derecho privado",3,3]
["ARCOTEL-036-01-01","Reporte de incidentes informáticos en redes de telecomunicaciones",3,3]
["ARCOTEL-005-01-05","Solicitud de licencias no automáticas de importación de decodificadores para fines sociales, académicos, seguridad y salud o de interés general, y para importar muestras de equipos decodificadores",3,3]
["ARCOTEL-007-01-01","Bloqueo de equipos terminales robados, perdidos o hurtados que no hayan sido utilizados en las redes de los prestadores del servicio móvil avanzado.",4,3]
["ARCOTEL-014-05-01","Devolución voluntaria o por acuerdo mutuo del Título Habilitante para el Servicio de Acceso a Internet",4,3]
["ARCOTEL-027-03-06","Autorización de adquisición de acciones o participaciones de empresas para el Servicio de Valor Agregado",5,6]
["ARCOTEL-010-01-01","Autorización Temporal de Frecuencias para Radiodifusión Sonora y TV de Señal Abierta",5,6]
["ARCOTEL-030-04-08","Notificación de actualización de coordenadas geográficas de sitios previamente autorizados para un Sistema de Audio y Video por Suscripción",5,6]
["ARCOTEL-030-03-01","Autorización de ampliación de cobertura para un Sistema de Audio y Video por Suscripción",6,6]
["ARCOTEL-030-01-01","Otorgamiento del Título Habilitante para un Sistema de Audio y Video por Suscripción bajo las modalidades de Cable Físico o Televisión Codificada Satelital para personas naturales",6,6]
["ARCOTEL-024-02-01","Renovación del Título Habilitante para el Servicio de Radiodifusión Sonora y Televisión por Señal Abierta para Personas Jurídicas de Derecho Público (Adjudicación Directa) y/o Medios Privados y Comunitarios",6,6]
["ARCOTEL-024-03-12","Autorización de cambio de Razón social o denominación objetiva para el Servicio de Radiodifusión Sonora y Televisión por Señal Abierta",7,6]
["ARCOTEL-016-03-11","Autorización de prórroga para instalación e inicio de operaciones para el Título Habilitante de Operación de Red Privada y Uso de Frecuencias de Telecomunicaciones",7,6]
["ARCOTEL-016-04-04","Notificación de cambio de Representante Legal, actualización de información de contacto y cambio de domicilio para una Red Privada de Telecomunicaciones",7,6]
["ARCOTEL-030-01-02","Otorgamiento del Título Habilitante para un Sistema de Audio y Video por Suscripción bajo las modalidades de Cable Físico o Televisión Codificada Satelital para personas jurídicas de derecho privado.",7,6]
["ARCOTEL-035-01-01","Reporte de vulnerabilidades informáticas en redes de telecomunicaciones",7,6]
["ARCOTEL-016-03-01","Autorización de incremento de frecuencias para enlaces terrestres y satelitales asociadas a una Red Privada de Telecomunicaciones",8,6]
["ARCOTEL-016-05-01","Devolución voluntaria o por acuerdo mutuo del Título Habilitante de Red Privada y Uso de Frecuencias de Telecomunicaciones",8,6]
["ARCOTEL-026-01-01","Inscripción de Proveedores de Infraestructura física",8,6]
["ARCOTEL-030-03-04","Autorización de prórroga para inicio de operaciones para un Sistema de Audio y Video por Suscripción",9,6]
["ARCOTEL-003-01-02 ","Certificación de obligaciones económicas, área de cobertura y/o derechos de concesión de servicios de telecomunicaciones solicitada por terceros autorizados por los poseedores de títulos habilitantes",9,6]
["ARCOTEL-030-05-01","Devolución voluntaria o por acuerdo mutuo del Título Habilitante para el Servicio de Audio y Video por Susucripción",10,6]
["ARCOTEL-009-01-01","Solicitud de medición de radiaciones no ionizantes por parte de la ciudadanía",10,6]
["ARCOTEL-009-03-01","Solicitud de verificación de inicio de operación de sistemas de radiodifusión y televisión abierta",10,6]
["ARCOTEL-023-03-01","Autorización de modificaciones para el Servicio de Radioaficionados y Banda Ciudadana",11,6]
["ARCOTEL-016-03-10","Autorización de cancelación parcial de frecuencias para Troncalizado y Radio de Dos Vías (móvil terrestre, aeronáutico y marítimo) asociado a una Red Privada de Telecomunicaciones",15,6]
["ARCOTEL-030-04-11","Registro de Contrato de Adhesión o Reventa para un Sistema de Audio y Video por Suscripción",15,6]
["ARCOTEL-020-01-01","Otorgamiento y Renovación del Título Habilitante para el Servicio Comunal, Servicio Troncalizado, Servicio Transporte Internacional Modalidad Segmento Espacial",16,6]
["ARCOTEL-030-04-05","Notificación de incremento y/o decremento del número de canales para un Sistema de Audio y Video por Suscripción que no involucran autorizaciones de nuevas frecuencias",17,6]
["ARCOTEL-020-03-06","Autorización de cancelación de frecuencias para el Servicio Comunal y Servicio Troncalizado",20,6]
["ARCOTEL-024-03-14","Autorización de Modificaciones Administrativas para el Servicio de Radiodifusión Sonora y Televisión por Señal Abierta",21,6]
["ARCOTEL-014-03-06","Autorización de prórroga para inicio de operaciones para el Servicio de Acceso a Internet",22,6]
["ARCOTEL-024-01-01","Otorgamiento del Título Habilitante para el Servicio de Radiodifusión Sonora y Televisión por Señal Abierta para Personas Jurídicas de Derecho Público (Adjudicación Directa)",22,6]
["ARCOTEL-014-04-06","Registro de Contrato de Adhesión o Reventa para el Servicio de Acceso a Internet",23,6]
["ARCOTEL-015-04-04","Notificación de reportes contractuales y en cumplimiento al ordenamiento jurídico vigente para el Servicio de Telecomunicaciones Móviles por Satélite",25,6]
["ARCOTEL-028-03-01","Registro de tercero vinculado para una Entidad de Certificación de Información y Servicios Relacionados Acreditados",25,6]
["ARCOTEL-014-01-02","Otorgamiento del Título Habilitante para el Servicio de Acceso a Internet para personas jurídicas de derecho privado",26,6]
["ARCOTEL-020-03-01","Autorización de incremento de frecuencias para el Servicio Comunal y Servicio Troncalizado",30,6]
["ARCOTEL-030-04-03","Notificación de actualización de la programación y/o antenas de recepción para un Sistema de Audio y Video por Suscripción",34,6]
["ARCOTEL-028-04-04","Notificación de facturación total del mes por una Entidad de Certificación de Información y Servicios Relacionados Acreditados",35,10]
["ARCOTEL-031-04-06","Notificación de modificación, instalación o ampliación de infraestructura para el Servicio de Telefonía Fija",39,10]
["ARCOTEL-016-03-06","Autorización de modificación de parámetros técnicos para Troncalizado y Radio de Dos Vías (móvil terrestre, aeronáutico y marítimo) asociados a una Red Privada de Telecomunicaciones",47,10]
["ARCOTEL-028-04-02","Notificación de número de certificados emitidos y revocados en el mes por una Entidad de Certificación de Información y Servicios Relacionados Acreditados",47,10]
["ARCOTEL-028-04-01","Notificación de número de solicitudes de servicio y trámite atendidos por una Entidad de Certificación de Información y Servicios Relacionados Acreditados",47,10]
["ARCOTEL-028-04-03","Notificación de números de usuarios de servicios relacionados con la firma digital por una Entidad de Certificación de Información y Servicios Relacionados Acreditados",47,10]
["ARCOTEL-002-01-01","Solicitud de estudios o información estadística del sector de las telecomunicaciones",47,10]
["ARCOTEL-016-03-05","Autorización de incremento de frecuencias para Troncalizado y Radio de Dos Vías (móvil terrestre, aeronáutico y marítimo) asociadas a una Red Privada de Telecomunicaciones",52,10]
["ARCOTEL-020-03-02","Autorización de modificaciones técnicas para el Servicio Comunal y Servicio Troncalizado",62,10]
["ARCOTEL-005-01-01","Solicitud de licencias no automáticas de importación de decodificadores para poseedores de títulos habilitantes de telecomunicaciones o radiodifusión y/o receptores para usuarios de televisión digital terrestre abierta",66,10]
["ARCOTEL-037-02-02","Autorización de cancelación de enlaces terrestres y satelitales para la prestación de Servicios de Telecomunicaciones",82,10]
["ARCOTEL-023-01-01","Otorgamiento y Renovación de la Licencia para el Servicio de Radioaficionados y Banda Ciudadana",85,10]
["ARCOTEL-016-01-02","Otorgamiento y Renovación del Título Habilitante de Operación de Red Privada y Uso de Frecuencias para Troncalizado y Radio de Dos Vías (móvil terrestre, aeronáutico y marítimo)",85,10]
["ARCOTEL-014-01-01","Otorgamiento del Título Habilitante para el Servicio de Acceso a Internet para personas naturales",87,10]
["ARCOTEL-014-03-01","Autorización de modificaciones técnicas de red física para el Servicio de Acceso a Internet",88,10]
["ARCOTEL-019-01-01","Otorgamiento y Renovación de Frecuencias Temporales de Telecomunicaciones",93,10]
["ARCOTEL-018-04-09","Notificación de reportes contractuales, legales y reglamentarios del Servicio Móvil Avanzado",104,10]
["ARCOTEL-017-04-07","Notificación de cumplimiento de Georreferenciación para el Servicio Portador",106,10]
["ARCOTEL-003-01-03","Certificación de infracciones y sanciones emitidas por ARCOTEL",115,10]
["ARCOTEL-009-04-01","Solicitud de suspensión de emisiones de sistemas de radiodifusión y televisión de señal abierta",116,10]
["ARCOTEL-006-01-01","Solicitud de credenciales para importadores (personas jurídicas) de terminales de servicio móvil avanzado",127,10]
["ARCOTEL-033-01-01","Otorgamiento del Certificado de Inscripción en el Registro Público de Telecomunicaciones de Centros de Acceso a la Información a través de Internet (Cibercafés)",128,10]
["ARCOTEL-037-02-05","Autorización de incremento, modificación y cancelación de Radiobases para el Servicio Móvil Avanzado",135,10]
["ARCOTEL-009-02-01","Solicitud de concesionarios del espectro radioeléctrico para solución de interferencias",152,10]
["ARCOTEL-014-04-07","Notificación de cumplimiento de Georreferenciación para el Servicio de Acceso a Internet",163,10]
["ARCOTEL-024-04-01","Notificación de Modificaciones Técnicas para el Servicio de Radiodifusión Sonora y Televisión por Señal Abierta",167,10]
["ARCOTEL-017-03-01","Autorización de modificaciones técnicas para red física para el Servicio Portador",211,10]
["ARCOTEL-024-03-01","Autorización de Modificaciones Técnicas para el Servicio de Radiodifusión Sonora y Televisión por Señal Abierta",225,10]
["ARCOTEL-037-02-01","Autorización de incremento de enlaces terrestres y satelitales para la prestación de Servicios de Telecomunicaciones",259,10]
["ARCOTEL-006-01-02","Solicitud de credenciales para importadores (persona natural) de terminales de servicio móvil avanzado",282,10]
["ARCOTEL-037-02-03","Autorización de modificaciones técnicas de enlaces terrestres y satelitales para Servicios de Telecomunicaciones",296,10]
["ARCOTEL-031-04-07","Notificación de reserva, asignación y liberación de recurso numérico geográfico para el Servicio de Telefonía Fija.",424,10]
["ARCOTEL-001-01-01","Solicitud de información pública",463,10]
["ARCOTEL-003-01-01","Certificación de obligaciones económicas, área de cobertura y/o derechos de concesión de servicios de telecomunicaciones solicitada por los poseedores de títulos habilitantes",659,10]
["ARCOTEL-004-01-01","Solicitud de homologación de equipos terminales de telecomunicaciones",883,10]
["ARCOTEL-012-01-01","Presentación de reclamos, denuncias, sugerencias o solicitudes de información de los servicios de telecomunicaciones",33979,10]

{"sheet":"VOLUMEN DE QUEJAS","index":2,"n_rows":297,"n_cols":6,"rows_kept":297,"cut":false,"hidden":false,"merged":[[0,0,0,5],[1,0,1,5]]}
["PRIORIZACIÓN DE TRÁMITES ADMINISTRATIVOS"]
["VOLUMEN DE QUEJAS"]
[]
["IDENTIFICADOR","TRÁMITE","VOLUMEN DEMANDA","VOLUMEN DE QUEJAS","PORCENTAJE","PUNTUACIÓN"]
["ARCOTEL-035-02-01","Asesoría para la formación de Equipos de Respuesta a Incidentes de Seguridad Informática (CSIRT)",0,0,0,0]
["ARCOTEL-014-03-05","Autorización de adquisición de acciones o participaciones de empresas para el Servicio de Acceso a Internet",0,0,0,0]
["ARCOTEL-015-03-04","Autorización de adquisición de acciones o participaciones de empresas para el Servicio de Telecomunicaciones Móviles por Satélite",0,0,0,0]
["ARCOTEL-018-03-05","Autorización de adquisición de acciones o participaciones de empresas para el Servicio Móvil Avanzado",0,0,0,0]
["ARCOTEL-025-03-05","Autorización de adquisición de acciones o participaciones de empresas para el Servicio Móvil Avanzado bajo la modalidad de Operador Móvil Virtual",0,0,0,0]
["ARCOTEL-017-03-08","Autorización de adquisición de acciones o participaciones de empresas para el Servicio Portador",0,0,0,0]
["ARCOTEL-031-03-02","Autorización de ampliación de cobertura para el Servicio de Telefonía Fija",0,0,0,0]
["ARCOTEL-030-03-03","Autorización de ampliación de frecuencias para incremento o decremento de canales para un Sistema de Audio y Video por Suscripción",0,0,0,0]
["ARCOTEL-014-03-02","Autorización de cambio de control para el Servicio de Acceso a Internet",0,0,0,0]
["ARCOTEL-027-03-03","Autorización de cambio de control para el Servicio de Valor Agregado",0,0,0,0]
["ARCOTEL-017-03-05","Autorización de cambio de control para el Servicio Portador",0,0,0,0]
["ARCOTEL-020-03-03","Autorización de cambios de Control para el Servicio Comunal, Servicio Troncalizado, Transporte Internacional Modalidad Provisión de Segmento Espacial",0,0,0,0]
["ARCOTEL-032-03-05","Autorización de cambios en el área de registro/permiso, servicios, etc. que implica cambio de control para el Servicio de Transporte Internacional modalidad Cable Submarino",0,0,0,0]
["ARCOTEL-016-03-03","Autorización de cancelación de enlaces terrestres y satelitales asociado a una Red Privada de Telecomunicaciones",0,0,0,0]
["ARCOTEL-014-03-04","Autorización de fusión de compañías o personas jurídicas de derecho privado poseedoras de Títulos Habilitantes para el Servicio de Acceso a Internet",0,0,0,0]
["ARCOTEL-015-03-03","Autorización de fusión de compañías o personas jurídicas de derecho privado poseedoras de Títulos Habilitantes para el Servicio de Telecomunicaciones Móviles por Satélite",0,0,0,0]
["ARCOTEL-027-03-05","Autorización de fusión de compañías o personas jurídicas de derecho privado poseedoras de Títulos Habilitantes para el Servicio de Valor Agregado",0,0,0,0]
["ARCOTEL-018-03-04","Autorización de fusión de compañías o personas jurídicas de derecho privado poseedoras de Títulos Habilitantes para el Servicio Móvil Avanzado",0,0,0,0]
["ARCOTEL-025-03-04","Autorización de fusión de compañías o personas jurídicas de derecho privado poseedoras de Títulos Habilitantes para el Servicio Móvil Avanzado a través de Operador Móvil Virtual",0,0,0,0]
["ARCOTEL-017-03-07","Autorización de fusión de compañías o personas jurídicas de derecho privado poseedoras de Títulos Habilitantes para el Servicio Portador",0,0,0,0]
["ARCOTEL-031-03-03","Autorización de fusión de dos compañías o personas jurídicas de derecho privado poseedoras de Títulos Habilitantes para el Servicio de Telefonía Fija",0,0,0,0]
["ARCOTEL-032-03-03","Autorización de fusión de dos compañías o personas jurídicas de derecho privado poseedoras de Títulos Habilitantes para el Servicio de Transporte Internacional modalidad Cable Submarino",0,0,0,0]
["ARCOTEL-032-03-04","Autorización de incremento y reubicación de estación terrena para el Servicio de Transporte Internacional modalidad Cable Submarino",0,0,0,0]
["ARCOTEL-037-02-04","Autorización de incremento, modificación y cancelación de Radiobases para el Servicio de Telefonía Fija",0,0,0,0]
["ARCOTEL-027-03-01","Autorización de modificaciones técnicas para el Servicio de Valor Agregado",0,0,0,0]
["ARCOTEL-025-03-01","Autorización de modificaciones técnicas y administrativas para el Servicio Móvil Avanzado a través de Operador Móvil Virtual",0,0,0,0]
["ARCOTEL-024-03-11","Autorización de prórroga para inicio de operaciones para el Servicio de Radiodifusión Sonora y Televisión por Señal Abierta",0,0,0,0]
["ARCOTEL-017-03-09","Autorización de prórroga para inicio de operaciones para el Servicio Portador",0,0,0,0]
["ARCOTEL-020-03-05","Autorización de prórroga para instalación e inicio de operaciones para el Servicio Comunal, Servicio Troncalizado y Transporte Internacional Modalidad Provisión Segmento Espacial",0,0,0,0]
["ARCOTEL-015-03-05","Autorización de prórrogas para el Servicio de Telecomunicaciones Móviles por Satélite",0,0,0,0]
["ARCOTEL-025-03-06","Autorización de prórrogas para el Servicio Móvil Avanzado a través de Operador Móvil Virtual",0,0,0,0]
["ARCOTEL-031-03-01","Autorización de prórrogas varias para el Servicio de Telefonía Fija",0,0,0,0]
["ARCOTEL-032-03-01","Autorización de prórrogas varias para el Servicio de Transporte Internacional modalidad Cable Submarino",0,0,0,0]
["ARCOTEL-015-03-01","Autorización de transferencia o cesión de acciones que implican cambio de control para el Servicio de Telecomunicaciones Móviles por Satélite",0,0,0,0]
["ARCOTEL-018-03-02","Autorización de transferencia o cesión de acciones que implican cambio de control para el Servicio Móvil Avanzado",0,0,0,0]
["ARCOTEL-025-03-02","Autorización de transferencia o cesión de acciones que implican cambio de control para el Servicio Móvil Avanzado a través de Operador Móvil Virtual",0,0,0,0]
["ARCOTEL-020-03-08","Autorización de Transferencia o Cesión del Título Habilitante para el Servicio Comunal, Servicio Troncalizado, Transporte Internacional Modalidad Provisión de Segmento Espacial",0,0,0,0]
["ARCOTEL-014-03-03","Autorización de transferencia o cesión del Título Habilitante para el Servicio de Acceso a Internet para personas naturales o jurídicas de derecho privado",0,0,0,0]
["ARCOTEL-015-03-02","Autorización de transferencia o cesión del Título Habilitante para el Servicio de Telecomunicaciones Móviles por Satélite",0,0,0,0]
["ARCOTEL-027-03-04","Autorización de transferencia o cesión del Título Habilitante para el Servicio de Valor Agregado para personas naturales o jurídicas",0,0,0,0]
["ARCOTEL-018-03-03","Autorización de transferencia o cesión del Título Habilitante para el Servicio Móvil Avanzado",0,0,0,0]
["ARCOTEL-025-03-03","Autorización de transferencia o cesión del Título Habilitante para el Servicio Móvil Avanzado a través de Operador Móvil Virtual",0,0,0,0]
["ARCOTEL-017-03-06","Autorización de transferencia o cesión del Título Habilitante para el Servicio Portador para personas naturales o jurídicas",0,0,0,0]
["ARCOTEL-031-03-07","Autorización de vinculación que implica cambio de control para el Servicio de Telefonía Fija",0,0,0,0]
["ARCOTEL-032-03-02","Autorización de vinculación que implica cambio de control para el Servicio de Transporte Internacional modalidad Cable Submarino",0,0,0,0]
["ARCOTEL-026-02-01","Cancelación de Inscripción de Proveedores de Infraestructura física",0,0,0,0]
["ARCOTEL-033-03-01","Cancelación del Certificado de Inscripción en el Registro Público de Telecomunicaciones de Centros de Acceso a la Información a través de Internet (Cibercafés)",0,0,0,0]
["ARCOTEL-018-05-02","Declaración de disolución, quiebra o liquidación para personas jurídicas de derecho privado, por hechos o actos que impidan la continuidad del título habilitante",0,0,0,0]
["ARCOTEL-028-05-01","Devolución voluntaria o por acuerdo mutuo del Título Habilitante de una Entidad de Certificación de Información y Servicios Relacionados Acreditados",0,0,0,0]
["ARCOTEL-020-07-01","Devolución voluntaria o por acuerdo mutuo del Título Habilitante para el Servicio Comunal, Servicio Troncalizado y Transporte Internacional Modalidad Provisión Segmento Especial",0,0,0,0]
["ARCOTEL-023-04-01","Devolución voluntaria o por acuerdo mutuo del Título Habilitante para el Servicio de Radioaficionados y Banda Ciudadana",0,0,0,0]
["ARCOTEL-015-05-01","Devolución voluntaria o por acuerdo mutuo del Título Habilitante para el Servicio de Telecomunicaciones Móviles por Satélite",0,0,0,0]
["ARCOTEL-031-05-01","Devolución voluntaria o por acuerdo mutuo del Título Habilitante para el Servicio de Telefonía Fija",0,0,0,0]
["ARCOTEL-032-05-01","Devolución voluntaria o por acuerdo mutuo del Título Habilitante para el Servicio de Transporte Internacional modalidad Cable Submarino para personas jurídicas de derecho privado",0,0,0,0]
["ARCOTEL-027-05-01","Devolución voluntaria o por acuerdo mutuo del Título Habilitante para el Servicio de Valor Agregado",0,0,0,0]
["ARCOTEL-025-05-01","Devolución voluntaria o por acuerdo mutuo del Título Habilitante para el Servicio Móvil Avanzado a través de Operador Móvil Virtual para personas jurídicas de derecho privado",0,0,0,0]
["ARCOTEL-018-05-01","Devolución voluntaria o por acuerdo mutuo del Título Habilitante para el Servicio Móvil Avanzado para personas jurídicas de derecho privado",0,0,0,0]
["ARCOTEL-017-05-01","Devolución voluntaria o por acuerdo mutuo del Título Habilitante para el Servicio Portador",0,0,0,0]
["ARCOTEL-015-05-03","Extinción del TH para el Servicio de Telecomunicaciones Móviles por Satélite por concepto de declaración de disolución, quiebra o liquidación para personas jurídicas de derecho privado, por pérdida de la capacidad civil de su titular...",0,0,0,0]
["ARCOTEL-014-05-03","Extinción del Título Habilitante para el Servicio de Acceso a Internet por concepto de declaración de disolución, quiebra o liquidación para personas jurídicas de derecho privado",0,0,0,0]
["ARCOTEL-030-05-03","Extinción del Título Habilitante para el Servicio de Audio y Video por Susucripción por concepto de declaración de disolución, quiebra o liquidación para personas jurídicas de derecho privado",0,0,0,0]
["ARCOTEL-031-05-02","Extinción del Título Habilitante para el Servicio de Telefonía Fija por concepto de declaración de disolución, quiebra o liquidación para personas jurídicas de derecho privado",0,0,0,0]
["ARCOTEL-032-05-03","Extinción del Título Habilitante para el Servicio de Transporte Internacional modalidad Cable Submarino por concepto de declaración de disolución, quiebra o liquidación para personas jurídicas de derecho privado",0,0,0,0]
["ARCOTEL-017-05-03","Extinción del Título Habilitante para el Servicio Portador por concepto de declaración de disolución, quiebra o liquidación para personas jurídicas de derecho privado",0,0,0,0]
["ARCOTEL-025-05-02","Extinción Título Habilitante Servicio Móvil Avanzado a través de OMV por concepto declaración de disolución, quiebra o liquidación personas jurídicas de derecho privado o por hechos o actos que impidan la continuidad",0,0,0,0]
["ARCOTEL-030-04-14","Incorporación de estaciones de TV abierta para un Sistema de Audio y Video por Suscripción",0,0,0,0]
["ARCOTEL-033-02-01","Modificación al Certificado de Inscripción en el Registro Público de Telecomunicaciones de Centros de Acceso a la Información a través de Internet (Cibercafés)",0,0,0,0]
["ARCOTEL-015-04-03","Notificación adquisición de acciones o participaciones de empresas que no implica cambio de Control para el Servicio de Telecomunicaciones Móviles por Satélite",0,0,0,0]
["ARCOTEL-018-04-04","Notificación adquisición de acciones o participaciones de empresas que no implica cambio de Control para el Servicio Móvil Avanzado",0,0,0,0]
["ARCOTEL-032-04-02","Notificación de actualización de coordenadas geográficas de sitios previamente autorizados para el Servicio de Transporte Internacional modalidad Cable Submarino",0,0,0,0]
["ARCOTEL-025-04-04","Notificación de adquisición de acciones o participaciones de empresas para el Servicio Móvil Avanzado bajo la modalidad de Operador Móvil Virtual",0,0,0,0]
["ARCOTEL-018-04-14","Notificación de asignación y liberación de recurso de sincronismo del Servicio Móvil Avanzado",0,0,0,0]
["ARCOTEL-018-04-13","Notificación de asignación y liberación de recurso de transmisión del Servicio Móvil Avanzado",0,0,0,0]
["ARCOTEL-031-04-08","Notificación de asignación y liberación de recurso numérico de señalización para el Servicio de Telefonía Fija",0,0,0,0]
["ARCOTEL-032-04-03","Notificación de cambio de marca y modelo de Equipo para el Servicio de Transporte Internacional modalidad Cable Submarino",0,0,0,0]
["ARCOTEL-030-04-09","Notificación de cambio de nombre de estación (denominación comercial) para un Sistema de Audio y Video por Suscripción",0,0,0,0]
["ARCOTEL-020-06-04","Notificación de cambio de Razón Social para el Servicio Comunal, Servicio Trancalizado, Transporte Internacional Modalidad Provisión Segmento Especial",0,0,0,0]
["ARCOTEL-014-04-05","Notificación de cambio de Razón Social para el Servicio de Acceso a Internet para personas jurídicas de derecho privado",0,0,0,0]
["ARCOTEL-015-04-06","Notificación de cambio de Razón Social para el Servicio de Telecomunicaciones Móviles por Satélite",0,0,0,0]
["ARCOTEL-031-04-03","Notificación de cambio de Razón Social para el Servicio de Telefonía Fija",0,0,0,0]
["ARCOTEL-027-04-05","Notificación de cambio de Razón Social para el Servicio de Valor Agregado para personas jurídicas de derecho privado y empresas públicas o instituciones del sector público",0,0,0,0]
["ARCOTEL-018-04-06","Notificación de cambio de Razón Social para el Servicio Móvil Avanzado",0,0,0,0]
["ARCOTEL-025-04-06","Notificación de cambio de Razón Social para el Servicio Móvil Avanzado a través de Operador Móvil Virtual",0,0,0,0]
["ARCOTEL-017-04-05","Notificación de cambio de Razón Social para el Servicio Portador para personas jurídicas de derecho privado y empresas públicas",0,0,0,0]
["ARCOTEL-031-04-02","Notificación de cambio de Representante Legal para el Servicio de Telefonía Fija",0,0,0,0]
["ARCOTEL-020-06-03","Notificación de cambio de Representante Legal, actualización de información de contacto y cambio de domicilio para el Servicio Comunal, Servicio Troncalizado y Transporte Internacional Modalidad Provisión Segmento Especial",0,0,0,0]
["ARCOTEL-015-04-05","Notificación de cambio de Representante Legal, actualización de información de contacto y cambio de domicilio para el Servicio de Telecomunicaciones Móviles por Satélite",0,0,0,0]
["ARCOTEL-025-04-05","Notificación de cambio de Representante Legal, actualización de información de contacto y cambio de domicilio para el Servicio Móvil Avanzado a través de Operador Móvil Virtual",0,0,0,0]
["ARCOTEL-018-04-05","Notificación de cambio de Representante Legal, actualización de información de contacto y cambio de domicilio para el Servicio Móvil Avanzado para personas jurídicas de derecho privado y empresas públicas",0,0,0,0]
["ARCOTEL-017-04-04","Notificación de cambio de Representante Legal, actualización de información de contacto y cambio de domicilio para el Servicio Portador para personas jurídicas de derecho privado y empresas públicas",0,0,0,0]
["ARCOTEL-030-04-10","Notificación de cambio y/o actualización de equipos que no impliquen modificación de características autorizadas para un Sistema de Audio y Video por Suscripción",0,0,0,0]
["ARCOTEL-027-04-07","Notificación de cumplimiento de Georreferenciación para el Servicio de Valor Agregado",0,0,0,0]
["ARCOTEL-026-02-02","Notificación de extinción de la persona jurídica o muerte de la persona natural inscrita como proveedores de infraestructura física",0,0,0,0]
["ARCOTEL-030-04-07","Notificación de incremento o decremento de canales locales para guía de programación para un Sistema de Audio y Video por Suscripción",0,0,0,0]
["ARCOTEL-030-04-06","Notificación de incremento o decremento del número de canales de servicios de valor agregado (PPV, VoD, etc.) para un Sistema de Audio y Video por Suscripción",0,0,0,0]
["ARCOTEL-028-04-05","Notificación de la Declaración de Prácticas de Certificación de una Entidad de Certificación de Información y Servicios Relacionados Acreditados",0,0,0,0]
["ARCOTEL-014-04-02","Notificación de modificación de capital para el Servicio de Acceso a Internet para personas jurídicas de derecho privado",0,0,0,0]
["ARCOTEL-015-04-01","Notificación de modificación de capital para el Servicio de Telecomunicaciones Móviles por Satélite",0,0,0,0]
["ARCOTEL-031-04-04","Notificación de modificación de capital para el Servicio de Telefonía Fija",0,0,0,0]
["ARCOTEL-032-04-04","Notificación de modificación de Capital para el Servicio de Transporte Internacional modalidad Cable Submarino",0,0,0,0]
["ARCOTEL-027-04-02","Notificación de modificación de capital para el Servicio de Valor Agregado para personas jurídicas de derecho privado y empresas públicas o instituciones del sector público",0,0,0,0]
["ARCOTEL-025-04-02","Notificación de modificación de capital para el Servicio Móvil Avanzado a través de Operador Móvil Virtual",0,0,0,0]
["ARCOTEL-018-04-02","Notificación de modificación de capital para el Servicio Móvil Avanzado para personas jurídicas de derecho privado",0,0,0,0]
["ARCOTEL-017-04-02","Notificación de modificación de capital para el Servicio Portador para personas jurídicas de derecho privado",0,0,0,0]
["ARCOTEL-014-04-03","Notificación de modificación de Estatutos para el Servicio de Acceso a Internet para personas jurídicas de derecho privado y empresas públicas",0,0,0,0]
["ARCOTEL-015-04-02","Notificación de modificación de Estatutos para el Servicio de Telecomunicaciones Móviles por Satélite",0,0,0,0]
["ARCOTEL-031-04-05","Notificación de modificación de Estatutos para el Servicio de Telefonía Fija",0,0,0,0]
["ARCOTEL-032-04-05","Notificación de modificación de Estatutos para el Servicio de Transporte Internacional modalidad Cable Submarino",0,0,0,0]
["ARCOTEL-027-04-03","Notificación de modificación de Estatutos para el Servicio de Valor Agregado para personas jurídicas de derecho privado y empresas públicas o instituciones del sector público",0,0,0,0]
["ARCOTEL-025-04-03","Notificación de modificación de Estatutos para el Servicio Móvil Avanzado a través de Operador Móvil Virtual",0,0,0,0]
["ARCOTEL-018-04-03","Notificación de modificación de Estatutos para el Servicio Móvil Avanzado para personas jurídicas de derecho privado y empresas públicas",0,0,0,0]
["ARCOTEL-017-04-03","Notificación de modificación de Estatutos para el Servicio Portador para personas jurídicas de derecho privado y empresas públicas",0,0,0,0]
["ARCOTEL-018-04-01","Notificación de modificaciones técnicas y administrativas para el Servicio Móvil Avanzado",0,0,0,0]
["ARCOTEL-025-04-01","Notificación de modificaciones técnicas y administrativas para el Servicio Móvil Avanzado a través de Operador Móvil Virtual",0,0,0,0]
["ARCOTEL-016-05-02","Notificación de muerte del titular del Título Habilitante de Red Privada y Uso de Frecuencias de Telecomunicaciones",0,0,0,0]
["ARCOTEL-028-05-02","Notificación de muerte del titular del Título Habilitante de una Entidad de Certificación de Información y Servicios Relacionados Acreditados para personas naturales o jurídicas de derecho privado",0,0,0,0]
["ARCOTEL-020-07-02","Notificación de muerte del titular del Título Habilitante para el Servicio Comunal y Troncalizado",0,0,0,0]
["ARCOTEL-014-05-02","Notificación de muerte del titular del Título Habilitante para el Servicio de Acceso a Internet para personas naturales",0,0,0,0]
["ARCOTEL-030-05-02","Notificación de muerte del titular del Título Habilitante para el Servicio de Audio y Video por Susucripción para personas naturales o jurídicas de derecho privado",0,0,0,0]
["ARCOTEL-015-05-02","Notificación de muerte del titular del Título Habilitante para el Servicio de Telecomunicaciones Móviles por Satélite para personas naturales",0,0,0,0]
["ARCOTEL-032-05-02","Notificación de muerte del titular del Título Habilitante para el Servicio de Transporte Internacional modalidad Cable Submarino para personas naturales",0,0,0,0]
["ARCOTEL-027-05-02","Notificación de muerte del titular del Título Habilitante para el Servicio de Valor Agregado para personas naturales o jurídicas de derecho privado",0,0,0,0]
["ARCOTEL-017-05-02","Notificación de muerte del titular del Título Habilitante para el Servicio Portador para personas naturales",0,0,0,0]
["ARCOTEL-025-04-09","Notificación de reportes contractuales, legales y reglamentarios del Servicio Móvil Avanzado a través de Operador Móvil Virtual",0,0,0,0]
["ARCOTEL-020-06-06","Notificación de Transferencia o Cesión de acciones que no impliquen cambio de control para el Servicio Comunal, Servicio Troncalizado y Transporte Internacional Modalidad Provisión Segmento Especial",0,0,0,0]
["ARCOTEL-014-04-01","Notificación de transferencia o cesión de acciones que no impliquen cambio de control para el Servicio de Acceso a Internet para personas jurídicas de derecho privado",0,0,0,0]
["ARCOTEL-027-04-01","Notificación de transferencia o cesión de acciones que no impliquen cambio de control para el Servicio de Valor Agregado para personas jurídicas de derecho privado y empresas públicas o instituciones del sector público",0,0,0,0]
["ARCOTEL-017-04-01","Notificación de transferencia o cesión de acciones que no impliquen cambio de control para el Servicio Portador para personas jurídicas de derecho privado",0,0,0,0]
["ARCOTEL-031-04-10","Notificación del Plan Técnico Fundamental de Sincronismo para el Servicio de Telefonía Fija",0,0,0,0]
["ARCOTEL-031-04-09","Notificación del Plan Técnico Fundamental de Transmisión para el Servicio de Telefonía Fija",0,0,0,0]
["ARCOTEL-037-01-01","Otorgamiento de título habilitante de frecuencias asociadas a la prestación de Servicios de Telecomunicaciones",0,0,0,0]
["ARCOTEL-014-01-03","Otorgamiento del Título Habilitante para el Servicio de Acceso a Internet para empresas públicas",0,0,0,0]
["ARCOTEL-015-01-03","Otorgamiento del Título Habilitante para el Servicio de Telecomunicaciones Móviles por Satélite y Concesión de Frecuencias para empresas públicas",0,0,0,0]
["ARCOTEL-015-01-02","Otorgamiento del Título Habilitante para el Servicio de Telecomunicaciones Móviles por Satélite y Concesión de Frecuencias para personas jurídicas de derecho privado",0,0,0,0]
["ARCOTEL-015-01-01","Otorgamiento del Título Habilitante para el Servicio de Telecomunicaciones Móviles por Satélite y Concesión de Frecuencias para personas naturales",0,0,0,0]
["ARCOTEL-031-01-01","Otorgamiento del Título Habilitante para el Servicio de Telefonía Fija para empresas públicas o instituciones del sector público",0,0,0,0]
["ARCOTEL-032-01-01","Otorgamiento del Título Habilitante para el Servicio de Transporte Internacional modalidad Cable Submarino para empresas públicas o instituciones del sector público",0,0,0,0]
["ARCOTEL-032-01-02","Otorgamiento del Título Habilitante para el Servicio de Transporte Internacional modalidad Cable Submarino para personas naturales o jurídicas de derecho privado",0,0,0,0]
["ARCOTEL-027-01-03","Otorgamiento del Título Habilitante para el Servicio de Valor Agregado para empresas públicas",0,0,0,0]
["ARCOTEL-027-01-01","Otorgamiento del Título Habilitante para el Servicio de Valor Agregado para personas naturales",0,0,0,0]
["ARCOTEL-025-01-02","Otorgamiento del Título Habilitante para el Servicio Móvil Avanzado a través de OMV para personas jurídicas de derecho privado, empresas de la economía mixta donde el Estado tenga mayoría accionaria y Empresas Economía Popular y Solidaria",0,0,0,0]
["ARCOTEL-025-01-01","Otorgamiento del Título Habilitante para el Servicio Móvil Avanzado a través de Operador Móvil Virtual para empresas públicas",0,0,0,0]
["ARCOTEL-018-01-01","Otorgamiento del Título Habilitante para el Servicio Móvil Avanzado para empresas públicas",0,0,0,0]
["ARCOTEL-018-01-02","Otorgamiento del Título Habilitante para el Servicio Móvil Avanzado para personas jurídicas de derecho privado",0,0,0,0]
["ARCOTEL-017-01-03","Otorgamiento del Título Habilitante para el Servicio Portador para empresas públicas",0,0,0,0]
["ARCOTEL-017-01-01","Otorgamiento del Título Habilitante para el Servicio Portador para personas naturales",0,0,0,0]
["ARCOTEL-030-01-03","Otorgamiento del Título Habilitante para un Sistema de Audio y Video por Suscripción bajo las modalidades de Cable Físico o Televisión Codificada Satelital para empresas públicas o instituciones del sector público.",0,0,0,0]
["ARCOTEL-028-01-02","Otorgamiento del Título Habilitante para una Entidad de Certificación de Información y Servicios Relacionados Acreditados para empresas públicas o instituciones del sector público",0,0,0,0]
["ARCOTEL-028-01-01","Otorgamiento del Título Habilitante para una Entidad de Certificación de Información y Servicios Relacionados Acreditados para personas jurídicas de derecho privado",0,0,0,0]
["ARCOTEL-031-01-02","Otorgamiento del Título Habilitante Servicio de Telefonía Fija para personas jurídicas de derecho privado, empresas de la economía mixta donde el Estado tenga mayoría accionaria y empresas de la economía popular y solidaria",0,3,0,0]
["ARCOTEL-023-01-04","Otorgamiento y Renovación de la Licencia para el Servicio de Radioaficionados Internacional y de transito",0,0,0,0]
["ARCOTEL-030-04-12","Registro de Canales Codificados para un Sistema de Audio y Video por Suscripción",0,0,0,0]
["ARCOTEL-032-04-01","Registro de Contrato de Adhesión o Reventa para el Servicio de Transporte Internacional modalidad Cable Submarino",0,0,0,0]
["ARCOTEL-027-03-07","Registro de Contrato de Adhesión o Reventa para el Servicio de Valor Agregado",0,0,0,0]
["ARCOTEL-015-04-07","Registro de Contrato de Adhesión para el Servicio de Telecomunicaciones Móviles por Satélite",0,0,0,0]
["ARCOTEL-025-04-07","Registro de Contrato de Adhesión para el Servicio Móvil Avanzado a través de Operador Móvil Virtual",0,0,0,0]
["ARCOTEL-015-04-08","Registro de Contrato de Reventa para el Servicio de Telecomunicaciones Móviles por Satélite",0,0,0,0]
["ARCOTEL-025-04-08","Registro de Contrato de Reventa para el Servicio Móvil Avanzado a través de Operador Móvil Virtual",0,0,0,0]
["ARCOTEL-030-04-13","Registro de Proveedores de Programación Internacional para un Sistema de Audio y Video por Suscripción",0,0,0,0]
["ARCOTEL-014-02-03","Renovación del Título Habilitante para el Servicio de Acceso a Internet para empresas públicas",0,0,0,0]
["ARCOTEL-014-02-01","Renovación del Título Habilitante para el Servicio de Acceso a Internet para personas naturales",0,0,0,0]
["ARCOTEL-015-02-03","Renovación del Título Habilitante para el Servicio de Telecomunicaciones Móviles por Satélite y Concesión de Frecuencias para empresas públicas",0,0,0,0]
["ARCOTEL-015-02-02","Renovación del Título Habilitante para el Servicio de Telecomunicaciones Móviles por Satélite y Concesión de Frecuencias para personas jurídicas de derecho privado",0,0,0,0]
["ARCOTEL-015-02-01","Renovación del Título Habilitante para el Servicio de Telecomunicaciones Móviles por Satélite y Concesión de Frecuencias para personas naturales",0,0,0,0]
["ARCOTEL-031-02-01","Renovación del Título Habilitante para el Servicio de Telefonía Fija para empresas públicas o instituciones del sector público",0,0,0,0]
["ARCOTEL-031-02-02","Renovación del Título Habilitante para el Servicio de Telefonía Fija para personas jurídicas de derecho privado, empresas de la economía mixta donde el Estado tenga mayoría accionaria y empresas de la economía popular y solidaria",0,0,0,0]
["ARCOTEL-032-02-01","Renovación del Título Habilitante para el Servicio de Transporte Internacional modalidad Cable Submarino para empresas públicas o instituciones del sector público",0,0,0,0]
["ARCOTEL-032-02-02","Renovación del Título Habilitante para el Servicio de Transporte Internacional modalidad Cable Submarino para personas naturales o jurídicas de derecho privado",0,0,0,0]
["ARCOTEL-027-02-03","Renovación del Título Habilitante para el Servicio de Valor Agregado para empresas públicas",0,0,0,0]
["ARCOTEL-027-02-02","Renovación del Título Habilitante para el Servicio de Valor Agregado para personas jurídicas de derecho privado",0,0,0,0]
["ARCOTEL-027-02-01","Renovación del Título Habilitante para el Servicio de Valor Agregado para personas naturales",0,0,0,0]
["ARCOTEL-025-02-02","Renovación del Título Habilitante para el Servicio Móvil Avanzado a través de OMV para personas jurídicas de derecho privado, empresas de la economía mixta donde el Estado tenga mayoría accionaria y Empresas de la Economía Popular y Solidaria",0,0,0,0]
["ARCOTEL-025-02-01","Renovación del Título Habilitante para el Servicio Móvil Avanzado a través de Operador Móvil Virtual para empresas públicas",0,0,0,0]
["ARCOTEL-018-02-01","Renovación del Título Habilitante para el Servicio Móvil Avanzado para empresas públicas",0,0,0,0]
["ARCOTEL-018-02-02","Renovación del Título Habilitante para el Servicio Móvil Avanzado para personas jurídicas de derecho privado",0,0,0,0]
["ARCOTEL-017-02-03","Renovación del Título Habilitante para el Servicio Portador para empresas públicas",0,0,0,0]
["ARCOTEL-017-02-01","Renovación del Título Habilitante para el Servicio Portador para personas naturales",0,0,0,0]
["ARCOTEL-028-02-02","Renovación del Título Habilitante para una Entidad de Certificación de Información y Servicios Relacionados Acreditados para empresas públicas o instituciones del sector público",0,0,0,0]
["ARCOTEL-030-02-01","Renovación Título Habilitante para un Sistema de Audio y Video por Suscripción bajo modalidades de Cable Físico o TV Codificada Satelital, personas naturales, personas jurídicas de derecho priv, inst del sector público o em públicas",0,0,0,0]
["ARCOTEL-024-03-13","Solicitud de continuación de uso de los derechos del título habilitante por fallecimiento de la persona natural concesionaria de una frecuencia de Radiodifusión Sonora y de Televisión de Señal Abierta",0,0,0,0]
["ARCOTEL-006-01-03","Solicitud de credenciales para ensambladores de terminales de servicio móvil avanzado",0,0,0,0]
["ARCOTEL-028-05-03","Solicitud de extinción del Título Habilitante de una Entidad de Certificación de Información y Servicios Relacionados Acreditados por concepto de declaración de disolución, quiebra o liquidación para personas jurídicas de derecho privado",0,0,0,0]
["ARCOTEL-027-05-03","Solicitud de extinción del Título Habilitante para el Servicio de Valor Agregado por concepto de declaración de disolución, quiebra o liquidación para personas jurídicas de derecho privado",0,0,0,0]
["ARCOTEL-005-01-02","Solicitud de licencias no automáticas de importación de decodificadores para provisión de receptores de abonado y/o receptores de prestador de servicio para sistemas de audio y video por suscripción o tv abierta -para venta a un prestador",0,0,0,0]
["ARCOTEL-010-02-01","Solicitud de Renovación Temporal de Frecuencias para Radiodifusión Sonora y TV de Señal Abierta",0,0,0,0]
["ARCOTEL-024-05-03","Terminación del Título Habilitante para el Servicio de Radiodifusión Sonora y de Televisión de Señal Abierta por la causal de extinción de la persona jurídica",0,0,0,0]
["ARCOTEL-024-05-05","Terminación del Título Habilitante para el Servicio de Radiodifusión Sonora y de Televisión de Señal Abierta por pérdida de la capacidad civil del concesionario o disolución de la sociedad concesionaria",0,0,0,0]
["ARCOTEL-036-01-02","Asesoría para el tratamiento de incidentes y vulnerabilidades informáticas a usuarios de redes de telecomunicaciones",1,0,0,0]
["ARCOTEL-016-03-04","Autorización de incremento, modificación y cancelación de enlaces físicos para una Red Privada de Telecomunicaciones",1,0,0,0]
["ARCOTEL-016-03-02","Autorización de modificación de parámetros técnicos para enlaces terrestres y satelitales asociados a una Red Privada de Telecomunicaciones",1,0,0,0]
["ARCOTEL-018-03-01","Autorización de modificaciones técnicas y administrativas para el Servicio Móvil Avanzado",1,0,0,0]
["ARCOTEL-018-03-06","Autorización de prórrogas para el Servicio Móvil Avanzado",1,0,0,0]
["ARCOTEL-016-05-03","Extinción del Título Habilitante de Red Privada y Uso de Frecuencias de Telecomunicaciones por declaración anticipada y unilateral debidamente motivada",1,0,0,0]
["ARCOTEL-018-04-11","Notificación de asignación y liberación de número social público del Servicio Móvil Avanzado",1,0,0,0]
["ARCOTEL-018-04-10","Notificación de asignación y liberación de recurso numérico no geográfico del Servicio Móvil Avanzado",1,0,0,0]
["ARCOTEL-027-04-04","Notificación de cambio de Representante Legal para el Servicio de Valor Agregado para personas jurídicas de derecho privado y empresas públicas o instituciones del sector público",1,0,0,0]
["ARCOTEL-027-01-02","Otorgamiento del Título Habilitante para el Servicio de Valor Agregado para personas jurídicas de derecho privado",1,0,0,0]
["ARCOTEL-017-01-02","Otorgamiento del Título Habilitante para el Servicio Portador para personas jurídicas de derecho privado",1,0,0,0]
["ARCOTEL-017-02-02","Renovación del Título Habilitante para el Servicio Portador para personas jurídicas de derecho privado",1,0,0,0]
["ARCOTEL-028-02-01","Renovación del Título Habilitante para una Entidad de Certificación de Información y Servicios Relacionados Acreditados para personas jurídicas de derecho privado",1,0,0,0]
["ARCOTEL-020-03-07","Autorización de incremento, modificación y cancelación de satélites para el Servicio de Transporte Internacional Modalidad Provisión Segmento Especial",2,0,0,0]
["ARCOTEL-016-03-09","Autorización de transferencia o cesión del Título Habilitante de Red Privada y Uso de Frecuencias de Telecomunicaciones",2,0,0,0]
["ARCOTEL-024-05-01","Devolución voluntaria o por acuerdo mutuo del Título Habilitante para el Servicio de Radiodifusión Sonora y de Televisión de Señal Abierta",2,0,0,0]
["ARCOTEL-018-04-12","Notificación de asignación y liberación de recurso de señalización del Servicio Móvil Avanzado",2,0,0,0]
["ARCOTEL-014-04-04","Notificación de cambio de Representante Legal, actualización de información de contacto y cambio de domicilio para el Servicio de Acceso a Internet para personas jurídicas de derecho privado y empresas públicas",2,0,0,0]
["ARCOTEL-024-01-02","Otorgamiento del Título Habilitante para el Servicio de Radiodifusión Sonora y Televisión por Señal Abierta para Medios Privados y Comunitarios (Concurso Público)",2,0,0,0]
["ARCOTEL-016-01-01","Otorgamiento y Renovación del Título Habilitante de Operación de Red Privada y Uso de Frecuencias para enlaces terrestres y satelitales",2,0,0,0]
["ARCOTEL-017-04-06","Registro de Contrato de Adhesión o Reventa para el Servicio Portador",2,0,0,0]
["ARCOTEL-018-04-07","Registro de Contrato de Adhesión para el Servicio Móvil Avanzado",2,0,0,0]
["ARCOTEL-018-04-08","Registro de Contrato de Reventa para el Servicio Móvil Avanzado",2,0,0,0]
["ARCOTEL-005-01-04","Solicitud de licencias no automáticas de importación de decodificadores para personas naturales o jurídicas cuya actividad comercial o objeto social sea la prestación de servicios en general de mantenimiento",2,0,0,0]
["ARCOTEL-005-01-03","Solicitud de licencias no automáticas de importación de decodificadores para provisión de receptores de abonado y/o receptores de prestador de servicio para sistemas de audio y video por suscripción o tv abierta -para mantenerlos en perchas",2,0,0,0]
["ARCOTEL-030-03-02","Autorización de operación de canales locales para programación propia para un Sistema de Audio y Video por Suscripción",3,0,0,0]
["ARCOTEL-016-04-05","Notificación de cambio de Razón Social para el Título Habilitante de Red Privada y Uso de Frecuencias de Telecomunicaciones",3,0,0,0]
["ARCOTEL-030-04-02","Notificación de modificación de estatutos y cambios de socios o accionistas para un Sistema de Audio y Video por Suscripción",3,0,0,0]
["ARCOTEL-030-04-04","Notificación de modificación de redes con o sin cambio de tecnología para un Sistema de Audio y Video por Suscripción",3,0,0,0]
["ARCOTEL-030-04-01","Notificación de reubicación de la cabecera (head end) para un Sistema de Audio y Video por Suscripción",3,0,0,0]
["ARCOTEL-031-04-01","Registro de Contrato de Adhesión o Reventa para el Servicio de Telefonía Fija",3,0,0,0]
["ARCOTEL-014-02-02","Renovación del Título Habilitante para el Servicio de Acceso a Internet para personas jurídicas de derecho privado",3,0,0,0]
["ARCOTEL-036-01-01","Reporte de incidentes informáticos en redes de telecomunicaciones",3,0,0,0]
["ARCOTEL-005-01-05","Solicitud de licencias no automáticas de importación de decodificadores para fines sociales, académicos, seguridad y salud o de interés general, y para importar muestras de equipos decodificadores",3,0,0,0]
["ARCOTEL-007-01-01","Bloqueo de equipos terminales robados, perdidos o hurtados que no hayan sido utilizados en las redes de los prestadores del servicio móvil avanzado.",4,0,0,0]
["ARCOTEL-014-05-01","Devolución voluntaria o por acuerdo mutuo del Título Habilitante para el Servicio de Acceso a Internet",4,0,0,0]
["ARCOTEL-027-03-06","Autorización de adquisición de acciones o participaciones de empresas para el Servicio de Valor Agregado",5,0,0,0]
["ARCOTEL-010-01-01","Autorización Temporal de Frecuencias para Radiodifusión Sonora y TV de Señal Abierta",5,0,0,0]
["ARCOTEL-030-04-08","Notificación de actualización de coordenadas geográficas de sitios previamente autorizados para un Sistema de Audio y Video por Suscripción",5,0,0,0]
["ARCOTEL-030-03-01","Autorización de ampliación de cobertura para un Sistema de Audio y Video por Suscripción",6,0,0,0]
["ARCOTEL-030-01-01","Otorgamiento del Título Habilitante para un Sistema de Audio y Video por Suscripción bajo las modalidades de Cable Físico o Televisión Codificada Satelital para personas naturales",6,0,0,0]
["ARCOTEL-024-02-01","Renovación del Título Habilitante para el Servicio de Radiodifusión Sonora y Televisión por Señal Abierta para Personas Jurídicas de Derecho Público (Adjudicación Directa) y/o Medios Privados y Comunitarios",6,0,0,0]
["ARCOTEL-024-03-12","Autorización de cambio de Razón social o denominación objetiva para el Servicio de Radiodifusión Sonora y Televisión por Señal Abierta",7,0,0,0]
["ARCOTEL-016-03-11","Autorización de prórroga para instalación e inicio de operaciones para el Título Habilitante de Operación de Red Privada y Uso de Frecuencias de Telecomunicaciones",7,0,0,0]
["ARCOTEL-016-04-04","Notificación de cambio de Representante Legal, actualización de información de contacto y cambio de domicilio para una Red Privada de Telecomunicaciones",7,0,0,0]
["ARCOTEL-030-01-02","Otorgamiento del Título Habilitante para un Sistema de Audio y Video por Suscripción bajo las modalidades de Cable Físico o Televisión Codificada Satelital para personas jurídicas de derecho privado.",7,0,0,0]
["ARCOTEL-035-01-01","Reporte de vulnerabilidades informáticas en redes de telecomunicaciones",7,0,0,0]
["ARCOTEL-016-03-01","Autorización de incremento de frecuencias para enlaces terrestres y satelitales asociadas a una Red Privada de Telecomunicaciones",8,0,0,0]
["ARCOTEL-016-05-01","Devolución voluntaria o por acuerdo mutuo del Título Habilitante de Red Privada y Uso de Frecuencias de Telecomunicaciones",8,0,0,0]
["ARCOTEL-026-01-01","Inscripción de Proveedores de Infraestructura física",8,0,0,0]
["ARCOTEL-030-03-04","Autorización de prórroga para inicio de operaciones para un Sistema de Audio y Video por Suscripción",9,0,0,0]
["ARCOTEL-003-01-02 ","Certificación de obligaciones económicas, área de cobertura y/o derechos de concesión de servicios de telecomunicaciones solicitada por terceros autorizados por los poseedores de títulos habilitantes",9,0,0,0]
["ARCOTEL-030-05-01","Devolución voluntaria o por acuerdo mutuo del Título Habilitante para el Servicio de Audio y Video por Susucripción",10,0,0,0]
["ARCOTEL-009-01-01","Solicitud de medición de radiaciones no ionizantes por parte de la ciudadanía",10,9,90,10]
["ARCOTEL-009-03-01","Solicitud de verificación de inicio de operación de sistemas de radiodifusión y televisión abierta",10,10,100,10]
["ARCOTEL-023-03-01","Autorización de modificaciones para el Servicio de Radioaficionados y Banda Ciudadana",11,0,0,0]
["ARCOTEL-016-03-10","Autorización de cancelación parcial de frecuencias para Troncalizado y Radio de Dos Vías (móvil terrestre, aeronáutico y marítimo) asociado a una Red Privada de Telecomunicaciones",15,0,0,0]
["ARCOTEL-030-04-11","Registro de Contrato de Adhesión o Reventa para un Sistema de Audio y Video por Suscripción",15,0,0,0]
["ARCOTEL-020-01-01","Otorgamiento y Renovación del Título Habilitante para el Servicio Comunal, Servicio Troncalizado, Servicio Transporte Internacional Modalidad Segmento Espacial",16,0,0,0]
["ARCOTEL-030-04-05","Notificación de incremento y/o decremento del número de canales para un Sistema de Audio y Video por Suscripción que no involucran autorizaciones de nuevas frecuencias",17,0,0,0]
["ARCOTEL-020-03-06","Autorización de cancelación de frecuencias para el Servicio Comunal y Servicio Troncalizado",20,0,0,0]
["ARCOTEL-024-03-14","Autorización de Modificaciones Administrativas para el Servicio de Radiodifusión Sonora y Televisión por Señal Abierta",21,0,0,0]
["ARCOTEL-014-03-06","Autorización de prórroga para inicio de operaciones para el Servicio de Acceso a Internet",22,0,0,0]
["ARCOTEL-024-01-01","Otorgamiento del Título Habilitante para el Servicio de Radiodifusión Sonora y Televisión por Señal Abierta para Personas Jurídicas de Derecho Público (Adjudicación Directa)",22,0,0,0]
["ARCOTEL-014-04-06","Registro de Contrato de Adhesión o Reventa para el Servicio de Acceso a Internet",23,0,0,0]
["ARCOTEL-015-04-04","Notificación de reportes contractuales y en cumplimiento al ordenamiento jurídico vigente para el Servicio de Telecomunicaciones Móviles por Satélite",25,0,0,0]
["ARCOTEL-028-03-01","Registro de tercero vinculado para una Entidad de Certificación de Información y Servicios Relacionados Acreditados",25,0,0,0]
["ARCOTEL-014-01-02","Otorgamiento del Título Habilitante para el Servicio de Acceso a Internet para personas jurídicas de derecho privado",26,0,0,0]
["ARCOTEL-020-03-01","Autorización de incremento de frecuencias para el Servicio Comunal y Servicio Troncalizado",30,0,0,0]
["ARCOTEL-030-04-03","Notificación de actualización de la programación y/o antenas de recepción para un Sistema de Audio y Video por Suscripción",34,0,0,0]
["ARCOTEL-028-04-04","Notificación de facturación total del mes por una Entidad de Certificación de Información y Servicios Relacionados Acreditados",35,0,0,0]
["ARCOTEL-031-04-06","Notificación de modificación, instalación o ampliación de infraestructura para el Servicio de Telefonía Fija",39,0,0,0]
["ARCOTEL-016-03-06","Autorización de modificación de parámetros técnicos para Troncalizado y Radio de Dos Vías (móvil terrestre, aeronáutico y marítimo) asociados a una Red Privada de Telecomunicaciones",47,0,0,0]
["ARCOTEL-028-04-02","Notificación de número de certificados emitidos y revocados en el mes por una Entidad de Certificación de Información y Servicios Relacionados Acreditados",47,0,0,0]
["ARCOTEL-028-04-01","Notificación de número de solicitudes de servicio y trámite atendidos por una Entidad de Certificación de Información y Servicios Relacionados Acreditados",47,0,0,0]
["ARCOTEL-028-04-03","Notificación de números de usuarios de servicios relacionados con la firma digital por una Entidad de Certificación de Información y Servicios Relacionados Acreditados",47,0,0,0]
["ARCOTEL-002-01-01","Solicitud de estudios o información estadística del sector de las telecomunicaciones",47,0,0,0]
["ARCOTEL-016-03-05","Autorización de incremento de frecuencias para Troncalizado y Radio de Dos Vías (móvil terrestre, aeronáutico y marítimo) asociadas a una Red Privada de Telecomunicaciones",52,0,0,0]
["ARCOTEL-020-03-02","Autorización de modificaciones técnicas para el Servicio Comunal y Servicio Troncalizado",62,0,0,0]
["ARCOTEL-005-01-01","Solicitud de licencias no automáticas de importación de decodificadores para poseedores de títulos habilitantes de telecomunicaciones o radiodifusión y/o receptores para usuarios de televisión digital terrestre abierta",66,0,0,0]
["ARCOTEL-037-02-02","Autorización de cancelación de enlaces terrestres y satelitales para la prestación de Servicios de Telecomunicaciones",82,0,0,0]
["ARCOTEL-023-01-01","Otorgamiento y Renovación de la Licencia para el Servicio de Radioaficionados y Banda Ciudadana",85,0,0,0]
["ARCOTEL-016-01-02","Otorgamiento y Renovación del Título Habilitante de Operación de Red Privada y Uso de Frecuencias para Troncalizado y Radio de Dos Vías (móvil terrestre, aeronáutico y marítimo)",85,0,0,0]
["ARCOTEL-014-01-01","Otorgamiento del Título Habilitante para el Servicio de Acceso a Internet para personas naturales",87,0,0,0]
["ARCOTEL-014-03-01","Autorización de modificaciones técnicas de red física para el Servicio de Acceso a Internet",88,0,0,0]
["ARCOTEL-019-01-01","Otorgamiento y Renovación de Frecuencias Temporales de Telecomunicaciones",93,1,1.075268817204301,10]
["ARCOTEL-018-04-09","Notificación de reportes contractuales, legales y reglamentarios del Servicio Móvil Avanzado",104,0,0,0]
["ARCOTEL-017-04-07","Notificación de cumplimiento de Georreferenciación para el Servicio Portador",106,0,0,0]
["ARCOTEL-003-01-03","Certificación de infracciones y sanciones emitidas por ARCOTEL",115,0,0,0]
["ARCOTEL-009-04-01","Solicitud de suspensión de emisiones de sistemas de radiodifusión y televisión de señal abierta",116,87,75,10]
["ARCOTEL-006-01-01","Solicitud de credenciales para importadores (personas jurídicas) de terminales de servicio móvil avanzado",127,0,0,0]
["ARCOTEL-033-01-01","Otorgamiento del Certificado de Inscripción en el Registro Público de Telecomunicaciones de Centros de Acceso a la Información a través de Internet (Cibercafés)",128,0,0,0]
["ARCOTEL-037-02-05","Autorización de incremento, modificación y cancelación de Radiobases para el Servicio Móvil Avanzado",135,0,0,0]
["ARCOTEL-009-02-01","Solicitud de concesionarios del espectro radioeléctrico para solución de interferencias",152,83,54.60526315789474,10]
["ARCOTEL-014-04-07","Notificación de cumplimiento de Georreferenciación para el Servicio de Acceso a Internet",163,0,0,0]
["ARCOTEL-024-04-01","Notificación de Modificaciones Técnicas para el Servicio de Radiodifusión Sonora y Televisión por Señal Abierta",167,0,0,0]
["ARCOTEL-017-03-01","Autorización de modificaciones técnicas para red física para el Servicio Portador",211,0,0,0]
["ARCOTEL-024-03-01","Autorización de Modificaciones Técnicas para el Servicio de Radiodifusión Sonora y Televisión por Señal Abierta",225,0,0,0]
["ARCOTEL-037-02-01","Autorización de incremento de enlaces terrestres y satelitales para la prestación de Servicios de Telecomunicaciones",259,0,0,0]
["ARCOTEL-006-01-02","Solicitud de credenciales para importadores (persona natural) de terminales de servicio móvil avanzado",282,0,0,0]
["ARCOTEL-037-02-03","Autorización de modificaciones técnicas de enlaces terrestres y satelitales para Servicios de Telecomunicaciones",296,0,0,0]
["ARCOTEL-031-04-07","Notificación de reserva, asignación y liberación de recurso numérico geográfico para el Servicio de Telefonía Fija.",424,0,0,0]
["ARCOTEL-001-01-01","Solicitud de información pública",463,67,14.47084233261339,10]
["ARCOTEL-003-01-01","Certificación de obligaciones económicas, área de cobertura y/o derechos de concesión de servicios de telecomunicaciones solicitada por los poseedores de títulos habilitantes",659,0,0,0]
["ARCOTEL-004-01-01","Solicitud de homologación de equipos terminales de telecomunicaciones",883,0,0,0]
["ARCOTEL-012-01-01","Presentación de reclamos, denuncias, sugerencias o solicitudes de información de los servicios de telecomunicaciones",33979,0,0,0]

{"sheet":"COSTO ADMINISTRACIÓN PÚBLICA","index":3,"n_rows":298,"n_cols":9,"rows_kept":298,"cut":false,"hidden":false,"merged":[[0,0,0,5],[1,0,1,5],[3,0,4,0],[3,1,4,1],[3,2,3,4],[3,5,4,5]]}
["PRIORIZACIÓN DE TRÁMITES ADMINISTRATIVOS"]
["COSTOS PARA LA ADMINISTRACIÓN PÚBLICA"]
[]
["IDENTIFICADOR","TRÁMITE","INSUMOS PARA COSTO",null,null,"COSTO PARA LA ADM. PÚBLICA",null,"SBU",400]
[null,null,"TIEMPO (HORAS)","COSTO PERSONAL","COSTO RECURSOS"]
["ARCOTEL-035-02-01","Asesoría para la formación de Equipos de Respuesta a Incidentes de Seguridad Informática (CSIRT)",8,{"$f":"C6*$I$4/160","v":20},54.79,{"$f":"D6+E7","v":20}]
["ARCOTEL-014-03-05","Autorización de adquisición de acciones o participaciones de empresas para el Servicio de Acceso a Internet",300,{"$f":"C7*$I$4/160","v":750},0,{"$f":"D7+E8","v":750}]
["ARCOTEL-015-03-04","Autorización de adquisición de acciones o participaciones de empresas para el Servicio de Telecomunicaciones Móviles por Satélite",300,{"$f":"C8*$I$4/160","v":750},0,750]
["ARCOTEL-018-03-05","Autorización de adquisición de acciones o participaciones de empresas para el Servicio Móvil Avanzado",300,{"$f":"C9*$I$4/160","v":750},0,750]
["ARCOTEL-025-03-05","Autorización de adquisición de acciones o participaciones de empresas para el Servicio Móvil Avanzado bajo la modalidad de Operador Móvil Virtual",300,{"$f":"C10*$I$4/160","v":750},0,750]
["ARCOTEL-017-03-08","Autorización de adquisición de acciones o participaciones de empresas para el Servicio Portador",300,750,0,750]
["ARCOTEL-031-03-02","Autorización de ampliación de cobertura para el Servicio de Telefonía Fija",240,600,0,600]
["ARCOTEL-030-03-03","Autorización de ampliación de frecuencias para incremento o decremento de canales para un Sistema de Audio y Video por Suscripción",240,600,0,600]
["ARCOTEL-014-03-02","Autorización de cambio de control para el Servicio de Acceso a Internet",450,1125,0,1125]
["ARCOTEL-027-03-03","Autorización de cambio de control para el Servicio de Valor Agregado",450,1125,0,1125]
["ARCOTEL-017-03-05","Autorización de cambio de control para el Servicio Portador",800,2000,0,2000]
["ARCOTEL-020-03-03","Autorización de cambios de Control para el Servicio Comunal, Servicio Troncalizado, Transporte Internacional Modalidad Provisión de Segmento Espacial",32,80,0,80]
["ARCOTEL-032-03-05","Autorización de cambios en el área de registro/permiso, servicios, etc. que implica cambio de control para el Servicio de Transporte Internacional modalidad Cable Submarino",0,0,0,0]
["ARCOTEL-016-03-03","Autorización de cancelación de enlaces terrestres y satelitales asociado a una Red Privada de Telecomunicaciones",40,100,0,100]
["ARCOTEL-014-03-04","Autorización de fusión de compañías o personas jurídicas de derecho privado poseedoras de Títulos Habilitantes para el Servicio de Acceso a Internet",300,750,0,750]
["ARCOTEL-015-03-03","Autorización de fusión de compañías o personas jurídicas de derecho privado poseedoras de Títulos Habilitantes para el Servicio de Telecomunicaciones Móviles por Satélite",300,750,0,750]
["ARCOTEL-027-03-05","Autorización de fusión de compañías o personas jurídicas de derecho privado poseedoras de Títulos Habilitantes para el Servicio de Valor Agregado",300,750,0,750]
["ARCOTEL-018-03-04","Autorización de fusión de compañías o personas jurídicas de derecho privado poseedoras de Títulos Habilitantes para el Servicio Móvil Avanzado",300,750,0,750]
["ARCOTEL-025-03-04","Autorización de fusión de compañías o personas jurídicas de derecho privado poseedoras de Títulos Habilitantes para el Servicio Móvil Avanzado a través de Operador Móvil Virtual",300,750,0,750]
["ARCOTEL-017-03-07","Autorización de fusión de compañías o personas jurídicas de derecho privado poseedoras de Títulos Habilitantes para el Servicio Portador",300,750,0,750]
["ARCOTEL-031-03-03","Autorización de fusión de dos compañías o personas jurídicas de derecho privado poseedoras de Títulos Habilitantes para el Servicio de Telefonía Fija",300,750,0,750]
["ARCOTEL-032-03-03","Autorización de fusión de dos compañías o personas jurídicas de derecho privado poseedoras de Títulos Habilitantes para el Servicio de Transporte Internacional modalidad Cable Submarino",300,750,0,750]
["ARCOTEL-032-03-04","Autorización de incremento y reubicación de estación terrena para el Servicio de Transporte Internacional modalidad Cable Submarino",240,600,0,600]
["ARCOTEL-037-02-04","Autorización de incremento, modificación y cancelación de Radiobases para el Servicio de Telefonía Fija",169,422.5,0,422.5]
["ARCOTEL-027-03-01","Autorización de modificaciones técnicas para el Servicio de Valor Agregado",10,25,0,25]
["ARCOTEL-025-03-01","Autorización de modificaciones técnicas y administrativas para el Servicio Móvil Avanzado a través de Operador Móvil Virtual",240,600,0,600]
["ARCOTEL-024-03-11","Autorización de prórroga para inicio de operaciones para el Servicio de Radiodifusión Sonora y Televisión por Señal Abierta",148,370,0,370]
["ARCOTEL-017-03-09","Autorización de prórroga para inicio de operaciones para el Servicio Portador",300,750,0,750]
["ARCOTEL-020-03-05","Autorización de prórroga para instalación e inicio de operaciones para el Servicio Comunal, Servicio Troncalizado y Transporte Internacional Modalidad Provisión Segmento Espacial",40,100,0,100]
["ARCOTEL-015-03-05","Autorización de prórrogas para el Servicio de Telecomunicaciones Móviles por Satélite",275.35000000000002,688.37500000000011,0,688.37500000000011]
["ARCOTEL-025-03-06","Autorización de prórrogas para el Servicio Móvil Avanzado a través de Operador Móvil Virtual",50,125,0,125]
["ARCOTEL-031-03-01","Autorización de prórrogas varias para el Servicio de Telefonía Fija",50,125,0,125]
["ARCOTEL-032-03-01","Autorización de prórrogas varias para el Servicio de Transporte Internacional modalidad Cable Submarino",50,125,0,125]
["ARCOTEL-015-03-01","Autorización de transferencia o cesión de acciones que implican cambio de control para el Servicio de Telecomunicaciones Móviles por Satélite",300,750,0,750]
["ARCOTEL-018-03-02","Autorización de transferencia o cesión de acciones que implican cambio de control para el Servicio Móvil Avanzado",300,750,0,750]
["ARCOTEL-025-03-02","Autorización de transferencia o cesión de acciones que implican cambio de control para el Servicio Móvil Avanzado a través de Operador Móvil Virtual",300,750,0,750]
["ARCOTEL-020-03-08","Autorización de Transferencia o Cesión del Título Habilitante para el Servicio Comunal, Servicio Troncalizado, Transporte Internacional Modalidad Provisión de Segmento Espacial",40,100,0,100]
["ARCOTEL-014-03-03","Autorización de transferencia o cesión del Título Habilitante para el Servicio de Acceso a Internet para personas naturales o jurídicas de derecho privado",300,750,0,750]
["ARCOTEL-015-03-02","Autorización de transferencia o cesión del Título Habilitante para el Servicio de Telecomunicaciones Móviles por Satélite",300,750,0,750]
["ARCOTEL-027-03-04","Autorización de transferencia o cesión del Título Habilitante para el Servicio de Valor Agregado para personas naturales o jurídicas",300,750,0,750]
["ARCOTEL-018-03-03","Autorización de transferencia o cesión del Título Habilitante para el Servicio Móvil Avanzado",300,750,0,750]
["ARCOTEL-025-03-03","Autorización de transferencia o cesión del Título Habilitante para el Servicio Móvil Avanzado a través de Operador Móvil Virtual",300,750,0,750]
["ARCOTEL-017-03-06","Autorización de transferencia o cesión del Título Habilitante para el Servicio Portador para personas naturales o jurídicas",300,750,0,750]
["ARCOTEL-031-03-07","Autorización de vinculación que implica cambio de control para el Servicio de Telefonía Fija",450,1125,0,1125]
["ARCOTEL-032-03-02","Autorización de vinculación que implica cambio de control para el Servicio de Transporte Internacional modalidad Cable Submarino",450,1125,0,1125]
["ARCOTEL-026-02-01","Cancelación de Inscripción de Proveedores de Infraestructura física",360,900,0,900]
["ARCOTEL-033-03-01","Cancelación del Certificado de Inscripción en el Registro Público de Telecomunicaciones de Centros de Acceso a la Información a través de Internet (Cibercafés)",10,25,0,25]
["ARCOTEL-018-05-02","Declaración de disolución, quiebra o liquidación para personas jurídicas de derecho privado, por hechos o actos que impidan la continuidad del título habilitante",300,750,0,750]
["ARCOTEL-028-05-01","Devolución voluntaria o por acuerdo mutuo del Título Habilitante de una Entidad de Certificación de Información y Servicios Relacionados Acreditados",240,600,0,600]
["ARCOTEL-020-07-01","Devolución voluntaria o por acuerdo mutuo del Título Habilitante para el Servicio Comunal, Servicio Troncalizado y Transporte Internacional Modalidad Provisión Segmento Especial",40,100,0,100]
["ARCOTEL-023-04-01","Devolución voluntaria o por acuerdo mutuo del Título Habilitante para el Servicio de Radioaficionados y Banda Ciudadana",40,100,0,100]
["ARCOTEL-015-05-01","Devolución voluntaria o por acuerdo mutuo del Título Habilitante para el Servicio de Telecomunicaciones Móviles por Satélite",300,750,0,750]
["ARCOTEL-031-05-01","Devolución voluntaria o por acuerdo mutuo del Título Habilitante para el Servicio de Telefonía Fija",300,750,0,750]
["ARCOTEL-032-05-01","Devolución voluntaria o por acuerdo mutuo del Título Habilitante para el Servicio de Transporte Internacional modalidad Cable Submarino para personas jurídicas de derecho privado",300,750,0,750]
["ARCOTEL-027-05-01","Devolución voluntaria o por acuerdo mutuo del Título Habilitante para el Servicio de Valor Agregado",300,750,0,750]
["ARCOTEL-025-05-01","Devolución voluntaria o por acuerdo mutuo del Título Habilitante para el Servicio Móvil Avanzado a través de Operador Móvil Virtual para personas jurídicas de derecho privado",300,750,0,750]
["ARCOTEL-018-05-01","Devolución voluntaria o por acuerdo mutuo del Título Habilitante para el Servicio Móvil Avanzado para personas jurídicas de derecho privado",300,750,0,750]
["ARCOTEL-017-05-01","Devolución voluntaria o por acuerdo mutuo del Título Habilitante para el Servicio Portador",300,750,0,750]
["ARCOTEL-015-05-03","Extinción del TH para el Servicio de Telecomunicaciones Móviles por Satélite por concepto de declaración de disolución, quiebra o liquidación para personas jurídicas de derecho privado, por pérdida de la capacidad civil de su titular...",300,750,0,750]
["ARCOTEL-014-05-03","Extinción del Título Habilitante para el Servicio de Acceso a Internet por concepto de declaración de disolución, quiebra o liquidación para personas jurídicas de derecho privado",560,1400,0,1400]
["ARCOTEL-030-05-03","Extinción del Título Habilitante para el Servicio de Audio y Video por Susucripción por concepto de declaración de disolución, quiebra o liquidación para personas jurídicas de derecho privado",700,1750,0,1750]
["ARCOTEL-031-05-02","Extinción del Título Habilitante para el Servicio de Telefonía Fija por concepto de declaración de disolución, quiebra o liquidación para personas jurídicas de derecho privado",560,1400,0,1400]
["ARCOTEL-032-05-03","Extinción del Título Habilitante para el Servicio de Transporte Internacional modalidad Cable Submarino por concepto de declaración de disolución, quiebra o liquidación para personas jurídicas de derecho privado",300,750,0,750]
["ARCOTEL-017-05-03","Extinción del Título Habilitante para el Servicio Portador por concepto de declaración de disolución, quiebra o liquidación para personas jurídicas de derecho privado",300,750,0,750]
["ARCOTEL-025-05-02","Extinción Título Habilitante Servicio Móvil Avanzado a través de OMV por concepto declaración de disolución, quiebra o liquidación personas jurídicas de derecho privado o por hechos o actos que impidan la continuidad",300,750,0,750]
["ARCOTEL-030-04-14","Incorporación de estaciones de TV abierta para un Sistema de Audio y Video por Suscripción",13,{"$f":"C71*$I$4/160","v":32.5},0,{"$f":"D71+E72","v":32.5}]
["ARCOTEL-033-02-01","Modificación al Certificado de Inscripción en el Registro Público de Telecomunicaciones de Centros de Acceso a la Información a través de Internet (Cibercafés)",10,25,0,25]
["ARCOTEL-015-04-03","Notificación adquisición de acciones o participaciones de empresas que no implica cambio de Control para el Servicio de Telecomunicaciones Móviles por Satélite",300,750,0,750]
["ARCOTEL-018-04-04","Notificación adquisición de acciones o participaciones de empresas que no implica cambio de Control para el Servicio Móvil Avanzado",300,750,0,750]
["ARCOTEL-032-04-02","Notificación de actualización de coordenadas geográficas de sitios previamente autorizados para el Servicio de Transporte Internacional modalidad Cable Submarino",240,600,0,600]
["ARCOTEL-025-04-04","Notificación de adquisición de acciones o participaciones de empresas para el Servicio Móvil Avanzado bajo la modalidad de Operador Móvil Virtual",300,750,0,750]
["ARCOTEL-018-04-14","Notificación de asignación y liberación de recurso de sincronismo del Servicio Móvil Avanzado",160,400,0,400]
["ARCOTEL-018-04-13","Notificación de asignación y liberación de recurso de transmisión del Servicio Móvil Avanzado",160,400,0,400]
["ARCOTEL-031-04-08","Notificación de asignación y liberación de recurso numérico de señalización para el Servicio de Telefonía Fija",160,400,0,400]
["ARCOTEL-032-04-03","Notificación de cambio de marca y modelo de Equipo para el Servicio de Transporte Internacional modalidad Cable Submarino",240,600,0,600]
["ARCOTEL-030-04-09","Notificación de cambio de nombre de estación (denominación comercial) para un Sistema de Audio y Video por Suscripción",8,20,0,20]
["ARCOTEL-020-06-04","Notificación de cambio de Razón Social para el Servicio Comunal, Servicio Trancalizado, Transporte Internacional Modalidad Provisión Segmento Especial",40,100,0,100]
["ARCOTEL-014-04-05","Notificación de cambio de Razón Social para el Servicio de Acceso a Internet para personas jurídicas de derecho privado",300,750,0,750]
["ARCOTEL-015-04-06","Notificación de cambio de Razón Social para el Servicio de Telecomunicaciones Móviles por Satélite",300,750,0,750]
["ARCOTEL-031-04-03","Notificación de cambio de Razón Social para el Servicio de Telefonía Fija",300,750,0,750]
["ARCOTEL-027-04-05","Notificación de cambio de Razón Social para el Servicio de Valor Agregado para personas jurídicas de derecho privado y empresas públicas o instituciones del sector público",30,75,0,75]
["ARCOTEL-018-04-06","Notificación de cambio de Razón Social para el Servicio Móvil Avanzado",300,750,0,750]
["ARCOTEL-025-04-06","Notificación de cambio de Razón Social para el Servicio Móvil Avanzado a través de Operador Móvil Virtual",300,750,0,750]
["ARCOTEL-017-04-05","Notificación de cambio de Razón Social para el Servicio Portador para personas jurídicas de derecho privado y empresas públicas",300,750,0,750]
["ARCOTEL-031-04-02","Notificación de cambio de Representante Legal para el Servicio de Telefonía Fija",300,750,0,750]
["ARCOTEL-020-06-03","Notificación de cambio de Representante Legal, actualización de información de contacto y cambio de domicilio para el Servicio Comunal, Servicio Troncalizado y Transporte Internacional Modalidad Provisión Segmento Especial",80,200,0,200]
["ARCOTEL-015-04-05","Notificación de cambio de Representante Legal, actualización de información de contacto y cambio de domicilio para el Servicio de Telecomunicaciones Móviles por Satélite",300,750,0,750]
["ARCOTEL-025-04-05","Notificación de cambio de Representante Legal, actualización de información de contacto y cambio de domicilio para el Servicio Móvil Avanzado a través de Operador Móvil Virtual",300,750,0,750]
["ARCOTEL-018-04-05","Notificación de cambio de Representante Legal, actualización de información de contacto y cambio de domicilio para el Servicio Móvil Avanzado para personas jurídicas de derecho privado y empresas públicas",300,750,0,750]
["ARCOTEL-017-04-04","Notificación de cambio de Representante Legal, actualización de información de contacto y cambio de domicilio para el Servicio Portador para personas jurídicas de derecho privado y empresas públicas",300,750,0,750]
["ARCOTEL-030-04-10","Notificación de cambio y/o actualización de equipos que no impliquen modificación de características autorizadas para un Sistema de Audio y Video por Suscripción",6,15,0,15]
["ARCOTEL-027-04-07","Notificación de cumplimiento de Georreferenciación para el Servicio de Valor Agregado",10,25,0,25]
["ARCOTEL-026-02-02","Notificación de extinción de la persona jurídica o muerte de la persona natural inscrita como proveedores de infraestructura física",300,750,0,750]
["ARCOTEL-030-04-07","Notificación de incremento o decremento de canales locales para guía de programación para un Sistema de Audio y Video por Suscripción",8,20,0,20]
["ARCOTEL-030-04-06","Notificación de incremento o decremento del número de canales de servicios de valor agregado (PPV, VoD, etc.) para un Sistema de Audio y Video por Suscripción",8,20,0,20]
["ARCOTEL-028-04-05","Notificación de la Declaración de Prácticas de Certificación de una Entidad de Certificación de Información y Servicios Relacionados Acreditados",10,25,0,25]
["ARCOTEL-014-04-02","Notificación de modificación de capital para el Servicio de Acceso a Internet para personas jurídicas de derecho privado",300,750,0,750]
["ARCOTEL-015-04-01","Notificación de modificación de capital para el Servicio de Telecomunicaciones Móviles por Satélite",300,750,0,750]
["ARCOTEL-031-04-04","Notificación de modificación de capital para el Servicio de Telefonía Fija",300,750,0,750]
["ARCOTEL-032-04-04","Notificación de modificación de Capital para el Servicio de Transporte Internacional modalidad Cable Submarino",300,750,0,750]
["ARCOTEL-027-04-02","Notificación de modificación de capital para el Servicio de Valor Agregado para personas jurídicas de derecho privado y empresas públicas o instituciones del sector público",300,750,0,750]
["ARCOTEL-025-04-02","Notificación de modificación de capital para el Servicio Móvil Avanzado a través de Operador Móvil Virtual",300,750,0,750]
["ARCOTEL-018-04-02","Notificación de modificación de capital para el Servicio Móvil Avanzado para personas jurídicas de derecho privado",300,750,0,750]
["ARCOTEL-017-04-02","Notificación de modificación de capital para el Servicio Portador para personas jurídicas de derecho privado",300,750,0,750]
["ARCOTEL-014-04-03","Notificación de modificación de Estatutos para el Servicio de Acceso a Internet para personas jurídicas de derecho privado y empresas públicas",300,750,0,750]
["ARCOTEL-015-04-02","Notificación de modificación de Estatutos para el Servicio de Telecomunicaciones Móviles por Satélite",300,750,0,750]
["ARCOTEL-031-04-05","Notificación de modificación de Estatutos para el Servicio de Telefonía Fija",300,750,0,750]
["ARCOTEL-032-04-05","Notificación de modificación de Estatutos para el Servicio de Transporte Internacional modalidad Cable Submarino",300,750,0,750]
["ARCOTEL-027-04-03","Notificación de modificación de Estatutos para el Servicio de Valor Agregado para personas jurídicas de derecho privado y empresas públicas o instituciones del sector público",300,750,0,750]
["ARCOTEL-025-04-03","Notificación de modificación de Estatutos para el Servicio Móvil Avanzado a través de Operador Móvil Virtual",300,750,0,750]
["ARCOTEL-018-04-03","Notificación de modificación de Estatutos para el Servicio Móvil Avanzado para personas jurídicas de derecho privado y empresas públicas",300,750,0,750]
["ARCOTEL-017-04-03","Notificación de modificación de Estatutos para el Servicio Portador para personas jurídicas de derecho privado y empresas públicas",300,750,0,750]
["ARCOTEL-018-04-01","Notificación de modificaciones técnicas y administrativas para el Servicio Móvil Avanzado",240,600,0,600]
["ARCOTEL-025-04-01","Notificación de modificaciones técnicas y administrativas para el Servicio Móvil Avanzado a través de Operador Móvil Virtual",240,600,0,600]
["ARCOTEL-016-05-02","Notificación de muerte del titular del Título Habilitante de Red Privada y Uso de Frecuencias de Telecomunicaciones",104,260,0,260]
["ARCOTEL-028-05-02","Notificación de muerte del titular del Título Habilitante de una Entidad de Certificación de Información y Servicios Relacionados Acreditados para personas naturales o jurídicas de derecho privado",240,600,0,600]
["ARCOTEL-020-07-02","Notificación de muerte del titular del Título Habilitante para el Servicio Comunal y Troncalizado",40,100,0,100]
["ARCOTEL-014-05-02","Notificación de muerte del titular del Título Habilitante para el Servicio de Acceso a Internet para personas naturales",240,600,0,600]
["ARCOTEL-030-05-02","Notificación de muerte del titular del Título Habilitante para el Servicio de Audio y Video por Susucripción para personas naturales o jurídicas de derecho privado",700,1750,0,1750]
["ARCOTEL-015-05-02","Notificación de muerte del titular del Título Habilitante para el Servicio de Telecomunicaciones Móviles por Satélite para personas naturales",300,750,0,750]
["ARCOTEL-032-05-02","Notificación de muerte del titular del Título Habilitante para el Servicio de Transporte Internacional modalidad Cable Submarino para personas naturales",300,750,0,750]
["ARCOTEL-027-05-02","Notificación de muerte del titular del Título Habilitante para el Servicio de Valor Agregado para personas naturales o jurídicas de derecho privado",300,750,0,750]
["ARCOTEL-017-05-02","Notificación de muerte del titular del Título Habilitante para el Servicio Portador para personas naturales",300,750,0,750]
["ARCOTEL-025-04-09","Notificación de reportes contractuales, legales y reglamentarios del Servicio Móvil Avanzado a través de Operador Móvil Virtual",240,600,0,600]
["ARCOTEL-020-06-06","Notificación de Transferencia o Cesión de acciones que no impliquen cambio de control para el Servicio Comunal, Servicio Troncalizado y Transporte Internacional Modalidad Provisión Segmento Especial",40,100,0,100]
["ARCOTEL-014-04-01","Notificación de transferencia o cesión de acciones que no impliquen cambio de control para el Servicio de Acceso a Internet para personas jurídicas de derecho privado",300,750,0,750]
["ARCOTEL-027-04-01","Notificación de transferencia o cesión de acciones que no impliquen cambio de control para el Servicio de Valor Agregado para personas jurídicas de derecho privado y empresas públicas o instituciones del sector público",300,750,0,750]
["ARCOTEL-017-04-01","Notificación de transferencia o cesión de acciones que no impliquen cambio de control para el Servicio Portador para personas jurídicas de derecho privado",300,750,0,750]
["ARCOTEL-031-04-10","Notificación del Plan Técnico Fundamental de Sincronismo para el Servicio de Telefonía Fija",160,400,0,400]
["ARCOTEL-031-04-09","Notificación del Plan Técnico Fundamental de Transmisión para el Servicio de Telefonía Fija",160,{"$f":"C135*$I$4/160","v":400},0,{"$f":"D135+E136","v":400}]
["ARCOTEL-037-01-01","Otorgamiento de título habilitante de frecuencias asociadas a la prestación de Servicios de Telecomunicaciones",397,992.5,0,992.5]
["ARCOTEL-014-01-03","Otorgamiento del Título Habilitante para el Servicio de Acceso a Internet para empresas públicas",10,25,0,25]
["ARCOTEL-015-01-03","Otorgamiento del Título Habilitante para el Servicio de Telecomunicaciones Móviles por Satélite y Concesión de Frecuencias para empresas públicas",280,700,0,700]
["ARCOTEL-015-01-02","Otorgamiento del Título Habilitante para el Servicio de Telecomunicaciones Móviles por Satélite y Concesión de Frecuencias para personas jurídicas de derecho privado",280,700,0,700]
["ARCOTEL-015-01-01","Otorgamiento del Título Habilitante para el Servicio de Telecomunicaciones Móviles por Satélite y Concesión de Frecuencias para personas naturales",280,700,0,700]
["ARCOTEL-031-01-01","Otorgamiento del Título Habilitante para el Servicio de Telefonía Fija para empresas públicas o instituciones del sector público",568,1420,0,1420]
["ARCOTEL-032-01-01","Otorgamiento del Título Habilitante para el Servicio de Transporte Internacional modalidad Cable Submarino para empresas públicas o instituciones del sector público",280,700,0,700]
["ARCOTEL-032-01-02","Otorgamiento del Título Habilitante para el Servicio de Transporte Internacional modalidad Cable Submarino para personas naturales o jurídicas de derecho privado",280,700,0,700]
["ARCOTEL-027-01-03","Otorgamiento del Título Habilitante para el Servicio de Valor Agregado para empresas públicas",10,25,0,25]
["ARCOTEL-027-01-01","Otorgamiento del Título Habilitante para el Servicio de Valor Agregado para personas naturales",10,25,0,25]
["ARCOTEL-025-01-02","Otorgamiento del Título Habilitante para el Servicio Móvil Avanzado a través de OMV para personas jurídicas de derecho privado, empresas de la economía mixta donde el Estado tenga mayoría accionaria y Empresas Economía Popular y Solidaria",568,1420,0,1420]
["ARCOTEL-025-01-01","Otorgamiento del Título Habilitante para el Servicio Móvil Avanzado a través de Operador Móvil Virtual para empresas públicas",568,1420,0,1420]
["ARCOTEL-018-01-01","Otorgamiento del Título Habilitante para el Servicio Móvil Avanzado para empresas públicas",568,1420,0,1420]
["ARCOTEL-018-01-02","Otorgamiento del Título Habilitante para el Servicio Móvil Avanzado para personas jurídicas de derecho privado",568,1420,0,1420]
["ARCOTEL-017-01-03","Otorgamiento del Título Habilitante para el Servicio Portador para empresas públicas",10,25,0,25]
["ARCOTEL-017-01-01","Otorgamiento del Título Habilitante para el Servicio Portador para personas naturales",10,25,0,25]
["ARCOTEL-030-01-03","Otorgamiento del Título Habilitante para un Sistema de Audio y Video por Suscripción bajo las modalidades de Cable Físico o Televisión Codificada Satelital para empresas públicas o instituciones del sector público.",640,1600,0,1600]
["ARCOTEL-028-01-02","Otorgamiento del Título Habilitante para una Entidad de Certificación de Información y Servicios Relacionados Acreditados para empresas públicas o instituciones del sector público",10,25,0,25]
["ARCOTEL-028-01-01","Otorgamiento del Título Habilitante para una Entidad de Certificación de Información y Servicios Relacionados Acreditados para personas jurídicas de derecho privado",10,25,0,25]
["ARCOTEL-031-01-02","Otorgamiento del Título Habilitante Servicio de Telefonía Fija para personas jurídicas de derecho privado, empresas de la economía mixta donde el Estado tenga mayoría accionaria y empresas de la economía popular y solidaria",568,1420,0,1420]
["ARCOTEL-023-01-04","Otorgamiento y Renovación de la Licencia para el Servicio de Radioaficionados Internacional y de transito",52,130,0,130]
["ARCOTEL-030-04-12","Registro de Canales Codificados para un Sistema de Audio y Video por Suscripción",5,12.5,0,12.5]
["ARCOTEL-032-04-01","Registro de Contrato de Adhesión o Reventa para el Servicio de Transporte Internacional modalidad Cable Submarino",600,1500,0,1500]
["ARCOTEL-027-03-07","Registro de Contrato de Adhesión o Reventa para el Servicio de Valor Agregado",300,750,0,750]
["ARCOTEL-015-04-07","Registro de Contrato de Adhesión para el Servicio de Telecomunicaciones Móviles por Satélite",600,1500,0,1500]
["ARCOTEL-025-04-07","Registro de Contrato de Adhesión para el Servicio Móvil Avanzado a través de Operador Móvil Virtual",600,1500,0,1500]
["ARCOTEL-015-04-08","Registro de Contrato de Reventa para el Servicio de Telecomunicaciones Móviles por Satélite",600,1500,0,1500]
["ARCOTEL-025-04-08","Registro de Contrato de Reventa para el Servicio Móvil Avanzado a través de Operador Móvil Virtual",600,1500,0,1500]
["ARCOTEL-030-04-13","Registro de Proveedores de Programación Internacional para un Sistema de Audio y Video por Suscripción",3,7.5,0,7.5]
["ARCOTEL-014-02-03","Renovación del Título Habilitante para el Servicio de Acceso a Internet para empresas públicas",10,25,0,25]
["ARCOTEL-014-02-01","Renovación del Título Habilitante para el Servicio de Acceso a Internet para personas naturales",10,25,0,25]
["ARCOTEL-015-02-03","Renovación del Título Habilitante para el Servicio de Telecomunicaciones Móviles por Satélite y Concesión de Frecuencias para empresas públicas",680,1700,0,1700]
["ARCOTEL-015-02-02","Renovación del Título Habilitante para el Servicio de Telecomunicaciones Móviles por Satélite y Concesión de Frecuencias para personas jurídicas de derecho privado",680,1700,0,1700]
["ARCOTEL-015-02-01","Renovación del Título Habilitante para el Servicio de Telecomunicaciones Móviles por Satélite y Concesión de Frecuencias para personas naturales",680,1700,0,1700]
["ARCOTEL-031-02-01","Renovación del Título Habilitante para el Servicio de Telefonía Fija para empresas públicas o instituciones del sector público",876,2190,0,2190]
["ARCOTEL-031-02-02","Renovación del Título Habilitante para el Servicio de Telefonía Fija para personas jurídicas de derecho privado, empresas de la economía mixta donde el Estado tenga mayoría accionaria y empresas de la economía popular y solidaria",1460,3650,0,3650]
["ARCOTEL-032-02-01","Renovación del Título Habilitante para el Servicio de Transporte Internacional modalidad Cable Submarino para empresas públicas o instituciones del sector público",680,1700,0,1700]
["ARCOTEL-032-02-02","Renovación del Título Habilitante para el Servicio de Transporte Internacional modalidad Cable Submarino para personas naturales o jurídicas de derecho privado",680,1700,0,1700]
["ARCOTEL-027-02-03","Renovación del Título Habilitante para el Servicio de Valor Agregado para empresas públicas",10,25,0,25]
["ARCOTEL-027-02-02","Renovación del Título Habilitante para el Servicio de Valor Agregado para personas jurídicas de derecho privado",10,25,0,25]
["ARCOTEL-027-02-01","Renovación del Título Habilitante para el Servicio de Valor Agregado para personas naturales",10,25,0,25]
["ARCOTEL-025-02-02","Renovación del Título Habilitante para el Servicio Móvil Avanzado a través de OMV para personas jurídicas de derecho privado, empresas de la economía mixta donde el Estado tenga mayoría accionaria y Empresas de la Economía Popular y Solidaria",1460,3650,0,3650]
["ARCOTEL-025-02-01","Renovación del Título Habilitante para el Servicio Móvil Avanzado a través de Operador Móvil Virtual para empresas públicas",8760,21900,0,21900]
["ARCOTEL-018-02-01","Renovación del Título Habilitante para el Servicio Móvil Avanzado para empresas públicas",876,2190,0,2190]
["ARCOTEL-018-02-02","Renovación del Título Habilitante para el Servicio Móvil Avanzado para personas jurídicas de derecho privado",1460,3650,0,3650]
["ARCOTEL-017-02-03","Renovación del Título Habilitante para el Servicio Portador para empresas públicas",10,25,0,25]
["ARCOTEL-017-02-01","Renovación del Título Habilitante para el Servicio Portador para personas naturales",10,25,0,25]
["ARCOTEL-028-02-02","Renovación del Título Habilitante para una Entidad de Certificación de Información y Servicios Relacionados Acreditados para empresas públicas o instituciones del sector público",10,25,0,25]
["ARCOTEL-030-02-01","Renovación Título Habilitante para un Sistema de Audio y Video por Suscripción bajo modalidades de Cable Físico o TV Codificada Satelital, personas naturales, personas jurídicas de derecho priv, inst del sector público o em públicas",960,2400,0,2400]
["ARCOTEL-024-03-13","Solicitud de continuación de uso de los derechos del título habilitante por fallecimiento de la persona natural concesionaria de una frecuencia de Radiodifusión Sonora y de Televisión de Señal Abierta",40,100,0,102]
["ARCOTEL-006-01-03","Solicitud de credenciales para ensambladores de terminales de servicio móvil avanzado",16,40,2,40]
["ARCOTEL-028-05-03","Solicitud de extinción del Título Habilitante de una Entidad de Certificación de Información y Servicios Relacionados Acreditados por concepto de declaración de disolución, quiebra o liquidación para personas jurídicas de derecho privado",240,600,0,600]
["ARCOTEL-027-05-03","Solicitud de extinción del Título Habilitante para el Servicio de Valor Agregado por concepto de declaración de disolución, quiebra o liquidación para personas jurídicas de derecho privado",300,750,0,752]
["ARCOTEL-005-01-02","Solicitud de licencias no automáticas de importación de decodificadores para provisión de receptores de abonado y/o receptores de prestador de servicio para sistemas de audio y video por suscripción o tv abierta -para venta a un prestador",16,40,2,40]
["ARCOTEL-010-02-01","Solicitud de Renovación Temporal de Frecuencias para Radiodifusión Sonora y TV de Señal Abierta",200,500,0,500]
["ARCOTEL-024-05-03","Terminación del Título Habilitante para el Servicio de Radiodifusión Sonora y de Televisión de Señal Abierta por la causal de extinción de la persona jurídica",192,480,0,480]
["ARCOTEL-024-05-05","Terminación del Título Habilitante para el Servicio de Radiodifusión Sonora y de Televisión de Señal Abierta por pérdida de la capacidad civil del concesionario o disolución de la sociedad concesionaria",192,480,0,575.89]
["ARCOTEL-036-01-02","Asesoría para el tratamiento de incidentes y vulnerabilidades informáticas a usuarios de redes de telecomunicaciones",6,15,95.89,15]
["ARCOTEL-016-03-04","Autorización de incremento, modificación y cancelación de enlaces físicos para una Red Privada de Telecomunicaciones",144,360,0,360]
["ARCOTEL-016-03-02","Autorización de modificación de parámetros técnicos para enlaces terrestres y satelitales asociados a una Red Privada de Telecomunicaciones",72,180,0,180]
["ARCOTEL-018-03-01","Autorización de modificaciones técnicas y administrativas para el Servicio Móvil Avanzado",240,600,0,600]
["ARCOTEL-018-03-06","Autorización de prórrogas para el Servicio Móvil Avanzado",300,750,0,750]
["ARCOTEL-016-05-03","Extinción del Título Habilitante de Red Privada y Uso de Frecuencias de Telecomunicaciones por declaración anticipada y unilateral debidamente motivada",0,0,0,0]
["ARCOTEL-018-04-11","Notificación de asignación y liberación de número social público del Servicio Móvil Avanzado",160,{"$f":"C199*$I$4/160","v":400},0,{"$f":"D199+E200","v":400}]
["ARCOTEL-018-04-10","Notificación de asignación y liberación de recurso numérico no geográfico del Servicio Móvil Avanzado",160,400,0,400]
["ARCOTEL-027-04-04","Notificación de cambio de Representante Legal para el Servicio de Valor Agregado para personas jurídicas de derecho privado y empresas públicas o instituciones del sector público",300,750,0,750]
["ARCOTEL-027-01-02","Otorgamiento del Título Habilitante para el Servicio de Valor Agregado para personas jurídicas de derecho privado",10,25,0,25]
["ARCOTEL-017-01-02","Otorgamiento del Título Habilitante para el Servicio Portador para personas jurídicas de derecho privado",10,25,0,25]
["ARCOTEL-017-02-02","Renovación del Título Habilitante para el Servicio Portador para personas jurídicas de derecho privado",10,25,0,25]
["ARCOTEL-028-02-01","Renovación del Título Habilitante para una Entidad de Certificación de Información y Servicios Relacionados Acreditados para personas jurídicas de derecho privado",10,25,0,25]
["ARCOTEL-020-03-07","Autorización de incremento, modificación y cancelación de satélites para el Servicio de Transporte Internacional Modalidad Provisión Segmento Especial",48,120,0,120]
["ARCOTEL-016-03-09","Autorización de transferencia o cesión del Título Habilitante de Red Privada y Uso de Frecuencias de Telecomunicaciones",40,100,0,100]
["ARCOTEL-024-05-01","Devolución voluntaria o por acuerdo mutuo del Título Habilitante para el Servicio de Radiodifusión Sonora y de Televisión de Señal Abierta",384,960,0,960]
["ARCOTEL-018-04-12","Notificación de asignación y liberación de recurso de señalización del Servicio Móvil Avanzado",160,400,0,400]
["ARCOTEL-014-04-04","Notificación de cambio de Representante Legal, actualización de información de contacto y cambio de domicilio para el Servicio de Acceso a Internet para personas jurídicas de derecho privado y empresas públicas",300,750,0,750]
["ARCOTEL-024-01-02","Otorgamiento del Título Habilitante para el Servicio de Radiodifusión Sonora y Televisión por Señal Abierta para Medios Privados y Comunitarios (Concurso Público)",0,0,0,0]
["ARCOTEL-016-01-01","Otorgamiento y Renovación del Título Habilitante de Operación de Red Privada y Uso de Frecuencias para enlaces terrestres y satelitales",421,1052.5,0,1052.5]
["ARCOTEL-017-04-06","Registro de Contrato de Adhesión o Reventa para el Servicio Portador",600,1500,0,1500]
["ARCOTEL-018-04-07","Registro de Contrato de Adhesión para el Servicio Móvil Avanzado",600,1500,0,1500]
["ARCOTEL-018-04-08","Registro de Contrato de Reventa para el Servicio Móvil Avanzado",600,1500,0,1502]
["ARCOTEL-005-01-04","Solicitud de licencias no automáticas de importación de decodificadores para personas naturales o jurídicas cuya actividad comercial o objeto social sea la prestación de servicios en general de mantenimiento",16,40,2,42]
["ARCOTEL-005-01-03","Solicitud de licencias no automáticas de importación de decodificadores para provisión de receptores de abonado y/o receptores de prestador de servicio para sistemas de audio y video por suscripción o tv abierta -para mantenerlos en perchas",16,40,2,40]
["ARCOTEL-030-03-02","Autorización de operación de canales locales para programación propia para un Sistema de Audio y Video por Suscripción",240,600,0,600]
["ARCOTEL-016-04-05","Notificación de cambio de Razón Social para el Título Habilitante de Red Privada y Uso de Frecuencias de Telecomunicaciones",456,1140,0,1140]
["ARCOTEL-030-04-02","Notificación de modificación de estatutos y cambios de socios o accionistas para un Sistema de Audio y Video por Suscripción",11,27.5,0,27.5]
["ARCOTEL-030-04-04","Notificación de modificación de redes con o sin cambio de tecnología para un Sistema de Audio y Video por Suscripción",8,20,0,20]
["ARCOTEL-030-04-01","Notificación de reubicación de la cabecera (head end) para un Sistema de Audio y Video por Suscripción",10,25,0,25]
["ARCOTEL-031-04-01","Registro de Contrato de Adhesión o Reventa para el Servicio de Telefonía Fija",600,1500,0,1500]
["ARCOTEL-014-02-02","Renovación del Título Habilitante para el Servicio de Acceso a Internet para personas jurídicas de derecho privado",10,25,0,43.260000000000005]
["ARCOTEL-036-01-01","Reporte de incidentes informáticos en redes de telecomunicaciones",8,20,18.260000000000002,22]
["ARCOTEL-005-01-05","Solicitud de licencias no automáticas de importación de decodificadores para fines sociales, académicos, seguridad y salud o de interés general, y para importar muestras de equipos decodificadores",16,40,2,42]
["ARCOTEL-007-01-01","Bloqueo de equipos terminales robados, perdidos o hurtados que no hayan sido utilizados en las redes de los prestadores del servicio móvil avanzado.",16,40,2,40]
["ARCOTEL-014-05-01","Devolución voluntaria o por acuerdo mutuo del Título Habilitante para el Servicio de Acceso a Internet",480,1200,0,1200]
["ARCOTEL-027-03-06","Autorización de adquisición de acciones o participaciones de empresas para el Servicio de Valor Agregado",300,750,0,750]
["ARCOTEL-010-01-01","Autorización Temporal de Frecuencias para Radiodifusión Sonora y TV de Señal Abierta",240,600,0,600]
["ARCOTEL-030-04-08","Notificación de actualización de coordenadas geográficas de sitios previamente autorizados para un Sistema de Audio y Video por Suscripción",8,20,0,20]
["ARCOTEL-030-03-01","Autorización de ampliación de cobertura para un Sistema de Audio y Video por Suscripción",240,600,0,600]
["ARCOTEL-030-01-01","Otorgamiento del Título Habilitante para un Sistema de Audio y Video por Suscripción bajo las modalidades de Cable Físico o Televisión Codificada Satelital para personas naturales",640,1600,0,1600]
["ARCOTEL-024-02-01","Renovación del Título Habilitante para el Servicio de Radiodifusión Sonora y Televisión por Señal Abierta para Personas Jurídicas de Derecho Público (Adjudicación Directa) y/o Medios Privados y Comunitarios",960,2400,0,2400]
["ARCOTEL-024-03-12","Autorización de cambio de Razón social o denominación objetiva para el Servicio de Radiodifusión Sonora y Televisión por Señal Abierta",227.2,568,0,568]
["ARCOTEL-016-03-11","Autorización de prórroga para instalación e inicio de operaciones para el Título Habilitante de Operación de Red Privada y Uso de Frecuencias de Telecomunicaciones",2,5,0,5]
["ARCOTEL-016-04-04","Notificación de cambio de Representante Legal, actualización de información de contacto y cambio de domicilio para una Red Privada de Telecomunicaciones",80,200,0,200]
["ARCOTEL-030-01-02","Otorgamiento del Título Habilitante para un Sistema de Audio y Video por Suscripción bajo las modalidades de Cable Físico o Televisión Codificada Satelital para personas jurídicas de derecho privado.",640,1600,0,1618.26]
["ARCOTEL-035-01-01","Reporte de vulnerabilidades informáticas en redes de telecomunicaciones",8,20,18.260000000000002,20]
["ARCOTEL-016-03-01","Autorización de incremento de frecuencias para enlaces terrestres y satelitales asociadas a una Red Privada de Telecomunicaciones",89.36,223.4,0,223.4]
["ARCOTEL-016-05-01","Devolución voluntaria o por acuerdo mutuo del Título Habilitante de Red Privada y Uso de Frecuencias de Telecomunicaciones",331.2,828,0,828]
["ARCOTEL-026-01-01","Inscripción de Proveedores de Infraestructura física",160,400,0,400]
["ARCOTEL-030-03-04","Autorización de prórroga para inicio de operaciones para un Sistema de Audio y Video por Suscripción",40,100,0,100]
["ARCOTEL-003-01-02 ","Certificación de obligaciones económicas, área de cobertura y/o derechos de concesión de servicios de telecomunicaciones solicitada por terceros autorizados por los poseedores de títulos habilitantes",0,0,0,0]
["ARCOTEL-030-05-01","Devolución voluntaria o por acuerdo mutuo del Título Habilitante para el Servicio de Audio y Video por Susucripción",700,1750,0,1750]
["ARCOTEL-009-01-01","Solicitud de medición de radiaciones no ionizantes por parte de la ciudadanía",20,50,0,50]
["ARCOTEL-009-03-01","Solicitud de verificación de inicio de operación de sistemas de radiodifusión y televisión abierta",20,50,0,50]
["ARCOTEL-023-03-01","Autorización de modificaciones para el Servicio de Radioaficionados y Banda Ciudadana",52,130,0,130]
["ARCOTEL-016-03-10","Autorización de cancelación parcial de frecuencias para Troncalizado y Radio de Dos Vías (móvil terrestre, aeronáutico y marítimo) asociado a una Red Privada de Telecomunicaciones",96,240,0,240]
["ARCOTEL-030-04-11","Registro de Contrato de Adhesión o Reventa para un Sistema de Audio y Video por Suscripción",8,20,0,20]
["ARCOTEL-020-01-01","Otorgamiento y Renovación del Título Habilitante para el Servicio Comunal, Servicio Troncalizado, Servicio Transporte Internacional Modalidad Segmento Espacial",899.84,2249.6,0,2249.6]
["ARCOTEL-030-04-05","Notificación de incremento y/o decremento del número de canales para un Sistema de Audio y Video por Suscripción que no involucran autorizaciones de nuevas frecuencias",8,20,0,20]
["ARCOTEL-020-03-06","Autorización de cancelación de frecuencias para el Servicio Comunal y Servicio Troncalizado",40,100,0,100]
["ARCOTEL-024-03-14","Autorización de Modificaciones Administrativas para el Servicio de Radiodifusión Sonora y Televisión por Señal Abierta",182,455,0,455]
["ARCOTEL-014-03-06","Autorización de prórroga para inicio de operaciones para el Servicio de Acceso a Internet",50,125,0,125]
["ARCOTEL-024-01-01","Otorgamiento del Título Habilitante para el Servicio de Radiodifusión Sonora y Televisión por Señal Abierta para Personas Jurídicas de Derecho Público (Adjudicación Directa)",360,900,0,900]
["ARCOTEL-014-04-06","Registro de Contrato de Adhesión o Reventa para el Servicio de Acceso a Internet",10,25,0,25]
["ARCOTEL-015-04-04","Notificación de reportes contractuales y en cumplimiento al ordenamiento jurídico vigente para el Servicio de Telecomunicaciones Móviles por Satélite",240,600,0,600]
["ARCOTEL-028-03-01","Registro de tercero vinculado para una Entidad de Certificación de Información y Servicios Relacionados Acreditados",120,300,0,300]
["ARCOTEL-014-01-02","Otorgamiento del Título Habilitante para el Servicio de Acceso a Internet para personas jurídicas de derecho privado",8,20,0,20]
["ARCOTEL-020-03-01","Autorización de incremento de frecuencias para el Servicio Comunal y Servicio Troncalizado",68.08,170.2,0,170.2]
["ARCOTEL-030-04-03","Notificación de actualización de la programación y/o antenas de recepción para un Sistema de Audio y Video por Suscripción",8,20,0,20]
["ARCOTEL-028-04-04","Notificación de facturación total del mes por una Entidad de Certificación de Información y Servicios Relacionados Acreditados",10,{"$f":"C263*$I$4/160","v":25},0,{"$f":"D263+E264","v":25}]
["ARCOTEL-031-04-06","Notificación de modificación, instalación o ampliación de infraestructura para el Servicio de Telefonía Fija",240,600,0,600]
["ARCOTEL-016-03-06","Autorización de modificación de parámetros técnicos para Troncalizado y Radio de Dos Vías (móvil terrestre, aeronáutico y marítimo) asociados a una Red Privada de Telecomunicaciones",118,295,0,295]
["ARCOTEL-028-04-02","Notificación de número de certificados emitidos y revocados en el mes por una Entidad de Certificación de Información y Servicios Relacionados Acreditados",10,25,0,25]
["ARCOTEL-028-04-01","Notificación de número de solicitudes de servicio y trámite atendidos por una Entidad de Certificación de Información y Servicios Relacionados Acreditados",10,25,0,25]
["ARCOTEL-028-04-03","Notificación de números de usuarios de servicios relacionados con la firma digital por una Entidad de Certificación de Información y Servicios Relacionados Acreditados",10,25,0,25]
["ARCOTEL-002-01-01","Solicitud de estudios o información estadística del sector de las telecomunicaciones",2,5,0,5]
["ARCOTEL-016-03-05","Autorización de incremento de frecuencias para Troncalizado y Radio de Dos Vías (móvil terrestre, aeronáutico y marítimo) asociadas a una Red Privada de Telecomunicaciones",101.6,254,0,254]
["ARCOTEL-020-03-02","Autorización de modificaciones técnicas para el Servicio Comunal y Servicio Troncalizado",62.16,155.4,0,157.4]
["ARCOTEL-005-01-01","Solicitud de licencias no automáticas de importación de decodificadores para poseedores de títulos habilitantes de telecomunicaciones o radiodifusión y/o receptores para usuarios de televisión digital terrestre abierta",16,40,2,40]
["ARCOTEL-037-02-02","Autorización de cancelación de enlaces terrestres y satelitales para la prestación de Servicios de Telecomunicaciones",34,85,0,85]
["ARCOTEL-023-01-01","Otorgamiento y Renovación de la Licencia para el Servicio de Radioaficionados y Banda Ciudadana",56,140,0,140]
["ARCOTEL-016-01-02","Otorgamiento y Renovación del Título Habilitante de Operación de Red Privada y Uso de Frecuencias para Troncalizado y Radio de Dos Vías (móvil terrestre, aeronáutico y marítimo)",262.8,657,0,657]
["ARCOTEL-014-01-01","Otorgamiento del Título Habilitante para el Servicio de Acceso a Internet para personas naturales",10,25,0,25]
["ARCOTEL-014-03-01","Autorización de modificaciones técnicas de red física para el Servicio de Acceso a Internet",10,25,0,25]
["ARCOTEL-019-01-01","Otorgamiento y Renovación de Frecuencias Temporales de Telecomunicaciones",51.52,128.80000000000001,0,128.80000000000001]
["ARCOTEL-018-04-09","Notificación de reportes contractuales, legales y reglamentarios del Servicio Móvil Avanzado",240,600,0,600]
["ARCOTEL-017-04-07","Notificación de cumplimiento de Georreferenciación para el Servicio Portador",10,25,0,27]
["ARCOTEL-003-01-03","Certificación de infracciones y sanciones emitidas por ARCOTEL",24,60,2,60]
["ARCOTEL-009-04-01","Solicitud de suspensión de emisiones de sistemas de radiodifusión y televisión de señal abierta",8,20,0,22]
["ARCOTEL-006-01-01","Solicitud de credenciales para importadores (personas jurídicas) de terminales de servicio móvil avanzado",16,40,2,40]
["ARCOTEL-033-01-01","Otorgamiento del Certificado de Inscripción en el Registro Público de Telecomunicaciones de Centros de Acceso a la Información a través de Internet (Cibercafés)",10,25,0,25]
["ARCOTEL-037-02-05","Autorización de incremento, modificación y cancelación de Radiobases para el Servicio Móvil Avanzado",70,175,0,175]
["ARCOTEL-009-02-01","Solicitud de concesionarios del espectro radioeléctrico para solución de interferencias",50,125,0,125]
["ARCOTEL-014-04-07","Notificación de cumplimiento de Georreferenciación para el Servicio de Acceso a Internet",10,25,0,25]
["ARCOTEL-024-04-01","Notificación de Modificaciones Técnicas para el Servicio de Radiodifusión Sonora y Televisión por Señal Abierta",140,350,0,350]
["ARCOTEL-017-03-01","Autorización de modificaciones técnicas para red física para el Servicio Portador",10,25,0,25]
["ARCOTEL-024-03-01","Autorización de Modificaciones Técnicas para el Servicio de Radiodifusión Sonora y Televisión por Señal Abierta",160,400,0,400]
["ARCOTEL-037-02-01","Autorización de incremento de enlaces terrestres y satelitales para la prestación de Servicios de Telecomunicaciones",77,192.5,0,194.5]
["ARCOTEL-006-01-02","Solicitud de credenciales para importadores (persona natural) de terminales de servicio móvil avanzado",16,40,2,40]
["ARCOTEL-037-02-03","Autorización de modificaciones técnicas de enlaces terrestres y satelitales para Servicios de Telecomunicaciones",79,197.5,0,197.5]
["ARCOTEL-031-04-07","Notificación de reserva, asignación y liberación de recurso numérico geográfico para el Servicio de Telefonía Fija.",160,400,0,401]
["ARCOTEL-001-01-01","Solicitud de información pública",2,5,1,6]
["ARCOTEL-003-01-01","Certificación de obligaciones económicas, área de cobertura y/o derechos de concesión de servicios de telecomunicaciones solicitada por los poseedores de títulos habilitantes",16,40,1,42]
["ARCOTEL-004-01-01","Solicitud de homologación de equipos terminales de telecomunicaciones",104,260,2,260]
["ARCOTEL-012-01-01","Presentación de reclamos, denuncias, sugerencias o solicitudes de información de los servicios de telecomunicaciones",1.6,4,0,4]

{"sheet":"RESUMEN DE COSTOS AP","index":4,"n_rows":297,"n_cols":4,"rows_kept":297,"cut":false,"hidden":false,"merged":[[0,0,0,5],[1,0,1,5]]}
["PRIORIZACIÓN DE TRÁMITES ADMINISTRATIVOS"]
["COSTOS PARA LA ADMINISTRACIÓN PÚBLICA"]
[]
["IDENTIFICADOR","TRÁMITE","COSTO PARA LA ADM. PÚBLICA","PUNTUACIÓN"]
["ARCOTEL-032-03-05","Autorización de cambios en el área de registro/permiso, servicios, etc. que implica cambio de control para el Servicio de Transporte Internacional modalidad Cable Submarino",0,0]
["ARCOTEL-036-01-02","Asesoría para el tratamiento de incidentes y vulnerabilidades informáticas a usuarios de redes de telecomunicaciones",15,5]
["ARCOTEL-035-02-01","Asesoría para la formación de Equipos de Respuesta a Incidentes de Seguridad Informática (CSIRT)",20,5]
["ARCOTEL-020-03-03","Autorización de cambios de Control para el Servicio Comunal, Servicio Troncalizado, Transporte Internacional Modalidad Provisión de Segmento Espacial",80,5]
["ARCOTEL-016-03-03","Autorización de cancelación de enlaces terrestres y satelitales asociado a una Red Privada de Telecomunicaciones",100,5]
["ARCOTEL-037-02-02","Autorización de cancelación de enlaces terrestres y satelitales para la prestación de Servicios de Telecomunicaciones",85,5]
["ARCOTEL-020-03-06","Autorización de cancelación de frecuencias para el Servicio Comunal y Servicio Troncalizado",100,5]
["ARCOTEL-020-03-07","Autorización de incremento, modificación y cancelación de satélites para el Servicio de Transporte Internacional Modalidad Provisión Segmento Especial",120,5]
["ARCOTEL-023-03-01","Autorización de modificaciones para el Servicio de Radioaficionados y Banda Ciudadana",130,5]
["ARCOTEL-014-03-01","Autorización de modificaciones técnicas de red física para el Servicio de Acceso a Internet",25,5]
["ARCOTEL-027-03-01","Autorización de modificaciones técnicas para el Servicio de Valor Agregado",25,5]
["ARCOTEL-017-03-01","Autorización de modificaciones técnicas para red física para el Servicio Portador",25,5]
["ARCOTEL-014-03-06","Autorización de prórroga para inicio de operaciones para el Servicio de Acceso a Internet",125,5]
["ARCOTEL-030-03-04","Autorización de prórroga para inicio de operaciones para un Sistema de Audio y Video por Suscripción",100,5]
["ARCOTEL-020-03-05","Autorización de prórroga para instalación e inicio de operaciones para el Servicio Comunal, Servicio Troncalizado y Transporte Internacional Modalidad Provisión Segmento Espacial",100,5]
["ARCOTEL-016-03-11","Autorización de prórroga para instalación e inicio de operaciones para el Título Habilitante de Operación de Red Privada y Uso de Frecuencias de Telecomunicaciones",5,5]
["ARCOTEL-025-03-06","Autorización de prórrogas para el Servicio Móvil Avanzado a través de Operador Móvil Virtual",125,5]
["ARCOTEL-031-03-01","Autorización de prórrogas varias para el Servicio de Telefonía Fija",125,5]
["ARCOTEL-032-03-01","Autorización de prórrogas varias para el Servicio de Transporte Internacional modalidad Cable Submarino",125,5]
["ARCOTEL-016-03-09","Autorización de transferencia o cesión del Título Habilitante de Red Privada y Uso de Frecuencias de Telecomunicaciones",100,5]
["ARCOTEL-020-03-08","Autorización de Transferencia o Cesión del Título Habilitante para el Servicio Comunal, Servicio Troncalizado, Transporte Internacional Modalidad Provisión de Segmento Espacial",100,5]
["ARCOTEL-007-01-01","Bloqueo de equipos terminales robados, perdidos o hurtados que no hayan sido utilizados en las redes de los prestadores del servicio móvil avanzado.",40,5]
["ARCOTEL-033-03-01","Cancelación del Certificado de Inscripción en el Registro Público de Telecomunicaciones de Centros de Acceso a la Información a través de Internet (Cibercafés)",25,5]
["ARCOTEL-003-01-03","Certificación de infracciones y sanciones emitidas por ARCOTEL",60,5]
["ARCOTEL-003-01-01","Certificación de obligaciones económicas, área de cobertura y/o derechos de concesión de servicios de telecomunicaciones solicitada por los poseedores de títulos habilitantes",42,5]
["ARCOTEL-020-07-01","Devolución voluntaria o por acuerdo mutuo del Título Habilitante para el Servicio Comunal, Servicio Troncalizado y Transporte Internacional Modalidad Provisión Segmento Especial",100,5]
["ARCOTEL-023-04-01","Devolución voluntaria o por acuerdo mutuo del Título Habilitante para el Servicio de Radioaficionados y Banda Ciudadana",100,5]
["ARCOTEL-016-05-03","Extinción del Título Habilitante de Red Privada y Uso de Frecuencias de Telecomunicaciones por declaración anticipada y unilateral debidamente motivada",0,5]
["ARCOTEL-030-04-14","Incorporación de estaciones de TV abierta para un Sistema de Audio y Video por Suscripción",32.5,5]
["ARCOTEL-033-02-01","Modificación al Certificado de Inscripción en el Registro Público de Telecomunicaciones de Centros de Acceso a la Información a través de Internet (Cibercafés)",25,5]
["ARCOTEL-030-04-08","Notificación de actualización de coordenadas geográficas de sitios previamente autorizados para un Sistema de Audio y Video por Suscripción",20,5]
["ARCOTEL-030-04-03","Notificación de actualización de la programación y/o antenas de recepción para un Sistema de Audio y Video por Suscripción",20,5]
["ARCOTEL-030-04-09","Notificación de cambio de nombre de estación (denominación comercial) para un Sistema de Audio y Video por Suscripción",20,5]
["ARCOTEL-020-06-04","Notificación de cambio de Razón Social para el Servicio Comunal, Servicio Trancalizado, Transporte Internacional Modalidad Provisión Segmento Especial",100,5]
["ARCOTEL-027-04-05","Notificación de cambio de Razón Social para el Servicio de Valor Agregado para personas jurídicas de derecho privado y empresas públicas o instituciones del sector público",75,5]
["ARCOTEL-030-04-10","Notificación de cambio y/o actualización de equipos que no impliquen modificación de características autorizadas para un Sistema de Audio y Video por Suscripción",15,5]
["ARCOTEL-014-04-07","Notificación de cumplimiento de Georreferenciación para el Servicio de Acceso a Internet",25,5]
["ARCOTEL-027-04-07","Notificación de cumplimiento de Georreferenciación para el Servicio de Valor Agregado",25,5]
["ARCOTEL-017-04-07","Notificación de cumplimiento de Georreferenciación para el Servicio Portador",27,5]
["ARCOTEL-028-04-04","Notificación de facturación total del mes por una Entidad de Certificación de Información y Servicios Relacionados Acreditados",25,5]
["ARCOTEL-030-04-07","Notificación de incremento o decremento de canales locales para guía de programación para un Sistema de Audio y Video por Suscripción",20,5]
["ARCOTEL-030-04-06","Notificación de incremento o decremento del número de canales de servicios de valor agregado (PPV, VoD, etc.) para un Sistema de Audio y Video por Suscripción",20,5]
["ARCOTEL-030-04-05","Notificación de incremento y/o decremento del número de canales para un Sistema de Audio y Video por Suscripción que no involucran autorizaciones de nuevas frecuencias",20,5]
["ARCOTEL-028-04-05","Notificación de la Declaración de Prácticas de Certificación de una Entidad de Certificación de Información y Servicios Relacionados Acreditados",25,5]
["ARCOTEL-030-04-02","Notificación de modificación de estatutos y cambios de socios o accionistas para un Sistema de Audio y Video por Suscripción",27.5,5]
["ARCOTEL-030-04-04","Notificación de modificación de redes con o sin cambio de tecnología para un Sistema de Audio y Video por Suscripción",20,5]
["ARCOTEL-020-07-02","Notificación de muerte del titular del Título Habilitante para el Servicio Comunal y Troncalizado",100,5]
["ARCOTEL-028-04-02","Notificación de número de certificados emitidos y revocados en el mes por una Entidad de Certificación de Información y Servicios Relacionados Acreditados",25,5]
["ARCOTEL-028-04-01","Notificación de número de solicitudes de servicio y trámite atendidos por una Entidad de Certificación de Información y Servicios Relacionados Acreditados",25,5]
["ARCOTEL-028-04-03","Notificación de números de usuarios de servicios relacionados con la firma digital por una Entidad de Certificación de Información y Servicios Relacionados Acreditados",25,5]
["ARCOTEL-030-04-01","Notificación de reubicación de la cabecera (head end) para un Sistema de Audio y Video por Suscripción",25,5]
["ARCOTEL-020-06-06","Notificación de Transferencia o Cesión de acciones que no impliquen cambio de control para el Servicio Comunal, Servicio Troncalizado y Transporte Internacional Modalidad Provisión Segmento Especial",100,5]
["ARCOTEL-033-01-01","Otorgamiento del Certificado de Inscripción en el Registro Público de Telecomunicaciones de Centros de Acceso a la Información a través de Internet (Cibercafés)",25,5]
["ARCOTEL-014-01-03","Otorgamiento del Título Habilitante para el Servicio de Acceso a Internet para empresas públicas",25,5]
["ARCOTEL-014-01-02","Otorgamiento del Título Habilitante para el Servicio de Acceso a Internet para personas jurídicas de derecho privado",20,5]
["ARCOTEL-014-01-01","Otorgamiento del Título Habilitante para el Servicio de Acceso a Internet para personas naturales",25,5]
["ARCOTEL-024-01-02","Otorgamiento del Título Habilitante para el Servicio de Radiodifusión Sonora y Televisión por Señal Abierta para Medios Privados y Comunitarios (Concurso Público)",0,5]
["ARCOTEL-027-01-03","Otorgamiento del Título Habilitante para el Servicio de Valor Agregado para empresas públicas",25,5]
["ARCOTEL-027-01-02","Otorgamiento del Título Habilitante para el Servicio de Valor Agregado para personas jurídicas de derecho privado",25,5]
["ARCOTEL-027-01-01","Otorgamiento del Título Habilitante para el Servicio de Valor Agregado para personas naturales",25,5]
["ARCOTEL-017-01-03","Otorgamiento del Título Habilitante para el Servicio Portador para empresas públicas",25,5]
["ARCOTEL-017-01-02","Otorgamiento del Título Habilitante para el Servicio Portador para personas jurídicas de derecho privado",25,5]
["ARCOTEL-017-01-01","Otorgamiento del Título Habilitante para el Servicio Portador para personas naturales",25,5]
["ARCOTEL-028-01-02","Otorgamiento del Título Habilitante para una Entidad de Certificación de Información y Servicios Relacionados Acreditados para empresas públicas o instituciones del sector público",25,5]
["ARCOTEL-028-01-01","Otorgamiento del Título Habilitante para una Entidad de Certificación de Información y Servicios Relacionados Acreditados para personas jurídicas de derecho privado",25,5]
["ARCOTEL-019-01-01","Otorgamiento y Renovación de Frecuencias Temporales de Telecomunicaciones",128.80000000000001,5]
["ARCOTEL-023-01-04","Otorgamiento y Renovación de la Licencia para el Servicio de Radioaficionados Internacional y de transito",130,5]
["ARCOTEL-012-01-01","Presentación de reclamos, denuncias, sugerencias o solicitudes de información de los servicios de telecomunicaciones",4,5]
["ARCOTEL-030-04-12","Registro de Canales Codificados para un Sistema de Audio y Video por Suscripción",12.5,5]
["ARCOTEL-014-04-06","Registro de Contrato de Adhesión o Reventa para el Servicio de Acceso a Internet",25,5]
["ARCOTEL-030-04-11","Registro de Contrato de Adhesión o Reventa para un Sistema de Audio y Video por Suscripción",20,5]
["ARCOTEL-030-04-13","Registro de Proveedores de Programación Internacional para un Sistema de Audio y Video por Suscripción",7.5,5]
["ARCOTEL-014-02-03","Renovación del Título Habilitante para el Servicio de Acceso a Internet para empresas públicas",25,5]
["ARCOTEL-014-02-02","Renovación del Título Habilitante para el Servicio de Acceso a Internet para personas jurídicas de derecho privado",43.260000000000005,5]
["ARCOTEL-014-02-01","Renovación del Título Habilitante para el Servicio de Acceso a Internet para personas naturales",25,5]
["ARCOTEL-027-02-03","Renovación del Título Habilitante para el Servicio de Valor Agregado para empresas públicas",25,5]
["ARCOTEL-027-02-02","Renovación del Título Habilitante para el Servicio de Valor Agregado para personas jurídicas de derecho privado",25,5]
["ARCOTEL-027-02-01","Renovación del Título Habilitante para el Servicio de Valor Agregado para personas naturales",25,5]
["ARCOTEL-017-02-03","Renovación del Título Habilitante para el Servicio Portador para empresas públicas",25,5]
["ARCOTEL-017-02-02","Renovación del Título Habilitante para el Servicio Portador para personas jurídicas de derecho privado",25,5]
["ARCOTEL-017-02-01","Renovación del Título Habilitante para el Servicio Portador para personas naturales",25,5]
["ARCOTEL-028-02-02","Renovación del Título Habilitante para una Entidad de Certificación de Información y Servicios Relacionados Acreditados para empresas públicas o instituciones del sector público",25,5]
["ARCOTEL-028-02-01","Renovación del Título Habilitante para una Entidad de Certificación de Información y Servicios Relacionados Acreditados para personas jurídicas de derecho privado",25,5]
["ARCOTEL-036-01-01","Reporte de incidentes informáticos en redes de telecomunicaciones",22,5]
["ARCOTEL-035-01-01","Reporte de vulnerabilidades informáticas en redes de telecomunicaciones",20,5]
["ARCOTEL-009-02-01","Solicitud de concesionarios del espectro radioeléctrico para solución de interferencias",125,5]
["ARCOTEL-024-03-13","Solicitud de continuación de uso de los derechos del título habilitante por fallecimiento de la persona natural concesionaria de una frecuencia de Radiodifusión Sonora y de Televisión de Señal Abierta",102,5]
["ARCOTEL-006-01-03","Solicitud de credenciales para ensambladores de terminales de servicio móvil avanzado",40,5]
["ARCOTEL-006-01-02","Solicitud de credenciales para importadores (persona natural) de terminales de servicio móvil avanzado",40,5]
["ARCOTEL-006-01-01","Solicitud de credenciales para importadores (personas jurídicas) de terminales de servicio móvil avanzado",40,5]
["ARCOTEL-002-01-01","Solicitud de estudios o información estadística del sector de las telecomunicaciones",5,5]
["ARCOTEL-001-01-01","Solicitud de información pública",6,5]
["ARCOTEL-005-01-05","Solicitud de licencias no automáticas de importación de decodificadores para fines sociales, académicos, seguridad y salud o de interés general, y para importar muestras de equipos decodificadores",42,5]
["ARCOTEL-005-01-04","Solicitud de licencias no automáticas de importación de decodificadores para personas naturales o jurídicas cuya actividad comercial o objeto social sea la prestación de servicios en general de mantenimiento",42,5]
["ARCOTEL-005-01-01","Solicitud de licencias no automáticas de importación de decodificadores para poseedores de títulos habilitantes de telecomunicaciones o radiodifusión y/o receptores para usuarios de televisión digital terrestre abierta",40,5]
["ARCOTEL-005-01-03","Solicitud de licencias no automáticas de importación de decodificadores para provisión de receptores de abonado y/o receptores de prestador de servicio para sistemas de audio y video por suscripción o tv abierta -para mantenerlos en perchas",40,5]
["ARCOTEL-005-01-02","Solicitud de licencias no automáticas de importación de decodificadores para provisión de receptores de abonado y/o receptores de prestador de servicio para sistemas de audio y video por suscripción o tv abierta -para venta a un prestador",40,5]
["ARCOTEL-009-01-01","Solicitud de medición de radiaciones no ionizantes por parte de la ciudadanía",50,5]
["ARCOTEL-009-04-01","Solicitud de suspensión de emisiones de sistemas de radiodifusión y televisión de señal abierta",22,5]
["ARCOTEL-009-03-01","Solicitud de verificación de inicio de operación de sistemas de radiodifusión y televisión abierta",50,5]
["ARCOTEL-014-03-05","Autorización de adquisición de acciones o participaciones de empresas para el Servicio de Acceso a Internet",750,10]
["ARCOTEL-015-03-04","Autorización de adquisición de acciones o participaciones de empresas para el Servicio de Telecomunicaciones Móviles por Satélite",750,10]
["ARCOTEL-027-03-06","Autorización de adquisición de acciones o participaciones de empresas para el Servicio de Valor Agregado",750,10]
["ARCOTEL-018-03-05","Autorización de adquisición de acciones o participaciones de empresas para el Servicio Móvil Avanzado",750,10]
["ARCOTEL-025-03-05","Autorización de adquisición de acciones o participaciones de empresas para el Servicio Móvil Avanzado bajo la modalidad de Operador Móvil Virtual",750,10]
["ARCOTEL-017-03-08","Autorización de adquisición de acciones o participaciones de empresas para el Servicio Portador",750,10]
["ARCOTEL-031-03-02","Autorización de ampliación de cobertura para el Servicio de Telefonía Fija",600,10]
["ARCOTEL-030-03-01","Autorización de ampliación de cobertura para un Sistema de Audio y Video por Suscripción",600,10]
["ARCOTEL-030-03-03","Autorización de ampliación de frecuencias para incremento o decremento de canales para un Sistema de Audio y Video por Suscripción",600,10]
["ARCOTEL-024-03-12","Autorización de cambio de Razón social o denominación objetiva para el Servicio de Radiodifusión Sonora y Televisión por Señal Abierta",568,10]
["ARCOTEL-016-03-10","Autorización de cancelación parcial de frecuencias para Troncalizado y Radio de Dos Vías (móvil terrestre, aeronáutico y marítimo) asociado a una Red Privada de Telecomunicaciones",240,10]
["ARCOTEL-014-03-04","Autorización de fusión de compañías o personas jurídicas de derecho privado poseedoras de Títulos Habilitantes para el Servicio de Acceso a Internet",750,10]
["ARCOTEL-015-03-03","Autorización de fusión de compañías o personas jurídicas de derecho privado poseedoras de Títulos Habilitantes para el Servicio de Telecomunicaciones Móviles por Satélite",750,10]
["ARCOTEL-027-03-05","Autorización de fusión de compañías o personas jurídicas de derecho privado poseedoras de Títulos Habilitantes para el Servicio de Valor Agregado",750,10]
["ARCOTEL-018-03-04","Autorización de fusión de compañías o personas jurídicas de derecho privado poseedoras de Títulos Habilitantes para el Servicio Móvil Avanzado",750,10]
["ARCOTEL-025-03-04","Autorización de fusión de compañías o personas jurídicas de derecho privado poseedoras de Títulos Habilitantes para el Servicio Móvil Avanzado a través de Operador Móvil Virtual",750,10]
["ARCOTEL-017-03-07","Autorización de fusión de compañías o personas jurídicas de derecho privado poseedoras de Títulos Habilitantes para el Servicio Portador",750,10]
["ARCOTEL-031-03-03","Autorización de fusión de dos compañías o personas jurídicas de derecho privado poseedoras de Títulos Habilitantes para el Servicio de Telefonía Fija",750,10]
["ARCOTEL-032-03-03","Autorización de fusión de dos compañías o personas jurídicas de derecho privado poseedoras de Títulos Habilitantes para el Servicio de Transporte Internacional modalidad Cable Submarino",750,10]
["ARCOTEL-037-02-01","Autorización de incremento de enlaces terrestres y satelitales para la prestación de Servicios de Telecomunicaciones",194.5,10]
["ARCOTEL-020-03-01","Autorización de incremento de frecuencias para el Servicio Comunal y Servicio Troncalizado",170.2,10]
["ARCOTEL-016-03-01","Autorización de incremento de frecuencias para enlaces terrestres y satelitales asociadas a una Red Privada de Telecomunicaciones",223.4,10]
["ARCOTEL-016-03-05","Autorización de incremento de frecuencias para Troncalizado y Radio de Dos Vías (móvil terrestre, aeronáutico y marítimo) asociadas a una Red Privada de Telecomunicaciones",254,10]
["ARCOTEL-032-03-04","Autorización de incremento y reubicación de estación terrena para el Servicio de Transporte Internacional modalidad Cable Submarino",600,10]
["ARCOTEL-016-03-04","Autorización de incremento, modificación y cancelación de enlaces físicos para una Red Privada de Telecomunicaciones",360,10]
["ARCOTEL-037-02-04","Autorización de incremento, modificación y cancelación de Radiobases para el Servicio de Telefonía Fija",422.5,10]
["ARCOTEL-037-02-05","Autorización de incremento, modificación y cancelación de Radiobases para el Servicio Móvil Avanzado",175,10]
["ARCOTEL-016-03-02","Autorización de modificación de parámetros técnicos para enlaces terrestres y satelitales asociados a una Red Privada de Telecomunicaciones",180,10]
["ARCOTEL-016-03-06","Autorización de modificación de parámetros técnicos para Troncalizado y Radio de Dos Vías (móvil terrestre, aeronáutico y marítimo) asociados a una Red Privada de Telecomunicaciones",295,10]
["ARCOTEL-024-03-14","Autorización de Modificaciones Administrativas para el Servicio de Radiodifusión Sonora y Televisión por Señal Abierta",455,10]
["ARCOTEL-037-02-03","Autorización de modificaciones técnicas de enlaces terrestres y satelitales para Servicios de Telecomunicaciones",197.5,10]
["ARCOTEL-020-03-02","Autorización de modificaciones técnicas para el Servicio Comunal y Servicio Troncalizado",157.4,10]
["ARCOTEL-024-03-01","Autorización de Modificaciones Técnicas para el Servicio de Radiodifusión Sonora y Televisión por Señal Abierta",400,10]
["ARCOTEL-018-03-01","Autorización de modificaciones técnicas y administrativas para el Servicio Móvil Avanzado",600,10]
["ARCOTEL-025-03-01","Autorización de modificaciones técnicas y administrativas para el Servicio Móvil Avanzado a través de Operador Móvil Virtual",600,10]
["ARCOTEL-030-03-02","Autorización de operación de canales locales para programación propia para un Sistema de Audio y Video por Suscripción",600,10]
["ARCOTEL-024-03-11","Autorización de prórroga para inicio de operaciones para el Servicio de Radiodifusión Sonora y Televisión por Señal Abierta",370,10]
["ARCOTEL-017-03-09","Autorización de prórroga para inicio de operaciones para el Servicio Portador",750,10]
["ARCOTEL-015-03-05","Autorización de prórrogas para el Servicio de Telecomunicaciones Móviles por Satélite",688.37500000000011,10]
["ARCOTEL-018-03-06","Autorización de prórrogas para el Servicio Móvil Avanzado",750,10]
["ARCOTEL-015-03-01","Autorización de transferencia o cesión de acciones que implican cambio de control para el Servicio de Telecomunicaciones Móviles por Satélite",750,10]
["ARCOTEL-018-03-02","Autorización de transferencia o cesión de acciones que implican cambio de control para el Servicio Móvil Avanzado",750,10]
["ARCOTEL-025-03-02","Autorización de transferencia o cesión de acciones que implican cambio de control para el Servicio Móvil Avanzado a través de Operador Móvil Virtual",750,10]
["ARCOTEL-014-03-03","Autorización de transferencia o cesión del Título Habilitante para el Servicio de Acceso a Internet para personas naturales o jurídicas de derecho privado",750,10]
["ARCOTEL-015-03-02","Autorización de transferencia o cesión del Título Habilitante para el Servicio de Telecomunicaciones Móviles por Satélite",750,10]
["ARCOTEL-027-03-04","Autorización de transferencia o cesión del Título Habilitante para el Servicio de Valor Agregado para personas naturales o jurídicas",750,10]
["ARCOTEL-018-03-03","Autorización de transferencia o cesión del Título Habilitante para el Servicio Móvil Avanzado",750,10]
["ARCOTEL-025-03-03","Autorización de transferencia o cesión del Título Habilitante para el Servicio Móvil Avanzado a través de Operador Móvil Virtual",750,10]
["ARCOTEL-017-03-06","Autorización de transferencia o cesión del Título Habilitante para el Servicio Portador para personas naturales o jurídicas",750,10]
["ARCOTEL-010-01-01","Autorización Temporal de Frecuencias para Radiodifusión Sonora y TV de Señal Abierta",600,10]
["ARCOTEL-003-01-02 ","Certificación de obligaciones económicas, área de cobertura y/o derechos de concesión de servicios de telecomunicaciones solicitada por terceros autorizados por los poseedores de títulos habilitantes",0,10]
["ARCOTEL-018-05-02","Declaración de disolución, quiebra o liquidación para personas jurídicas de derecho privado, por hechos o actos que impidan la continuidad del título habilitante",750,10]
["ARCOTEL-028-05-01","Devolución voluntaria o por acuerdo mutuo del Título Habilitante de una Entidad de Certificación de Información y Servicios Relacionados Acreditados",600,10]
["ARCOTEL-015-05-01","Devolución voluntaria o por acuerdo mutuo del Título Habilitante para el Servicio de Telecomunicaciones Móviles por Satélite",750,10]
["ARCOTEL-031-05-01","Devolución voluntaria o por acuerdo mutuo del Título Habilitante para el Servicio de Telefonía Fija",750,10]
["ARCOTEL-032-05-01","Devolución voluntaria o por acuerdo mutuo del Título Habilitante para el Servicio de Transporte Internacional modalidad Cable Submarino para personas jurídicas de derecho privado",750,10]
["ARCOTEL-027-05-01","Devolución voluntaria o por acuerdo mutuo del Título Habilitante para el Servicio de Valor Agregado",750,10]
["ARCOTEL-025-05-01","Devolución voluntaria o por acuerdo mutuo del Título Habilitante para el Servicio Móvil Avanzado a través de Operador Móvil Virtual para personas jurídicas de derecho privado",750,10]
["ARCOTEL-018-05-01","Devolución voluntaria o por acuerdo mutuo del Título Habilitante para el Servicio Móvil Avanzado para personas jurídicas de derecho privado",750,10]
["ARCOTEL-017-05-01","Devolución voluntaria o por acuerdo mutuo del Título Habilitante para el Servicio Portador",750,10]
["ARCOTEL-015-05-03","Extinción del TH para el Servicio de Telecomunicaciones Móviles por Satélite por concepto de declaración de disolución, quiebra o liquidación para personas jurídicas de derecho privado, por pérdida de la capacidad civil de su titular...",750,10]
["ARCOTEL-032-05-03","Extinción del Título Habilitante para el Servicio de Transporte Internacional modalidad Cable Submarino por concepto de declaración de disolución, quiebra o liquidación para personas jurídicas de derecho privado",750,10]
["ARCOTEL-017-05-03","Extinción del Título Habilitante para el Servicio Portador por concepto de declaración de disolución, quiebra o liquidación para personas jurídicas de derecho privado",750,10]
["ARCOTEL-025-05-02","Extinción Título Habilitante Servicio Móvil Avanzado a través de OMV por concepto declaración de disolución, quiebra o liquidación personas jurídicas de derecho privado o por hechos o actos que impidan la continuidad",750,10]
["ARCOTEL-026-01-01","Inscripción de Proveedores de Infraestructura física",400,10]
["ARCOTEL-015-04-03","Notificación adquisición de acciones o participaciones de empresas que no implica cambio de Control para el Servicio de Telecomunicaciones Móviles por Satélite",750,10]
["ARCOTEL-018-04-04","Notificación adquisición de acciones o participaciones de empresas que no implica cambio de Control para el Servicio Móvil Avanzado",750,10]
["ARCOTEL-032-04-02","Notificación de actualización de coordenadas geográficas de sitios previamente autorizados para el Servicio de Transporte Internacional modalidad Cable Submarino",600,10]
["ARCOTEL-025-04-04","Notificación de adquisición de acciones o participaciones de empresas para el Servicio Móvil Avanzado bajo la modalidad de Operador Móvil Virtual",750,10]
["ARCOTEL-018-04-11","Notificación de asignación y liberación de número social público del Servicio Móvil Avanzado",400,10]
["ARCOTEL-018-04-12","Notificación de asignación y liberación de recurso de señalización del Servicio Móvil Avanzado",400,10]
["ARCOTEL-018-04-14","Notificación de asignación y liberación de recurso de sincronismo del Servicio Móvil Avanzado",400,10]
["ARCOTEL-018-04-13","Notificación de asignación y liberación de recurso de transmisión del Servicio Móvil Avanzado",400,10]
["ARCOTEL-031-04-08","Notificación de asignación y liberación de recurso numérico de señalización para el Servicio de Telefonía Fija",400,10]
["ARCOTEL-018-04-10","Notificación de asignación y liberación de recurso numérico no geográfico del Servicio Móvil Avanzado",400,10]
["ARCOTEL-032-04-03","Notificación de cambio de marca y modelo de Equipo para el Servicio de Transporte Internacional modalidad Cable Submarino",600,10]
["ARCOTEL-014-04-05","Notificación de cambio de Razón Social para el Servicio de Acceso a Internet para personas jurídicas de derecho privado",750,10]
["ARCOTEL-015-04-06","Notificación de cambio de Razón Social para el Servicio de Telecomunicaciones Móviles por Satélite",750,10]
["ARCOTEL-031-04-03","Notificación de cambio de Razón Social para el Servicio de Telefonía Fija",750,10]
["ARCOTEL-018-04-06","Notificación de cambio de Razón Social para el Servicio Móvil Avanzado",750,10]
["ARCOTEL-025-04-06","Notificación de cambio de Razón Social para el Servicio Móvil Avanzado a través de Operador Móvil Virtual",750,10]
["ARCOTEL-017-04-05","Notificación de cambio de Razón Social para el Servicio Portador para personas jurídicas de derecho privado y empresas públicas",750,10]
["ARCOTEL-031-04-02","Notificación de cambio de Representante Legal para el Servicio de Telefonía Fija",750,10]
["ARCOTEL-027-04-04","Notificación de cambio de Representante Legal para el Servicio de Valor Agregado para personas jurídicas de derecho privado y empresas públicas o instituciones del sector público",750,10]
["ARCOTEL-020-06-03","Notificación de cambio de Representante Legal, actualización de información de contacto y cambio de domicilio para el Servicio Comunal, Servicio Troncalizado y Transporte Internacional Modalidad Provisión Segmento Especial",200,10]
["ARCOTEL-014-04-04","Notificación de cambio de Representante Legal, actualización de información de contacto y cambio de domicilio para el Servicio de Acceso a Internet para personas jurídicas de derecho privado y empresas públicas",750,10]
["ARCOTEL-015-04-05","Notificación de cambio de Representante Legal, actualización de información de contacto y cambio de domicilio para el Servicio de Telecomunicaciones Móviles por Satélite",750,10]
["ARCOTEL-025-04-05","Notificación de cambio de Representante Legal, actualización de información de contacto y cambio de domicilio para el Servicio Móvil Avanzado a través de Operador Móvil Virtual",750,10]
["ARCOTEL-018-04-05","Notificación de cambio de Representante Legal, actualización de información de contacto y cambio de domicilio para el Servicio Móvil Avanzado para personas jurídicas de derecho privado y empresas públicas",750,10]
["ARCOTEL-017-04-04","Notificación de cambio de Representante Legal, actualización de información de contacto y cambio de domicilio para el Servicio Portador para personas jurídicas de derecho privado y empresas públicas",750,10]
["ARCOTEL-016-04-04","Notificación de cambio de Representante Legal, actualización de información de contacto y cambio de domicilio para una Red Privada de Telecomunicaciones",200,10]
["ARCOTEL-026-02-02","Notificación de extinción de la persona jurídica o muerte de la persona natural inscrita como proveedores de infraestructura física",750,10]
["ARCOTEL-014-04-02","Notificación de modificación de capital para el Servicio de Acceso a Internet para personas jurídicas de derecho privado",750,10]
["ARCOTEL-015-04-01","Notificación de modificación de capital para el Servicio de Telecomunicaciones Móviles por Satélite",750,10]
["ARCOTEL-031-04-04","Notificación de modificación de capital para el Servicio de Telefonía Fija",750,10]
["ARCOTEL-032-04-04","Notificación de modificación de Capital para el Servicio de Transporte Internacional modalidad Cable Submarino",750,10]
["ARCOTEL-027-04-02","Notificación de modificación de capital para el Servicio de Valor Agregado para personas jurídicas de derecho privado y empresas públicas o instituciones del sector público",750,10]
["ARCOTEL-025-04-02","Notificación de modificación de capital para el Servicio Móvil Avanzado a través de Operador Móvil Virtual",750,10]
["ARCOTEL-018-04-02","Notificación de modificación de capital para el Servicio Móvil Avanzado para personas jurídicas de derecho privado",750,10]
["ARCOTEL-017-04-02","Notificación de modificación de capital para el Servicio Portador para personas jurídicas de derecho privado",750,10]
["ARCOTEL-014-04-03","Notificación de modificación de Estatutos para el Servicio de Acceso a Internet para personas jurídicas de derecho privado y empresas públicas",750,10]
["ARCOTEL-015-04-02","Notificación de modificación de Estatutos para el Servicio de Telecomunicaciones Móviles por Satélite",750,10]
["ARCOTEL-031-04-05","Notificación de modificación de Estatutos para el Servicio de Telefonía Fija",750,10]
["ARCOTEL-032-04-05","Notificación de modificación de Estatutos para el Servicio de Transporte Internacional modalidad Cable Submarino",750,10]
["ARCOTEL-027-04-03","Notificación de modificación de Estatutos para el Servicio de Valor Agregado para personas jurídicas de derecho privado y empresas públicas o instituciones del sector público",750,10]
["ARCOTEL-025-04-03","Notificación de modificación de Estatutos para el Servicio Móvil Avanzado a través de Operador Móvil Virtual",750,10]
["ARCOTEL-018-04-03","Notificación de modificación de Estatutos para el Servicio Móvil Avanzado para personas jurídicas de derecho privado y empresas públicas",750,10]
["ARCOTEL-017-04-03","Notificación de modificación de Estatutos para el Servicio Portador para personas jurídicas de derecho privado y empresas públicas",750,10]
["ARCOTEL-031-04-06","Notificación de modificación, instalación o ampliación de infraestructura para el Servicio de Telefonía Fija",600,10]
["ARCOTEL-024-04-01","Notificación de Modificaciones Técnicas para el Servicio de Radiodifusión Sonora y Televisión por Señal Abierta",350,10]
["ARCOTEL-018-04-01","Notificación de modificaciones técnicas y administrativas para el Servicio Móvil Avanzado",600,10]
["ARCOTEL-025-04-01","Notificación de modificaciones técnicas y administrativas para el Servicio Móvil Avanzado a través de Operador Móvil Virtual",600,10]
["ARCOTEL-016-05-02","Notificación de muerte del titular del Título Habilitante de Red Privada y Uso de Frecuencias de Telecomunicaciones",260,10]
["ARCOTEL-028-05-02","Notificación de muerte del titular del Título Habilitante de una Entidad de Certificación de Información y Servicios Relacionados Acreditados para personas naturales o jurídicas de derecho privado",600,10]
["ARCOTEL-014-05-02","Notificación de muerte del titular del Título Habilitante para el Servicio de Acceso a Internet para personas naturales",600,10]
["ARCOTEL-015-05-02","Notificación de muerte del titular del Título Habilitante para el Servicio de Telecomunicaciones Móviles por Satélite para personas naturales",750,10]
["ARCOTEL-032-05-02","Notificación de muerte del titular del Título Habilitante para el Servicio de Transporte Internacional modalidad Cable Submarino para personas naturales",750,10]
["ARCOTEL-027-05-02","Notificación de muerte del titular del Título Habilitante para el Servicio de Valor Agregado para personas naturales o jurídicas de derecho privado",750,10]
["ARCOTEL-017-05-02","Notificación de muerte del titular del Título Habilitante para el Servicio Portador para personas naturales",750,10]
["ARCOTEL-015-04-04","Notificación de reportes contractuales y en cumplimiento al ordenamiento jurídico vigente para el Servicio de Telecomunicaciones Móviles por Satélite",600,10]
["ARCOTEL-018-04-09","Notificación de reportes contractuales, legales y reglamentarios del Servicio Móvil Avanzado",600,10]
["ARCOTEL-025-04-09","Notificación de reportes contractuales, legales y reglamentarios del Servicio Móvil Avanzado a través de Operador Móvil Virtual",600,10]
["ARCOTEL-031-04-07","Notificación de reserva, asignación y liberación de recurso numérico geográfico para el Servicio de Telefonía Fija.",401,10]
["ARCOTEL-014-04-01","Notificación de transferencia o cesión de acciones que no impliquen cambio de control para el Servicio de Acceso a Internet para personas jurídicas de derecho privado",750,10]
["ARCOTEL-027-04-01","Notificación de transferencia o cesión de acciones que no impliquen cambio de control para el Servicio de Valor Agregado para personas jurídicas de derecho privado y empresas públicas o instituciones del sector público",750,10]
["ARCOTEL-017-04-01","Notificación de transferencia o cesión de acciones que no impliquen cambio de control para el Servicio Portador para personas jurídicas de derecho privado",750,10]
["ARCOTEL-031-04-10","Notificación del Plan Técnico Fundamental de Sincronismo para el Servicio de Telefonía Fija",400,10]
["ARCOTEL-031-04-09","Notificación del Plan Técnico Fundamental de Transmisión para el Servicio de Telefonía Fija",400,10]
["ARCOTEL-015-01-03","Otorgamiento del Título Habilitante para el Servicio de Telecomunicaciones Móviles por Satélite y Concesión de Frecuencias para empresas públicas",700,10]
["ARCOTEL-015-01-02","Otorgamiento del Título Habilitante para el Servicio de Telecomunicaciones Móviles por Satélite y Concesión de Frecuencias para personas jurídicas de derecho privado",700,10]
["ARCOTEL-015-01-01","Otorgamiento del Título Habilitante para el Servicio de Telecomunicaciones Móviles por Satélite y Concesión de Frecuencias para personas naturales",700,10]
["ARCOTEL-032-01-01","Otorgamiento del Título Habilitante para el Servicio de Transporte Internacional modalidad Cable Submarino para empresas públicas o instituciones del sector público",700,10]
["ARCOTEL-032-01-02","Otorgamiento del Título Habilitante para el Servicio de Transporte Internacional modalidad Cable Submarino para personas naturales o jurídicas de derecho privado",700,10]
["ARCOTEL-023-01-01","Otorgamiento y Renovación de la Licencia para el Servicio de Radioaficionados y Banda Ciudadana",140,10]
["ARCOTEL-016-01-02","Otorgamiento y Renovación del Título Habilitante de Operación de Red Privada y Uso de Frecuencias para Troncalizado y Radio de Dos Vías (móvil terrestre, aeronáutico y marítimo)",657,10]
["ARCOTEL-027-03-07","Registro de Contrato de Adhesión o Reventa para el Servicio de Valor Agregado",750,10]
["ARCOTEL-028-03-01","Registro de tercero vinculado para una Entidad de Certificación de Información y Servicios Relacionados Acreditados",300,10]
["ARCOTEL-028-05-03","Solicitud de extinción del Título Habilitante de una Entidad de Certificación de Información y Servicios Relacionados Acreditados por concepto de declaración de disolución, quiebra o liquidación para personas jurídicas de derecho privado",600,10]
["ARCOTEL-004-01-01","Solicitud de homologación de equipos terminales de telecomunicaciones",260,10]
["ARCOTEL-010-02-01","Solicitud de Renovación Temporal de Frecuencias para Radiodifusión Sonora y TV de Señal Abierta",500,10]
["ARCOTEL-024-05-03","Terminación del Título Habilitante para el Servicio de Radiodifusión Sonora y de Televisión de Señal Abierta por la causal de extinción de la persona jurídica",480,10]
["ARCOTEL-024-05-05","Terminación del Título Habilitante para el Servicio de Radiodifusión Sonora y de Televisión de Señal Abierta por pérdida de la capacidad civil del concesionario o disolución de la sociedad concesionaria",575.89,10]
["ARCOTEL-014-03-02","Autorización de cambio de control para el Servicio de Acceso a Internet",1125,20]
["ARCOTEL-027-03-03","Autorización de cambio de control para el Servicio de Valor Agregado",1125,20]
["ARCOTEL-017-03-05","Autorización de cambio de control para el Servicio Portador",2000,20]
["ARCOTEL-031-03-07","Autorización de vinculación que implica cambio de control para el Servicio de Telefonía Fija",1125,20]
["ARCOTEL-032-03-02","Autorización de vinculación que implica cambio de control para el Servicio de Transporte Internacional modalidad Cable Submarino",1125,20]
["ARCOTEL-026-02-01","Cancelación de Inscripción de Proveedores de Infraestructura física",900,20]
["ARCOTEL-016-05-01","Devolución voluntaria o por acuerdo mutuo del Título Habilitante de Red Privada y Uso de Frecuencias de Telecomunicaciones",828,20]
["ARCOTEL-014-05-01","Devolución voluntaria o por acuerdo mutuo del Título Habilitante para el Servicio de Acceso a Internet",1200,20]
["ARCOTEL-030-05-01","Devolución voluntaria o por acuerdo mutuo del Título Habilitante para el Servicio de Audio y Video por Susucripción",1750,20]
["ARCOTEL-024-05-01","Devolución voluntaria o por acuerdo mutuo del Título Habilitante para el Servicio de Radiodifusión Sonora y de Televisión de Señal Abierta",960,20]
["ARCOTEL-014-05-03","Extinción del Título Habilitante para el Servicio de Acceso a Internet por concepto de declaración de disolución, quiebra o liquidación para personas jurídicas de derecho privado",1400,20]
["ARCOTEL-030-05-03","Extinción del Título Habilitante para el Servicio de Audio y Video por Susucripción por concepto de declaración de disolución, quiebra o liquidación para personas jurídicas de derecho privado",1750,20]
["ARCOTEL-031-05-02","Extinción del Título Habilitante para el Servicio de Telefonía Fija por concepto de declaración de disolución, quiebra o liquidación para personas jurídicas de derecho privado",1400,20]
["ARCOTEL-016-04-05","Notificación de cambio de Razón Social para el Título Habilitante de Red Privada y Uso de Frecuencias de Telecomunicaciones",1140,20]
["ARCOTEL-030-05-02","Notificación de muerte del titular del Título Habilitante para el Servicio de Audio y Video por Susucripción para personas naturales o jurídicas de derecho privado",1750,20]
["ARCOTEL-037-01-01","Otorgamiento de título habilitante de frecuencias asociadas a la prestación de Servicios de Telecomunicaciones",992.5,20]
["ARCOTEL-024-01-01","Otorgamiento del Título Habilitante para el Servicio de Radiodifusión Sonora y Televisión por Señal Abierta para Personas Jurídicas de Derecho Público (Adjudicación Directa)",900,20]
["ARCOTEL-031-01-01","Otorgamiento del Título Habilitante para el Servicio de Telefonía Fija para empresas públicas o instituciones del sector público",1420,20]
["ARCOTEL-025-01-02","Otorgamiento del Título Habilitante para el Servicio Móvil Avanzado a través de OMV para personas jurídicas de derecho privado, empresas de la economía mixta donde el Estado tenga mayoría accionaria y Empresas Economía Popular y Solidaria",1420,20]
["ARCOTEL-025-01-01","Otorgamiento del Título Habilitante para el Servicio Móvil Avanzado a través de Operador Móvil Virtual para empresas públicas",1420,20]
["ARCOTEL-018-01-01","Otorgamiento del Título Habilitante para el Servicio Móvil Avanzado para empresas públicas",1420,20]
["ARCOTEL-018-01-02","Otorgamiento del Título Habilitante para el Servicio Móvil Avanzado para personas jurídicas de derecho privado",1420,20]
["ARCOTEL-030-01-03","Otorgamiento del Título Habilitante para un Sistema de Audio y Video por Suscripción bajo las modalidades de Cable Físico o Televisión Codificada Satelital para empresas públicas o instituciones del sector público.",1600,20]
["ARCOTEL-030-01-02","Otorgamiento del Título Habilitante para un Sistema de Audio y Video por Suscripción bajo las modalidades de Cable Físico o Televisión Codificada Satelital para personas jurídicas de derecho privado.",1618.26,20]
["ARCOTEL-030-01-01","Otorgamiento del Título Habilitante para un Sistema de Audio y Video por Suscripción bajo las modalidades de Cable Físico o Televisión Codificada Satelital para personas naturales",1600,20]
["ARCOTEL-031-01-02","Otorgamiento del Título Habilitante Servicio de Telefonía Fija para personas jurídicas de derecho privado, empresas de la economía mixta donde el Estado tenga mayoría accionaria y empresas de la economía popular y solidaria",1420,20]
["ARCOTEL-016-01-01","Otorgamiento y Renovación del Título Habilitante de Operación de Red Privada y Uso de Frecuencias para enlaces terrestres y satelitales",1052.5,20]
["ARCOTEL-020-01-01","Otorgamiento y Renovación del Título Habilitante para el Servicio Comunal, Servicio Troncalizado, Servicio Transporte Internacional Modalidad Segmento Espacial",2249.6,20]
["ARCOTEL-031-04-01","Registro de Contrato de Adhesión o Reventa para el Servicio de Telefonía Fija",1500,20]
["ARCOTEL-032-04-01","Registro de Contrato de Adhesión o Reventa para el Servicio de Transporte Internacional modalidad Cable Submarino",1500,20]
["ARCOTEL-017-04-06","Registro de Contrato de Adhesión o Reventa para el Servicio Portador",1500,20]
["ARCOTEL-015-04-07","Registro de Contrato de Adhesión para el Servicio de Telecomunicaciones Móviles por Satélite",1500,20]
["ARCOTEL-018-04-07","Registro de Contrato de Adhesión para el Servicio Móvil Avanzado",1500,20]
["ARCOTEL-025-04-07","Registro de Contrato de Adhesión para el Servicio Móvil Avanzado a través de Operador Móvil Virtual",1500,20]
["ARCOTEL-015-04-08","Registro de Contrato de Reventa para el Servicio de Telecomunicaciones Móviles por Satélite",1500,20]
["ARCOTEL-018-04-08","Registro de Contrato de Reventa para el Servicio Móvil Avanzado",1502,20]
["ARCOTEL-025-04-08","Registro de Contrato de Reventa para el Servicio Móvil Avanzado a través de Operador Móvil Virtual",1500,20]
["ARCOTEL-024-02-01","Renovación del Título Habilitante para el Servicio de Radiodifusión Sonora y Televisión por Señal Abierta para Personas Jurídicas de Derecho Público (Adjudicación Directa) y/o Medios Privados y Comunitarios",2400,20]
["ARCOTEL-015-02-03","Renovación del Título Habilitante para el Servicio de Telecomunicaciones Móviles por Satélite y Concesión de Frecuencias para empresas públicas",1700,20]
["ARCOTEL-015-02-02","Renovación del Título Habilitante para el Servicio de Telecomunicaciones Móviles por Satélite y Concesión de Frecuencias para personas jurídicas de derecho privado",1700,20]
["ARCOTEL-015-02-01","Renovación del Título Habilitante para el Servicio de Telecomunicaciones Móviles por Satélite y Concesión de Frecuencias para personas naturales",1700,20]
["ARCOTEL-031-02-01","Renovación del Título Habilitante para el Servicio de Telefonía Fija para empresas públicas o instituciones del sector público",2190,20]
["ARCOTEL-031-02-02","Renovación del Título Habilitante para el Servicio de Telefonía Fija para personas jurídicas de derecho privado, empresas de la economía mixta donde el Estado tenga mayoría accionaria y empresas de la economía popular y solidaria",3650,20]
["ARCOTEL-032-02-01","Renovación del Título Habilitante para el Servicio de Transporte Internacional modalidad Cable Submarino para empresas públicas o instituciones del sector público",1700,20]
["ARCOTEL-032-02-02","Renovación del Título Habilitante para el Servicio de Transporte Internacional modalidad Cable Submarino para personas naturales o jurídicas de derecho privado",1700,20]
["ARCOTEL-025-02-02","Renovación del Título Habilitante para el Servicio Móvil Avanzado a través de OMV para personas jurídicas de derecho privado, empresas de la economía mixta donde el Estado tenga mayoría accionaria y Empresas de la Economía Popular y Solidaria",3650,20]
["ARCOTEL-025-02-01","Renovación del Título Habilitante para el Servicio Móvil Avanzado a través de Operador Móvil Virtual para empresas públicas",21900,20]
["ARCOTEL-018-02-01","Renovación del Título Habilitante para el Servicio Móvil Avanzado para empresas públicas",2190,20]
["ARCOTEL-018-02-02","Renovación del Título Habilitante para el Servicio Móvil Avanzado para personas jurídicas de derecho privado",3650,20]
["ARCOTEL-030-02-01","Renovación Título Habilitante para un Sistema de Audio y Video por Suscripción bajo modalidades de Cable Físico o TV Codificada Satelital, personas naturales, personas jurídicas de derecho priv, inst del sector público o em públicas",2400,20]
["ARCOTEL-027-05-03","Solicitud de extinción del Título Habilitante para el Servicio de Valor Agregado por concepto de declaración de disolución, quiebra o liquidación para personas jurídicas de derecho privado",752,20]

{"sheet":"AUXILIAR COSTO ADMINISTRACIÓN","index":5,"n_rows":20,"n_cols":3,"rows_kept":20,"cut":false,"hidden":false,"merged":[[1,1,1,2]]}
[]
["TRÁMITE:"]
["NO.","ACTIVIDAD","TIEMPO (HORAS)"]
[1]
[2]
[3]
[4]
[5]
[6]
[7]
[8]
[9]
[10]
[11]
[12]
[13]
[14]
[15]
[]
[null,"SUMATORIA ACTIVIDADES",{"$f":"SUM(C4:C19)","v":0}]

{"sheet":"TIEMPO DE RESPUESTA","index":6,"n_rows":297,"n_cols":4,"rows_kept":297,"cut":false,"hidden":false,"merged":[[0,0,0,3],[1,0,1,3]]}
["PRIORIZACIÓN DE TRÁMITES ADMINISTRATIVOS"]
["TIEMPO DE RESPUESTA"]
[]
["IDENTIFICADOR","TRÁMITE","TIEMPO RESPUESTA (horas laborables)","PUNTUACIÓN"]
["ARCOTEL-035-02-01","Asesoría para la formación de Equipos de Respuesta a Incidentes de Seguridad Informática (CSIRT)",2,0]
["ARCOTEL-014-03-05","Autorización de adquisición de acciones o participaciones de empresas para el Servicio de Acceso a Internet",300,30]
["ARCOTEL-015-03-04","Autorización de adquisición de acciones o participaciones de empresas para el Servicio de Telecomunicaciones Móviles por Satélite",300,30]
["ARCOTEL-018-03-05","Autorización de adquisición de acciones o participaciones de empresas para el Servicio Móvil Avanzado",300,30]
["ARCOTEL-025-03-05","Autorización de adquisición de acciones o participaciones de empresas para el Servicio Móvil Avanzado bajo la modalidad de Operador Móvil Virtual",300,30]
["ARCOTEL-017-03-08","Autorización de adquisición de acciones o participaciones de empresas para el Servicio Portador",300,30]
["ARCOTEL-031-03-02","Autorización de ampliación de cobertura para el Servicio de Telefonía Fija",240,30]
["ARCOTEL-030-03-03","Autorización de ampliación de frecuencias para incremento o decremento de canales para un Sistema de Audio y Video por Suscripción",240,30]
["ARCOTEL-014-03-02","Autorización de cambio de control para el Servicio de Acceso a Internet",450,30]
["ARCOTEL-027-03-03","Autorización de cambio de control para el Servicio de Valor Agregado",450,30]
["ARCOTEL-017-03-05","Autorización de cambio de control para el Servicio Portador",800,30]
["ARCOTEL-020-03-03","Autorización de cambios de Control para el Servicio Comunal, Servicio Troncalizado, Transporte Internacional Modalidad Provisión de Segmento Espacial",32,0]
["ARCOTEL-032-03-05","Autorización de cambios en el área de registro/permiso, servicios, etc. que implica cambio de control para el Servicio de Transporte Internacional modalidad Cable Submarino",450,30]
["ARCOTEL-016-03-03","Autorización de cancelación de enlaces terrestres y satelitales asociado a una Red Privada de Telecomunicaciones",40,0]
["ARCOTEL-014-03-04","Autorización de fusión de compañías o personas jurídicas de derecho privado poseedoras de Títulos Habilitantes para el Servicio de Acceso a Internet",300,30]
["ARCOTEL-015-03-03","Autorización de fusión de compañías o personas jurídicas de derecho privado poseedoras de Títulos Habilitantes para el Servicio de Telecomunicaciones Móviles por Satélite",300,30]
["ARCOTEL-027-03-05","Autorización de fusión de compañías o personas jurídicas de derecho privado poseedoras de Títulos Habilitantes para el Servicio de Valor Agregado",300,30]
["ARCOTEL-018-03-04","Autorización de fusión de compañías o personas jurídicas de derecho privado poseedoras de Títulos Habilitantes para el Servicio Móvil Avanzado",300,30]
["ARCOTEL-025-03-04","Autorización de fusión de compañías o personas jurídicas de derecho privado poseedoras de Títulos Habilitantes para el Servicio Móvil Avanzado a través de Operador Móvil Virtual",300,30]
["ARCOTEL-017-03-07","Autorización de fusión de compañías o personas jurídicas de derecho privado poseedoras de Títulos Habilitantes para el Servicio Portador",300,30]
["ARCOTEL-031-03-03","Autorización de fusión de dos compañías o personas jurídicas de derecho privado poseedoras de Títulos Habilitantes para el Servicio de Telefonía Fija",300,30]
["ARCOTEL-032-03-03","Autorización de fusión de dos compañías o personas jurídicas de derecho privado poseedoras de Títulos Habilitantes para el Servicio de Transporte Internacional modalidad Cable Submarino",300,30]
["ARCOTEL-032-03-04","Autorización de incremento y reubicación de estación terrena para el Servicio de Transporte Internacional modalidad Cable Submarino",240,30]
["ARCOTEL-037-02-04","Autorización de incremento, modificación y cancelación de Radiobases para el Servicio de Telefonía Fija",169,30]
["ARCOTEL-027-03-01","Autorización de modificaciones técnicas para el Servicio de Valor Agregado",240,30]
["ARCOTEL-025-03-01","Autorización de modificaciones técnicas y administrativas para el Servicio Móvil Avanzado a través de Operador Móvil Virtual",240,30]
["ARCOTEL-024-03-11","Autorización de prórroga para inicio de operaciones para el Servicio de Radiodifusión Sonora y Televisión por Señal Abierta",148,30]
["ARCOTEL-017-03-09","Autorización de prórroga para inicio de operaciones para el Servicio Portador",300,30]
["ARCOTEL-020-03-05","Autorización de prórroga para instalación e inicio de operaciones para el Servicio Comunal, Servicio Troncalizado y Transporte Internacional Modalidad Provisión Segmento Espacial",40,0]
["ARCOTEL-015-03-05","Autorización de prórrogas para el Servicio de Telecomunicaciones Móviles por Satélite",50,30]
["ARCOTEL-025-03-06","Autorización de prórrogas para el Servicio Móvil Avanzado a través de Operador Móvil Virtual",50,30]
["ARCOTEL-031-03-01","Autorización de prórrogas varias para el Servicio de Telefonía Fija",50,30]
["ARCOTEL-032-03-01","Autorización de prórrogas varias para el Servicio de Transporte Internacional modalidad Cable Submarino",50,30]
["ARCOTEL-015-03-01","Autorización de transferencia o cesión de acciones que implican cambio de control para el Servicio de Telecomunicaciones Móviles por Satélite",300,30]
["ARCOTEL-018-03-02","Autorización de transferencia o cesión de acciones que implican cambio de control para el Servicio Móvil Avanzado",300,30]
["ARCOTEL-025-03-02","Autorización de transferencia o cesión de acciones que implican cambio de control para el Servicio Móvil Avanzado a través de Operador Móvil Virtual",300,30]
["ARCOTEL-020-03-08","Autorización de Transferencia o Cesión del Título Habilitante para el Servicio Comunal, Servicio Troncalizado, Transporte Internacional Modalidad Provisión de Segmento Espacial",40,0]
["ARCOTEL-014-03-03","Autorización de transferencia o cesión del Título Habilitante para el Servicio de Acceso a Internet para personas naturales o jurídicas de derecho privado",300,30]
["ARCOTEL-015-03-02","Autorización de transferencia o cesión del Título Habilitante para el Servicio de Telecomunicaciones Móviles por Satélite",300,30]
["ARCOTEL-027-03-04","Autorización de transferencia o cesión del Título Habilitante para el Servicio de Valor Agregado para personas naturales o jurídicas",300,30]
["ARCOTEL-018-03-03","Autorización de transferencia o cesión del Título Habilitante para el Servicio Móvil Avanzado",300,30]
["ARCOTEL-025-03-03","Autorización de transferencia o cesión del Título Habilitante para el Servicio Móvil Avanzado a través de Operador Móvil Virtual",300,30]
["ARCOTEL-017-03-06","Autorización de transferencia o cesión del Título Habilitante para el Servicio Portador para personas naturales o jurídicas",300,30]
["ARCOTEL-031-03-07","Autorización de vinculación que implica cambio de control para el Servicio de Telefonía Fija",450,30]
["ARCOTEL-032-03-02","Autorización de vinculación que implica cambio de control para el Servicio de Transporte Internacional modalidad Cable Submarino",450,30]
["ARCOTEL-026-02-01","Cancelación de Inscripción de Proveedores de Infraestructura física",360,30]
["ARCOTEL-033-03-01","Cancelación del Certificado de Inscripción en el Registro Público de Telecomunicaciones de Centros de Acceso a la Información a través de Internet (Cibercafés)",10,0]
["ARCOTEL-018-05-02","Declaración de disolución, quiebra o liquidación para personas jurídicas de derecho privado, por hechos o actos que impidan la continuidad del título habilitante",300,30]
["ARCOTEL-028-05-01","Devolución voluntaria o por acuerdo mutuo del Título Habilitante de una Entidad de Certificación de Información y Servicios Relacionados Acreditados",240,30]
["ARCOTEL-020-07-01","Devolución voluntaria o por acuerdo mutuo del Título Habilitante para el Servicio Comunal, Servicio Troncalizado y Transporte Internacional Modalidad Provisión Segmento Especial",40,0]
["ARCOTEL-023-04-01","Devolución voluntaria o por acuerdo mutuo del Título Habilitante para el Servicio de Radioaficionados y Banda Ciudadana",40,0]
["ARCOTEL-015-05-01","Devolución voluntaria o por acuerdo mutuo del Título Habilitante para el Servicio de Telecomunicaciones Móviles por Satélite",300,30]
["ARCOTEL-031-05-01","Devolución voluntaria o por acuerdo mutuo del Título Habilitante para el Servicio de Telefonía Fija",300,30]
["ARCOTEL-032-05-01","Devolución voluntaria o por acuerdo mutuo del Título Habilitante para el Servicio de Transporte Internacional modalidad Cable Submarino para personas jurídicas de derecho privado",300,30]
["ARCOTEL-027-05-01","Devolución voluntaria o por acuerdo mutuo del Título Habilitante para el Servicio de Valor Agregado",300,30]
["ARCOTEL-025-05-01","Devolución voluntaria o por acuerdo mutuo del Título Habilitante para el Servicio Móvil Avanzado a través de Operador Móvil Virtual para personas jurídicas de derecho privado",300,30]
["ARCOTEL-018-05-01","Devolución voluntaria o por acuerdo mutuo del Título Habilitante para el Servicio Móvil Avanzado para personas jurídicas de derecho privado",300,30]
["ARCOTEL-017-05-01","Devolución voluntaria o por acuerdo mutuo del Título Habilitante para el Servicio Portador",300,30]
["ARCOTEL-015-05-03","Extinción del TH para el Servicio de Telecomunicaciones Móviles por Satélite por concepto de declaración de disolución, quiebra o liquidación para personas jurídicas de derecho privado, por pérdida de la capacidad civil de su titular...",300,30]
["ARCOTEL-014-05-03","Extinción del Título Habilitante para el Servicio de Acceso a Internet por concepto de declaración de disolución, quiebra o liquidación para personas jurídicas de derecho privado",560,30]
["ARCOTEL-030-05-03","Extinción del Título Habilitante para el Servicio de Audio y Video por Susucripción por concepto de declaración de disolución, quiebra o liquidación para personas jurídicas de derecho privado",700.95,30]
["ARCOTEL-031-05-02","Extinción del Título Habilitante para el Servicio de Telefonía Fija por concepto de declaración de disolución, quiebra o liquidación para personas jurídicas de derecho privado",560,30]
["ARCOTEL-032-05-03","Extinción del Título Habilitante para el Servicio de Transporte Internacional modalidad Cable Submarino por concepto de declaración de disolución, quiebra o liquidación para personas jurídicas de derecho privado",300,30]
["ARCOTEL-017-05-03","Extinción del Título Habilitante para el Servicio Portador por concepto de declaración de disolución, quiebra o liquidación para personas jurídicas de derecho privado",300,30]
["ARCOTEL-025-05-02","Extinción Título Habilitante Servicio Móvil Avanzado a través de OMV por concepto declaración de disolución, quiebra o liquidación personas jurídicas de derecho privado o por hechos o actos que impidan la continuidad",300,30]
["ARCOTEL-030-04-14","Incorporación de estaciones de TV abierta para un Sistema de Audio y Video por Suscripción",13,0]
["ARCOTEL-033-02-01","Modificación al Certificado de Inscripción en el Registro Público de Telecomunicaciones de Centros de Acceso a la Información a través de Internet (Cibercafés)",10,0]
["ARCOTEL-015-04-03","Notificación adquisición de acciones o participaciones de empresas que no implica cambio de Control para el Servicio de Telecomunicaciones Móviles por Satélite",300,30]
["ARCOTEL-018-04-04","Notificación adquisición de acciones o participaciones de empresas que no implica cambio de Control para el Servicio Móvil Avanzado",300,30]
["ARCOTEL-032-04-02","Notificación de actualización de coordenadas geográficas de sitios previamente autorizados para el Servicio de Transporte Internacional modalidad Cable Submarino",240,30]
["ARCOTEL-025-04-04","Notificación de adquisición de acciones o participaciones de empresas para el Servicio Móvil Avanzado bajo la modalidad de Operador Móvil Virtual",300,30]
["ARCOTEL-018-04-14","Notificación de asignación y liberación de recurso de sincronismo del Servicio Móvil Avanzado",160,30]
["ARCOTEL-018-04-13","Notificación de asignación y liberación de recurso de transmisión del Servicio Móvil Avanzado",160,30]
["ARCOTEL-031-04-08","Notificación de asignación y liberación de recurso numérico de señalización para el Servicio de Telefonía Fija",160,30]
["ARCOTEL-032-04-03","Notificación de cambio de marca y modelo de Equipo para el Servicio de Transporte Internacional modalidad Cable Submarino",240,30]
["ARCOTEL-030-04-09","Notificación de cambio de nombre de estación (denominación comercial) para un Sistema de Audio y Video por Suscripción",8,0]
["ARCOTEL-020-06-04","Notificación de cambio de Razón Social para el Servicio Comunal, Servicio Trancalizado, Transporte Internacional Modalidad Provisión Segmento Especial",40,0]
["ARCOTEL-014-04-05","Notificación de cambio de Razón Social para el Servicio de Acceso a Internet para personas jurídicas de derecho privado",300,30]
["ARCOTEL-015-04-06","Notificación de cambio de Razón Social para el Servicio de Telecomunicaciones Móviles por Satélite",300,30]
["ARCOTEL-031-04-03","Notificación de cambio de Razón Social para el Servicio de Telefonía Fija",300,30]
["ARCOTEL-027-04-05","Notificación de cambio de Razón Social para el Servicio de Valor Agregado para personas jurídicas de derecho privado y empresas públicas o instituciones del sector público",30,0]
["ARCOTEL-018-04-06","Notificación de cambio de Razón Social para el Servicio Móvil Avanzado",300,30]
["ARCOTEL-025-04-06","Notificación de cambio de Razón Social para el Servicio Móvil Avanzado a través de Operador Móvil Virtual",300,30]
["ARCOTEL-017-04-05","Notificación de cambio de Razón Social para el Servicio Portador para personas jurídicas de derecho privado y empresas públicas",300,30]
["ARCOTEL-031-04-02","Notificación de cambio de Representante Legal para el Servicio de Telefonía Fija",300,30]
["ARCOTEL-020-06-03","Notificación de cambio de Representante Legal, actualización de información de contacto y cambio de domicilio para el Servicio Comunal, Servicio Troncalizado y Transporte Internacional Modalidad Provisión Segmento Especial",80,30]
["ARCOTEL-015-04-05","Notificación de cambio de Representante Legal, actualización de información de contacto y cambio de domicilio para el Servicio de Telecomunicaciones Móviles por Satélite",300,30]
["ARCOTEL-025-04-05","Notificación de cambio de Representante Legal, actualización de información de contacto y cambio de domicilio para el Servicio Móvil Avanzado a través de Operador Móvil Virtual",300,30]
["ARCOTEL-018-04-05","Notificación de cambio de Representante Legal, actualización de información de contacto y cambio de domicilio para el Servicio Móvil Avanzado para personas jurídicas de derecho privado y empresas públicas",300,30]
["ARCOTEL-017-04-04","Notificación de cambio de Representante Legal, actualización de información de contacto y cambio de domicilio para el Servicio Portador para personas jurídicas de derecho privado y empresas públicas",300,30]
["ARCOTEL-030-04-10","Notificación de cambio y/o actualización de equipos que no impliquen modificación de características autorizadas para un Sistema de Audio y Video por Suscripción",6,0]
["ARCOTEL-027-04-07","Notificación de cumplimiento de Georreferenciación para el Servicio de Valor Agregado",6,0]
["ARCOTEL-026-02-02","Notificación de extinción de la persona jurídica o muerte de la persona natural inscrita como proveedores de infraestructura física",300,30]
["ARCOTEL-030-04-07","Notificación de incremento o decremento de canales locales para guía de programación para un Sistema de Audio y Video por Suscripción",8,0]
["ARCOTEL-030-04-06","Notificación de incremento o decremento del número de canales de servicios de valor agregado (PPV, VoD, etc.) para un Sistema de Audio y Video por Suscripción",8,0]
["ARCOTEL-028-04-05","Notificación de la Declaración de Prácticas de Certificación de una Entidad de Certificación de Información y Servicios Relacionados Acreditados",6,0]
["ARCOTEL-014-04-02","Notificación de modificación de capital para el Servicio de Acceso a Internet para personas jurídicas de derecho privado",300,30]
["ARCOTEL-015-04-01","Notificación de modificación de capital para el Servicio de Telecomunicaciones Móviles por Satélite",300,30]
["ARCOTEL-031-04-04","Notificación de modificación de capital para el Servicio de Telefonía Fija",300,30]
["ARCOTEL-032-04-04","Notificación de modificación de Capital para el Servicio de Transporte Internacional modalidad Cable Submarino",300,30]
["ARCOTEL-027-04-02","Notificación de modificación de capital para el Servicio de Valor Agregado para personas jurídicas de derecho privado y empresas públicas o instituciones del sector público",300,30]
["ARCOTEL-025-04-02","Notificación de modificación de capital para el Servicio Móvil Avanzado a través de Operador Móvil Virtual",300,30]
["ARCOTEL-018-04-02","Notificación de modificación de capital para el Servicio Móvil Avanzado para personas jurídicas de derecho privado",300,30]
["ARCOTEL-017-04-02","Notificación de modificación de capital para el Servicio Portador para personas jurídicas de derecho privado",300,30]
["ARCOTEL-014-04-03","Notificación de modificación de Estatutos para el Servicio de Acceso a Internet para personas jurídicas de derecho privado y empresas públicas",300,30]
["ARCOTEL-015-04-02","Notificación de modificación de Estatutos para el Servicio de Telecomunicaciones Móviles por Satélite",300,30]
["ARCOTEL-031-04-05","Notificación de modificación de Estatutos para el Servicio de Telefonía Fija",300,30]
["ARCOTEL-032-04-05","Notificación de modificación de Estatutos para el Servicio de Transporte Internacional modalidad Cable Submarino",300,30]
["ARCOTEL-027-04-03","Notificación de modificación de Estatutos para el Servicio de Valor Agregado para personas jurídicas de derecho privado y empresas públicas o instituciones del sector público",300,30]
["ARCOTEL-025-04-03","Notificación de modificación de Estatutos para el Servicio Móvil Avanzado a través de Operador Móvil Virtual",300,30]
["ARCOTEL-018-04-03","Notificación de modificación de Estatutos para el Servicio Móvil Avanzado para personas jurídicas de derecho privado y empresas públicas",300,30]
["ARCOTEL-017-04-03","Notificación de modificación de Estatutos para el Servicio Portador para personas jurídicas de derecho privado y empresas públicas",300,30]
["ARCOTEL-018-04-01","Notificación de modificaciones técnicas y administrativas para el Servicio Móvil Avanzado",240,30]
["ARCOTEL-025-04-01","Notificación de modificaciones técnicas y administrativas para el Servicio Móvil Avanzado a través de Operador Móvil Virtual",240,30]
["ARCOTEL-016-05-02","Notificación de muerte del titular del Título Habilitante de Red Privada y Uso de Frecuencias de Telecomunicaciones",104,30]
["ARCOTEL-028-05-02","Notificación de muerte del titular del Título Habilitante de una Entidad de Certificación de Información y Servicios Relacionados Acreditados para personas naturales o jurídicas de derecho privado",240,30]
["ARCOTEL-020-07-02","Notificación de muerte del titular del Título Habilitante para el Servicio Comunal y Troncalizado",40,0]
["ARCOTEL-014-05-02","Notificación de muerte del titular del Título Habilitante para el Servicio de Acceso a Internet para personas naturales",240,30]
["ARCOTEL-030-05-02","Notificación de muerte del titular del Título Habilitante para el Servicio de Audio y Video por Susucripción para personas naturales o jurídicas de derecho privado",700.95,30]
["ARCOTEL-015-05-02","Notificación de muerte del titular del Título Habilitante para el Servicio de Telecomunicaciones Móviles por Satélite para personas naturales",300,30]
["ARCOTEL-032-05-02","Notificación de muerte del titular del Título Habilitante para el Servicio de Transporte Internacional modalidad Cable Submarino para personas naturales",300,30]
["ARCOTEL-027-05-02","Notificación de muerte del titular del Título Habilitante para el Servicio de Valor Agregado para personas naturales o jurídicas de derecho privado",300,30]
["ARCOTEL-017-05-02","Notificación de muerte del titular del Título Habilitante para el Servicio Portador para personas naturales",300,30]
["ARCOTEL-025-04-09","Notificación de reportes contractuales, legales y reglamentarios del Servicio Móvil Avanzado a través de Operador Móvil Virtual",240,30]
["ARCOTEL-020-06-06","Notificación de Transferencia o Cesión de acciones que no impliquen cambio de control para el Servicio Comunal, Servicio Troncalizado y Transporte Internacional Modalidad Provisión Segmento Especial",40,0]
["ARCOTEL-014-04-01","Notificación de transferencia o cesión de acciones que no impliquen cambio de control para el Servicio de Acceso a Internet para personas jurídicas de derecho privado",300,30]
["ARCOTEL-027-04-01","Notificación de transferencia o cesión de acciones que no impliquen cambio de control para el Servicio de Valor Agregado para personas jurídicas de derecho privado y empresas públicas o instituciones del sector público",300,30]
["ARCOTEL-017-04-01","Notificación de transferencia o cesión de acciones que no impliquen cambio de control para el Servicio Portador para personas jurídicas de derecho privado",300,30]
["ARCOTEL-031-04-10","Notificación del Plan Técnico Fundamental de Sincronismo para el Servicio de Telefonía Fija",160,30]
["ARCOTEL-031-04-09","Notificación del Plan Técnico Fundamental de Transmisión para el Servicio de Telefonía Fija",160,30]
["ARCOTEL-037-01-01","Otorgamiento de título habilitante de frecuencias asociadas a la prestación de Servicios de Telecomunicaciones",397.28,30]
["ARCOTEL-014-01-03","Otorgamiento del Título Habilitante para el Servicio de Acceso a Internet para empresas públicas",280,30]
["ARCOTEL-015-01-03","Otorgamiento del Título Habilitante para el Servicio de Telecomunicaciones Móviles por Satélite y Concesión de Frecuencias para empresas públicas",280,30]
["ARCOTEL-015-01-02","Otorgamiento del Título Habilitante para el Servicio de Telecomunicaciones Móviles por Satélite y Concesión de Frecuencias para personas jurídicas de derecho privado",280,30]
["ARCOTEL-015-01-01","Otorgamiento del Título Habilitante para el Servicio de Telecomunicaciones Móviles por Satélite y Concesión de Frecuencias para personas naturales",280,30]
["ARCOTEL-031-01-01","Otorgamiento del Título Habilitante para el Servicio de Telefonía Fija para empresas públicas o instituciones del sector público",568,30]
["ARCOTEL-032-01-01","Otorgamiento del Título Habilitante para el Servicio de Transporte Internacional modalidad Cable Submarino para empresas públicas o instituciones del sector público",280,30]
["ARCOTEL-032-01-02","Otorgamiento del Título Habilitante para el Servicio de Transporte Internacional modalidad Cable Submarino para personas naturales o jurídicas de derecho privado",280,30]
["ARCOTEL-027-01-03","Otorgamiento del Título Habilitante para el Servicio de Valor Agregado para empresas públicas",280,30]
["ARCOTEL-027-01-01","Otorgamiento del Título Habilitante para el Servicio de Valor Agregado para personas naturales",280,30]
["ARCOTEL-025-01-02","Otorgamiento del Título Habilitante para el Servicio Móvil Avanzado a través de OMV para personas jurídicas de derecho privado, empresas de la economía mixta donde el Estado tenga mayoría accionaria y Empresas Economía Popular y Solidaria",568,30]
["ARCOTEL-025-01-01","Otorgamiento del Título Habilitante para el Servicio Móvil Avanzado a través de Operador Móvil Virtual para empresas públicas",568,30]
["ARCOTEL-018-01-01","Otorgamiento del Título Habilitante para el Servicio Móvil Avanzado para empresas públicas",568,30]
["ARCOTEL-018-01-02","Otorgamiento del Título Habilitante para el Servicio Móvil Avanzado para personas jurídicas de derecho privado",568,30]
["ARCOTEL-017-01-03","Otorgamiento del Título Habilitante para el Servicio Portador para empresas públicas",280,30]
["ARCOTEL-017-01-01","Otorgamiento del Título Habilitante para el Servicio Portador para personas naturales",280,30]
["ARCOTEL-030-01-03","Otorgamiento del Título Habilitante para un Sistema de Audio y Video por Suscripción bajo las modalidades de Cable Físico o Televisión Codificada Satelital para empresas públicas o instituciones del sector público.",640,30]
["ARCOTEL-028-01-02","Otorgamiento del Título Habilitante para una Entidad de Certificación de Información y Servicios Relacionados Acreditados para empresas públicas o instituciones del sector público",176,30]
["ARCOTEL-028-01-01","Otorgamiento del Título Habilitante para una Entidad de Certificación de Información y Servicios Relacionados Acreditados para personas jurídicas de derecho privado",176,30]
["ARCOTEL-031-01-02","Otorgamiento del Título Habilitante Servicio de Telefonía Fija para personas jurídicas de derecho privado, empresas de la economía mixta donde el Estado tenga mayoría accionaria y empresas de la economía popular y solidaria",568,30]
["ARCOTEL-023-01-04","Otorgamiento y Renovación de la Licencia para el Servicio de Radioaficionados Internacional y de transito",52,30]
["ARCOTEL-030-04-12","Registro de Canales Codificados para un Sistema de Audio y Video por Suscripción",5,0]
["ARCOTEL-032-04-01","Registro de Contrato de Adhesión o Reventa para el Servicio de Transporte Internacional modalidad Cable Submarino",600,30]
["ARCOTEL-027-03-07","Registro de Contrato de Adhesión o Reventa para el Servicio de Valor Agregado",300,30]
["ARCOTEL-015-04-07","Registro de Contrato de Adhesión para el Servicio de Telecomunicaciones Móviles por Satélite",600,30]
["ARCOTEL-025-04-07","Registro de Contrato de Adhesión para el Servicio Móvil Avanzado a través de Operador Móvil Virtual",600,30]
["ARCOTEL-015-04-08","Registro de Contrato de Reventa para el Servicio de Telecomunicaciones Móviles por Satélite",600,30]
["ARCOTEL-025-04-08","Registro de Contrato de Reventa para el Servicio Móvil Avanzado a través de Operador Móvil Virtual",600,30]
["ARCOTEL-030-04-13","Registro de Proveedores de Programación Internacional para un Sistema de Audio y Video por Suscripción",3,0]
["ARCOTEL-014-02-03","Renovación del Título Habilitante para el Servicio de Acceso a Internet para empresas públicas",680,30]
["ARCOTEL-014-02-01","Renovación del Título Habilitante para el Servicio de Acceso a Internet para personas naturales",680,30]
["ARCOTEL-015-02-03","Renovación del Título Habilitante para el Servicio de Telecomunicaciones Móviles por Satélite y Concesión de Frecuencias para empresas públicas",680,30]
["ARCOTEL-015-02-02","Renovación del Título Habilitante para el Servicio de Telecomunicaciones Móviles por Satélite y Concesión de Frecuencias para personas jurídicas de derecho privado",680,30]
["ARCOTEL-015-02-01","Renovación del Título Habilitante para el Servicio de Telecomunicaciones Móviles por Satélite y Concesión de Frecuencias para personas naturales",680,30]
["ARCOTEL-031-02-01","Renovación del Título Habilitante para el Servicio de Telefonía Fija para empresas públicas o instituciones del sector público",8760,30]
["ARCOTEL-031-02-02","Renovación del Título Habilitante para el Servicio de Telefonía Fija para personas jurídicas de derecho privado, empresas de la economía mixta donde el Estado tenga mayoría accionaria y empresas de la economía popular y solidaria",14600,30]
["ARCOTEL-032-02-01","Renovación del Título Habilitante para el Servicio de Transporte Internacional modalidad Cable Submarino para empresas públicas o instituciones del sector público",680,30]
["ARCOTEL-032-02-02","Renovación del Título Habilitante para el Servicio de Transporte Internacional modalidad Cable Submarino para personas naturales o jurídicas de derecho privado",680,30]
["ARCOTEL-027-02-03","Renovación del Título Habilitante para el Servicio de Valor Agregado para empresas públicas",680,30]
["ARCOTEL-027-02-02","Renovación del Título Habilitante para el Servicio de Valor Agregado para personas jurídicas de derecho privado",680,30]
["ARCOTEL-027-02-01","Renovación del Título Habilitante para el Servicio de Valor Agregado para personas naturales",680,30]
["ARCOTEL-025-02-02","Renovación del Título Habilitante para el Servicio Móvil Avanzado a través de OMV para personas jurídicas de derecho privado, empresas de la economía mixta donde el Estado tenga mayoría accionaria y Empresas de la Economía Popular y Solidaria",14600,30]
["ARCOTEL-025-02-01","Renovación del Título Habilitante para el Servicio Móvil Avanzado a través de Operador Móvil Virtual para empresas públicas",8760,30]
["ARCOTEL-018-02-01","Renovación del Título Habilitante para el Servicio Móvil Avanzado para empresas públicas",8760,30]
["ARCOTEL-018-02-02","Renovación del Título Habilitante para el Servicio Móvil Avanzado para personas jurídicas de derecho privado",14600,30]
["ARCOTEL-017-02-03","Renovación del Título Habilitante para el Servicio Portador para empresas públicas",680,30]
["ARCOTEL-017-02-01","Renovación del Título Habilitante para el Servicio Portador para personas naturales",680,30]
["ARCOTEL-028-02-02","Renovación del Título Habilitante para una Entidad de Certificación de Información y Servicios Relacionados Acreditados para empresas públicas o instituciones del sector público",176,30]
["ARCOTEL-030-02-01","Renovación Título Habilitante para un Sistema de Audio y Video por Suscripción bajo modalidades de Cable Físico o TV Codificada Satelital, personas naturales, personas jurídicas de derecho priv, inst del sector público o em públicas",960,30]
["ARCOTEL-024-03-13","Solicitud de continuación de uso de los derechos del título habilitante por fallecimiento de la persona natural concesionaria de una frecuencia de Radiodifusión Sonora y de Televisión de Señal Abierta",40,0]
["ARCOTEL-006-01-03","Solicitud de credenciales para ensambladores de terminales de servicio móvil avanzado",64,30]
["ARCOTEL-028-05-03","Solicitud de extinción del Título Habilitante de una Entidad de Certificación de Información y Servicios Relacionados Acreditados por concepto de declaración de disolución, quiebra o liquidación para personas jurídicas de derecho privado",240,30]
["ARCOTEL-027-05-03","Solicitud de extinción del Título Habilitante para el Servicio de Valor Agregado por concepto de declaración de disolución, quiebra o liquidación para personas jurídicas de derecho privado",300,30]
["ARCOTEL-005-01-02","Solicitud de licencias no automáticas de importación de decodificadores para provisión de receptores de abonado y/o receptores de prestador de servicio para sistemas de audio y video por suscripción o tv abierta -para venta a un prestador",16,0]
["ARCOTEL-010-02-01","Solicitud de Renovación Temporal de Frecuencias para Radiodifusión Sonora y TV de Señal Abierta",200,30]
["ARCOTEL-024-05-03","Terminación del Título Habilitante para el Servicio de Radiodifusión Sonora y de Televisión de Señal Abierta por la causal de extinción de la persona jurídica",192,30]
["ARCOTEL-024-05-05","Terminación del Título Habilitante para el Servicio de Radiodifusión Sonora y de Televisión de Señal Abierta por pérdida de la capacidad civil del concesionario o disolución de la sociedad concesionaria",192,30]
["ARCOTEL-036-01-02","Asesoría para el tratamiento de incidentes y vulnerabilidades informáticas a usuarios de redes de telecomunicaciones",2,0]
["ARCOTEL-016-03-04","Autorización de incremento, modificación y cancelación de enlaces físicos para una Red Privada de Telecomunicaciones",144,30]
["ARCOTEL-016-03-02","Autorización de modificación de parámetros técnicos para enlaces terrestres y satelitales asociados a una Red Privada de Telecomunicaciones",89.36,30]
["ARCOTEL-018-03-01","Autorización de modificaciones técnicas y administrativas para el Servicio Móvil Avanzado",240,30]
["ARCOTEL-018-03-06","Autorización de prórrogas para el Servicio Móvil Avanzado",300,30]
["ARCOTEL-016-05-03","Extinción del Título Habilitante de Red Privada y Uso de Frecuencias de Telecomunicaciones por declaración anticipada y unilateral debidamente motivada",0,0]
["ARCOTEL-018-04-11","Notificación de asignación y liberación de número social público del Servicio Móvil Avanzado",160,30]
["ARCOTEL-018-04-10","Notificación de asignación y liberación de recurso numérico no geográfico del Servicio Móvil Avanzado",160,30]
["ARCOTEL-027-04-04","Notificación de cambio de Representante Legal para el Servicio de Valor Agregado para personas jurídicas de derecho privado y empresas públicas o instituciones del sector público",300,30]
["ARCOTEL-027-01-02","Otorgamiento del Título Habilitante para el Servicio de Valor Agregado para personas jurídicas de derecho privado",280,30]
["ARCOTEL-017-01-02","Otorgamiento del Título Habilitante para el Servicio Portador para personas jurídicas de derecho privado",280,30]
["ARCOTEL-017-02-02","Renovación del Título Habilitante para el Servicio Portador para personas jurídicas de derecho privado",680,30]
["ARCOTEL-028-02-01","Renovación del Título Habilitante para una Entidad de Certificación de Información y Servicios Relacionados Acreditados para personas jurídicas de derecho privado",176,30]
["ARCOTEL-020-03-07","Autorización de incremento, modificación y cancelación de satélites para el Servicio de Transporte Internacional Modalidad Provisión Segmento Especial",48,30]
["ARCOTEL-016-03-09","Autorización de transferencia o cesión del Título Habilitante de Red Privada y Uso de Frecuencias de Telecomunicaciones",40,0]
["ARCOTEL-024-05-01","Devolución voluntaria o por acuerdo mutuo del Título Habilitante para el Servicio de Radiodifusión Sonora y de Televisión de Señal Abierta",384,30]
["ARCOTEL-018-04-12","Notificación de asignación y liberación de recurso de señalización del Servicio Móvil Avanzado",160,30]
["ARCOTEL-014-04-04","Notificación de cambio de Representante Legal, actualización de información de contacto y cambio de domicilio para el Servicio de Acceso a Internet para personas jurídicas de derecho privado y empresas públicas",300,30]
["ARCOTEL-024-01-02","Otorgamiento del Título Habilitante para el Servicio de Radiodifusión Sonora y Televisión por Señal Abierta para Medios Privados y Comunitarios (Concurso Público)",0,0]
["ARCOTEL-016-01-01","Otorgamiento y Renovación del Título Habilitante de Operación de Red Privada y Uso de Frecuencias para enlaces terrestres y satelitales",421,30]
["ARCOTEL-017-04-06","Registro de Contrato de Adhesión o Reventa para el Servicio Portador",600,30]
["ARCOTEL-018-04-07","Registro de Contrato de Adhesión para el Servicio Móvil Avanzado",600,30]
["ARCOTEL-018-04-08","Registro de Contrato de Reventa para el Servicio Móvil Avanzado",600,30]
["ARCOTEL-005-01-04","Solicitud de licencias no automáticas de importación de decodificadores para personas naturales o jurídicas cuya actividad comercial o objeto social sea la prestación de servicios en general de mantenimiento",16,0]
["ARCOTEL-005-01-03","Solicitud de licencias no automáticas de importación de decodificadores para provisión de receptores de abonado y/o receptores de prestador de servicio para sistemas de audio y video por suscripción o tv abierta -para mantenerlos en perchas",16,0]
["ARCOTEL-030-03-02","Autorización de operación de canales locales para programación propia para un Sistema de Audio y Video por Suscripción",240,30]
["ARCOTEL-016-04-05","Notificación de cambio de Razón Social para el Título Habilitante de Red Privada y Uso de Frecuencias de Telecomunicaciones",456,30]
["ARCOTEL-030-04-02","Notificación de modificación de estatutos y cambios de socios o accionistas para un Sistema de Audio y Video por Suscripción",11,0]
["ARCOTEL-030-04-04","Notificación de modificación de redes con o sin cambio de tecnología para un Sistema de Audio y Video por Suscripción",8,0]
["ARCOTEL-030-04-01","Notificación de reubicación de la cabecera (head end) para un Sistema de Audio y Video por Suscripción",10,0]
["ARCOTEL-031-04-01","Registro de Contrato de Adhesión o Reventa para el Servicio de Telefonía Fija",600,30]
["ARCOTEL-014-02-02","Renovación del Título Habilitante para el Servicio de Acceso a Internet para personas jurídicas de derecho privado",680,30]
["ARCOTEL-036-01-01","Reporte de incidentes informáticos en redes de telecomunicaciones",2,0]
["ARCOTEL-005-01-05","Solicitud de licencias no automáticas de importación de decodificadores para fines sociales, académicos, seguridad y salud o de interés general, y para importar muestras de equipos decodificadores",16,0]
["ARCOTEL-007-01-01","Bloqueo de equipos terminales robados, perdidos o hurtados que no hayan sido utilizados en las redes de los prestadores del servicio móvil avanzado.",64,30]
["ARCOTEL-014-05-01","Devolución voluntaria o por acuerdo mutuo del Título Habilitante para el Servicio de Acceso a Internet",480,30]
["ARCOTEL-027-03-06","Autorización de adquisición de acciones o participaciones de empresas para el Servicio de Valor Agregado",300,30]
["ARCOTEL-010-01-01","Autorización Temporal de Frecuencias para Radiodifusión Sonora y TV de Señal Abierta",240,30]
["ARCOTEL-030-04-08","Notificación de actualización de coordenadas geográficas de sitios previamente autorizados para un Sistema de Audio y Video por Suscripción",8,0]
["ARCOTEL-030-03-01","Autorización de ampliación de cobertura para un Sistema de Audio y Video por Suscripción",240,30]
["ARCOTEL-030-01-01","Otorgamiento del Título Habilitante para un Sistema de Audio y Video por Suscripción bajo las modalidades de Cable Físico o Televisión Codificada Satelital para personas naturales",640,30]
["ARCOTEL-024-02-01","Renovación del Título Habilitante para el Servicio de Radiodifusión Sonora y Televisión por Señal Abierta para Personas Jurídicas de Derecho Público (Adjudicación Directa) y/o Medios Privados y Comunitarios",960,30]
["ARCOTEL-024-03-12","Autorización de cambio de Razón social o denominación objetiva para el Servicio de Radiodifusión Sonora y Televisión por Señal Abierta",227.2,30]
["ARCOTEL-016-03-11","Autorización de prórroga para instalación e inicio de operaciones para el Título Habilitante de Operación de Red Privada y Uso de Frecuencias de Telecomunicaciones",2,0]
["ARCOTEL-016-04-04","Notificación de cambio de Representante Legal, actualización de información de contacto y cambio de domicilio para una Red Privada de Telecomunicaciones",80,30]
["ARCOTEL-030-01-02","Otorgamiento del Título Habilitante para un Sistema de Audio y Video por Suscripción bajo las modalidades de Cable Físico o Televisión Codificada Satelital para personas jurídicas de derecho privado.",640,30]
["ARCOTEL-035-01-01","Reporte de vulnerabilidades informáticas en redes de telecomunicaciones",2,0]
["ARCOTEL-016-03-01","Autorización de incremento de frecuencias para enlaces terrestres y satelitales asociadas a una Red Privada de Telecomunicaciones",89.36,30]
["ARCOTEL-016-05-01","Devolución voluntaria o por acuerdo mutuo del Título Habilitante de Red Privada y Uso de Frecuencias de Telecomunicaciones",331.2,30]
["ARCOTEL-026-01-01","Inscripción de Proveedores de Infraestructura física",160,30]
["ARCOTEL-030-03-04","Autorización de prórroga para inicio de operaciones para un Sistema de Audio y Video por Suscripción",40,0]
["ARCOTEL-003-01-02 ","Certificación de obligaciones económicas, área de cobertura y/o derechos de concesión de servicios de telecomunicaciones solicitada por terceros autorizados por los poseedores de títulos habilitantes",0,0]
["ARCOTEL-030-05-01","Devolución voluntaria o por acuerdo mutuo del Título Habilitante para el Servicio de Audio y Video por Susucripción",700.95,30]
["ARCOTEL-009-01-01","Solicitud de medición de radiaciones no ionizantes por parte de la ciudadanía",240,30]
["ARCOTEL-009-03-01","Solicitud de verificación de inicio de operación de sistemas de radiodifusión y televisión abierta",240,30]
["ARCOTEL-023-03-01","Autorización de modificaciones para el Servicio de Radioaficionados y Banda Ciudadana",52,30]
["ARCOTEL-016-03-10","Autorización de cancelación parcial de frecuencias para Troncalizado y Radio de Dos Vías (móvil terrestre, aeronáutico y marítimo) asociado a una Red Privada de Telecomunicaciones",96,30]
["ARCOTEL-030-04-11","Registro de Contrato de Adhesión o Reventa para un Sistema de Audio y Video por Suscripción",8,0]
["ARCOTEL-020-01-01","Otorgamiento y Renovación del Título Habilitante para el Servicio Comunal, Servicio Troncalizado, Servicio Transporte Internacional Modalidad Segmento Espacial",899.84,30]
["ARCOTEL-030-04-05","Notificación de incremento y/o decremento del número de canales para un Sistema de Audio y Video por Suscripción que no involucran autorizaciones de nuevas frecuencias",8,0]
["ARCOTEL-020-03-06","Autorización de cancelación de frecuencias para el Servicio Comunal y Servicio Troncalizado",40,0]
["ARCOTEL-024-03-14","Autorización de Modificaciones Administrativas para el Servicio de Radiodifusión Sonora y Televisión por Señal Abierta",182,30]
["ARCOTEL-014-03-06","Autorización de prórroga para inicio de operaciones para el Servicio de Acceso a Internet",50,30]
["ARCOTEL-024-01-01","Otorgamiento del Título Habilitante para el Servicio de Radiodifusión Sonora y Televisión por Señal Abierta para Personas Jurídicas de Derecho Público (Adjudicación Directa)",360,30]
["ARCOTEL-014-04-06","Registro de Contrato de Adhesión o Reventa para el Servicio de Acceso a Internet",600,30]
["ARCOTEL-015-04-04","Notificación de reportes contractuales y en cumplimiento al ordenamiento jurídico vigente para el Servicio de Telecomunicaciones Móviles por Satélite",240,30]
["ARCOTEL-028-03-01","Registro de tercero vinculado para una Entidad de Certificación de Información y Servicios Relacionados Acreditados",120,30]
["ARCOTEL-014-01-02","Otorgamiento del Título Habilitante para el Servicio de Acceso a Internet para personas jurídicas de derecho privado",280,30]
["ARCOTEL-020-03-01","Autorización de incremento de frecuencias para el Servicio Comunal y Servicio Troncalizado",68.08,30]
["ARCOTEL-030-04-03","Notificación de actualización de la programación y/o antenas de recepción para un Sistema de Audio y Video por Suscripción",8,0]
["ARCOTEL-028-04-04","Notificación de facturación total del mes por una Entidad de Certificación de Información y Servicios Relacionados Acreditados",3,0]
["ARCOTEL-031-04-06","Notificación de modificación, instalación o ampliación de infraestructura para el Servicio de Telefonía Fija",240,30]
["ARCOTEL-016-03-06","Autorización de modificación de parámetros técnicos para Troncalizado y Radio de Dos Vías (móvil terrestre, aeronáutico y marítimo) asociados a una Red Privada de Telecomunicaciones",118.8,30]
["ARCOTEL-028-04-02","Notificación de número de certificados emitidos y revocados en el mes por una Entidad de Certificación de Información y Servicios Relacionados Acreditados",3,0]
["ARCOTEL-028-04-01","Notificación de número de solicitudes de servicio y trámite atendidos por una Entidad de Certificación de Información y Servicios Relacionados Acreditados",3,0]
["ARCOTEL-028-04-03","Notificación de números de usuarios de servicios relacionados con la firma digital por una Entidad de Certificación de Información y Servicios Relacionados Acreditados",3,0]
["ARCOTEL-002-01-01","Solicitud de estudios o información estadística del sector de las telecomunicaciones",40,0]
["ARCOTEL-016-03-05","Autorización de incremento de frecuencias para Troncalizado y Radio de Dos Vías (móvil terrestre, aeronáutico y marítimo) asociadas a una Red Privada de Telecomunicaciones",101.6,30]
["ARCOTEL-020-03-02","Autorización de modificaciones técnicas para el Servicio Comunal y Servicio Troncalizado",62.16,30]
["ARCOTEL-005-01-01","Solicitud de licencias no automáticas de importación de decodificadores para poseedores de títulos habilitantes de telecomunicaciones o radiodifusión y/o receptores para usuarios de televisión digital terrestre abierta",16,0]
["ARCOTEL-037-02-02","Autorización de cancelación de enlaces terrestres y satelitales para la prestación de Servicios de Telecomunicaciones",34,0]
["ARCOTEL-023-01-01","Otorgamiento y Renovación de la Licencia para el Servicio de Radioaficionados y Banda Ciudadana",56,30]
["ARCOTEL-016-01-02","Otorgamiento y Renovación del Título Habilitante de Operación de Red Privada y Uso de Frecuencias para Troncalizado y Radio de Dos Vías (móvil terrestre, aeronáutico y marítimo)",262.8,30]
["ARCOTEL-014-01-01","Otorgamiento del Título Habilitante para el Servicio de Acceso a Internet para personas naturales",280,30]
["ARCOTEL-014-03-01","Autorización de modificaciones técnicas de red física para el Servicio de Acceso a Internet",240,30]
["ARCOTEL-019-01-01","Otorgamiento y Renovación de Frecuencias Temporales de Telecomunicaciones",51.52,30]
["ARCOTEL-018-04-09","Notificación de reportes contractuales, legales y reglamentarios del Servicio Móvil Avanzado",240,30]
["ARCOTEL-017-04-07","Notificación de cumplimiento de Georreferenciación para el Servicio Portador",6,0]
["ARCOTEL-003-01-03","Certificación de infracciones y sanciones emitidas por ARCOTEL",80,30]
["ARCOTEL-009-04-01","Solicitud de suspensión de emisiones de sistemas de radiodifusión y televisión de señal abierta",64,30]
["ARCOTEL-006-01-01","Solicitud de credenciales para importadores (personas jurídicas) de terminales de servicio móvil avanzado",64,30]
["ARCOTEL-033-01-01","Otorgamiento del Certificado de Inscripción en el Registro Público de Telecomunicaciones de Centros de Acceso a la Información a través de Internet (Cibercafés)",10,0]
["ARCOTEL-037-02-05","Autorización de incremento, modificación y cancelación de Radiobases para el Servicio Móvil Avanzado",70,30]
["ARCOTEL-009-02-01","Solicitud de concesionarios del espectro radioeléctrico para solución de interferencias",480,30]
["ARCOTEL-014-04-07","Notificación de cumplimiento de Georreferenciación para el Servicio de Acceso a Internet",6,0]
["ARCOTEL-024-04-01","Notificación de Modificaciones Técnicas para el Servicio de Radiodifusión Sonora y Televisión por Señal Abierta",140,30]
["ARCOTEL-017-03-01","Autorización de modificaciones técnicas para red física para el Servicio Portador",240,30]
["ARCOTEL-024-03-01","Autorización de Modificaciones Técnicas para el Servicio de Radiodifusión Sonora y Televisión por Señal Abierta",160,30]
["ARCOTEL-037-02-01","Autorización de incremento de enlaces terrestres y satelitales para la prestación de Servicios de Telecomunicaciones",77.900000000000006,30]
["ARCOTEL-006-01-02","Solicitud de credenciales para importadores (persona natural) de terminales de servicio móvil avanzado",64,30]
["ARCOTEL-037-02-03","Autorización de modificaciones técnicas de enlaces terrestres y satelitales para Servicios de Telecomunicaciones",79,30]
["ARCOTEL-031-04-07","Notificación de reserva, asignación y liberación de recurso numérico geográfico para el Servicio de Telefonía Fija.",160,30]
["ARCOTEL-001-01-01","Solicitud de información pública",80,30]
["ARCOTEL-003-01-01","Certificación de obligaciones económicas, área de cobertura y/o derechos de concesión de servicios de telecomunicaciones solicitada por los poseedores de títulos habilitantes",40,0]
["ARCOTEL-004-01-01","Solicitud de homologación de equipos terminales de telecomunicaciones",104,30]
["ARCOTEL-012-01-01","Presentación de reclamos, denuncias, sugerencias o solicitudes de información de los servicios de telecomunicaciones",360,30]

{"sheet":"CANAL ATENCIÓN","index":7,"n_rows":297,"n_cols":12,"rows_kept":297,"cut":false,"hidden":false,"merged":[[0,0,0,3],[1,0,1,3]]}
["PRIORIZACIÓN DE TRÁMITES ADMINISTRATIVOS"]
["CANAL DE ATENCIÓN"]
[null,null,null,null,null,null,null,null,"Totalmente en Línea",null,null,0]
["IDENTIFICADOR","TRÁMITE","CANAL ATENCIÓN","PUNTUACIÓN",null,null,null,null,"No se completa totalmente en línea.",null,null,10]
["ARCOTEL-035-02-01","Asesoría para la formación de Equipos de Respuesta a Incidentes de Seguridad Informática (CSIRT)","No se completa totalmente en línea.",10]
["ARCOTEL-014-03-05","Autorización de adquisición de acciones o participaciones de empresas para el Servicio de Acceso a Internet","No se completa totalmente en línea",10]
["ARCOTEL-015-03-04","Autorización de adquisición de acciones o participaciones de empresas para el Servicio de Telecomunicaciones Móviles por Satélite","No se completa totalmente en línea",10]
["ARCOTEL-018-03-05","Autorización de adquisición de acciones o participaciones de empresas para el Servicio Móvil Avanzado","No se completa totalmente en línea",10]
["ARCOTEL-025-03-05","Autorización de adquisición de acciones o participaciones de empresas para el Servicio Móvil Avanzado bajo la modalidad de Operador Móvil Virtual","No se completa totalmente en línea",10]
["ARCOTEL-017-03-08","Autorización de adquisición de acciones o participaciones de empresas para el Servicio Portador","No se completa totalmente en línea",10]
["ARCOTEL-031-03-02","Autorización de ampliación de cobertura para el Servicio de Telefonía Fija","No se completa totalmente en línea",10]
["ARCOTEL-030-03-03","Autorización de ampliación de frecuencias para incremento o decremento de canales para un Sistema de Audio y Video por Suscripción","No se completa totalmente en línea",10]
["ARCOTEL-014-03-02","Autorización de cambio de control para el Servicio de Acceso a Internet","No se completa totalmente en línea",10]
["ARCOTEL-027-03-03","Autorización de cambio de control para el Servicio de Valor Agregado","No se completa totalmente en línea",10]
["ARCOTEL-017-03-05","Autorización de cambio de control para el Servicio Portador","No se completa totalmente en línea",10]
["ARCOTEL-020-03-03","Autorización de cambios de Control para el Servicio Comunal, Servicio Troncalizado, Transporte Internacional Modalidad Provisión de Segmento Espacial","No se completa totalmente en línea",10]
["ARCOTEL-032-03-05","Autorización de cambios en el área de registro/permiso, servicios, etc. que implica cambio de control para el Servicio de Transporte Internacional modalidad Cable Submarino","No se completa totalmente en línea",10]
["ARCOTEL-016-03-03","Autorización de cancelación de enlaces terrestres y satelitales asociado a una Red Privada de Telecomunicaciones","No se completa totalmente en línea",10]
["ARCOTEL-014-03-04","Autorización de fusión de compañías o personas jurídicas de derecho privado poseedoras de Títulos Habilitantes para el Servicio de Acceso a Internet","No se completa totalmente en línea",10]
["ARCOTEL-015-03-03","Autorización de fusión de compañías o personas jurídicas de derecho privado poseedoras de Títulos Habilitantes para el Servicio de Telecomunicaciones Móviles por Satélite","No se completa totalmente en línea",10]
["ARCOTEL-027-03-05","Autorización de fusión de compañías o personas jurídicas de derecho privado poseedoras de Títulos Habilitantes para el Servicio de Valor Agregado","No se completa totalmente en línea",10]
["ARCOTEL-018-03-04","Autorización de fusión de compañías o personas jurídicas de derecho privado poseedoras de Títulos Habilitantes para el Servicio Móvil Avanzado","No se completa totalmente en línea",10]
["ARCOTEL-025-03-04","Autorización de fusión de compañías o personas jurídicas de derecho privado poseedoras de Títulos Habilitantes para el Servicio Móvil Avanzado a través de Operador Móvil Virtual","No se completa totalmente en línea",10]
["ARCOTEL-017-03-07","Autorización de fusión de compañías o personas jurídicas de derecho privado poseedoras de Títulos Habilitantes para el Servicio Portador","No se completa totalmente en línea",10]
["ARCOTEL-031-03-03","Autorización de fusión de dos compañías o personas jurídicas de derecho privado poseedoras de Títulos Habilitantes para el Servicio de Telefonía Fija","No se completa totalmente en línea",10]
["ARCOTEL-032-03-03","Autorización de fusión de dos compañías o personas jurídicas de derecho privado poseedoras de Títulos Habilitantes para el Servicio de Transporte Internacional modalidad Cable Submarino","No se completa totalmente en línea",10]
["ARCOTEL-032-03-04","Autorización de incremento y reubicación de estación terrena para el Servicio de Transporte Internacional modalidad Cable Submarino","No se completa totalmente en línea",10]
["ARCOTEL-037-02-04","Autorización de incremento, modificación y cancelación de Radiobases para el Servicio de Telefonía Fija","No se completa totalmente en línea",10]
["ARCOTEL-027-03-01","Autorización de modificaciones técnicas para el Servicio de Valor Agregado","Totalmente en línea",0]
["ARCOTEL-025-03-01","Autorización de modificaciones técnicas y administrativas para el Servicio Móvil Avanzado a través de Operador Móvil Virtual","No se completa totalmente en línea",10]
["ARCOTEL-024-03-11","Autorización de prórroga para inicio de operaciones para el Servicio de Radiodifusión Sonora y Televisión por Señal Abierta","No se completa totalmente en línea",10]
["ARCOTEL-017-03-09","Autorización de prórroga para inicio de operaciones para el Servicio Portador","No se completa totalmente en línea",10]
["ARCOTEL-020-03-05","Autorización de prórroga para instalación e inicio de operaciones para el Servicio Comunal, Servicio Troncalizado y Transporte Internacional Modalidad Provisión Segmento Espacial","No se completa totalmente en línea",10]
["ARCOTEL-015-03-05","Autorización de prórrogas para el Servicio de Telecomunicaciones Móviles por Satélite","No se completa totalmente en línea",10]
["ARCOTEL-025-03-06","Autorización de prórrogas para el Servicio Móvil Avanzado a través de Operador Móvil Virtual","No se completa totalmente en línea",10]
["ARCOTEL-031-03-01","Autorización de prórrogas varias para el Servicio de Telefonía Fija","No se completa totalmente en línea",10]
["ARCOTEL-032-03-01","Autorización de prórrogas varias para el Servicio de Transporte Internacional modalidad Cable Submarino","No se completa totalmente en línea",10]
["ARCOTEL-015-03-01","Autorización de transferencia o cesión de acciones que implican cambio de control para el Servicio de Telecomunicaciones Móviles por Satélite","No se completa totalmente en línea",10]
["ARCOTEL-018-03-02","Autorización de transferencia o cesión de acciones que implican cambio de control para el Servicio Móvil Avanzado","No se completa totalmente en línea",10]
["ARCOTEL-025-03-02","Autorización de transferencia o cesión de acciones que implican cambio de control para el Servicio Móvil Avanzado a través de Operador Móvil Virtual","No se completa totalmente en línea",10]
["ARCOTEL-020-03-08","Autorización de Transferencia o Cesión del Título Habilitante para el Servicio Comunal, Servicio Troncalizado, Transporte Internacional Modalidad Provisión de Segmento Espacial","No se completa totalmente en línea",10]
["ARCOTEL-014-03-03","Autorización de transferencia o cesión del Título Habilitante para el Servicio de Acceso a Internet para personas naturales o jurídicas de derecho privado","No se completa totalmente en línea",10]
["ARCOTEL-015-03-02","Autorización de transferencia o cesión del Título Habilitante para el Servicio de Telecomunicaciones Móviles por Satélite","No se completa totalmente en línea",10]
["ARCOTEL-027-03-04","Autorización de transferencia o cesión del Título Habilitante para el Servicio de Valor Agregado para personas naturales o jurídicas","No se completa totalmente en línea",10]
["ARCOTEL-018-03-03","Autorización de transferencia o cesión del Título Habilitante para el Servicio Móvil Avanzado","No se completa totalmente en línea",10]
["ARCOTEL-025-03-03","Autorización de transferencia o cesión del Título Habilitante para el Servicio Móvil Avanzado a través de Operador Móvil Virtual","No se completa totalmente en línea",10]
["ARCOTEL-017-03-06","Autorización de transferencia o cesión del Título Habilitante para el Servicio Portador para personas naturales o jurídicas","No se completa totalmente en línea",10]
["ARCOTEL-031-03-07","Autorización de vinculación que implica cambio de control para el Servicio de Telefonía Fija","No se completa totalmente en línea",10]
["ARCOTEL-032-03-02","Autorización de vinculación que implica cambio de control para el Servicio de Transporte Internacional modalidad Cable Submarino","No se completa totalmente en línea",10]
["ARCOTEL-026-02-01","Cancelación de Inscripción de Proveedores de Infraestructura física","No se completa totalmente en línea",10]
["ARCOTEL-033-03-01","Cancelación del Certificado de Inscripción en el Registro Público de Telecomunicaciones de Centros de Acceso a la Información a través de Internet (Cibercafés)","Totalmente en línea",0]
["ARCOTEL-018-05-02","Declaración de disolución, quiebra o liquidación para personas jurídicas de derecho privado, por hechos o actos que impidan la continuidad del título habilitante","No se completa totalmente en línea",10]
["ARCOTEL-028-05-01","Devolución voluntaria o por acuerdo mutuo del Título Habilitante de una Entidad de Certificación de Información y Servicios Relacionados Acreditados","No se completa totalmente en línea",10]
["ARCOTEL-020-07-01","Devolución voluntaria o por acuerdo mutuo del Título Habilitante para el Servicio Comunal, Servicio Troncalizado y Transporte Internacional Modalidad Provisión Segmento Especial","No se completa totalmente en línea",10]
["ARCOTEL-023-04-01","Devolución voluntaria o por acuerdo mutuo del Título Habilitante para el Servicio de Radioaficionados y Banda Ciudadana","No se completa totalmente en línea",10]
["ARCOTEL-015-05-01","Devolución voluntaria o por acuerdo mutuo del Título Habilitante para el Servicio de Telecomunicaciones Móviles por Satélite","No se completa totalmente en línea",10]
["ARCOTEL-031-05-01","Devolución voluntaria o por acuerdo mutuo del Título Habilitante para el Servicio de Telefonía Fija","No se completa totalmente en línea",10]
["ARCOTEL-032-05-01","Devolución voluntaria o por acuerdo mutuo del Título Habilitante para el Servicio de Transporte Internacional modalidad Cable Submarino para personas jurídicas de derecho privado","No se completa totalmente en línea",10]
["ARCOTEL-027-05-01","Devolución voluntaria o por acuerdo mutuo del Título Habilitante para el Servicio de Valor Agregado","No se completa totalmente en línea",10]
["ARCOTEL-025-05-01","Devolución voluntaria o por acuerdo mutuo del Título Habilitante para el Servicio Móvil Avanzado a través de Operador Móvil Virtual para personas jurídicas de derecho privado","No se completa totalmente en línea",10]
["ARCOTEL-018-05-01","Devolución voluntaria o por acuerdo mutuo del Título Habilitante para el Servicio Móvil Avanzado para personas jurídicas de derecho privado","No se completa totalmente en línea",10]
["ARCOTEL-017-05-01","Devolución voluntaria o por acuerdo mutuo del Título Habilitante para el Servicio Portador","No se completa totalmente en línea",10]
["ARCOTEL-015-05-03","Extinción del TH para el Servicio de Telecomunicaciones Móviles por Satélite por concepto de declaración de disolución, quiebra o liquidación para personas jurídicas de derecho privado, por pérdida de la capacidad civil de su titular...","No se completa totalmente en línea",10]
["ARCOTEL-014-05-03","Extinción del Título Habilitante para el Servicio de Acceso a Internet por concepto de declaración de disolución, quiebra o liquidación para personas jurídicas de derecho privado","No se completa totalmente en línea",10]
["ARCOTEL-030-05-03","Extinción del Título Habilitante para el Servicio de Audio y Video por Susucripción por concepto de declaración de disolución, quiebra o liquidación para personas jurídicas de derecho privado","No se completa totalmente en línea",10]
["ARCOTEL-031-05-02","Extinción del Título Habilitante para el Servicio de Telefonía Fija por concepto de declaración de disolución, quiebra o liquidación para personas jurídicas de derecho privado","No se completa totalmente en línea",10]
["ARCOTEL-032-05-03","Extinción del Título Habilitante para el Servicio de Transporte Internacional modalidad Cable Submarino por concepto de declaración de disolución, quiebra o liquidación para personas jurídicas de derecho privado","No se completa totalmente en línea",10]
["ARCOTEL-017-05-03","Extinción del Título Habilitante para el Servicio Portador por concepto de declaración de disolución, quiebra o liquidación para personas jurídicas de derecho privado","No se completa totalmente en línea",10]
["ARCOTEL-025-05-02","Extinción Título Habilitante Servicio Móvil Avanzado a través de OMV por concepto declaración de disolución, quiebra o liquidación personas jurídicas de derecho privado o por hechos o actos que impidan la continuidad","No se completa totalmente en línea",10]
["ARCOTEL-030-04-14","Incorporación de estaciones de TV abierta para un Sistema de Audio y Video por Suscripción","No se completa totalmente en línea",10]
["ARCOTEL-033-02-01","Modificación al Certificado de Inscripción en el Registro Público de Telecomunicaciones de Centros de Acceso a la Información a través de Internet (Cibercafés)","Totalmente en línea",0]
["ARCOTEL-015-04-03","Notificación adquisición de acciones o participaciones de empresas que no implica cambio de Control para el Servicio de Telecomunicaciones Móviles por Satélite","No se completa totalmente en línea",10]
["ARCOTEL-018-04-04","Notificación adquisición de acciones o participaciones de empresas que no implica cambio de Control para el Servicio Móvil Avanzado","No se completa totalmente en línea",10]
["ARCOTEL-032-04-02","Notificación de actualización de coordenadas geográficas de sitios previamente autorizados para el Servicio de Transporte Internacional modalidad Cable Submarino","No se completa totalmente en línea",10]
["ARCOTEL-025-04-04","Notificación de adquisición de acciones o participaciones de empresas para el Servicio Móvil Avanzado bajo la modalidad de Operador Móvil Virtual","No se completa totalmente en línea",10]
["ARCOTEL-018-04-14","Notificación de asignación y liberación de recurso de sincronismo del Servicio Móvil Avanzado","No se completa totalmente en línea",10]
["ARCOTEL-018-04-13","Notificación de asignación y liberación de recurso de transmisión del Servicio Móvil Avanzado","No se completa totalmente en línea",10]
["ARCOTEL-031-04-08","Notificación de asignación y liberación de recurso numérico de señalización para el Servicio de Telefonía Fija","No se completa totalmente en línea",10]
["ARCOTEL-032-04-03","Notificación de cambio de marca y modelo de Equipo para el Servicio de Transporte Internacional modalidad Cable Submarino","No se completa totalmente en línea",10]
["ARCOTEL-030-04-09","Notificación de cambio de nombre de estación (denominación comercial) para un Sistema de Audio y Video por Suscripción","No se completa totalmente en línea",10]
["ARCOTEL-020-06-04","Notificación de cambio de Razón Social para el Servicio Comunal, Servicio Trancalizado, Transporte Internacional Modalidad Provisión Segmento Especial","No se completa totalmente en línea",10]
["ARCOTEL-014-04-05","Notificación de cambio de Razón Social para el Servicio de Acceso a Internet para personas jurídicas de derecho privado","No se completa totalmente en línea",10]
["ARCOTEL-015-04-06","Notificación de cambio de Razón Social para el Servicio de Telecomunicaciones Móviles por Satélite","No se completa totalmente en línea",10]
["ARCOTEL-031-04-03","Notificación de cambio de Razón Social para el Servicio de Telefonía Fija","No se completa totalmente en línea",10]
["ARCOTEL-027-04-05","Notificación de cambio de Razón Social para el Servicio de Valor Agregado para personas jurídicas de derecho privado y empresas públicas o instituciones del sector público","No se completa totalmente en línea",10]
["ARCOTEL-018-04-06","Notificación de cambio de Razón Social para el Servicio Móvil Avanzado","No se completa totalmente en línea",10]
["ARCOTEL-025-04-06","Notificación de cambio de Razón Social para el Servicio Móvil Avanzado a través de Operador Móvil Virtual","No se completa totalmente en línea",10]
["ARCOTEL-017-04-05","Notificación de cambio de Razón Social para el Servicio Portador para personas jurídicas de derecho privado y empresas públicas","No se completa totalmente en línea",10]
["ARCOTEL-031-04-02","Notificación de cambio de Representante Legal para el Servicio de Telefonía Fija","No se completa totalmente en línea",10]
["ARCOTEL-020-06-03","Notificación de cambio de Representante Legal, actualización de información de contacto y cambio de domicilio para el Servicio Comunal, Servicio Troncalizado y Transporte Internacional Modalidad Provisión Segmento Especial","No se completa totalmente en línea",10]
["ARCOTEL-015-04-05","Notificación de cambio de Representante Legal, actualización de información de contacto y cambio de domicilio para el Servicio de Telecomunicaciones Móviles por Satélite","No se completa totalmente en línea",10]
["ARCOTEL-025-04-05","Notificación de cambio de Representante Legal, actualización de información de contacto y cambio de domicilio para el Servicio Móvil Avanzado a través de Operador Móvil Virtual","No se completa totalmente en línea",10]
["ARCOTEL-018-04-05","Notificación de cambio de Representante Legal, actualización de información de contacto y cambio de domicilio para el Servicio Móvil Avanzado para personas jurídicas de derecho privado y empresas públicas","No se completa totalmente en línea",10]
["ARCOTEL-017-04-04","Notificación de cambio de Representante Legal, actualización de información de contacto y cambio de domicilio para el Servicio Portador para personas jurídicas de derecho privado y empresas públicas","No se completa totalmente en línea",10]
["ARCOTEL-030-04-10","Notificación de cambio y/o actualización de equipos que no impliquen modificación de características autorizadas para un Sistema de Audio y Video por Suscripción","No se completa totalmente en línea",10]
["ARCOTEL-027-04-07","Notificación de cumplimiento de Georreferenciación para el Servicio de Valor Agregado","Totalmente en línea",0]
["ARCOTEL-026-02-02","Notificación de extinción de la persona jurídica o muerte de la persona natural inscrita como proveedores de infraestructura física","No se completa totalmente en línea",10]
["ARCOTEL-030-04-07","Notificación de incremento o decremento de canales locales para guía de programación para un Sistema de Audio y Video por Suscripción","No se completa totalmente en línea",10]
["ARCOTEL-030-04-06","Notificación de incremento o decremento del número de canales de servicios de valor agregado (PPV, VoD, etc.) para un Sistema de Audio y Video por Suscripción","No se completa totalmente en línea",10]
["ARCOTEL-028-04-05","Notificación de la Declaración de Prácticas de Certificación de una Entidad de Certificación de Información y Servicios Relacionados Acreditados","Totalmente en línea",0]
["ARCOTEL-014-04-02","Notificación de modificación de capital para el Servicio de Acceso a Internet para personas jurídicas de derecho privado","No se completa totalmente en línea",10]
["ARCOTEL-015-04-01","Notificación de modificación de capital para el Servicio de Telecomunicaciones Móviles por Satélite","No se completa totalmente en línea",10]
["ARCOTEL-031-04-04","Notificación de modificación de capital para el Servicio de Telefonía Fija","No se completa totalmente en línea",10]
["ARCOTEL-032-04-04","Notificación de modificación de Capital para el Servicio de Transporte Internacional modalidad Cable Submarino","No se completa totalmente en línea",10]
["ARCOTEL-027-04-02","Notificación de modificación de capital para el Servicio de Valor Agregado para personas jurídicas de derecho privado y empresas públicas o instituciones del sector público","No se completa totalmente en línea",10]
["ARCOTEL-025-04-02","Notificación de modificación de capital para el Servicio Móvil Avanzado a través de Operador Móvil Virtual","No se completa totalmente en línea",10]
["ARCOTEL-018-04-02","Notificación de modificación de capital para el Servicio Móvil Avanzado para personas jurídicas de derecho privado","No se completa totalmente en línea",10]
["ARCOTEL-017-04-02","Notificación de modificación de capital para el Servicio Portador para personas jurídicas de derecho privado","No se completa totalmente en línea",10]
["ARCOTEL-014-04-03","Notificación de modificación de Estatutos para el Servicio de Acceso a Internet para personas jurídicas de derecho privado y empresas públicas","No se completa totalmente en línea",10]
["ARCOTEL-015-04-02","Notificación de modificación de Estatutos para el Servicio de Telecomunicaciones Móviles por Satélite","No se completa totalmente en línea",10]
["ARCOTEL-031-04-05","Notificación de modificación de Estatutos para el Servicio de Telefonía Fija","No se completa totalmente en línea",10]
["ARCOTEL-032-04-05","Notificación de modificación de Estatutos para el Servicio de Transporte Internacional modalidad Cable Submarino","No se completa totalmente en línea",10]
["ARCOTEL-027-04-03","Notificación de modificación de Estatutos para el Servicio de Valor Agregado para personas jurídicas de derecho privado y empresas públicas o instituciones del sector público","No se completa totalmente en línea",10]
["ARCOTEL-025-04-03","Notificación de modificación de Estatutos para el Servicio Móvil Avanzado a través de Operador Móvil Virtual","No se completa totalmente en línea",10]
["ARCOTEL-018-04-03","Notificación de modificación de Estatutos para el Servicio Móvil Avanzado para personas jurídicas de derecho privado y empresas públicas","No se completa totalmente en línea",10]
["ARCOTEL-017-04-03","Notificación de modificación de Estatutos para el Servicio Portador para personas jurídicas de derecho privado y empresas públicas","No se completa totalmente en línea",10]
["ARCOTEL-018-04-01","Notificación de modificaciones técnicas y administrativas para el Servicio Móvil Avanzado","No se completa totalmente en línea",10]
["ARCOTEL-025-04-01","Notificación de modificaciones técnicas y administrativas para el Servicio Móvil Avanzado a través de Operador Móvil Virtual","No se completa totalmente en línea",10]
["ARCOTEL-016-05-02","Notificación de muerte del titular del Título Habilitante de Red Privada y Uso de Frecuencias de Telecomunicaciones","No se completa totalmente en línea",10]
["ARCOTEL-028-05-02","Notificación de muerte del titular del Título Habilitante de una Entidad de Certificación de Información y Servicios Relacionados Acreditados para personas naturales o jurídicas de derecho privado","No se completa totalmente en línea",10]
["ARCOTEL-020-07-02","Notificación de muerte del titular del Título Habilitante para el Servicio Comunal y Troncalizado","No se completa totalmente en línea",10]
["ARCOTEL-014-05-02","Notificación de muerte del titular del Título Habilitante para el Servicio de Acceso a Internet para personas naturales","No se completa totalmente en línea",10]
["ARCOTEL-030-05-02","Notificación de muerte del titular del Título Habilitante para el Servicio de Audio y Video por Susucripción para personas naturales o jurídicas de derecho privado","No se completa totalmente en línea",10]
["ARCOTEL-015-05-02","Notificación de muerte del titular del Título Habilitante para el Servicio de Telecomunicaciones Móviles por Satélite para personas naturales","No se completa totalmente en línea",10]
["ARCOTEL-032-05-02","Notificación de muerte del titular del Título Habilitante para el Servicio de Transporte Internacional modalidad Cable Submarino para personas naturales","No se completa totalmente en línea",10]
["ARCOTEL-027-05-02","Notificación de muerte del titular del Título Habilitante para el Servicio de Valor Agregado para personas naturales o jurídicas de derecho privado","No se completa totalmente en línea",10]
["ARCOTEL-017-05-02","Notificación de muerte del titular del Título Habilitante para el Servicio Portador para personas naturales","No se completa totalmente en línea",10]
["ARCOTEL-025-04-09","Notificación de reportes contractuales, legales y reglamentarios del Servicio Móvil Avanzado a través de Operador Móvil Virtual","No se completa totalmente en línea",10]
["ARCOTEL-020-06-06","Notificación de Transferencia o Cesión de acciones que no impliquen cambio de control para el Servicio Comunal, Servicio Troncalizado y Transporte Internacional Modalidad Provisión Segmento Especial","No se completa totalmente en línea",10]
["ARCOTEL-014-04-01","Notificación de transferencia o cesión de acciones que no impliquen cambio de control para el Servicio de Acceso a Internet para personas jurídicas de derecho privado","No se completa totalmente en línea",10]
["ARCOTEL-027-04-01","Notificación de transferencia o cesión de acciones que no impliquen cambio de control para el Servicio de Valor Agregado para personas jurídicas de derecho privado y empresas públicas o instituciones del sector público","No se completa totalmente en línea",10]
["ARCOTEL-017-04-01","Notificación de transferencia o cesión de acciones que no impliquen cambio de control para el Servicio Portador para personas jurídicas de derecho privado","No se completa totalmente en línea",10]
["ARCOTEL-031-04-10","Notificación del Plan Técnico Fundamental de Sincronismo para el Servicio de Telefonía Fija","No se completa totalmente en línea",10]
["ARCOTEL-031-04-09","Notificación del Plan Técnico Fundamental de Transmisión para el Servicio de Telefonía Fija","No se completa totalmente en línea",10]
["ARCOTEL-037-01-01","Otorgamiento de título habilitante de frecuencias asociadas a la prestación de Servicios de Telecomunicaciones","No se completa totalmente en línea",10]
["ARCOTEL-014-01-03","Otorgamiento del Título Habilitante para el Servicio de Acceso a Internet para empresas públicas","No se completa totalmente en línea",10]
["ARCOTEL-015-01-03","Otorgamiento del Título Habilitante para el Servicio de Telecomunicaciones Móviles por Satélite y Concesión de Frecuencias para empresas públicas","No se completa totalmente en línea",10]
["ARCOTEL-015-01-02","Otorgamiento del Título Habilitante para el Servicio de Telecomunicaciones Móviles por Satélite y Concesión de Frecuencias para personas jurídicas de derecho privado","No se completa totalmente en línea",10]
["ARCOTEL-015-01-01","Otorgamiento del Título Habilitante para el Servicio de Telecomunicaciones Móviles por Satélite y Concesión de Frecuencias para personas naturales","No se completa totalmente en línea",10]
["ARCOTEL-031-01-01","Otorgamiento del Título Habilitante para el Servicio de Telefonía Fija para empresas públicas o instituciones del sector público","No se completa totalmente en línea",10]
["ARCOTEL-032-01-01","Otorgamiento del Título Habilitante para el Servicio de Transporte Internacional modalidad Cable Submarino para empresas públicas o instituciones del sector público","No se completa totalmente en línea",10]
["ARCOTEL-032-01-02","Otorgamiento del Título Habilitante para el Servicio de Transporte Internacional modalidad Cable Submarino para personas naturales o jurídicas de derecho privado","No se completa totalmente en línea",10]
["ARCOTEL-027-01-03","Otorgamiento del Título Habilitante para el Servicio de Valor Agregado para empresas públicas","No se completa totalmente en línea",10]
["ARCOTEL-027-01-01","Otorgamiento del Título Habilitante para el Servicio de Valor Agregado para personas naturales","No se completa totalmente en línea",10]
["ARCOTEL-025-01-02","Otorgamiento del Título Habilitante para el Servicio Móvil Avanzado a través de OMV para personas jurídicas de derecho privado, empresas de la economía mixta donde el Estado tenga mayoría accionaria y Empresas Economía Popular y Solidaria","No se completa totalmente en línea",10]
["ARCOTEL-025-01-01","Otorgamiento del Título Habilitante para el Servicio Móvil Avanzado a través de Operador Móvil Virtual para empresas públicas","No se completa totalmente en línea",10]
["ARCOTEL-018-01-01","Otorgamiento del Título Habilitante para el Servicio Móvil Avanzado para empresas públicas","No se completa totalmente en línea",10]
["ARCOTEL-018-01-02","Otorgamiento del Título Habilitante para el Servicio Móvil Avanzado para personas jurídicas de derecho privado","No se completa totalmente en línea",10]
["ARCOTEL-017-01-03","Otorgamiento del Título Habilitante para el Servicio Portador para empresas públicas","No se completa totalmente en línea",10]
["ARCOTEL-017-01-01","Otorgamiento del Título Habilitante para el Servicio Portador para personas naturales","No se completa totalmente en línea",10]
["ARCOTEL-030-01-03","Otorgamiento del Título Habilitante para un Sistema de Audio y Video por Suscripción bajo las modalidades de Cable Físico o Televisión Codificada Satelital para empresas públicas o instituciones del sector público.","No se completa totalmente en línea",10]
["ARCOTEL-028-01-02","Otorgamiento del Título Habilitante para una Entidad de Certificación de Información y Servicios Relacionados Acreditados para empresas públicas o instituciones del sector público","No se completa totalmente en línea",10]
["ARCOTEL-028-01-01","Otorgamiento del Título Habilitante para una Entidad de Certificación de Información y Servicios Relacionados Acreditados para personas jurídicas de derecho privado","No se completa totalmente en línea",10]
["ARCOTEL-031-01-02","Otorgamiento del Título Habilitante Servicio de Telefonía Fija para personas jurídicas de derecho privado, empresas de la economía mixta donde el Estado tenga mayoría accionaria y empresas de la economía popular y solidaria","No se completa totalmente en línea",10]
["ARCOTEL-023-01-04","Otorgamiento y Renovación de la Licencia para el Servicio de Radioaficionados Internacional y de transito","No se completa totalmente en línea",10]
["ARCOTEL-030-04-12","Registro de Canales Codificados para un Sistema de Audio y Video por Suscripción","No se completa totalmente en línea",10]
["ARCOTEL-032-04-01","Registro de Contrato de Adhesión o Reventa para el Servicio de Transporte Internacional modalidad Cable Submarino","No se completa totalmente en línea",10]
["ARCOTEL-027-03-07","Registro de Contrato de Adhesión o Reventa para el Servicio de Valor Agregado","No se completa totalmente en línea",10]
["ARCOTEL-015-04-07","Registro de Contrato de Adhesión para el Servicio de Telecomunicaciones Móviles por Satélite","No se completa totalmente en línea",10]
["ARCOTEL-025-04-07","Registro de Contrato de Adhesión para el Servicio Móvil Avanzado a través de Operador Móvil Virtual","No se completa totalmente en línea",10]
["ARCOTEL-015-04-08","Registro de Contrato de Reventa para el Servicio de Telecomunicaciones Móviles por Satélite","No se completa totalmente en línea",10]
["ARCOTEL-025-04-08","Registro de Contrato de Reventa para el Servicio Móvil Avanzado a través de Operador Móvil Virtual","No se completa totalmente en línea",10]
["ARCOTEL-030-04-13","Registro de Proveedores de Programación Internacional para un Sistema de Audio y Video por Suscripción","No se completa totalmente en línea",10]
["ARCOTEL-014-02-03","Renovación del Título Habilitante para el Servicio de Acceso a Internet para empresas públicas","No se completa totalmente en línea",10]
["ARCOTEL-014-02-01","Renovación del Título Habilitante para el Servicio de Acceso a Internet para personas naturales","No se completa totalmente en línea",10]
["ARCOTEL-015-02-03","Renovación del Título Habilitante para el Servicio de Telecomunicaciones Móviles por Satélite y Concesión de Frecuencias para empresas públicas","No se completa totalmente en línea",10]
["ARCOTEL-015-02-02","Renovación del Título Habilitante para el Servicio de Telecomunicaciones Móviles por Satélite y Concesión de Frecuencias para personas jurídicas de derecho privado","No se completa totalmente en línea",10]
["ARCOTEL-015-02-01","Renovación del Título Habilitante para el Servicio de Telecomunicaciones Móviles por Satélite y Concesión de Frecuencias para personas naturales","No se completa totalmente en línea",10]
["ARCOTEL-031-02-01","Renovación del Título Habilitante para el Servicio de Telefonía Fija para empresas públicas o instituciones del sector público","No se completa totalmente en línea",10]
["ARCOTEL-031-02-02","Renovación del Título Habilitante para el Servicio de Telefonía Fija para personas jurídicas de derecho privado, empresas de la economía mixta donde el Estado tenga mayoría accionaria y empresas de la economía popular y solidaria","No se completa totalmente en línea",10]
["ARCOTEL-032-02-01","Renovación del Título Habilitante para el Servicio de Transporte Internacional modalidad Cable Submarino para empresas públicas o instituciones del sector público","No se completa totalmente en línea",10]
["ARCOTEL-032-02-02","Renovación del Título Habilitante para el Servicio de Transporte Internacional modalidad Cable Submarino para personas naturales o jurídicas de derecho privado","No se completa totalmente en línea",10]
["ARCOTEL-027-02-03","Renovación del Título Habilitante para el Servicio de Valor Agregado para empresas públicas","No se completa totalmente en línea",10]
["ARCOTEL-027-02-02","Renovación del Título Habilitante para el Servicio de Valor Agregado para personas jurídicas de derecho privado","No se completa totalmente en línea",10]
["ARCOTEL-027-02-01","Renovación del Título Habilitante para el Servicio de Valor Agregado para personas naturales","No se completa totalmente en línea",10]
["ARCOTEL-025-02-02","Renovación del Título Habilitante para el Servicio Móvil Avanzado a través de OMV para personas jurídicas de derecho privado, empresas de la economía mixta donde el Estado tenga mayoría accionaria y Empresas de la Economía Popular y Solidaria","No se completa totalmente en línea",10]
["ARCOTEL-025-02-01","Renovación del Título Habilitante para el Servicio Móvil Avanzado a través de Operador Móvil Virtual para empresas públicas","No se completa totalmente en línea",10]
["ARCOTEL-018-02-01","Renovación del Título Habilitante para el Servicio Móvil Avanzado para empresas públicas","No se completa totalmente en línea",10]
["ARCOTEL-018-02-02","Renovación del Título Habilitante para el Servicio Móvil Avanzado para personas jurídicas de derecho privado","No se completa totalmente en línea",10]
["ARCOTEL-017-02-03","Renovación del Título Habilitante para el Servicio Portador para empresas públicas","No se completa totalmente en línea",10]
["ARCOTEL-017-02-01","Renovación del Título Habilitante para el Servicio Portador para personas naturales","No se completa totalmente en línea",10]
["ARCOTEL-028-02-02","Renovación del Título Habilitante para una Entidad de Certificación de Información y Servicios Relacionados Acreditados para empresas públicas o instituciones del sector público","No se completa totalmente en línea",10]
["ARCOTEL-030-02-01","Renovación Título Habilitante para un Sistema de Audio y Video por Suscripción bajo modalidades de Cable Físico o TV Codificada Satelital, personas naturales, personas jurídicas de derecho priv, inst del sector público o em públicas","No se completa totalmente en línea",10]
["ARCOTEL-024-03-13","Solicitud de continuación de uso de los derechos del título habilitante por fallecimiento de la persona natural concesionaria de una frecuencia de Radiodifusión Sonora y de Televisión de Señal Abierta","No se completa totalmente en línea",10]
["ARCOTEL-006-01-03","Solicitud de credenciales para ensambladores de terminales de servicio móvil avanzado","Totalmente en línea",0]
["ARCOTEL-028-05-03","Solicitud de extinción del Título Habilitante de una Entidad de Certificación de Información y Servicios Relacionados Acreditados por concepto de declaración de disolución, quiebra o liquidación para personas jurídicas de derecho privado","No se completa totalmente en línea",10]
["ARCOTEL-027-05-03","Solicitud de extinción del Título Habilitante para el Servicio de Valor Agregado por concepto de declaración de disolución, quiebra o liquidación para personas jurídicas de derecho privado","No se completa totalmente en línea",10]
["ARCOTEL-005-01-02","Solicitud de licencias no automáticas de importación de decodificadores para provisión de receptores de abonado y/o receptores de prestador de servicio para sistemas de audio y video por suscripción o tv abierta -para venta a un prestador","Totalmente en línea",0]
["ARCOTEL-010-02-01","Solicitud de Renovación Temporal de Frecuencias para Radiodifusión Sonora y TV de Señal Abierta","No se completa totalmente en línea",10]
["ARCOTEL-024-05-03","Terminación del Título Habilitante para el Servicio de Radiodifusión Sonora y de Televisión de Señal Abierta por la causal de extinción de la persona jurídica","No se completa totalmente en línea",10]
["ARCOTEL-024-05-05","Terminación del Título Habilitante para el Servicio de Radiodifusión Sonora y de Televisión de Señal Abierta por pérdida de la capacidad civil del concesionario o disolución de la sociedad concesionaria","No se completa totalmente en línea",10]
["ARCOTEL-036-01-02","Asesoría para el tratamiento de incidentes y vulnerabilidades informáticas a usuarios de redes de telecomunicaciones","No se completa totalmente en línea",10]
["ARCOTEL-016-03-04","Autorización de incremento, modificación y cancelación de enlaces físicos para una Red Privada de Telecomunicaciones","No se completa totalmente en línea",10]
["ARCOTEL-016-03-02","Autorización de modificación de parámetros técnicos para enlaces terrestres y satelitales asociados a una Red Privada de Telecomunicaciones","No se completa totalmente en línea",10]
["ARCOTEL-018-03-01","Autorización de modificaciones técnicas y administrativas para el Servicio Móvil Avanzado","No se completa totalmente en línea",10]
["ARCOTEL-018-03-06","Autorización de prórrogas para el Servicio Móvil Avanzado","No se completa totalmente en línea",10]
["ARCOTEL-016-05-03","Extinción del Título Habilitante de Red Privada y Uso de Frecuencias de Telecomunicaciones por declaración anticipada y unilateral debidamente motivada","No se completa totalmente en línea",10]
["ARCOTEL-018-04-11","Notificación de asignación y liberación de número social público del Servicio Móvil Avanzado","No se completa totalmente en línea",10]
["ARCOTEL-018-04-10","Notificación de asignación y liberación de recurso numérico no geográfico del Servicio Móvil Avanzado","Totalmente en línea",0]
["ARCOTEL-027-04-04","Notificación de cambio de Representante Legal para el Servicio de Valor Agregado para personas jurídicas de derecho privado y empresas públicas o instituciones del sector público","No se completa totalmente en línea",10]
["ARCOTEL-027-01-02","Otorgamiento del Título Habilitante para el Servicio de Valor Agregado para personas jurídicas de derecho privado","No se completa totalmente en línea",10]
["ARCOTEL-017-01-02","Otorgamiento del Título Habilitante para el Servicio Portador para personas jurídicas de derecho privado","No se completa totalmente en línea",10]
["ARCOTEL-017-02-02","Renovación del Título Habilitante para el Servicio Portador para personas jurídicas de derecho privado","No se completa totalmente en línea",10]
["ARCOTEL-028-02-01","Renovación del Título Habilitante para una Entidad de Certificación de Información y Servicios Relacionados Acreditados para personas jurídicas de derecho privado","No se completa totalmente en línea",10]
["ARCOTEL-020-03-07","Autorización de incremento, modificación y cancelación de satélites para el Servicio de Transporte Internacional Modalidad Provisión Segmento Especial","No se completa totalmente en línea",10]
["ARCOTEL-016-03-09","Autorización de transferencia o cesión del Título Habilitante de Red Privada y Uso de Frecuencias de Telecomunicaciones","No se completa totalmente en línea",10]
["ARCOTEL-024-05-01","Devolución voluntaria o por acuerdo mutuo del Título Habilitante para el Servicio de Radiodifusión Sonora y de Televisión de Señal Abierta","No se completa totalmente en línea",10]
["ARCOTEL-018-04-12","Notificación de asignación y liberación de recurso de señalización del Servicio Móvil Avanzado","No se completa totalmente en línea",10]
["ARCOTEL-014-04-04","Notificación de cambio de Representante Legal, actualización de información de contacto y cambio de domicilio para el Servicio de Acceso a Internet para personas jurídicas de derecho privado y empresas públicas","No se completa totalmente en línea",10]
["ARCOTEL-024-01-02","Otorgamiento del Título Habilitante para el Servicio de Radiodifusión Sonora y Televisión por Señal Abierta para Medios Privados y Comunitarios (Concurso Público)","No se completa totalmente en línea",10]
["ARCOTEL-016-01-01","Otorgamiento y Renovación del Título Habilitante de Operación de Red Privada y Uso de Frecuencias para enlaces terrestres y satelitales","No se completa totalmente en línea",10]
["ARCOTEL-017-04-06","Registro de Contrato de Adhesión o Reventa para el Servicio Portador","No se completa totalmente en línea",10]
["ARCOTEL-018-04-07","Registro de Contrato de Adhesión para el Servicio Móvil Avanzado","No se completa totalmente en línea",10]
["ARCOTEL-018-04-08","Registro de Contrato de Reventa para el Servicio Móvil Avanzado","No se completa totalmente en línea",10]
["ARCOTEL-005-01-04","Solicitud de licencias no automáticas de importación de decodificadores para personas naturales o jurídicas cuya actividad comercial o objeto social sea la prestación de servicios en general de mantenimiento","Totalmente en línea",0]
["ARCOTEL-005-01-03","Solicitud de licencias no automáticas de importación de decodificadores para provisión de receptores de abonado y/o receptores de prestador de servicio para sistemas de audio y video por suscripción o tv abierta -para mantenerlos en perchas","Totalmente en línea",0]
["ARCOTEL-030-03-02","Autorización de operación de canales locales para programación propia para un Sistema de Audio y Video por Suscripción","No se completa totalmente en línea",10]
["ARCOTEL-016-04-05","Notificación de cambio de Razón Social para el Título Habilitante de Red Privada y Uso de Frecuencias de Telecomunicaciones","No se completa totalmente en línea",10]
["ARCOTEL-030-04-02","Notificación de modificación de estatutos y cambios de socios o accionistas para un Sistema de Audio y Video por Suscripción","No se completa totalmente en línea",10]
["ARCOTEL-030-04-04","Notificación de modificación de redes con o sin cambio de tecnología para un Sistema de Audio y Video por Suscripción","No se completa totalmente en línea",10]
["ARCOTEL-030-04-01","Notificación de reubicación de la cabecera (head end) para un Sistema de Audio y Video por Suscripción","No se completa totalmente en línea",10]
["ARCOTEL-031-04-01","Registro de Contrato de Adhesión o Reventa para el Servicio de Telefonía Fija","No se completa totalmente en línea",10]
["ARCOTEL-014-02-02","Renovación del Título Habilitante para el Servicio de Acceso a Internet para personas jurídicas de derecho privado","No se completa totalmente en línea",10]
["ARCOTEL-036-01-01","Reporte de incidentes informáticos en redes de telecomunicaciones","Totalmente en línea",0]
["ARCOTEL-005-01-05","Solicitud de licencias no automáticas de importación de decodificadores para fines sociales, académicos, seguridad y salud o de interés general, y para importar muestras de equipos decodificadores","Totalmente en línea",0]
["ARCOTEL-007-01-01","Bloqueo de equipos terminales robados, perdidos o hurtados que no hayan sido utilizados en las redes de los prestadores del servicio móvil avanzado.","Totalmente en línea",0]
["ARCOTEL-014-05-01","Devolución voluntaria o por acuerdo mutuo del Título Habilitante para el Servicio de Acceso a Internet","No se completa totalmente en línea",10]
["ARCOTEL-027-03-06","Autorización de adquisición de acciones o participaciones de empresas para el Servicio de Valor Agregado","No se completa totalmente en línea",10]
["ARCOTEL-010-01-01","Autorización Temporal de Frecuencias para Radiodifusión Sonora y TV de Señal Abierta","No se completa totalmente en línea",10]
["ARCOTEL-030-04-08","Notificación de actualización de coordenadas geográficas de sitios previamente autorizados para un Sistema de Audio y Video por Suscripción","No se completa totalmente en línea",10]
["ARCOTEL-030-03-01","Autorización de ampliación de cobertura para un Sistema de Audio y Video por Suscripción","No se completa totalmente en línea",10]
["ARCOTEL-030-01-01","Otorgamiento del Título Habilitante para un Sistema de Audio y Video por Suscripción bajo las modalidades de Cable Físico o Televisión Codificada Satelital para personas naturales","No se completa totalmente en línea",10]
["ARCOTEL-024-02-01","Renovación del Título Habilitante para el Servicio de Radiodifusión Sonora y Televisión por Señal Abierta para Personas Jurídicas de Derecho Público (Adjudicación Directa) y/o Medios Privados y Comunitarios","No se completa totalmente en línea",10]
["ARCOTEL-024-03-12","Autorización de cambio de Razón social o denominación objetiva para el Servicio de Radiodifusión Sonora y Televisión por Señal Abierta","No se completa totalmente en línea",10]
["ARCOTEL-016-03-11","Autorización de prórroga para instalación e inicio de operaciones para el Título Habilitante de Operación de Red Privada y Uso de Frecuencias de Telecomunicaciones","No se completa totalmente en línea",10]
["ARCOTEL-016-04-04","Notificación de cambio de Representante Legal, actualización de información de contacto y cambio de domicilio para una Red Privada de Telecomunicaciones","No se completa totalmente en línea",10]
["ARCOTEL-030-01-02","Otorgamiento del Título Habilitante para un Sistema de Audio y Video por Suscripción bajo las modalidades de Cable Físico o Televisión Codificada Satelital para personas jurídicas de derecho privado.","No se completa totalmente en línea",10]
["ARCOTEL-035-01-01","Reporte de vulnerabilidades informáticas en redes de telecomunicaciones","Totalmente en línea",0]
["ARCOTEL-016-03-01","Autorización de incremento de frecuencias para enlaces terrestres y satelitales asociadas a una Red Privada de Telecomunicaciones","No se completa totalmente en línea",10]
["ARCOTEL-016-05-01","Devolución voluntaria o por acuerdo mutuo del Título Habilitante de Red Privada y Uso de Frecuencias de Telecomunicaciones","No se completa totalmente en línea",10]
["ARCOTEL-026-01-01","Inscripción de Proveedores de Infraestructura física","Totalmente en línea",0]
["ARCOTEL-030-03-04","Autorización de prórroga para inicio de operaciones para un Sistema de Audio y Video por Suscripción","No se completa totalmente en línea",10]
["ARCOTEL-003-01-02 ","Certificación de obligaciones económicas, área de cobertura y/o derechos de concesión de servicios de telecomunicaciones solicitada por terceros autorizados por los poseedores de títulos habilitantes","Totalmente en línea",0]
["ARCOTEL-030-05-01","Devolución voluntaria o por acuerdo mutuo del Título Habilitante para el Servicio de Audio y Video por Susucripción","No se completa totalmente en línea",10]
["ARCOTEL-009-01-01","Solicitud de medición de radiaciones no ionizantes por parte de la ciudadanía","Totalmente en línea",0]
["ARCOTEL-009-03-01","Solicitud de verificación de inicio de operación de sistemas de radiodifusión y televisión abierta","Totalmente en línea",0]
["ARCOTEL-023-03-01","Autorización de modificaciones para el Servicio de Radioaficionados y Banda Ciudadana","No se completa totalmente en línea",10]
["ARCOTEL-016-03-10","Autorización de cancelación parcial de frecuencias para Troncalizado y Radio de Dos Vías (móvil terrestre, aeronáutico y marítimo) asociado a una Red Privada de Telecomunicaciones","No se completa totalmente en línea",10]
["ARCOTEL-030-04-11","Registro de Contrato de Adhesión o Reventa para un Sistema de Audio y Video por Suscripción","No se completa totalmente en línea",10]
["ARCOTEL-020-01-01","Otorgamiento y Renovación del Título Habilitante para el Servicio Comunal, Servicio Troncalizado, Servicio Transporte Internacional Modalidad Segmento Espacial","No se completa totalmente en línea",10]
["ARCOTEL-030-04-05","Notificación de incremento y/o decremento del número de canales para un Sistema de Audio y Video por Suscripción que no involucran autorizaciones de nuevas frecuencias","No se completa totalmente en línea",10]
["ARCOTEL-020-03-06","Autorización de cancelación de frecuencias para el Servicio Comunal y Servicio Troncalizado","No se completa totalmente en línea",10]
["ARCOTEL-024-03-14","Autorización de Modificaciones Administrativas para el Servicio de Radiodifusión Sonora y Televisión por Señal Abierta","No se completa totalmente en línea",10]
["ARCOTEL-014-03-06","Autorización de prórroga para inicio de operaciones para el Servicio de Acceso a Internet","No se completa totalmente en línea",10]
["ARCOTEL-024-01-01","Otorgamiento del Título Habilitante para el Servicio de Radiodifusión Sonora y Televisión por Señal Abierta para Personas Jurídicas de Derecho Público (Adjudicación Directa)","No se completa totalmente en línea",10]
["ARCOTEL-014-04-06","Registro de Contrato de Adhesión o Reventa para el Servicio de Acceso a Internet","No se completa totalmente en línea",10]
["ARCOTEL-015-04-04","Notificación de reportes contractuales y en cumplimiento al ordenamiento jurídico vigente para el Servicio de Telecomunicaciones Móviles por Satélite","No se completa totalmente en línea",10]
["ARCOTEL-028-03-01","Registro de tercero vinculado para una Entidad de Certificación de Información y Servicios Relacionados Acreditados","Totalmente en línea",0]
["ARCOTEL-014-01-02","Otorgamiento del Título Habilitante para el Servicio de Acceso a Internet para personas jurídicas de derecho privado","No se completa totalmente en línea",10]
["ARCOTEL-020-03-01","Autorización de incremento de frecuencias para el Servicio Comunal y Servicio Troncalizado","No se completa totalmente en línea",10]
["ARCOTEL-030-04-03","Notificación de actualización de la programación y/o antenas de recepción para un Sistema de Audio y Video por Suscripción","No se completa totalmente en línea",10]
["ARCOTEL-028-04-04","Notificación de facturación total del mes por una Entidad de Certificación de Información y Servicios Relacionados Acreditados","No se completa totalmente en línea",10]
["ARCOTEL-031-04-06","Notificación de modificación, instalación o ampliación de infraestructura para el Servicio de Telefonía Fija","No se completa totalmente en línea",10]
["ARCOTEL-016-03-06","Autorización de modificación de parámetros técnicos para Troncalizado y Radio de Dos Vías (móvil terrestre, aeronáutico y marítimo) asociados a una Red Privada de Telecomunicaciones","No se completa totalmente en línea",10]
["ARCOTEL-028-04-02","Notificación de número de certificados emitidos y revocados en el mes por una Entidad de Certificación de Información y Servicios Relacionados Acreditados","Totalmente en línea",0]
["ARCOTEL-028-04-01","Notificación de número de solicitudes de servicio y trámite atendidos por una Entidad de Certificación de Información y Servicios Relacionados Acreditados","Totalmente en línea",0]
["ARCOTEL-028-04-03","Notificación de números de usuarios de servicios relacionados con la firma digital por una Entidad de Certificación de Información y Servicios Relacionados Acreditados","Totalmente en línea",0]
["ARCOTEL-002-01-01","Solicitud de estudios o información estadística del sector de las telecomunicaciones","Totalmente en línea",0]
["ARCOTEL-016-03-05","Autorización de incremento de frecuencias para Troncalizado y Radio de Dos Vías (móvil terrestre, aeronáutico y marítimo) asociadas a una Red Privada de Telecomunicaciones","No se completa totalmente en línea",10]
["ARCOTEL-020-03-02","Autorización de modificaciones técnicas para el Servicio Comunal y Servicio Troncalizado","No se completa totalmente en línea",10]
["ARCOTEL-005-01-01","Solicitud de licencias no automáticas de importación de decodificadores para poseedores de títulos habilitantes de telecomunicaciones o radiodifusión y/o receptores para usuarios de televisión digital terrestre abierta","Totalmente en línea",0]
["ARCOTEL-037-02-02","Autorización de cancelación de enlaces terrestres y satelitales para la prestación de Servicios de Telecomunicaciones","No se completa totalmente en línea",10]
["ARCOTEL-023-01-01","Otorgamiento y Renovación de la Licencia para el Servicio de Radioaficionados y Banda Ciudadana","No se completa totalmente en línea",10]
["ARCOTEL-016-01-02","Otorgamiento y Renovación del Título Habilitante de Operación de Red Privada y Uso de Frecuencias para Troncalizado y Radio de Dos Vías (móvil terrestre, aeronáutico y marítimo)","No se completa totalmente en línea",10]
["ARCOTEL-014-01-01","Otorgamiento del Título Habilitante para el Servicio de Acceso a Internet para personas naturales","No se completa totalmente en línea",10]
["ARCOTEL-014-03-01","Autorización de modificaciones técnicas de red física para el Servicio de Acceso a Internet","Totalmente en línea",0]
["ARCOTEL-019-01-01","Otorgamiento y Renovación de Frecuencias Temporales de Telecomunicaciones","No se completa totalmente en línea",10]
["ARCOTEL-018-04-09","Notificación de reportes contractuales, legales y reglamentarios del Servicio Móvil Avanzado","No se completa totalmente en línea",10]
["ARCOTEL-017-04-07","Notificación de cumplimiento de Georreferenciación para el Servicio Portador","Totalmente en línea",0]
["ARCOTEL-003-01-03","Certificación de infracciones y sanciones emitidas por ARCOTEL","Totalmente en línea",0]
["ARCOTEL-009-04-01","Solicitud de suspensión de emisiones de sistemas de radiodifusión y televisión de señal abierta","Totalmente en línea",0]
["ARCOTEL-006-01-01","Solicitud de credenciales para importadores (personas jurídicas) de terminales de servicio móvil avanzado","Totalmente en línea",0]
["ARCOTEL-033-01-01","Otorgamiento del Certificado de Inscripción en el Registro Público de Telecomunicaciones de Centros de Acceso a la Información a través de Internet (Cibercafés)","Totalmente en línea",0]
["ARCOTEL-037-02-05","Autorización de incremento, modificación y cancelación de Radiobases para el Servicio Móvil Avanzado","No se completa totalmente en línea",10]
["ARCOTEL-009-02-01","Solicitud de concesionarios del espectro radioeléctrico para solución de interferencias","Totalmente en línea",0]
["ARCOTEL-014-04-07","Notificación de cumplimiento de Georreferenciación para el Servicio de Acceso a Internet","Totalmente en línea",0]
["ARCOTEL-024-04-01","Notificación de Modificaciones Técnicas para el Servicio de Radiodifusión Sonora y Televisión por Señal Abierta","No se completa totalmente en línea",10]
["ARCOTEL-017-03-01","Autorización de modificaciones técnicas para red física para el Servicio Portador","No se completa totalmente en línea",10]
["ARCOTEL-024-03-01","Autorización de Modificaciones Técnicas para el Servicio de Radiodifusión Sonora y Televisión por Señal Abierta","No se completa totalmente en línea",10]
["ARCOTEL-037-02-01","Autorización de incremento de enlaces terrestres y satelitales para la prestación de Servicios de Telecomunicaciones","No se completa totalmente en línea",10]
["ARCOTEL-006-01-02","Solicitud de credenciales para importadores (persona natural) de terminales de servicio móvil avanzado","Totalmente en línea",0]
["ARCOTEL-037-02-03","Autorización de modificaciones técnicas de enlaces terrestres y satelitales para Servicios de Telecomunicaciones","No se completa totalmente en línea",10]
["ARCOTEL-031-04-07","Notificación de reserva, asignación y liberación de recurso numérico geográfico para el Servicio de Telefonía Fija.","No se completa totalmente en línea",10]
["ARCOTEL-001-01-01","Solicitud de información pública","Totalmente en línea",0]
["ARCOTEL-003-01-01","Certificación de obligaciones económicas, área de cobertura y/o derechos de concesión de servicios de telecomunicaciones solicitada por los poseedores de títulos habilitantes","Totalmente en línea",0]
["ARCOTEL-004-01-01","Solicitud de homologación de equipos terminales de telecomunicaciones","Totalmente en línea",0]
["ARCOTEL-012-01-01","Presentación de reclamos, denuncias, sugerencias o solicitudes de información de los servicios de telecomunicaciones","Totalmente en línea",0]

{"sheet":"RESUMEN","index":8,"n_rows":296,"n_cols":25,"rows_kept":296,"cut":false,"hidden":false,"merged":[[1,9,1,10],[1,11,1,12],[1,13,2,13],[0,2,0,6],[0,7,0,12],[1,5,2,5],[1,6,2,6],[1,7,1,8],[1,0,2,0],[1,1,2,1],[1,2,2,2],[1,3,2,3],[1,4,2,4]]}
[null,null,"BÁSICOS",null,null,null,null,"ADICIONALES"]
["ID trámite","Nombre del trámite","Demanda","Quejas","Costo para administración","Tiempo de respuesta","Canal de atención","Necesidades ciudadanas",null,"Susceptibilidad a corrupción",null,"Volumen de devoluciones",null,"PUNTAJE TOTAL"]
[null,null,null,null,null,null,null,"Criterio","Puntuación","Criterio","Puntuación","Criterio","Puntuación",null,null,null,null,null,null,null,"demanda",0,3,6,10]
["ARCOTEL-035-02-01","Asesoría para la formación de Equipos de Respuesta a Incidentes de Seguridad Informática (CSIRT)",0,0,5,0,10,"NO",0,"NO",0,"NO",0,{"$f":"SUM(C4:G4,I4,K4,M4)","v":15},null,null,null,null,null,null,"quejas",0,4,10]
["ARCOTEL-014-03-05","Autorización de adquisición de acciones o participaciones de empresas para el Servicio de Acceso a Internet",0,0,10,30,10,"NO",0,"NO",0,"NO",0,{"$f":"SUM(C5:G5,I5,K5,M5)","v":50},null,null,null,null,null,null,"cpa",5,10,20]
["ARCOTEL-015-03-04","Autorización de adquisición de acciones o participaciones de empresas para el Servicio de Telecomunicaciones Móviles por Satélite",0,0,10,30,10,"NO",0,"NO",0,"NO",0,{"$f":"SUM(C6:G6,I6,K6,M6)","v":50},null,null,null,null,null,null,"tr",0,30]
["ARCOTEL-018-03-05","Autorización de adquisición de acciones o participaciones de empresas para el Servicio Móvil Avanzado",0,0,10,30,10,"NO",0,"NO",0,"NO",0,{"$f":"SUM(C7:G7,I7,K7,M7)","v":50},null,null,null,null,null,null,"ca",0,10]
["ARCOTEL-025-03-05","Autorización de adquisición de acciones o participaciones de empresas para el Servicio Móvil Avanzado bajo la modalidad de Operador Móvil Virtual",0,0,10,30,10,"NO",0,"NO",0,"NO",0,{"$f":"SUM(C8:G8,I8,K8,M8)","v":50},null,null,null,null,null,null,null,"SI","NO"]
["ARCOTEL-017-03-08","Autorización de adquisición de acciones o participaciones de empresas para el Servicio Portador",0,0,10,30,10,"NO",0,"NO",0,"NO",0,{"$f":"SUM(C9:G9,I9,K9,M9)","v":50}]
["ARCOTEL-031-03-02","Autorización de ampliación de cobertura para el Servicio de Telefonía Fija",0,0,10,30,10,"NO",0,"NO",0,"NO",0,{"$f":"SUM(C10:G10,I10,K10,M10)","v":50}]
["ARCOTEL-030-03-03","Autorización de ampliación de frecuencias para incremento o decremento de canales para un Sistema de Audio y Video por Suscripción",0,0,10,30,10,"NO",0,"NO",0,"NO",0,{"$f":"SUM(C11:G11,I11,K11,M11)","v":50}]
["ARCOTEL-014-03-02","Autorización de cambio de control para el Servicio de Acceso a Internet",0,0,20,30,10,"NO",0,"NO",0,"NO",0,{"$f":"SUM(C12:G12,I12,K12,M12)","v":60}]
["ARCOTEL-027-03-03","Autorización de cambio de control para el Servicio de Valor Agregado",0,0,20,30,10,"NO",0,"NO",0,"NO",0,{"$f":"SUM(C13:G13,I13,K13,M13)","v":60}]
["ARCOTEL-017-03-05","Autorización de cambio de control para el Servicio Portador",0,0,20,30,10,"NO",0,"NO",0,"NO",0,{"$f":"SUM(C14:G14,I14,K14,M14)","v":60}]
["ARCOTEL-020-03-03","Autorización de cambios de Control para el Servicio Comunal, Servicio Troncalizado, Transporte Internacional Modalidad Provisión de Segmento Espacial",0,0,5,0,10,"NO",0,"NO",0,"NO",0,{"$f":"SUM(C15:G15,I15,K15,M15)","v":15}]
["ARCOTEL-032-03-05","Autorización de cambios en el área de registro/permiso, servicios, etc. que implica cambio de control para el Servicio de Transporte Internacional modalidad Cable Submarino",0,0,0,30,10,"NO",0,"NO",0,"NO",0,{"$f":"SUM(C16:G16,I16,K16,M16)","v":40}]
["ARCOTEL-016-03-03","Autorización de cancelación de enlaces terrestres y satelitales asociado a una Red Privada de Telecomunicaciones",0,0,5,0,10,"NO",0,"NO",0,"NO",0,{"$f":"SUM(C17:G17,I17,K17,M17)","v":15}]
["ARCOTEL-014-03-04","Autorización de fusión de compañías o personas jurídicas de derecho privado poseedoras de Títulos Habilitantes para el Servicio de Acceso a Internet",0,0,10,30,10,"NO",0,"NO",0,"NO",0,{"$f":"SUM(C18:G18,I18,K18,M18)","v":50}]
["ARCOTEL-015-03-03","Autorización de fusión de compañías o personas jurídicas de derecho privado poseedoras de Títulos Habilitantes para el Servicio de Telecomunicaciones Móviles por Satélite",0,0,10,30,10,"NO",0,"NO",0,"NO",0,{"$f":"SUM(C19:G19,I19,K19,M19)","v":50}]
["ARCOTEL-027-03-05","Autorización de fusión de compañías o personas jurídicas de derecho privado poseedoras de Títulos Habilitantes para el Servicio de Valor Agregado",0,0,10,30,10,"NO",0,"NO",0,"NO",0,{"$f":"SUM(C20:G20,I20,K20,M20)","v":50}]
["ARCOTEL-018-03-04","Autorización de fusión de compañías o personas jurídicas de derecho privado poseedoras de Títulos Habilitantes para el Servicio Móvil Avanzado",0,0,10,30,10,"NO",0,"NO",0,"NO",0,{"$f":"SUM(C21:G21,I21,K21,M21)","v":50}]
["ARCOTEL-025-03-04","Autorización de fusión de compañías o personas jurídicas de derecho privado poseedoras de Títulos Habilitantes para el Servicio Móvil Avanzado a través de Operador Móvil Virtual",0,0,10,30,10,"NO",0,"NO",0,"NO",0,{"$f":"SUM(C22:G22,I22,K22,M22)","v":50}]
["ARCOTEL-017-03-07","Autorización de fusión de compañías o personas jurídicas de derecho privado poseedoras de Títulos Habilitantes para el Servicio Portador",0,0,10,30,10,"NO",0,"NO",0,"NO",0,{"$f":"SUM(C23:G23,I23,K23,M23)","v":50}]
["ARCOTEL-031-03-03","Autorización de fusión de dos compañías o personas jurídicas de derecho privado poseedoras de Títulos Habilitantes para el Servicio de Telefonía Fija",0,0,10,30,10,"NO",0,"NO",0,"NO",0,{"$f":"SUM(C24:G24,I24,K24,M24)","v":50}]
["ARCOTEL-032-03-03","Autorización de fusión de dos compañías o personas jurídicas de derecho privado poseedoras de Títulos Habilitantes para el Servicio de Transporte Internacional modalidad Cable Submarino",0,0,10,30,10,"NO",0,"NO",0,"NO",0,{"$f":"SUM(C25:G25,I25,K25,M25)","v":50}]
["ARCOTEL-032-03-04","Autorización de incremento y reubicación de estación terrena para el Servicio de Transporte Internacional modalidad Cable Submarino",0,0,10,30,10,"NO",0,"NO",0,"NO",0,{"$f":"SUM(C26:G26,I26,K26,M26)","v":50}]
["ARCOTEL-037-02-04","Autorización de incremento, modificación y cancelación de Radiobases para el Servicio de Telefonía Fija",0,0,10,30,10,"NO",0,"NO",0,"NO",0,{"$f":"SUM(C27:G27,I27,K27,M27)","v":50}]
["ARCOTEL-027-03-01","Autorización de modificaciones técnicas para el Servicio de Valor Agregado",0,0,5,30,0,"NO",0,"NO",0,"NO",0,{"$f":"SUM(C28:G28,I28,K28,M28)","v":35}]
["ARCOTEL-025-03-01","Autorización de modificaciones técnicas y administrativas para el Servicio Móvil Avanzado a través de Operador Móvil Virtual",0,0,10,30,10,"NO",0,"NO",0,"NO",0,{"$f":"SUM(C29:G29,I29,K29,M29)","v":50}]
["ARCOTEL-024-03-11","Autorización de prórroga para inicio de operaciones para el Servicio de Radiodifusión Sonora y Televisión por Señal Abierta",0,0,10,30,10,"NO",0,"NO",0,"NO",0,{"$f":"SUM(C30:G30,I30,K30,M30)","v":50}]
["ARCOTEL-017-03-09","Autorización de prórroga para inicio de operaciones para el Servicio Portador",0,0,10,30,10,"NO",0,"NO",0,"NO",0,{"$f":"SUM(C31:G31,I31,K31,M31)","v":50}]
["ARCOTEL-020-03-05","Autorización de prórroga para instalación e inicio de operaciones para el Servicio Comunal, Servicio Troncalizado y Transporte Internacional Modalidad Provisión Segmento Espacial",0,0,5,0,10,"NO",0,"NO",0,"NO",0,{"$f":"SUM(C32:G32,I32,K32,M32)","v":15}]
["ARCOTEL-015-03-05","Autorización de prórrogas para el Servicio de Telecomunicaciones Móviles por Satélite",0,0,null,30,10,"NO",0,"NO",0,"NO",0,{"$f":"SUM(C33:G33,I33,K33,M33)","v":40}]
["ARCOTEL-025-03-06","Autorización de prórrogas para el Servicio Móvil Avanzado a través de Operador Móvil Virtual",0,0,5,30,10,"NO",0,"NO",0,"NO",0,{"$f":"SUM(C34:G34,I34,K34,M34)","v":45}]
["ARCOTEL-031-03-01","Autorización de prórrogas varias para el Servicio de Telefonía Fija",0,0,5,30,10,"NO",0,"NO",0,"NO",0,{"$f":"SUM(C35:G35,I35,K35,M35)","v":45}]
["ARCOTEL-032-03-01","Autorización de prórrogas varias para el Servicio de Transporte Internacional modalidad Cable Submarino",0,0,5,30,10,"NO",0,"NO",0,"NO",0,{"$f":"SUM(C36:G36,I36,K36,M36)","v":45}]
["ARCOTEL-015-03-01","Autorización de transferencia o cesión de acciones que implican cambio de control para el Servicio de Telecomunicaciones Móviles por Satélite",0,0,10,30,10,"NO",0,"NO",0,"NO",0,{"$f":"SUM(C37:G37,I37,K37,M37)","v":50}]
["ARCOTEL-018-03-02","Autorización de transferencia o cesión de acciones que implican cambio de control para el Servicio Móvil Avanzado",0,0,10,30,10,"NO",0,"NO",0,"NO",0,{"$f":"SUM(C38:G38,I38,K38,M38)","v":50}]
["ARCOTEL-025-03-02","Autorización de transferencia o cesión de acciones que implican cambio de control para el Servicio Móvil Avanzado a través de Operador Móvil Virtual",0,0,10,30,10,"NO",0,"NO",0,"NO",0,{"$f":"SUM(C39:G39,I39,K39,M39)","v":50}]
["ARCOTEL-020-03-08","Autorización de Transferencia o Cesión del Título Habilitante para el Servicio Comunal, Servicio Troncalizado, Transporte Internacional Modalidad Provisión de Segmento Espacial",0,0,5,0,10,"NO",0,"NO",0,"NO",0,{"$f":"SUM(C40:G40,I40,K40,M40)","v":15}]
["ARCOTEL-014-03-03","Autorización de transferencia o cesión del Título Habilitante para el Servicio de Acceso a Internet para personas naturales o jurídicas de derecho privado",0,0,10,30,10,"NO",0,"NO",0,"NO",0,{"$f":"SUM(C41:G41,I41,K41,M41)","v":50}]
["ARCOTEL-015-03-02","Autorización de transferencia o cesión del Título Habilitante para el Servicio de Telecomunicaciones Móviles por Satélite",0,0,10,30,10,"NO",0,"NO",0,"NO",0,{"$f":"SUM(C42:G42,I42,K42,M42)","v":50}]
["ARCOTEL-027-03-04","Autorización de transferencia o cesión del Título Habilitante para el Servicio de Valor Agregado para personas naturales o jurídicas",0,0,10,30,10,"NO",0,"NO",0,"NO",0,{"$f":"SUM(C43:G43,I43,K43,M43)","v":50}]
["ARCOTEL-018-03-03","Autorización de transferencia o cesión del Título Habilitante para el Servicio Móvil Avanzado",0,0,10,30,10,"NO",0,"NO",0,"NO",0,{"$f":"SUM(C44:G44,I44,K44,M44)","v":50}]
["ARCOTEL-025-03-03","Autorización de transferencia o cesión del Título Habilitante para el Servicio Móvil Avanzado a través de Operador Móvil Virtual",0,0,10,30,10,"NO",0,"NO",0,"NO",0,{"$f":"SUM(C45:G45,I45,K45,M45)","v":50}]
["ARCOTEL-017-03-06","Autorización de transferencia o cesión del Título Habilitante para el Servicio Portador para personas naturales o jurídicas",0,0,10,30,10,"NO",0,"NO",0,"NO",0,{"$f":"SUM(C46:G46,I46,K46,M46)","v":50}]
["ARCOTEL-031-03-07","Autorización de vinculación que implica cambio de control para el Servicio de Telefonía Fija",0,0,20,30,10,"NO",0,"NO",0,"NO",0,{"$f":"SUM(C47:G47,I47,K47,M47)","v":60}]
["ARCOTEL-032-03-02","Autorización de vinculación que implica cambio de control para el Servicio de Transporte Internacional modalidad Cable Submarino",0,0,20,30,10,"NO",0,"NO",0,"NO",0,{"$f":"SUM(C48:G48,I48,K48,M48)","v":60}]
["ARCOTEL-026-02-01","Cancelación de Inscripción de Proveedores de Infraestructura física",0,0,20,30,10,"NO",0,"NO",0,"NO",0,{"$f":"SUM(C49:G49,I49,K49,M49)","v":60}]
["ARCOTEL-033-03-01","Cancelación del Certificado de Inscripción en el Registro Público de Telecomunicaciones de Centros de Acceso a la Información a través de Internet (Cibercafés)",0,0,5,0,0,"NO",0,"NO",0,"NO",0,{"$f":"SUM(C50:G50,I50,K50,M50)","v":5}]
["ARCOTEL-018-05-02","Declaración de disolución, quiebra o liquidación para personas jurídicas de derecho privado, por hechos o actos que impidan la continuidad del título habilitante",0,0,10,30,10,"NO",0,"NO",0,"NO",0,{"$f":"SUM(C51:G51,I51,K51,M51)","v":50}]
["ARCOTEL-028-05-01","Devolución voluntaria o por acuerdo mutuo del Título Habilitante de una Entidad de Certificación de Información y Servicios Relacionados Acreditados",0,0,10,30,10,"NO",0,"NO",0,"NO",0,{"$f":"SUM(C52:G52,I52,K52,M52)","v":50}]
["ARCOTEL-020-07-01","Devolución voluntaria o por acuerdo mutuo del Título Habilitante para el Servicio Comunal, Servicio Troncalizado y Transporte Internacional Modalidad Provisión Segmento Especial",0,0,5,0,10,"NO",0,"NO",0,"NO",0,{"$f":"SUM(C53:G53,I53,K53,M53)","v":15}]
["ARCOTEL-023-04-01","Devolución voluntaria o por acuerdo mutuo del Título Habilitante para el Servicio de Radioaficionados y Banda Ciudadana",0,0,5,0,10,"NO",0,"NO",0,"NO",0,{"$f":"SUM(C54:G54,I54,K54,M54)","v":15}]
["ARCOTEL-015-05-01","Devolución voluntaria o por acuerdo mutuo del Título Habilitante para el Servicio de Telecomunicaciones Móviles por Satélite",0,0,10,30,10,"NO",0,"NO",0,"NO",0,{"$f":"SUM(C55:G55,I55,K55,M55)","v":50}]
["ARCOTEL-031-05-01","Devolución voluntaria o por acuerdo mutuo del Título Habilitante para el Servicio de Telefonía Fija",0,0,10,30,10,"NO",0,"NO",0,"NO",0,{"$f":"SUM(C56:G56,I56,K56,M56)","v":50}]
["ARCOTEL-032-05-01","Devolución voluntaria o por acuerdo mutuo del Título Habilitante para el Servicio de Transporte Internacional modalidad Cable Submarino para personas jurídicas de derecho privado",0,0,10,30,10,"NO",0,"NO",0,"NO",0,{"$f":"SUM(C57:G57,I57,K57,M57)","v":50}]
["ARCOTEL-027-05-01","Devolución voluntaria o por acuerdo mutuo del Título Habilitante para el Servicio de Valor Agregado",0,0,10,30,10,"NO",0,"NO",0,"NO",0,{"$f":"SUM(C58:G58,I58,K58,M58)","v":50}]
["ARCOTEL-025-05-01","Devolución voluntaria o por acuerdo mutuo del Título Habilitante para el Servicio Móvil Avanzado a través de Operador Móvil Virtual para personas jurídicas de derecho privado",0,0,10,30,10,"NO",0,"NO",0,"NO",0,{"$f":"SUM(C59:G59,I59,K59,M59)","v":50}]
["ARCOTEL-018-05-01","Devolución voluntaria o por acuerdo mutuo del Título Habilitante para el Servicio Móvil Avanzado para personas jurídicas de derecho privado",0,0,10,30,10,"NO",0,"NO",0,"NO",0,{"$f":"SUM(C60:G60,I60,K60,M60)","v":50}]
["ARCOTEL-017-05-01","Devolución voluntaria o por acuerdo mutuo del Título Habilitante para el Servicio Portador",0,0,10,30,10,"NO",0,"NO",0,"NO",0,{"$f":"SUM(C61:G61,I61,K61,M61)","v":50}]
["ARCOTEL-015-05-03","Extinción del TH para el Servicio de Telecomunicaciones Móviles por Satélite por concepto de declaración de disolución, quiebra o liquidación para personas jurídicas de derecho privado, por pérdida de la capacidad civil de su titular...",0,0,10,30,10,"NO",0,"NO",0,"NO",0,{"$f":"SUM(C62:G62,I62,K62,M62)","v":50}]
["ARCOTEL-014-05-03","Extinción del Título Habilitante para el Servicio de Acceso a Internet por concepto de declaración de disolución, quiebra o liquidación para personas jurídicas de derecho privado",0,0,20,30,10,"NO",0,"NO",0,"NO",0,{"$f":"SUM(C63:G63,I63,K63,M63)","v":60}]
["ARCOTEL-030-05-03","Extinción del Título Habilitante para el Servicio de Audio y Video por Susucripción por concepto de declaración de disolución, quiebra o liquidación para personas jurídicas de derecho privado",0,0,20,30,10,"NO",0,"NO",0,"NO",0,{"$f":"SUM(C64:G64,I64,K64,M64)","v":60}]
["ARCOTEL-031-05-02","Extinción del Título Habilitante para el Servicio de Telefonía Fija por concepto de declaración de disolución, quiebra o liquidación para personas jurídicas de derecho privado",0,0,20,30,10,"NO",0,"NO",0,"NO",0,{"$f":"SUM(C65:G65,I65,K65,M65)","v":60}]
["ARCOTEL-032-05-03","Extinción del Título Habilitante para el Servicio de Transporte Internacional modalidad Cable Submarino por concepto de declaración de disolución, quiebra o liquidación para personas jurídicas de derecho privado",0,0,10,30,10,"NO",0,"NO",0,"NO",0,{"$f":"SUM(C66:G66,I66,K66,M66)","v":50}]
["ARCOTEL-017-05-03","Extinción del Título Habilitante para el Servicio Portador por concepto de declaración de disolución, quiebra o liquidación para personas jurídicas de derecho privado",0,0,10,30,10,"NO",0,"NO",0,"NO",0,{"$f":"SUM(C67:G67,I67,K67,M67)","v":50}]
["ARCOTEL-025-05-02","Extinción Título Habilitante Servicio Móvil Avanzado a través de OMV por concepto declaración de disolución, quiebra o liquidación personas jurídicas de derecho privado o por hechos o actos que impidan la continuidad",0,0,10,30,10,"NO",0,"NO",0,"NO",0,{"$f":"SUM(C68:G68,I68,K68,M68)","v":50}]
["ARCOTEL-030-04-14","Incorporación de estaciones de TV abierta para un Sistema de Audio y Video por Suscripción",0,0,5,0,10,"NO",0,"NO",0,"NO",0,{"$f":"SUM(C69:G69,I69,K69,M69)","v":15}]
["ARCOTEL-033-02-01","Modificación al Certificado de Inscripción en el Registro Público de Telecomunicaciones de Centros de Acceso a la Información a través de Internet (Cibercafés)",0,0,20,0,0,"NO",0,"NO",0,"NO",0,{"$f":"SUM(C70:G70,I70,K70,M70)","v":20}]
["ARCOTEL-015-04-03","Notificación adquisición de acciones o participaciones de empresas que no implica cambio de Control para el Servicio de Telecomunicaciones Móviles por Satélite",0,0,10,30,10,"NO",0,"NO",0,"NO",0,{"$f":"SUM(C71:G71,I71,K71,M71)","v":50}]
["ARCOTEL-018-04-04","Notificación adquisición de acciones o participaciones de empresas que no implica cambio de Control para el Servicio Móvil Avanzado",0,0,10,30,10,"NO",0,"NO",0,"NO",0,{"$f":"SUM(C72:G72,I72,K72,M72)","v":50}]
["ARCOTEL-032-04-02","Notificación de actualización de coordenadas geográficas de sitios previamente autorizados para el Servicio de Transporte Internacional modalidad Cable Submarino",0,0,10,30,10,"NO",0,"NO",0,"NO",0,{"$f":"SUM(C73:G73,I73,K73,M73)","v":50}]
["ARCOTEL-025-04-04","Notificación de adquisición de acciones o participaciones de empresas para el Servicio Móvil Avanzado bajo la modalidad de Operador Móvil Virtual",0,0,10,30,10,"NO",0,"NO",0,"NO",0,{"$f":"SUM(C74:G74,I74,K74,M74)","v":50}]
["ARCOTEL-018-04-14","Notificación de asignación y liberación de recurso de sincronismo del Servicio Móvil Avanzado",0,0,10,30,10,"NO",0,"NO",0,"NO",0,{"$f":"SUM(C75:G75,I75,K75,M75)","v":50}]
["ARCOTEL-018-04-13","Notificación de asignación y liberación de recurso de transmisión del Servicio Móvil Avanzado",0,0,10,30,10,"NO",0,"NO",0,"NO",0,{"$f":"SUM(C76:G76,I76,K76,M76)","v":50}]
["ARCOTEL-031-04-08","Notificación de asignación y liberación de recurso numérico de señalización para el Servicio de Telefonía Fija",0,0,10,30,10,"NO",0,"NO",0,"NO",0,{"$f":"SUM(C77:G77,I77,K77,M77)","v":50}]
["ARCOTEL-032-04-03","Notificación de cambio de marca y modelo de Equipo para el Servicio de Transporte Internacional modalidad Cable Submarino",0,0,10,30,10,"NO",0,"NO",0,"NO",0,{"$f":"SUM(C78:G78,I78,K78,M78)","v":50}]
["ARCOTEL-030-04-09","Notificación de cambio de nombre de estación (denominación comercial) para un Sistema de Audio y Video por Suscripción",0,0,5,0,10,"NO",0,"NO",0,"NO",0,{"$f":"SUM(C79:G79,I79,K79,M79)","v":15}]
["ARCOTEL-020-06-04","Notificación de cambio de Razón Social para el Servicio Comunal, Servicio Trancalizado, Transporte Internacional Modalidad Provisión Segmento Especial",0,0,5,0,10,"NO",0,"NO",0,"NO",0,{"$f":"SUM(C80:G80,I80,K80,M80)","v":15}]
["ARCOTEL-014-04-05","Notificación de cambio de Razón Social para el Servicio de Acceso a Internet para personas jurídicas de derecho privado",0,0,10,30,10,"NO",0,"NO",0,"NO",0,{"$f":"SUM(C81:G81,I81,K81,M81)","v":50}]
["ARCOTEL-015-04-06","Notificación de cambio de Razón Social para el Servicio de Telecomunicaciones Móviles por Satélite",0,0,10,30,10,"NO",0,"NO",0,"NO",0,{"$f":"SUM(C82:G82,I82,K82,M82)","v":50}]
["ARCOTEL-031-04-03","Notificación de cambio de Razón Social para el Servicio de Telefonía Fija",0,0,10,30,10,"NO",0,"NO",0,"NO",0,{"$f":"SUM(C83:G83,I83,K83,M83)","v":50}]
["ARCOTEL-027-04-05","Notificación de cambio de Razón Social para el Servicio de Valor Agregado para personas jurídicas de derecho privado y empresas públicas o instituciones del sector público",0,0,5,0,10,"NO",0,"NO",0,"NO",0,{"$f":"SUM(C84:G84,I84,K84,M84)","v":15}]
["ARCOTEL-018-04-06","Notificación de cambio de Razón Social para el Servicio Móvil Avanzado",0,0,10,30,10,"NO",0,"NO",0,"NO",0,{"$f":"SUM(C85:G85,I85,K85,M85)","v":50}]
["ARCOTEL-025-04-06","Notificación de cambio de Razón Social para el Servicio Móvil Avanzado a través de Operador Móvil Virtual",0,0,10,30,10,"NO",0,"NO",0,"NO",0,{"$f":"SUM(C86:G86,I86,K86,M86)","v":50}]
["ARCOTEL-017-04-05","Notificación de cambio de Razón Social para el Servicio Portador para personas jurídicas de derecho privado y empresas públicas",0,0,10,30,10,"NO",0,"NO",0,"NO",0,{"$f":"SUM(C87:G87,I87,K87,M87)","v":50}]
["ARCOTEL-031-04-02","Notificación de cambio de Representante Legal para el Servicio de Telefonía Fija",0,0,10,30,10,"NO",0,"NO",0,"NO",0,{"$f":"SUM(C88:G88,I88,K88,M88)","v":50}]
["ARCOTEL-020-06-03","Notificación de cambio de Representante Legal, actualización de información de contacto y cambio de domicilio para el Servicio Comunal, Servicio Troncalizado y Transporte Internacional Modalidad Provisión Segmento Especial",0,0,10,30,10,"NO",0,"NO",0,"NO",0,{"$f":"SUM(C89:G89,I89,K89,M89)","v":50}]
["ARCOTEL-015-04-05","Notificación de cambio de Representante Legal, actualización de información de contacto y cambio de domicilio para el Servicio de Telecomunicaciones Móviles por Satélite",0,0,10,30,10,"NO",0,"NO",0,"NO",0,{"$f":"SUM(C90:G90,I90,K90,M90)","v":50}]
["ARCOTEL-025-04-05","Notificación de cambio de Representante Legal, actualización de información de contacto y cambio de domicilio para el Servicio Móvil Avanzado a través de Operador Móvil Virtual",0,0,10,30,10,"NO",0,"NO",0,"NO",0,{"$f":"SUM(C91:G91,I91,K91,M91)","v":50}]
["ARCOTEL-018-04-05","Notificación de cambio de Representante Legal, actualización de información de contacto y cambio de domicilio para el Servicio Móvil Avanzado para personas jurídicas de derecho privado y empresas públicas",0,0,10,30,10,"NO",0,"NO",0,"NO",0,{"$f":"SUM(C92:G92,I92,K92,M92)","v":50}]
["ARCOTEL-017-04-04","Notificación de cambio de Representante Legal, actualización de información de contacto y cambio de domicilio para el Servicio Portador para personas jurídicas de derecho privado y empresas públicas",0,0,10,30,10,"NO",0,"NO",0,"NO",0,{"$f":"SUM(C93:G93,I93,K93,M93)","v":50}]
["ARCOTEL-030-04-10","Notificación de cambio y/o actualización de equipos que no impliquen modificación de características autorizadas para un Sistema de Audio y Video por Suscripción",0,0,5,0,10,"NO",0,"NO",0,"NO",0,{"$f":"SUM(C94:G94,I94,K94,M94)","v":15}]
["ARCOTEL-027-04-07","Notificación de cumplimiento de Georreferenciación para el Servicio de Valor Agregado",0,0,5,0,0,"NO",0,"NO",0,"NO",0,{"$f":"SUM(C95:G95,I95,K95,M95)","v":5}]
["ARCOTEL-026-02-02","Notificación de extinción de la persona jurídica o muerte de la persona natural inscrita como proveedores de infraestructura física",0,0,10,30,10,"NO",0,"NO",0,"NO",0,{"$f":"SUM(C96:G96,I96,K96,M96)","v":50}]
["ARCOTEL-030-04-07","Notificación de incremento o decremento de canales locales para guía de programación para un Sistema de Audio y Video por Suscripción",0,0,5,0,10,"NO",0,"NO",0,"NO",0,{"$f":"SUM(C97:G97,I97,K97,M97)","v":15}]
["ARCOTEL-030-04-06","Notificación de incremento o decremento del número de canales de servicios de valor agregado (PPV, VoD, etc.) para un Sistema de Audio y Video por Suscripción",0,0,5,0,10,"NO",0,"NO",0,"NO",0,{"$f":"SUM(C98:G98,I98,K98,M98)","v":15}]
["ARCOTEL-028-04-05","Notificación de la Declaración de Prácticas de Certificación de una Entidad de Certificación de Información y Servicios Relacionados Acreditados",0,0,5,0,0,"NO",0,"NO",0,"NO",0,{"$f":"SUM(C99:G99,I99,K99,M99)","v":5}]
["ARCOTEL-014-04-02","Notificación de modificación de capital para el Servicio de Acceso a Internet para personas jurídicas de derecho privado",0,0,10,30,10,"NO",0,"NO",0,"NO",0,{"$f":"SUM(C100:G100,I100,K100,M100)","v":50}]
["ARCOTEL-015-04-01","Notificación de modificación de capital para el Servicio de Telecomunicaciones Móviles por Satélite",0,0,10,30,10,"NO",0,"NO",0,"NO",0,{"$f":"SUM(C101:G101,I101,K101,M101)","v":50}]
["ARCOTEL-031-04-04","Notificación de modificación de capital para el Servicio de Telefonía Fija",0,0,10,30,10,"NO",0,"NO",0,"NO",0,{"$f":"SUM(C102:G102,I102,K102,M102)","v":50}]
["ARCOTEL-032-04-04","Notificación de modificación de Capital para el Servicio de Transporte Internacional modalidad Cable Submarino",0,0,10,30,10,"NO",0,"NO",0,"NO",0,{"$f":"SUM(C103:G103,I103,K103,M103)","v":50}]
["ARCOTEL-027-04-02","Notificación de modificación de capital para el Servicio de Valor Agregado para personas jurídicas de derecho privado y empresas públicas o instituciones del sector público",0,0,10,30,10,"NO",0,"NO",0,"NO",0,{"$f":"SUM(C104:G104,I104,K104,M104)","v":50}]
["ARCOTEL-025-04-02","Notificación de modificación de capital para el Servicio Móvil Avanzado a través de Operador Móvil Virtual",0,0,10,30,10,"NO",0,"NO",0,"NO",0,{"$f":"SUM(C105:G105,I105,K105,M105)","v":50}]
["ARCOTEL-018-04-02","Notificación de modificación de capital para el Servicio Móvil Avanzado para personas jurídicas de derecho privado",0,0,10,30,10,"NO",0,"NO",0,"NO",0,{"$f":"SUM(C106:G106,I106,K106,M106)","v":50}]
["ARCOTEL-017-04-02","Notificación de modificación de capital para el Servicio Portador para personas jurídicas de derecho privado",0,0,10,30,10,"NO",0,"NO",0,"NO",0,{"$f":"SUM(C107:G107,I107,K107,M107)","v":50}]
["ARCOTEL-014-04-03","Notificación de modificación de Estatutos para el Servicio de Acceso a Internet para personas jurídicas de derecho privado y empresas públicas",0,0,10,30,10,"NO",0,"NO",0,"NO",0,{"$f":"SUM(C108:G108,I108,K108,M108)","v":50}]
["ARCOTEL-015-04-02","Notificación de modificación de Estatutos para el Servicio de Telecomunicaciones Móviles por Satélite",0,0,10,30,10,"NO",0,"NO",0,"NO",0,{"$f":"SUM(C109:G109,I109,K109,M109)","v":50}]
["ARCOTEL-031-04-05","Notificación de modificación de Estatutos para el Servicio de Telefonía Fija",0,0,10,30,10,"NO",0,"NO",0,"NO",0,{"$f":"SUM(C110:G110,I110,K110,M110)","v":50}]
["ARCOTEL-032-04-05","Notificación de modificación de Estatutos para el Servicio de Transporte Internacional modalidad Cable Submarino",0,0,10,30,10,"NO",0,"NO",0,"NO",0,{"$f":"SUM(C111:G111,I111,K111,M111)","v":50}]
["ARCOTEL-027-04-03","Notificación de modificación de Estatutos para el Servicio de Valor Agregado para personas jurídicas de derecho privado y empresas públicas o instituciones del sector público",0,0,10,30,10,"NO",0,"NO",0,"NO",0,{"$f":"SUM(C112:G112,I112,K112,M112)","v":50}]
["ARCOTEL-025-04-03","Notificación de modificación de Estatutos para el Servicio Móvil Avanzado a través de Operador Móvil Virtual",0,0,10,30,10,"NO",0,"NO",0,"NO",0,{"$f":"SUM(C113:G113,I113,K113,M113)","v":50}]
["ARCOTEL-018-04-03","Notificación de modificación de Estatutos para el Servicio Móvil Avanzado para personas jurídicas de derecho privado y empresas públicas",0,0,10,30,10,"NO",0,"NO",0,"NO",0,{"$f":"SUM(C114:G114,I114,K114,M114)","v":50}]
["ARCOTEL-017-04-03","Notificación de modificación de Estatutos para el Servicio Portador para personas jurídicas de derecho privado y empresas públicas",0,0,10,30,10,"NO",0,"NO",0,"NO",0,{"$f":"SUM(C115:G115,I115,K115,M115)","v":50}]
["ARCOTEL-018-04-01","Notificación de modificaciones técnicas y administrativas para el Servicio Móvil Avanzado",0,0,10,30,10,"NO",0,"NO",0,"NO",0,{"$f":"SUM(C116:G116,I116,K116,M116)","v":50}]
["ARCOTEL-025-04-01","Notificación de modificaciones técnicas y administrativas para el Servicio Móvil Avanzado a través de Operador Móvil Virtual",0,0,10,30,10,"NO",0,"NO",0,"NO",0,{"$f":"SUM(C117:G117,I117,K117,M117)","v":50}]
["ARCOTEL-016-05-02","Notificación de muerte del titular del Título Habilitante de Red Privada y Uso de Frecuencias de Telecomunicaciones",0,0,10,30,10,"NO",0,"NO",0,"NO",0,{"$f":"SUM(C118:G118,I118,K118,M118)","v":50}]
["ARCOTEL-028-05-02","Notificación de muerte del titular del Título Habilitante de una Entidad de Certificación de Información y Servicios Relacionados Acreditados para personas naturales o jurídicas de derecho privado",0,0,10,30,10,"NO",0,"NO",0,"NO",0,{"$f":"SUM(C119:G119,I119,K119,M119)","v":50}]
["ARCOTEL-020-07-02","Notificación de muerte del titular del Título Habilitante para el Servicio Comunal y Troncalizado",0,0,5,0,10,"NO",0,"NO",0,"NO",0,{"$f":"SUM(C120:G120,I120,K120,M120)","v":15}]
["ARCOTEL-014-05-02","Notificación de muerte del titular del Título Habilitante para el Servicio de Acceso a Internet para personas naturales",0,0,10,30,10,"NO",0,"NO",0,"NO",0,{"$f":"SUM(C121:G121,I121,K121,M121)","v":50}]
["ARCOTEL-030-05-02","Notificación de muerte del titular del Título Habilitante para el Servicio de Audio y Video por Susucripción para personas naturales o jurídicas de derecho privado",0,0,20,30,10,"NO",0,"NO",0,"NO",0,{"$f":"SUM(C122:G122,I122,K122,M122)","v":60}]
["ARCOTEL-015-05-02","Notificación de muerte del titular del Título Habilitante para el Servicio de Telecomunicaciones Móviles por Satélite para personas naturales",0,0,10,30,10,"NO",0,"NO",0,"NO",0,{"$f":"SUM(C123:G123,I123,K123,M123)","v":50}]
["ARCOTEL-032-05-02","Notificación de muerte del titular del Título Habilitante para el Servicio de Transporte Internacional modalidad Cable Submarino para personas naturales",0,0,10,30,10,"NO",0,"NO",0,"NO",0,{"$f":"SUM(C124:G124,I124,K124,M124)","v":50}]
["ARCOTEL-027-05-02","Notificación de muerte del titular del Título Habilitante para el Servicio de Valor Agregado para personas naturales o jurídicas de derecho privado",0,0,10,30,10,"NO",0,"NO",0,"NO",0,{"$f":"SUM(C125:G125,I125,K125,M125)","v":50}]
["ARCOTEL-017-05-02","Notificación de muerte del titular del Título Habilitante para el Servicio Portador para personas naturales",0,0,10,30,10,"NO",0,"NO",0,"NO",0,{"$f":"SUM(C126:G126,I126,K126,M126)","v":50}]
["ARCOTEL-025-04-09","Notificación de reportes contractuales, legales y reglamentarios del Servicio Móvil Avanzado a través de Operador Móvil Virtual",0,0,10,30,10,"NO",0,"NO",0,"NO",0,{"$f":"SUM(C127:G127,I127,K127,M127)","v":50}]
["ARCOTEL-020-06-06","Notificación de Transferencia o Cesión de acciones que no impliquen cambio de control para el Servicio Comunal, Servicio Troncalizado y Transporte Internacional Modalidad Provisión Segmento Especial",0,0,5,0,10,"NO",0,"NO",0,"NO",0,{"$f":"SUM(C128:G128,I128,K128,M128)","v":15}]
["ARCOTEL-014-04-01","Notificación de transferencia o cesión de acciones que no impliquen cambio de control para el Servicio de Acceso a Internet para personas jurídicas de derecho privado",0,0,10,30,10,"NO",0,"NO",0,"NO",0,{"$f":"SUM(C129:G129,I129,K129,M129)","v":50}]
["ARCOTEL-027-04-01","Notificación de transferencia o cesión de acciones que no impliquen cambio de control para el Servicio de Valor Agregado para personas jurídicas de derecho privado y empresas públicas o instituciones del sector público",0,0,10,30,10,"NO",0,"NO",0,"NO",0,{"$f":"SUM(C130:G130,I130,K130,M130)","v":50}]
["ARCOTEL-017-04-01","Notificación de transferencia o cesión de acciones que no impliquen cambio de control para el Servicio Portador para personas jurídicas de derecho privado",0,0,10,30,10,"NO",0,"NO",0,"NO",0,{"$f":"SUM(C131:G131,I131,K131,M131)","v":50}]
["ARCOTEL-031-04-10","Notificación del Plan Técnico Fundamental de Sincronismo para el Servicio de Telefonía Fija",0,0,10,30,10,"NO",0,"NO",0,"NO",0,{"$f":"SUM(C132:G132,I132,K132,M132)","v":50}]
["ARCOTEL-031-04-09","Notificación del Plan Técnico Fundamental de Transmisión para el Servicio de Telefonía Fija",0,0,10,30,10,"NO",0,"NO",0,"NO",0,{"$f":"SUM(C133:G133,I133,K133,M133)","v":50}]
["ARCOTEL-037-01-01","Otorgamiento de título habilitante de frecuencias asociadas a la prestación de Servicios de Telecomunicaciones",0,0,5,30,10,"NO",0,"NO",0,"NO",0,{"$f":"SUM(C134:G134,I134,K134,M134)","v":45}]
["ARCOTEL-014-01-03","Otorgamiento del Título Habilitante para el Servicio de Acceso a Internet para empresas públicas",0,0,5,30,10,"NO",0,"NO",0,"NO",0,{"$f":"SUM(C135:G135,I135,K135,M135)","v":45}]
["ARCOTEL-015-01-03","Otorgamiento del Título Habilitante para el Servicio de Telecomunicaciones Móviles por Satélite y Concesión de Frecuencias para empresas públicas",0,0,10,30,10,"NO",0,"NO",0,"NO",0,{"$f":"SUM(C136:G136,I136,K136,M136)","v":50}]
["ARCOTEL-015-01-02","Otorgamiento del Título Habilitante para el Servicio de Telecomunicaciones Móviles por Satélite y Concesión de Frecuencias para personas jurídicas de derecho privado",0,0,10,30,10,"NO",0,"NO",0,"NO",0,{"$f":"SUM(C137:G137,I137,K137,M137)","v":50}]
["ARCOTEL-015-01-01","Otorgamiento del Título Habilitante para el Servicio de Telecomunicaciones Móviles por Satélite y Concesión de Frecuencias para personas naturales",0,0,10,30,10,"NO",0,"NO",0,"NO",0,{"$f":"SUM(C138:G138,I138,K138,M138)","v":50}]
["ARCOTEL-031-01-01","Otorgamiento del Título Habilitante para el Servicio de Telefonía Fija para empresas públicas o instituciones del sector público",0,0,20,30,10,"NO",0,"NO",0,"NO",0,{"$f":"SUM(C139:G139,I139,K139,M139)","v":60}]
["ARCOTEL-032-01-01","Otorgamiento del Título Habilitante para el Servicio de Transporte Internacional modalidad Cable Submarino para empresas públicas o instituciones del sector público",0,0,10,30,10,"NO",0,"NO",0,"NO",0,{"$f":"SUM(C140:G140,I140,K140,M140)","v":50}]
["ARCOTEL-032-01-02","Otorgamiento del Título Habilitante para el Servicio de Transporte Internacional modalidad Cable Submarino para personas naturales o jurídicas de derecho privado",0,0,10,30,10,"NO",0,"NO",0,"NO",0,{"$f":"SUM(C141:G141,I141,K141,M141)","v":50}]
["ARCOTEL-027-01-03","Otorgamiento del Título Habilitante para el Servicio de Valor Agregado para empresas públicas",0,0,5,30,10,"NO",0,"NO",0,"NO",0,{"$f":"SUM(C142:G142,I142,K142,M142)","v":45}]
["ARCOTEL-027-01-01","Otorgamiento del Título Habilitante para el Servicio de Valor Agregado para personas naturales",0,0,5,30,10,"NO",0,"NO",0,"NO",0,{"$f":"SUM(C143:G143,I143,K143,M143)","v":45}]
["ARCOTEL-025-01-02","Otorgamiento del Título Habilitante para el Servicio Móvil Avanzado a través de OMV para personas jurídicas de derecho privado, empresas de la economía mixta donde el Estado tenga mayoría accionaria y Empresas Economía Popular y Solidaria",0,0,20,30,10,"NO",0,"NO",0,"NO",0,{"$f":"SUM(C144:G144,I144,K144,M144)","v":60}]
["ARCOTEL-025-01-01","Otorgamiento del Título Habilitante para el Servicio Móvil Avanzado a través de Operador Móvil Virtual para empresas públicas",0,0,20,30,10,"NO",0,"NO",0,"NO",0,{"$f":"SUM(C145:G145,I145,K145,M145)","v":60}]
["ARCOTEL-018-01-01","Otorgamiento del Título Habilitante para el Servicio Móvil Avanzado para empresas públicas",0,0,20,30,10,"NO",0,"NO",0,"NO",0,{"$f":"SUM(C146:G146,I146,K146,M146)","v":60}]
["ARCOTEL-018-01-02","Otorgamiento del Título Habilitante para el Servicio Móvil Avanzado para personas jurídicas de derecho privado",0,0,20,30,10,"NO",0,"NO",0,"NO",0,{"$f":"SUM(C147:G147,I147,K147,M147)","v":60}]
["ARCOTEL-017-01-03","Otorgamiento del Título Habilitante para el Servicio Portador para empresas públicas",0,0,5,30,10,"NO",0,"NO",0,"NO",0,{"$f":"SUM(C148:G148,I148,K148,M148)","v":45}]
["ARCOTEL-017-01-01","Otorgamiento del Título Habilitante para el Servicio Portador para personas naturales",0,0,5,30,10,"NO",0,"NO",0,"NO",0,{"$f":"SUM(C149:G149,I149,K149,M149)","v":45}]
["ARCOTEL-030-01-03","Otorgamiento del Título Habilitante para un Sistema de Audio y Video por Suscripción bajo las modalidades de Cable Físico o Televisión Codificada Satelital para empresas públicas o instituciones del sector público.",0,0,20,30,10,"NO",0,"NO",0,"NO",0,{"$f":"SUM(C150:G150,I150,K150,M150)","v":60}]
["ARCOTEL-028-01-02","Otorgamiento del Título Habilitante para una Entidad de Certificación de Información y Servicios Relacionados Acreditados para empresas públicas o instituciones del sector público",0,0,5,30,10,"NO",0,"NO",0,"NO",0,{"$f":"SUM(C151:G151,I151,K151,M151)","v":45}]
["ARCOTEL-028-01-01","Otorgamiento del Título Habilitante para una Entidad de Certificación de Información y Servicios Relacionados Acreditados para personas jurídicas de derecho privado",0,0,5,30,10,"NO",0,"NO",0,"NO",0,{"$f":"SUM(C152:G152,I152,K152,M152)","v":45}]
["ARCOTEL-031-01-02","Otorgamiento del Título Habilitante Servicio de Telefonía Fija para personas jurídicas de derecho privado, empresas de la economía mixta donde el Estado tenga mayoría accionaria y empresas de la economía popular y solidaria",0,0,20,30,10,"NO",0,"NO",0,"NO",0,{"$f":"SUM(C153:G153,I153,K153,M153)","v":60}]
["ARCOTEL-023-01-04","Otorgamiento y Renovación de la Licencia para el Servicio de Radioaficionados Internacional y de transito",0,0,5,30,10,"NO",0,"NO",0,"NO",0,{"$f":"SUM(C154:G154,I154,K154,M154)","v":45}]
["ARCOTEL-030-04-12","Registro de Canales Codificados para un Sistema de Audio y Video por Suscripción",0,0,5,0,10,"NO",0,"NO",0,"NO",0,{"$f":"SUM(C155:G155,I155,K155,M155)","v":15}]
["ARCOTEL-032-04-01","Registro de Contrato de Adhesión o Reventa para el Servicio de Transporte Internacional modalidad Cable Submarino",0,0,20,30,10,"NO",0,"NO",0,"NO",0,{"$f":"SUM(C156:G156,I156,K156,M156)","v":60}]
["ARCOTEL-027-03-07","Registro de Contrato de Adhesión o Reventa para el Servicio de Valor Agregado",0,0,10,30,10,"NO",0,"NO",0,"NO",0,{"$f":"SUM(C157:G157,I157,K157,M157)","v":50}]
["ARCOTEL-015-04-07","Registro de Contrato de Adhesión para el Servicio de Telecomunicaciones Móviles por Satélite",0,0,20,30,10,"NO",0,"NO",0,"NO",0,{"$f":"SUM(C158:G158,I158,K158,M158)","v":60}]
["ARCOTEL-025-04-07","Registro de Contrato de Adhesión para el Servicio Móvil Avanzado a través de Operador Móvil Virtual",0,0,20,30,10,"NO",0,"NO",0,"NO",0,{"$f":"SUM(C159:G159,I159,K159,M159)","v":60}]
["ARCOTEL-015-04-08","Registro de Contrato de Reventa para el Servicio de Telecomunicaciones Móviles por Satélite",0,0,20,30,10,"NO",0,"NO",0,"NO",0,{"$f":"SUM(C160:G160,I160,K160,M160)","v":60}]
["ARCOTEL-025-04-08","Registro de Contrato de Reventa para el Servicio Móvil Avanzado a través de Operador Móvil Virtual",0,0,20,30,10,"NO",0,"NO",0,"NO",0,{"$f":"SUM(C161:G161,I161,K161,M161)","v":60}]
["ARCOTEL-030-04-13","Registro de Proveedores de Programación Internacional para un Sistema de Audio y Video por Suscripción",0,0,5,0,10,"NO",0,"NO",0,"NO",0,{"$f":"SUM(C162:G162,I162,K162,M162)","v":15}]
["ARCOTEL-014-02-03","Renovación del Título Habilitante para el Servicio de Acceso a Internet para empresas públicas",0,0,5,30,10,"NO",0,"NO",0,"NO",0,{"$f":"SUM(C163:G163,I163,K163,M163)","v":45}]
["ARCOTEL-014-02-01","Renovación del Título Habilitante para el Servicio de Acceso a Internet para personas naturales",0,0,5,30,10,"NO",0,"NO",0,"NO",0,{"$f":"SUM(C164:G164,I164,K164,M164)","v":45}]
["ARCOTEL-015-02-03","Renovación del Título Habilitante para el Servicio de Telecomunicaciones Móviles por Satélite y Concesión de Frecuencias para empresas públicas",0,0,20,30,10,"NO",0,"NO",0,"NO",0,{"$f":"SUM(C165:G165,I165,K165,M165)","v":60}]
["ARCOTEL-015-02-02","Renovación del Título Habilitante para el Servicio de Telecomunicaciones Móviles por Satélite y Concesión de Frecuencias para personas jurídicas de derecho privado",0,0,20,30,10,"NO",0,"NO",0,"NO",0,{"$f":"SUM(C166:G166,I166,K166,M166)","v":60}]
["ARCOTEL-015-02-01","Renovación del Título Habilitante para el Servicio de Telecomunicaciones Móviles por Satélite y Concesión de Frecuencias para personas naturales",0,0,20,30,10,"NO",0,"NO",0,"NO",0,{"$f":"SUM(C167:G167,I167,K167,M167)","v":60}]
["ARCOTEL-031-02-01","Renovación del Título Habilitante para el Servicio de Telefonía Fija para empresas públicas o instituciones del sector público",0,0,20,30,10,"NO",0,"NO",0,"NO",0,{"$f":"SUM(C168:G168,I168,K168,M168)","v":60}]
["ARCOTEL-031-02-02","Renovación del Título Habilitante para el Servicio de Telefonía Fija para personas jurídicas de derecho privado, empresas de la economía mixta donde el Estado tenga mayoría accionaria y empresas de la economía popular y solidaria",0,0,20,30,10,"NO",0,"NO",0,"NO",0,{"$f":"SUM(C169:G169,I169,K169,M169)","v":60}]
["ARCOTEL-032-02-01","Renovación del Título Habilitante para el Servicio de Transporte Internacional modalidad Cable Submarino para empresas públicas o instituciones del sector público",0,0,20,30,10,"NO",0,"NO",0,"NO",0,{"$f":"SUM(C170:G170,I170,K170,M170)","v":60}]
["ARCOTEL-032-02-02","Renovación del Título Habilitante para el Servicio de Transporte Internacional modalidad Cable Submarino para personas naturales o jurídicas de derecho privado",0,0,20,30,10,"NO",0,"NO",0,"NO",0,{"$f":"SUM(C171:G171,I171,K171,M171)","v":60}]
["ARCOTEL-027-02-03","Renovación del Título Habilitante para el Servicio de Valor Agregado para empresas públicas",0,0,5,30,10,"NO",0,"NO",0,"NO",0,{"$f":"SUM(C172:G172,I172,K172,M172)","v":45}]
["ARCOTEL-027-02-02","Renovación del Título Habilitante para el Servicio de Valor Agregado para personas jurídicas de derecho privado",0,0,5,30,10,"NO",0,"NO",0,"NO",0,{"$f":"SUM(C173:G173,I173,K173,M173)","v":45}]
["ARCOTEL-027-02-01","Renovación del Título Habilitante para el Servicio de Valor Agregado para personas naturales",0,0,5,30,10,"NO",0,"NO",0,"NO",0,{"$f":"SUM(C174:G174,I174,K174,M174)","v":45}]
["ARCOTEL-025-02-02","Renovación del Título Habilitante para el Servicio Móvil Avanzado a través de OMV para personas jurídicas de derecho privado, empresas de la economía mixta donde el Estado tenga mayoría accionaria y Empresas de la Economía Popular y Solidaria",0,0,20,30,10,"NO",0,"NO",0,"NO",0,{"$f":"SUM(C175:G175,I175,K175,M175)","v":60}]
["ARCOTEL-025-02-01","Renovación del Título Habilitante para el Servicio Móvil Avanzado a través de Operador Móvil Virtual para empresas públicas",0,0,20,30,10,"NO",0,"NO",0,"NO",0,{"$f":"SUM(C176:G176,I176,K176,M176)","v":60}]
["ARCOTEL-018-02-01","Renovación del Título Habilitante para el Servicio Móvil Avanzado para empresas públicas",0,0,20,30,10,"NO",0,"NO",0,"NO",0,{"$f":"SUM(C177:G177,I177,K177,M177)","v":60}]
["ARCOTEL-018-02-02","Renovación del Título Habilitante para el Servicio Móvil Avanzado para personas jurídicas de derecho privado",0,0,20,30,10,"NO",0,"NO",0,"NO",0,{"$f":"SUM(C178:G178,I178,K178,M178)","v":60}]
["ARCOTEL-017-02-03","Renovación del Título Habilitante para el Servicio Portador para empresas públicas",0,0,5,30,10,"NO",0,"NO",0,"NO",0,{"$f":"SUM(C179:G179,I179,K179,M179)","v":45}]
["ARCOTEL-017-02-01","Renovación del Título Habilitante para el Servicio Portador para personas naturales",0,0,5,30,10,"NO",0,"NO",0,"NO",0,{"$f":"SUM(C180:G180,I180,K180,M180)","v":45}]
["ARCOTEL-028-02-02","Renovación del Título Habilitante para una Entidad de Certificación de Información y Servicios Relacionados Acreditados para empresas públicas o instituciones del sector público",0,0,5,30,10,"NO",0,"NO",0,"NO",0,{"$f":"SUM(C181:G181,I181,K181,M181)","v":45}]
["ARCOTEL-030-02-01","Renovación Título Habilitante para un Sistema de Audio y Video por Suscripción bajo modalidades de Cable Físico o TV Codificada Satelital, personas naturales, personas jurídicas de derecho priv, inst del sector público o em públicas",0,0,20,30,10,"NO",0,"NO",0,"NO",0,{"$f":"SUM(C182:G182,I182,K182,M182)","v":60}]
["ARCOTEL-024-03-13","Solicitud de continuación de uso de los derechos del título habilitante por fallecimiento de la persona natural concesionaria de una frecuencia de Radiodifusión Sonora y de Televisión de Señal Abierta",0,0,5,0,10,"NO",0,"NO",0,"NO",0,{"$f":"SUM(C183:G183,I183,K183,M183)","v":15}]
["ARCOTEL-006-01-03","Solicitud de credenciales para ensambladores de terminales de servicio móvil avanzado",0,0,5,30,0,"NO",0,"NO",0,"NO",0,{"$f":"SUM(C184:G184,I184,K184,M184)","v":35}]
["ARCOTEL-028-05-03","Solicitud de extinción del Título Habilitante de una Entidad de Certificación de Información y Servicios Relacionados Acreditados por concepto de declaración de disolución, quiebra o liquidación para personas jurídicas de derecho privado",0,0,10,30,10,"NO",0,"NO",0,"NO",0,{"$f":"SUM(C185:G185,I185,K185,M185)","v":50}]
["ARCOTEL-027-05-03","Solicitud de extinción del Título Habilitante para el Servicio de Valor Agregado por concepto de declaración de disolución, quiebra o liquidación para personas jurídicas de derecho privado",0,0,20,30,10,"NO",0,"NO",0,"NO",0,{"$f":"SUM(C186:G186,I186,K186,M186)","v":60}]
["ARCOTEL-005-01-02","Solicitud de licencias no automáticas de importación de decodificadores para provisión de receptores de abonado y/o receptores de prestador de servicio para sistemas de audio y video por suscripción o tv abierta -para venta a un prestador",0,0,5,0,0,"NO",0,"NO",0,"NO",0,{"$f":"SUM(C187:G187,I187,K187,M187)","v":5}]
["ARCOTEL-010-02-01","Solicitud de Renovación Temporal de Frecuencias para Radiodifusión Sonora y TV de Señal Abierta",0,0,10,30,10,"NO",0,"NO",0,"NO",0,{"$f":"SUM(C188:G188,I188,K188,M188)","v":50}]
["ARCOTEL-024-05-03","Terminación del Título Habilitante para el Servicio de Radiodifusión Sonora y de Televisión de Señal Abierta por la causal de extinción de la persona jurídica",0,0,10,30,10,"NO",0,"NO",0,"NO",0,{"$f":"SUM(C189:G189,I189,K189,M189)","v":50}]
["ARCOTEL-024-05-05","Terminación del Título Habilitante para el Servicio de Radiodifusión Sonora y de Televisión de Señal Abierta por pérdida de la capacidad civil del concesionario o disolución de la sociedad concesionaria",0,0,10,30,10,"NO",0,"NO",0,"NO",0,{"$f":"SUM(C190:G190,I190,K190,M190)","v":50}]
["ARCOTEL-036-01-02","Asesoría para el tratamiento de incidentes y vulnerabilidades informáticas a usuarios de redes de telecomunicaciones",3,0,5,0,10,"NO",0,"NO",0,"NO",0,{"$f":"SUM(C191:G191,I191,K191,M191)","v":18}]
["ARCOTEL-016-03-04","Autorización de incremento, modificación y cancelación de enlaces físicos para una Red Privada de Telecomunicaciones",3,0,10,30,10,"NO",0,"NO",0,"NO",0,{"$f":"SUM(C192:G192,I192,K192,M192)","v":53}]
["ARCOTEL-016-03-02","Autorización de modificación de parámetros técnicos para enlaces terrestres y satelitales asociados a una Red Privada de Telecomunicaciones",3,0,10,30,10,"NO",0,"NO",0,"NO",0,{"$f":"SUM(C193:G193,I193,K193,M193)","v":53}]
["ARCOTEL-018-03-01","Autorización de modificaciones técnicas y administrativas para el Servicio Móvil Avanzado",3,0,10,30,10,"NO",0,"NO",0,"NO",0,{"$f":"SUM(C194:G194,I194,K194,M194)","v":53}]
["ARCOTEL-018-03-06","Autorización de prórrogas para el Servicio Móvil Avanzado",3,0,10,30,10,"NO",0,"NO",0,"NO",0,{"$f":"SUM(C195:G195,I195,K195,M195)","v":53}]
["ARCOTEL-016-05-03","Extinción del Título Habilitante de Red Privada y Uso de Frecuencias de Telecomunicaciones por declaración anticipada y unilateral debidamente motivada",3,0,5,0,10,"NO",0,"NO",0,"NO",0,{"$f":"SUM(C196:G196,I196,K196,M196)","v":18}]
["ARCOTEL-018-04-11","Notificación de asignación y liberación de número social público del Servicio Móvil Avanzado",3,0,10,30,10,"NO",0,"NO",0,"NO",0,{"$f":"SUM(C197:G197,I197,K197,M197)","v":53}]
["ARCOTEL-018-04-10","Notificación de asignación y liberación de recurso numérico no geográfico del Servicio Móvil Avanzado",3,0,10,30,0,"NO",0,"NO",0,"NO",0,{"$f":"SUM(C198:G198,I198,K198,M198)","v":43}]
["ARCOTEL-027-04-04","Notificación de cambio de Representante Legal para el Servicio de Valor Agregado para personas jurídicas de derecho privado y empresas públicas o instituciones del sector público",3,0,10,30,10,"NO",0,"NO",0,"NO",0,{"$f":"SUM(C199:G199,I199,K199,M199)","v":53}]
["ARCOTEL-027-01-02","Otorgamiento del Título Habilitante para el Servicio de Valor Agregado para personas jurídicas de derecho privado",3,0,5,30,10,"NO",0,"NO",0,"NO",0,{"$f":"SUM(C200:G200,I200,K200,M200)","v":48}]
["ARCOTEL-017-01-02","Otorgamiento del Título Habilitante para el Servicio Portador para personas jurídicas de derecho privado",3,0,5,30,10,"NO",0,"NO",0,"NO",0,{"$f":"SUM(C201:G201,I201,K201,M201)","v":48}]
["ARCOTEL-017-02-02","Renovación del Título Habilitante para el Servicio Portador para personas jurídicas de derecho privado",3,0,5,30,10,"NO",0,"NO",0,"NO",0,{"$f":"SUM(C202:G202,I202,K202,M202)","v":48}]
["ARCOTEL-028-02-01","Renovación del Título Habilitante para una Entidad de Certificación de Información y Servicios Relacionados Acreditados para personas jurídicas de derecho privado",3,0,5,30,10,"NO",0,"NO",0,"NO",0,{"$f":"SUM(C203:G203,I203,K203,M203)","v":48}]
["ARCOTEL-020-03-07","Autorización de incremento, modificación y cancelación de satélites para el Servicio de Transporte Internacional Modalidad Provisión Segmento Especial",3,0,5,30,10,"NO",0,"NO",0,"NO",0,{"$f":"SUM(C204:G204,I204,K204,M204)","v":48}]
["ARCOTEL-016-03-09","Autorización de transferencia o cesión del Título Habilitante de Red Privada y Uso de Frecuencias de Telecomunicaciones",3,0,5,0,10,"NO",0,"NO",0,"NO",0,{"$f":"SUM(C205:G205,I205,K205,M205)","v":18}]
["ARCOTEL-024-05-01","Devolución voluntaria o por acuerdo mutuo del Título Habilitante para el Servicio de Radiodifusión Sonora y de Televisión de Señal Abierta",3,0,20,30,10,"NO",0,"NO",0,"NO",0,{"$f":"SUM(C206:G206,I206,K206,M206)","v":63}]
["ARCOTEL-018-04-12","Notificación de asignación y liberación de recurso de señalización del Servicio Móvil Avanzado",3,0,10,30,10,"NO",0,"NO",0,"NO",0,{"$f":"SUM(C207:G207,I207,K207,M207)","v":53}]
["ARCOTEL-014-04-04","Notificación de cambio de Representante Legal, actualización de información de contacto y cambio de domicilio para el Servicio de Acceso a Internet para personas jurídicas de derecho privado y empresas públicas",3,0,10,30,10,"NO",0,"NO",0,"NO",0,{"$f":"SUM(C208:G208,I208,K208,M208)","v":53}]
["ARCOTEL-024-01-02","Otorgamiento del Título Habilitante para el Servicio de Radiodifusión Sonora y Televisión por Señal Abierta para Medios Privados y Comunitarios (Concurso Público)",3,0,5,0,10,"NO",0,"NO",0,"NO",0,{"$f":"SUM(C209:G209,I209,K209,M209)","v":18}]
["ARCOTEL-016-01-01","Otorgamiento y Renovación del Título Habilitante de Operación de Red Privada y Uso de Frecuencias para enlaces terrestres y satelitales",3,0,20,30,10,"NO",0,"NO",0,"NO",0,{"$f":"SUM(C210:G210,I210,K210,M210)","v":63}]
["ARCOTEL-017-04-06","Registro de Contrato de Adhesión o Reventa para el Servicio Portador",3,0,10,30,10,"NO",0,"NO",0,"NO",0,{"$f":"SUM(C211:G211,I211,K211,M211)","v":53}]
["ARCOTEL-018-04-07","Registro de Contrato de Adhesión para el Servicio Móvil Avanzado",3,0,10,30,10,"NO",0,"NO",0,"NO",0,{"$f":"SUM(C212:G212,I212,K212,M212)","v":53}]
["ARCOTEL-018-04-08","Registro de Contrato de Reventa para el Servicio Móvil Avanzado",3,0,20,30,10,"NO",0,"NO",0,"NO",0,{"$f":"SUM(C213:G213,I213,K213,M213)","v":63}]
["ARCOTEL-005-01-04","Solicitud de licencias no automáticas de importación de decodificadores para personas naturales o jurídicas cuya actividad comercial o objeto social sea la prestación de servicios en general de mantenimiento",3,0,5,0,0,"NO",0,"NO",0,"NO",0,{"$f":"SUM(C214:G214,I214,K214,M214)","v":8}]
["ARCOTEL-005-01-03","Solicitud de licencias no automáticas de importación de decodificadores para provisión de receptores de abonado y/o receptores de prestador de servicio para sistemas de audio y video por suscripción o tv abierta -para mantenerlos en perchas",3,0,5,0,0,"NO",0,"NO",0,"NO",0,{"$f":"SUM(C215:G215,I215,K215,M215)","v":8}]
["ARCOTEL-030-03-02","Autorización de operación de canales locales para programación propia para un Sistema de Audio y Video por Suscripción",3,0,10,30,10,"NO",0,"NO",0,"NO",0,{"$f":"SUM(C216:G216,I216,K216,M216)","v":53}]
["ARCOTEL-016-04-05","Notificación de cambio de Razón Social para el Título Habilitante de Red Privada y Uso de Frecuencias de Telecomunicaciones",3,0,20,30,10,"NO",0,"NO",0,"NO",0,{"$f":"SUM(C217:G217,I217,K217,M217)","v":63}]
["ARCOTEL-030-04-02","Notificación de modificación de estatutos y cambios de socios o accionistas para un Sistema de Audio y Video por Suscripción",3,0,5,0,10,"NO",0,"NO",0,"NO",0,{"$f":"SUM(C218:G218,I218,K218,M218)","v":18}]
["ARCOTEL-030-04-04","Notificación de modificación de redes con o sin cambio de tecnología para un Sistema de Audio y Video por Suscripción",3,0,5,0,10,"NO",0,"NO",0,"NO",0,{"$f":"SUM(C219:G219,I219,K219,M219)","v":18}]
["ARCOTEL-030-04-01","Notificación de reubicación de la cabecera (head end) para un Sistema de Audio y Video por Suscripción",3,0,5,0,10,"NO",0,"NO",0,"NO",0,{"$f":"SUM(C220:G220,I220,K220,M220)","v":18}]
["ARCOTEL-031-04-01","Registro de Contrato de Adhesión o Reventa para el Servicio de Telefonía Fija",3,0,20,30,10,"NO",0,"NO",0,"NO",0,{"$f":"SUM(C221:G221,I221,K221,M221)","v":63}]
["ARCOTEL-014-02-02","Renovación del Título Habilitante para el Servicio de Acceso a Internet para personas jurídicas de derecho privado",3,0,5,30,10,"NO",0,"NO",0,"NO",0,{"$f":"SUM(C222:G222,I222,K222,M222)","v":48}]
["ARCOTEL-036-01-01","Reporte de incidentes informáticos en redes de telecomunicaciones",3,0,5,0,0,"NO",0,"NO",0,"NO",0,{"$f":"SUM(C223:G223,I223,K223,M223)","v":8}]
["ARCOTEL-005-01-05","Solicitud de licencias no automáticas de importación de decodificadores para fines sociales, académicos, seguridad y salud o de interés general, y para importar muestras de equipos decodificadores",3,0,5,0,0,"NO",0,"NO",0,"NO",0,{"$f":"SUM(C224:G224,I224,K224,M224)","v":8}]
["ARCOTEL-007-01-01","Bloqueo de equipos terminales robados, perdidos o hurtados que no hayan sido utilizados en las redes de los prestadores del servicio móvil avanzado.",3,0,5,30,0,"NO",0,"NO",0,"NO",0,{"$f":"SUM(C225:G225,I225,K225,M225)","v":38}]
["ARCOTEL-014-05-01","Devolución voluntaria o por acuerdo mutuo del Título Habilitante para el Servicio de Acceso a Internet",3,0,20,30,10,"NO",0,"NO",0,"NO",0,{"$f":"SUM(C226:G226,I226,K226,M226)","v":63}]
["ARCOTEL-027-03-06","Autorización de adquisición de acciones o participaciones de empresas para el Servicio de Valor Agregado",6,0,10,30,10,"NO",0,"NO",0,"NO",0,{"$f":"SUM(C227:G227,I227,K227,M227)","v":56}]
["ARCOTEL-010-01-01","Autorización Temporal de Frecuencias para Radiodifusión Sonora y TV de Señal Abierta",6,0,10,30,10,"NO",0,"NO",0,"NO",0,{"$f":"SUM(C228:G228,I228,K228,M228)","v":56}]
["ARCOTEL-030-04-08","Notificación de actualización de coordenadas geográficas de sitios previamente autorizados para un Sistema de Audio y Video por Suscripción",6,0,5,0,10,"NO",0,"NO",0,"NO",0,{"$f":"SUM(C229:G229,I229,K229,M229)","v":21}]
["ARCOTEL-030-03-01","Autorización de ampliación de cobertura para un Sistema de Audio y Video por Suscripción",6,0,10,30,10,"NO",0,"NO",0,"NO",0,{"$f":"SUM(C230:G230,I230,K230,M230)","v":56}]
["ARCOTEL-030-01-01","Otorgamiento del Título Habilitante para un Sistema de Audio y Video por Suscripción bajo las modalidades de Cable Físico o Televisión Codificada Satelital para personas naturales",6,0,20,30,10,"NO",0,"NO",0,"NO",0,{"$f":"SUM(C231:G231,I231,K231,M231)","v":66}]
["ARCOTEL-024-02-01","Renovación del Título Habilitante para el Servicio de Radiodifusión Sonora y Televisión por Señal Abierta para Personas Jurídicas de Derecho Público (Adjudicación Directa) y/o Medios Privados y Comunitarios",6,0,20,30,10,"NO",0,"NO",0,"NO",0,{"$f":"SUM(C232:G232,I232,K232,M232)","v":66}]
["ARCOTEL-024-03-12","Autorización de cambio de Razón social o denominación objetiva para el Servicio de Radiodifusión Sonora y Televisión por Señal Abierta",6,0,10,30,10,"NO",0,"NO",0,"NO",0,{"$f":"SUM(C233:G233,I233,K233,M233)","v":56}]
["ARCOTEL-016-03-11","Autorización de prórroga para instalación e inicio de operaciones para el Título Habilitante de Operación de Red Privada y Uso de Frecuencias de Telecomunicaciones",6,0,5,0,10,"NO",0,"NO",0,"NO",0,{"$f":"SUM(C234:G234,I234,K234,M234)","v":21}]
["ARCOTEL-016-04-04","Notificación de cambio de Representante Legal, actualización de información de contacto y cambio de domicilio para una Red Privada de Telecomunicaciones",6,0,10,30,10,"NO",0,"NO",0,"NO",0,{"$f":"SUM(C235:G235,I235,K235,M235)","v":56}]
["ARCOTEL-030-01-02","Otorgamiento del Título Habilitante para un Sistema de Audio y Video por Suscripción bajo las modalidades de Cable Físico o Televisión Codificada Satelital para personas jurídicas de derecho privado.",6,0,20,30,10,"NO",0,"NO",0,"NO",0,{"$f":"SUM(C236:G236,I236,K236,M236)","v":66}]
["ARCOTEL-035-01-01","Reporte de vulnerabilidades informáticas en redes de telecomunicaciones",6,0,5,0,0,"NO",0,"NO",0,"NO",0,{"$f":"SUM(C237:G237,I237,K237,M237)","v":11}]
["ARCOTEL-016-03-01","Autorización de incremento de frecuencias para enlaces terrestres y satelitales asociadas a una Red Privada de Telecomunicaciones",6,0,10,30,10,"NO",0,"NO",0,"NO",0,{"$f":"SUM(C238:G238,I238,K238,M238)","v":56}]
["ARCOTEL-016-05-01","Devolución voluntaria o por acuerdo mutuo del Título Habilitante de Red Privada y Uso de Frecuencias de Telecomunicaciones",6,0,20,30,10,"NO",0,"NO",0,"NO",0,{"$f":"SUM(C239:G239,I239,K239,M239)","v":66}]
["ARCOTEL-026-01-01","Inscripción de Proveedores de Infraestructura física",6,0,10,30,0,"NO",0,"NO",0,"NO",0,{"$f":"SUM(C240:G240,I240,K240,M240)","v":46}]
["ARCOTEL-030-03-04","Autorización de prórroga para inicio de operaciones para un Sistema de Audio y Video por Suscripción",6,0,5,0,10,"NO",0,"NO",0,"NO",0,{"$f":"SUM(C241:G241,I241,K241,M241)","v":21}]
["ARCOTEL-003-01-02 ","Certificación de obligaciones económicas, área de cobertura y/o derechos de concesión de servicios de telecomunicaciones solicitada por terceros autorizados por los poseedores de títulos habilitantes",6,0,10,0,0,"NO",0,"NO",0,"NO",0,{"$f":"SUM(C242:G242,I242,K242,M242)","v":16}]
["ARCOTEL-030-05-01","Devolución voluntaria o por acuerdo mutuo del Título Habilitante para el Servicio de Audio y Video por Susucripción",6,0,20,30,10,"NO",0,"NO",0,"NO",0,{"$f":"SUM(C243:G243,I243,K243,M243)","v":66}]
["ARCOTEL-009-01-01","Solicitud de medición de radiaciones no ionizantes por parte de la ciudadanía",6,10,5,30,0,"NO",0,"NO",0,"NO",0,{"$f":"SUM(C244:G244,I244,K244,M244)","v":51}]
["ARCOTEL-009-03-01","Solicitud de verificación de inicio de operación de sistemas de radiodifusión y televisión abierta",6,10,5,30,0,"NO",0,"NO",0,"NO",0,{"$f":"SUM(C245:G245,I245,K245,M245)","v":51}]
["ARCOTEL-023-03-01","Autorización de modificaciones para el Servicio de Radioaficionados y Banda Ciudadana",6,0,5,30,10,"NO",0,"NO",0,"NO",0,{"$f":"SUM(C246:G246,I246,K246,M246)","v":51}]
["ARCOTEL-016-03-10","Autorización de cancelación parcial de frecuencias para Troncalizado y Radio de Dos Vías (móvil terrestre, aeronáutico y marítimo) asociado a una Red Privada de Telecomunicaciones",6,0,10,30,10,"NO",0,"NO",0,"NO",0,{"$f":"SUM(C247:G247,I247,K247,M247)","v":56}]
["ARCOTEL-030-04-11","Registro de Contrato de Adhesión o Reventa para un Sistema de Audio y Video por Suscripción",6,0,5,0,10,"NO",0,"NO",0,"NO",0,{"$f":"SUM(C248:G248,I248,K248,M248)","v":21}]
["ARCOTEL-020-01-01","Otorgamiento y Renovación del Título Habilitante para el Servicio Comunal, Servicio Troncalizado, Servicio Transporte Internacional Modalidad Segmento Espacial",6,0,20,30,10,"NO",0,"NO",0,"NO",0,{"$f":"SUM(C249:G249,I249,K249,M249)","v":66}]
["ARCOTEL-030-04-05","Notificación de incremento y/o decremento del número de canales para un Sistema de Audio y Video por Suscripción que no involucran autorizaciones de nuevas frecuencias",6,0,5,0,10,"NO",0,"NO",0,"NO",0,{"$f":"SUM(C250:G250,I250,K250,M250)","v":21}]
["ARCOTEL-020-03-06","Autorización de cancelación de frecuencias para el Servicio Comunal y Servicio Troncalizado",6,0,5,0,10,"NO",0,"NO",0,"NO",0,{"$f":"SUM(C251:G251,I251,K251,M251)","v":21}]
["ARCOTEL-024-03-14","Autorización de Modificaciones Administrativas para el Servicio de Radiodifusión Sonora y Televisión por Señal Abierta",6,0,10,30,10,"NO",0,"NO",0,"NO",0,{"$f":"SUM(C252:G252,I252,K252,M252)","v":56}]
["ARCOTEL-014-03-06","Autorización de prórroga para inicio de operaciones para el Servicio de Acceso a Internet",6,0,5,30,10,"NO",0,"NO",0,"NO",0,{"$f":"SUM(C253:G253,I253,K253,M253)","v":51}]
["ARCOTEL-024-01-01","Otorgamiento del Título Habilitante para el Servicio de Radiodifusión Sonora y Televisión por Señal Abierta para Personas Jurídicas de Derecho Público (Adjudicación Directa)",6,0,20,30,10,"NO",0,"NO",0,"NO",0,{"$f":"SUM(C254:G254,I254,K254,M254)","v":66}]
["ARCOTEL-014-04-06","Registro de Contrato de Adhesión o Reventa para el Servicio de Acceso a Internet",6,0,5,30,10,"NO",0,"NO",0,"NO",0,{"$f":"SUM(C255:G255,I255,K255,M255)","v":51}]
["ARCOTEL-015-04-04","Notificación de reportes contractuales y en cumplimiento al ordenamiento jurídico vigente para el Servicio de Telecomunicaciones Móviles por Satélite",6,0,10,30,10,"NO",0,"NO",0,"NO",0,{"$f":"SUM(C256:G256,I256,K256,M256)","v":56}]
["ARCOTEL-028-03-01","Registro de tercero vinculado para una Entidad de Certificación de Información y Servicios Relacionados Acreditados",6,0,10,30,0,"NO",0,"NO",0,"NO",0,{"$f":"SUM(C257:G257,I257,K257,M257)","v":46}]
["ARCOTEL-014-01-02","Otorgamiento del Título Habilitante para el Servicio de Acceso a Internet para personas jurídicas de derecho privado",6,0,5,30,10,"NO",0,"NO",0,"NO",0,{"$f":"SUM(C258:G258,I258,K258,M258)","v":51}]
["ARCOTEL-020-03-01","Autorización de incremento de frecuencias para el Servicio Comunal y Servicio Troncalizado",6,0,10,30,10,"NO",0,"NO",0,"NO",0,{"$f":"SUM(C259:G259,I259,K259,M259)","v":56}]
["ARCOTEL-030-04-03","Notificación de actualización de la programación y/o antenas de recepción para un Sistema de Audio y Video por Suscripción",6,0,5,0,10,"NO",0,"NO",0,"NO",0,{"$f":"SUM(C260:G260,I260,K260,M260)","v":21}]
["ARCOTEL-028-04-04","Notificación de facturación total del mes por una Entidad de Certificación de Información y Servicios Relacionados Acreditados",10,0,5,0,10,"NO",0,"NO",0,"NO",0,{"$f":"SUM(C261:G261,I261,K261,M261)","v":25}]
["ARCOTEL-031-04-06","Notificación de modificación, instalación o ampliación de infraestructura para el Servicio de Telefonía Fija",10,0,10,30,10,"NO",0,"NO",0,"NO",0,{"$f":"SUM(C262:G262,I262,K262,M262)","v":60}]
["ARCOTEL-016-03-06","Autorización de modificación de parámetros técnicos para Troncalizado y Radio de Dos Vías (móvil terrestre, aeronáutico y marítimo) asociados a una Red Privada de Telecomunicaciones",10,0,10,30,10,"NO",0,"NO",0,"NO",0,{"$f":"SUM(C263:G263,I263,K263,M263)","v":60}]
["ARCOTEL-028-04-02","Notificación de número de certificados emitidos y revocados en el mes por una Entidad de Certificación de Información y Servicios Relacionados Acreditados",10,0,5,0,0,"NO",0,"NO",0,"NO",0,{"$f":"SUM(C264:G264,I264,K264,M264)","v":15}]
["ARCOTEL-028-04-01","Notificación de número de solicitudes de servicio y trámite atendidos por una Entidad de Certificación de Información y Servicios Relacionados Acreditados",10,0,5,0,0,"NO",0,"NO",0,"NO",0,{"$f":"SUM(C265:G265,I265,K265,M265)","v":15}]
["ARCOTEL-028-04-03","Notificación de números de usuarios de servicios relacionados con la firma digital por una Entidad de Certificación de Información y Servicios Relacionados Acreditados",10,0,5,0,0,"NO",0,"NO",0,"NO",0,{"$f":"SUM(C266:G266,I266,K266,M266)","v":15}]
["ARCOTEL-002-01-01","Solicitud de estudios o información estadística del sector de las telecomunicaciones",10,0,5,0,0,"NO",0,"NO",0,"NO",0,{"$f":"SUM(C267:G267,I267,K267,M267)","v":15}]
["ARCOTEL-016-03-05","Autorización de incremento de frecuencias para Troncalizado y Radio de Dos Vías (móvil terrestre, aeronáutico y marítimo) asociadas a una Red Privada de Telecomunicaciones",10,0,10,30,10,"NO",0,"NO",0,"NO",0,{"$f":"SUM(C268:G268,I268,K268,M268)","v":60}]
["ARCOTEL-020-03-02","Autorización de modificaciones técnicas para el Servicio Comunal y Servicio Troncalizado",10,0,10,30,10,"NO",0,"NO",0,"NO",0,{"$f":"SUM(C269:G269,I269,K269,M269)","v":60}]
["ARCOTEL-005-01-01","Solicitud de licencias no automáticas de importación de decodificadores para poseedores de títulos habilitantes de telecomunicaciones o radiodifusión y/o receptores para usuarios de televisión digital terrestre abierta",10,0,5,0,0,"NO",0,"NO",0,"NO",0,{"$f":"SUM(C270:G270,I270,K270,M270)","v":15}]
["ARCOTEL-037-02-02","Autorización de cancelación de enlaces terrestres y satelitales para la prestación de Servicios de Telecomunicaciones",10,0,5,0,10,"NO",0,"NO",0,"NO",0,{"$f":"SUM(C271:G271,I271,K271,M271)","v":25}]
["ARCOTEL-023-01-01","Otorgamiento y Renovación de la Licencia para el Servicio de Radioaficionados y Banda Ciudadana",10,0,10,30,10,"NO",0,"NO",0,"NO",0,{"$f":"SUM(C272:G272,I272,K272,M272)","v":60}]
["ARCOTEL-016-01-02","Otorgamiento y Renovación del Título Habilitante de Operación de Red Privada y Uso de Frecuencias para Troncalizado y Radio de Dos Vías (móvil terrestre, aeronáutico y marítimo)",10,0,10,30,10,"NO",0,"NO",0,"NO",0,{"$f":"SUM(C273:G273,I273,K273,M273)","v":60}]
["ARCOTEL-014-01-01","Otorgamiento del Título Habilitante para el Servicio de Acceso a Internet para personas naturales",10,0,5,30,10,"NO",0,"NO",0,"NO",0,{"$f":"SUM(C274:G274,I274,K274,M274)","v":55}]
["ARCOTEL-014-03-01","Autorización de modificaciones técnicas de red física para el Servicio de Acceso a Internet",10,0,5,30,0,"NO",0,"NO",0,"NO",0,{"$f":"SUM(C275:G275,I275,K275,M275)","v":45}]
["ARCOTEL-019-01-01","Otorgamiento y Renovación de Frecuencias Temporales de Telecomunicaciones",10,10,5,30,10,"NO",0,"NO",0,"NO",0,{"$f":"SUM(C276:G276,I276,K276,M276)","v":65}]
["ARCOTEL-018-04-09","Notificación de reportes contractuales, legales y reglamentarios del Servicio Móvil Avanzado",10,0,10,30,10,"NO",0,"NO",0,"NO",0,{"$f":"SUM(C277:G277,I277,K277,M277)","v":60}]
["ARCOTEL-017-04-07","Notificación de cumplimiento de Georreferenciación para el Servicio Portador",10,0,5,0,0,"NO",0,"NO",0,"NO",0,{"$f":"SUM(C278:G278,I278,K278,M278)","v":15}]
["ARCOTEL-003-01-03","Certificación de infracciones y sanciones emitidas por ARCOTEL",10,0,20,30,0,"NO",0,"NO",0,"NO",0,{"$f":"SUM(C279:G279,I279,K279,M279)","v":60}]
["ARCOTEL-009-04-01","Solicitud de suspensión de emisiones de sistemas de radiodifusión y televisión de señal abierta",10,10,5,30,0,"NO",0,"NO",0,"NO",0,{"$f":"SUM(C280:G280,I280,K280,M280)","v":55}]
["ARCOTEL-006-01-01","Solicitud de credenciales para importadores (personas jurídicas) de terminales de servicio móvil avanzado",10,0,5,30,0,"NO",0,"NO",0,"NO",0,{"$f":"SUM(C281:G281,I281,K281,M281)","v":45}]
["ARCOTEL-033-01-01","Otorgamiento del Certificado de Inscripción en el Registro Público de Telecomunicaciones de Centros de Acceso a la Información a través de Internet (Cibercafés)",10,0,5,0,0,"NO",0,"NO",0,"NO",0,{"$f":"SUM(C282:G282,I282,K282,M282)","v":15}]
["ARCOTEL-037-02-05","Autorización de incremento, modificación y cancelación de Radiobases para el Servicio Móvil Avanzado",10,0,10,30,10,"NO",0,"NO",0,"NO",0,{"$f":"SUM(C283:G283,I283,K283,M283)","v":60}]
["ARCOTEL-009-02-01","Solicitud de concesionarios del espectro radioeléctrico para solución de interferencias",10,10,5,30,0,"NO",0,"NO",0,"NO",0,{"$f":"SUM(C284:G284,I284,K284,M284)","v":55}]
["ARCOTEL-014-04-07","Notificación de cumplimiento de Georreferenciación para el Servicio de Acceso a Internet",10,0,5,0,0,"NO",0,"NO",0,"NO",0,{"$f":"SUM(C285:G285,I285,K285,M285)","v":15}]
["ARCOTEL-024-04-01","Notificación de Modificaciones Técnicas para el Servicio de Radiodifusión Sonora y Televisión por Señal Abierta",10,0,10,30,10,"NO",0,"NO",0,"NO",0,{"$f":"SUM(C286:G286,I286,K286,M286)","v":60}]
["ARCOTEL-017-03-01","Autorización de modificaciones técnicas para red física para el Servicio Portador",10,0,5,30,10,"NO",0,"NO",0,"NO",0,{"$f":"SUM(C287:G287,I287,K287,M287)","v":55}]
["ARCOTEL-024-03-01","Autorización de Modificaciones Técnicas para el Servicio de Radiodifusión Sonora y Televisión por Señal Abierta",10,0,10,30,10,"NO",0,"NO",0,"NO",0,{"$f":"SUM(C288:G288,I288,K288,M288)","v":60}]
["ARCOTEL-037-02-01","Autorización de incremento de enlaces terrestres y satelitales para la prestación de Servicios de Telecomunicaciones",10,0,10,30,10,"NO",0,"NO",0,"NO",0,{"$f":"SUM(C289:G289,I289,K289,M289)","v":60}]
["ARCOTEL-006-01-02","Solicitud de credenciales para importadores (persona natural) de terminales de servicio móvil avanzado",10,0,5,30,0,"NO",0,"NO",0,"NO",0,{"$f":"SUM(C290:G290,I290,K290,M290)","v":45}]
["ARCOTEL-037-02-03","Autorización de modificaciones técnicas de enlaces terrestres y satelitales para Servicios de Telecomunicaciones",10,0,10,30,10,"NO",0,"NO",0,"NO",0,{"$f":"SUM(C291:G291,I291,K291,M291)","v":60}]
["ARCOTEL-031-04-07","Notificación de reserva, asignación y liberación de recurso numérico geográfico para el Servicio de Telefonía Fija.",10,0,10,30,10,"NO",0,"NO",0,"NO",0,{"$f":"SUM(C292:G292,I292,K292,M292)","v":60}]
["ARCOTEL-001-01-01","Solicitud de información pública",10,10,5,30,0,"NO",0,"NO",0,"NO",0,{"$f":"SUM(C293:G293,I293,K293,M293)","v":55}]
["ARCOTEL-003-01-01","Certificación de obligaciones económicas, área de cobertura y/o derechos de concesión de servicios de telecomunicaciones solicitada por los poseedores de títulos habilitantes",10,0,5,0,0,"NO",0,"NO",0,"NO",0,{"$f":"SUM(C294:G294,I294,K294,M294)","v":15}]
["ARCOTEL-004-01-01","Solicitud de homologación de equipos terminales de telecomunicaciones",10,0,10,30,0,"NO",0,"NO",0,"NO",0,{"$f":"SUM(C295:G295,I295,K295,M295)","v":50}]
["ARCOTEL-012-01-01","Presentación de reclamos, denuncias, sugerencias o solicitudes de información de los servicios de telecomunicaciones",10,0,5,30,0,"NO",0,"NO",0,"NO",0,{"$f":"SUM(C296:G296,I296,K296,M296)","v":45}]